Workbook

Sheet Historical scenario - input
B1: Unit cost - historical | C1: Calibration period: Calendar Year 2016 to 2019
B2: Replacement lives - calibrated | C2: Reference to 2020 refers to calendar year 2020
C3: All expenditure values are in $2020-21 | D3: Unit cost | E3: Replacement life | G3: Method | H3: Volume | CV3: Replacement Cost (NOT depreciated)
H4: Installation date | CV4: Installation date
A5: ID | B5: Asset group | C5: Asset category | D5: $ ('000) | E5: μ | F5: σ | G5: # | H5: 2019 | I5: 2018 | J5: 2017 | K5: 2016 | L5: 2015 | M5: 2014 | N5: 2013 | O5: 2012 | P5: 2011 | Q5: 2010 | R5: 2009 | S5: 2008 | T5: 2007 | U5: 2006 | V5: 2005 | W5: 2004 | X5: 2003 | Y5: 2002 | Z5: 2001 | AA5: 2000 | AB5: 1999 | AC5: 1998 | AD5: 1997 | AE5: 1996 | AF5: 1995 | AG5: 1994 | AH5: 1993 | AI5: 1992 | AJ5: 1991 | AK5: 1990 | AL5: 1989 | AM5: 1988 | AN5: 1987 | AO5: 1986 | AP5: 1985 | AQ5: 1984 | AR5: 1983 | AS5: 1982 | AT5: 1981 | AU5: 1980 | AV5: 1979 | AW5: 1978 | AX5: 1977 | AY5: 1976 | AZ5: 1975 | BA5: 1974 | BB5: 1973 | BC5: 1972 | BD5: 1971 | BE5: 1970 | BF5: 1969 | BG5: 1968 | BH5: 1967 | BI5: 1966 | BJ5: 1965 | BK5: 1964 | BL5: 1963 | BM5: 1962 | BN5: 1961 | BO5: 1960 | BP5: 1959 | BQ5: 1958 | BR5: 1957 | BS5: 1956 | BT5: 1955 | BU5: 1954 | BV5: 1953 | BW5: 1952 | BX5: 1951 | BY5: 1950 | BZ5: 1949 | CA5: 1948 | CB5: 1947 | CC5: 1946 | CD5: 1945 | CE5: 1944 | CF5: 1943 | CG5: 1942 | CH5: 1941 | CI5: 1940 | CJ5: 1939 | CK5: 1938 | CL5: 1937 | CM5: 1936 | CN5: 1935 | CO5: 1934 | CP5: 1933 | CQ5: 1932 | CR5: 1931 | CS5: 1930 | CT5: 1929 | CV5: 2019 | CW5: 2018 | CX5: 2017 | CY5: 2016 | CZ5: 2015 | DA5: 2014 | DB5: 2013 | DC5: 2012 | DD5: 2011 | DE5: 2010 | DF5: 2009 | DG5: 2008 | DH5: 2007 | DI5: 2006 | DJ5: 2005 | DK5: 2004 | DL5: 2003 | DM5: 2002 | DN5: 2001 | DO5: 2000 | DP5: 1999 | DQ5: 1998 | DR5: 1997 | DS5: 1996 | DT5: 1995 | DU5: 1994 | DV5: 1993 | DW5: 1992 | DX5: 1991 | DY5: 1990 | DZ5: 1989 | EA5: 1988 | EB5: 1987 | EC5: 1986 | ED5: 1985 | EE5: 1984 | EF5: 1983 | EG5: 1982 | EH5: 1981 | EI5: 1980 | EJ5: 1979 | EK5: 1978 | EL5: 1977 | EM5: 1976 | EN5: 1975 | EO5: 1974 | EP5: 1973 | EQ5: 1972 | ER5: 1971 | ES5: 1970 | ET5: 1969 | EU5: 1968 | EV5: 1967 | EW5: 1966 | EX5: 1965 | EY5: 1964 | EZ5: 1963 | FA5: 1962 | FB5: 1961 | FC5: 1960 | FD5: 1959 | FE5: 1958 | FF5: 1957 | FG5: 1956 | FH5: 1955 | FI5: 1954 | FJ5: 1953 | FK5: 1952 | FL5: 1951 | FM5: 1950 | FN5: 1949 | FO5: 1948 | FP5: 1947 | FQ5: 1946 | FR5: 1945 | FS5: 1944 | FT5: 1943 | FU5: 1942 | FV5: 1941 | FW5: 1940 | FX5: 1939 | FY5: 1938 | FZ5: 1937 | GA5: 1936 | GB5: 1935 | GC5: 1934 | GD5: 1933 | GE5: 1932 | GF5: 1931 | GG5: 1930 | GH5: 1929
A6: 1 | B6: OVERHEAD CONDUCTORS | C6: ˂ = 1 kv | D6: 283.6140633 | E6: 73.3678507 | F6: 8.565503528 | G6: 2 | H6: 17.70269 | I6: 18.48236 | J6: 13.37276 | K6: 19.02986 | L6: 21.38209 | M6: 27.00561 | N6: 38.707227 | O6: 37.28763 | P6: 35.284382 | Q6: 30.668677 | R6: 39.310144 | S6: 28.873534 | T6: 26.730555 | U6: 21.910482 | V6: 19.102375 | W6: 29.537652 | X6: 20.114369 | Y6: 21.084419 | Z6: 39.605641 | AA6: 21.394096 | AB6: 36.868538 | AC6: 33.696017 | AD6: 32.816095 | AE6: 24.534626 | AF6: 15.234165 | AG6: 17.776461 | AH6: 17.873431 | AI6: 53.321917 | AJ6: 32.720505 | AK6: 73.137791 | AL6: 65.07325 | AM6: 76.962718 | AN6: 62.566357 | AO6: 107.562355 | AP6: 95.371972 | AQ6: 57.305833 | AR6: 60.6554 | AS6: 43.652462 | AT6: 41.55413 | AU6: 46.856095 | AV6: 44.51012 | AW6: 79.420429 | AX6: 47.112337 | AY6: 49.58904 | AZ6: 39.199656 | BA6: 70.036342 | BB6: 54.678069 | BC6: 77.940844 | BD6: 68.737081 | BE6: 17.473618 | BF6: 46.092343 | BG6: 61.353639 | BH6: 44.463398 | BI6: 42.436964 | BJ6: 58.238145 | BK6: 24.275917 | BL6: 11.084513 | BM6: 19.912189 | BN6: 23.922408 | BO6: 15.90303 | BP6: 11.868614 | BQ6: 9.819577 | BR6: 3.925949 | BS6: 1.635579 | BT6: 5.343021 | BU6: 0.005668 | BV6: 0 | BW6: 0.19349 | BX6: 0.03045 | BY6: 0 | BZ6: 0 | CA6: 0 | CB6: 0.07656 | CC6: 0 | CD6: 0 | CE6: 0 | CF6: 0 | CG6: 0 | CH6: 0 | CI6: 0 | CJ6: 0 | CK6: 0 | CL6: 0 | CM6: 0 | CN6: 0 | CO6: 0 | CP6: 0 | CQ6: 0 | CR6: 0 | CS6: 0 | CT6: 0 | CV6: 5020.731842 | CW6: 5241.857219 | CX6: 3792.702801 | CY6: 5397.135918 | CZ6: 6064.261427 | DA6: 7659.170784 | DB6: 10977.91393 | DC6: 10575.29625 | DD6: 10007.14695 | DE6: 8698.0681 | DF6: 11148.90967 | DG6: 8188.940299 | DH6: 7581.161318 | DI6: 6214.120829 | DJ6: 5417.702192 | DK6: 8377.293504 | DL6: 5704.717923 | DM6: 5979.837745 | DN6: 11232.71677 | DO6: 6067.666497 | DP6: 10456.43587 | DQ6: 9556.664298 | DR6: 9307.106044 | DS6: 6958.364971 | DT6: 4320.623437 | DU6: 5041.654335 | DV6: 5069.156391 | DW6: 15122.84554 | DX6: 9279.995376 | DY6: 20742.90609 | DZ6: 18455.68884 | EA6: 21827.70917 | EB6: 17744.69873 | EC6: 30506.19656 | ED6: 27048.8325 | EE6: 16252.74015 | EF6: 17202.72445 | EG6: 12380.45212 | EH6: 11785.33566 | EI6: 13289.04749 | EJ6: 12623.69599 | EK6: 22524.75058 | EL6: 13361.72133 | EM6: 14064.14913 | EN6: 11117.57372 | EO6: 19863.29153 | EP6: 15507.46932 | EQ6: 22105.11946 | ER6: 19494.80284 | ES6: 4955.763801 | ET6: 13072.43668 | EU6: 17400.75485 | EV6: 12610.44497 | EW6: 12035.71979 | EX6: 16517.15694 | EY6: 6884.991461 | EZ6: 3143.723772 | FA6: 5647.376831 | FB6: 6784.731337 | FC6: 4510.322957 | FD6: 3366.105842 | FE6: 2784.970133 | FF6: 1113.454348 | FG6: 463.873206 | FH6: 1515.355896 | FI6: 1.607524511 | FJ6: 0 | FK6: 54.87648511 | FL6: 8.636048227 | FM6: 0 | FN6: 0 | FO6: 0 | FP6: 21.71349269 | FQ6: 0 | FR6: 0 | FS6: 0 | FT6: 0 | FU6: 0 | FV6: 0 | FW6: 0 | FX6: 0 | FY6: 0 | FZ6: 0 | GA6: 0 | GB6: 0 | GC6: 0 | GD6: 0 | GE6: 0 | GF6: 0 | GG6: 0 | GH6: 0
A7: 1 | B7: OVERHEAD CONDUCTORS | C7: ˃ 11 kv & < = 22 kv ; multiple-phase | D7: 66.26122385 | E7: 66.10739964 | F7: 8.130645708 | G7: 2 | H7: 5.63115 | I7: 2.68669 | J7: 11.54605 | K7: 9.94425 | L7: 9.50828 | M7: 8.29093 | N7: 17.336201 | O7: 9.39289 | P7: 16.823108 | Q7: 5.683632 | R7: 16.38804 | S7: 9.66017 | T7: 7.58808 | U7: 6.269894 | V7: 3.79028 | W7: 4.74128 | X7: 11.63473 | Y7: 5.83221 | Z7: 4.5408 | AA7: 23.461364 | AB7: 2.1048 | AC7: 12.949732 | AD7: 18.533989 | AE7: 1.36556 | AF7: 8.25775 | AG7: 5.58797 | AH7: 1.905685 | AI7: 14.353443 | AJ7: 9.108907 | AK7: 44.509403 | AL7: 42.665428 | AM7: 35.605079 | AN7: 54.144153 | AO7: 47.913214 | AP7: 32.380664 | AQ7: 36.853151 | AR7: 48.676154 | AS7: 55.289717 | AT7: 32.03586 | AU7: 52.989346 | AV7: 32.88584 | AW7: 52.795915 | AX7: 51.203109 | AY7: 50.130978 | AZ7: 34.588837 | BA7: 25.832234 | BB7: 7.13933 | BC7: 15.112719 | BD7: 9.445154 | BE7: 4.40796 | BF7: 34.656929 | BG7: 13.25605 | BH7: 21.690416 | BI7: 10.41751 | BJ7: 16.316639 | BK7: 0.3682 | BL7: 5.53487 | BM7: 4.10578 | BN7: 9.19556 | BO7: 8.915 | BP7: 16.47419 | BQ7: 2.87922 | BR7: 6.94652 | BS7: 1.09808 | BT7: 1.28111 | BU7: 2.51505 | BV7: 0 | BW7: 0 | BX7: 0.84989 | BY7: 0 | BZ7: 0 | CA7: 0 | CB7: 0 | CC7: 0 | CD7: 0 | CE7: 0 | CF7: 0 | CG7: 0 | CH7: 3.22924 | CI7: 0 | CJ7: 0 | CK7: 0.1204 | CL7: 0 | CM7: 0 | CN7: 0 | CO7: 0 | CP7: 0 | CQ7: 0 | CR7: 0 | CS7: 0 | CT7: 0 | CV7: 373.1268907 | CW7: 178.0233675 | CX7: 765.0554037 | CY7: 658.9181753 | CZ7: 630.0302696 | DA7: 549.3671687 | DB7: 1148.717895 | DC7: 622.3843869 | DD7: 1114.719725 | DE7: 376.6044123 | DF7: 1085.891587 | DG7: 640.0946868 | DH7: 502.7954675 | DI7: 415.4508499 | DJ7: 251.1485916 | DK7: 314.1630154 | DL7: 770.931449 | DM7: 386.4493724 | DN7: 300.8789653 | DO7: 1554.578692 | DP7: 139.466624 | DQ7: 858.0650909 | DR7: 1228.084794 | DS7: 90.48367685 | DT7: 547.1686213 | DU7: 370.2657311 | DV7: 126.2730204 | DW7: 951.0766997 | DX7: 603.5673258 | DY7: 2949.247516 | DZ7: 2827.063476 | EA7: 2359.23611 | EB7: 3587.657842 | EC7: 3174.788198 | ED7: 2145.582426 | EE7: 2441.934888 | EF7: 3225.341537 | EG7: 3663.564315 | EH7: 2122.735291 | EI7: 3511.138917 | EJ7: 2179.056006 | EK7: 3498.321942 | EL7: 3392.780668 | EM7: 3321.739955 | EN7: 2291.898671 | EO7: 1711.67544 | EP7: 473.0607433 | EQ7: 1001.387257 | ER7: 625.8474635 | ES7: 292.0768243 | ET7: 2296.410531 | EU7: 878.3620965 | EV7: 1437.23351 | EW7: 690.2769621 | EX7: 1081.160469 | EY7: 24.39738262 | EZ7: 366.7472601 | FA7: 272.0540077 | FB7: 609.3090596 | FC7: 590.7188107 | FD7: 1091.599991 | FE7: 190.7806409 | FF7: 460.2849167 | FG7: 72.76012469 | FH7: 84.88791649 | FI7: 166.6502911 | FJ7: 0 | FK7: 0 | FL7: 56.31475154 | FM7: 0 | FN7: 0 | FO7: 0 | FP7: 0 | FQ7: 0 | FR7: 0 | FS7: 0 | FT7: 0 | FU7: 0 | FV7: 213.9733945 | FW7: 0 | FX7: 0 | FY7: 7.977851352 | FZ7: 0 | GA7: 0 | GB7: 0 | GC7: 0 | GD7: 0 | GE7: 0 | GF7: 0 | GG7: 0 | GH7: 0
A8: 1 | B8: OVERHEAD CONDUCTORS | C8: ˃ 11 kv & < = 22 kv ; single-phase | D8: 66.26122385 | E8: 66.10739964 | F8: 8.130645708 | G8: 2 | H8: 0.26363 | I8: 0.0187 | J8: 3.74311 | K8: 3.4505 | L8: 2.1535 | M8: 0 | N8: 5.18781 | O8: 12.82043 | P8: 22.65825 | Q8: 13.36057 | R8: 1.02182 | S8: 0.27655 | T8: 1.20074 | U8: 2.8032 | V8: 0.06104 | W8: 0.80975 | X8: 0.24842 | Y8: 1.45419 | Z8: 0.91982 | AA8: 0 | AB8: 0.24447 | AC8: 0 | AD8: 0.08423 | AE8: 0 | AF8: 0 | AG8: 0.5074 | AH8: 0 | AI8: 0.99541 | AJ8: 0.30939 | AK8: 1.006 | AL8: 1.74114 | AM8: 3.03731 | AN8: 2.33548 | AO8: 1.20756 | AP8: 10.44657 | AQ8: 12.0726 | AR8: 24.43828 | AS8: 11.74521 | AT8: 6.57768 | AU8: 5.98603 | AV8: 3.53556 | AW8: 5.72973 | AX8: 15.03782 | AY8: 10.90641 | AZ8: 4.83661 | BA8: 5.81494 | BB8: 5.49185 | BC8: 7.89877 | BD8: 3.79488 | BE8: 0.49683 | BF8: 0.54604 | BG8: 2.07174 | BH8: 7.94695 | BI8: 0.29055 | BJ8: 1.91277 | BK8: 0.73041 | BL8: 3.43198 | BM8: 4.33406 | BN8: 0 | BO8: 0.44769 | BP8: 2.76461 | BQ8: 0.8613 | BR8: 0 | BS8: 0 | BT8: 0 | BU8: 0 | BV8: 0 | BW8: 0 | BX8: 0 | BY8: 0 | BZ8: 0 | CA8: 0 | CB8: 0 | CC8: 0 | CD8: 0 | CE8: 0 | CF8: 0 | CG8: 0 | CH8: 0 | CI8: 0 | CJ8: 0 | CK8: 0 | CL8: 0 | CM8: 0 | CN8: 0 | CO8: 0 | CP8: 0 | CQ8: 0 | CR8: 0 | CS8: 0 | CT8: 0 | CV8: 17.46844644 | CW8: 1.239084886 | CX8: 248.0230496 | CY8: 228.6343529 | CZ8: 142.6935456 | DA8: 0 | DB8: 343.7506397 | DC8: 849.4973821 | DD8: 1501.363375 | DE8: 885.2877196 | DF8: 67.70704376 | DG8: 18.32454146 | DH8: 79.56250193 | DI8: 185.7434627 | DJ8: 4.044585104 | DK8: 53.65502602 | DL8: 16.46061323 | DM8: 96.35640912 | DN8: 60.94839893 | DO8: 0 | DP8: 16.1988814 | DQ8: 0 | DR8: 5.581182885 | DS8: 0 | DT8: 0 | DU8: 33.62094498 | DV8: 0 | DW8: 65.95708484 | DX8: 20.50056005 | DY8: 66.6587912 | DZ8: 115.3700673 | EA8: 201.2558778 | EB8: 154.7517631 | EC8: 80.01440348 | ED8: 692.2025133 | EE8: 799.9452511 | EF8: 1619.310342 | EG8: 778.251989 | EH8: 435.8451269 | EI8: 396.6416738 | EJ8: 234.2705326 | EK8: 379.6589222 | EL8: 996.4243573 | EM8: 722.6720745 | EN8: 320.4796979 | EO8: 385.305041 | EP8: 363.8967022 | EQ8: 523.3821671 | ER8: 251.4533932 | ES8: 32.92056385 | ET8: 36.18127867 | EU8: 137.2760279 | EV8: 526.5746329 | EW8: 19.25219859 | EX8: 126.7424812 | EY8: 48.39786052 | EZ8: 227.407195 | FA8: 287.1801199 | FB8: 0 | FC8: 29.66448731 | FD8: 183.1864421 | FE8: 57.07079211 | FF8: 0 | FG8: 0 | FH8: 0 | FI8: 0 | FJ8: 0 | FK8: 0 | FL8: 0 | FM8: 0 | FN8: 0 | FO8: 0 | FP8: 0 | FQ8: 0 | FR8: 0 | FS8: 0 | FT8: 0 | FU8: 0 | FV8: 0 | FW8: 0 | FX8: 0 | FY8: 0 | FZ8: 0 | GA8: 0 | GB8: 0 | GC8: 0 | GD8: 0 | GE8: 0 | GF8: 0 | GG8: 0 | GH8: 0
A9: 1 | B9: OVERHEAD CONDUCTORS | C9: > 1 kv & < = 11 kv | D9: 66.26122385 | E9: 66.10739964 | F9: 8.130645708 | G9: 2 | H9: 1.9844 | I9: 0.51112 | J9: 1.34407 | K9: 0.71269 | L9: 1.52803 | M9: 0.38261 | N9: 3.02028 | O9: 0.61461 | P9: 0.71348 | Q9: 1.57205 | R9: 5.00763 | S9: 1.14809 | T9: 1.09605 | U9: 2.26503 | V9: 0.22142 | W9: 0.45873 | X9: 0.70316 | Y9: 0.31714 | Z9: 0.11953 | AA9: 1.41801 | AB9: 1.147118 | AC9: 2.21687 | AD9: 1.794523 | AE9: 0 | AF9: 0.60143 | AG9: 1.40452 | AH9: 1.17463 | AI9: 2.42012 | AJ9: 1.72309 | AK9: 9.21809 | AL9: 2.64645 | AM9: 12.049149 | AN9: 8.340282 | AO9: 12.481 | AP9: 12.9812 | AQ9: 1.918526 | AR9: 0.78863 | AS9: 5.66975 | AT9: 12.414882 | AU9: 4.84719 | AV9: 11.00134 | AW9: 14.922254 | AX9: 6.95817 | AY9: 16.035685 | AZ9: 8.418815 | BA9: 4.461551 | BB9: 3.258162 | BC9: 4.451251 | BD9: 3.08309 | BE9: 1.43584 | BF9: 6.18021 | BG9: 12.6902 | BH9: 3.049125 | BI9: 14.997717 | BJ9: 12.77252 | BK9: 7.34702 | BL9: 5.32152 | BM9: 0.60582 | BN9: 4.205632 | BO9: 0.78011 | BP9: 1.17424 | BQ9: 0 | BR9: 0 | BS9: 0.06708 | BT9: 0.38579 | BU9: 0 | BV9: 0 | BW9: 0 | BX9: 0 | BY9: 0 | BZ9: 0 | CA9: 0 | CB9: 0 | CC9: 0 | CD9: 0 | CE9: 0 | CF9: 0 | CG9: 0.24636 | CH9: 0 | CI9: 0 | CJ9: 0 | CK9: 0 | CL9: 0 | CM9: 0 | CN9: 0 | CO9: 0 | CP9: 0 | CQ9: 0 | CR9: 0 | CS9: 0 | CT9: 0 | CV9: 131.4887726 | CW9: 33.86743674 | CX9: 89.05972315 | CY9: 47.22371163 | CZ9: 101.2491379 | DA9: 25.35220686 | DB9: 200.1274492 | DC9: 40.72481079 | DD9: 47.276058 | DE9: 104.165957 | DF9: 331.8116924 | DG9: 76.0738485 | DH9: 72.62561441 | DI9: 150.0836599 | DJ9: 14.67156019 | DK9: 30.39601122 | DL9: 46.59224217 | DM9: 21.01408453 | DN9: 7.920204087 | DO9: 93.95907804 | DP9: 76.00944259 | DQ9: 146.8925193 | DR9: 118.9072902 | DS9: 0 | DT9: 39.85148786 | DU9: 93.06521413 | DV9: 77.83242138 | DW9: 160.3601131 | DX9: 114.1740522 | DY9: 610.801925 | DZ9: 175.3570159 | EA9: 798.3913591 | EB9: 552.6372926 | EC9: 827.0063349 | ED9: 860.1501991 | EE9: 127.1238808 | EF9: 52.25558897 | EG9: 375.684574 | EH9: 822.6252753 | EI9: 321.1807417 | EJ9: 728.9622524 | EK9: 988.7668127 | EL9: 461.05686 | EM9: 1062.544113 | EN9: 557.8409853 | EO9: 295.6278296 | EP9: 215.8898016 | EQ9: 294.9453389 | ER9: 204.2893167 | ES9: 95.14051566 | ET9: 409.5082783 | EU9: 840.868183 | EV9: 202.0387542 | EW9: 993.7670834 | EX9: 846.3228069 | EY9: 486.8225369 | EZ9: 352.610428 | FA9: 40.14237464 | FB9: 278.6703234 | FC9: 51.69104334 | FD9: 77.8065795 | FE9: 0 | FF9: 0 | FG9: 4.444802896 | FH9: 25.56291755 | FI9: 0 | FJ9: 0 | FK9: 0 | FL9: 0 | FM9: 0 | FN9: 0 | FO9: 0 | FP9: 0 | FQ9: 0 | FR9: 0 | FS9: 0 | FT9: 0 | FU9: 16.32411511 | FV9: 0 | FW9: 0 | FX9: 0 | FY9: 0 | FZ9: 0 | GA9: 0 | GB9: 0 | GC9: 0 | GD9: 0 | GE9: 0 | GF9: 0 | GG9: 0 | GH9: 0
A10: 1 | B10: OVERHEAD CONDUCTORS | C10: > 22 kv & < = 66 kv | D10: 66.26122385 | E10: 66.10739964 | F10: 8.130645708 | G10: 2 | H10: 2.15156 | I10: 1.70959 | J10: 14.21104 | K10: 0.8528 | L10: 6.25916 | M10: 2.82056 | N10: 0.62131 | O10: 4.957483 | P10: 1.14366 | Q10: 0 | R10: 1.11565 | S10: 0.25818 | T10: 1.26077 | U10: 10.46052 | V10: 23.50375 | W10: 0 | X10: 0.18095 | Y10: 4.7084 | Z10: 3.31496 | AA10: 17.71851 | AB10: 0 | AC10: 6.00157 | AD10: 0.57992 | AE10: 0 | AF10: 0 | AG10: 0.24222 | AH10: 2.37803 | AI10: 6.18939 | AJ10: 0 | AK10: 1.11619 | AL10: 0 | AM10: 0 | AN10: 0 | AO10: 3.7816 | AP10: 0 | AQ10: 14.97896 | AR10: 2.80158 | AS10: 34.08699 | AT10: 1.69263 | AU10: 9.9954 | AV10: 15.12961 | AW10: 0 | AX10: 4.15343 | AY10: 3.60435 | AZ10: 12.36741 | BA10: 2.68952 | BB10: 13.10768 | BC10: 0.44087 | BD10: 0 | BE10: 0 | BF10: 20.90613 | BG10: 0 | BH10: 8.0166 | BI10: 39.93135 | BJ10: 0 | BK10: 24.36096 | BL10: 0 | BM10: 0 | BN10: 0 | BO10: 0 | BP10: 0 | BQ10: 0 | BR10: 0 | BS10: 0 | BT10: 0 | BU10: 0 | BV10: 0 | BW10: 0 | BX10: 0 | BY10: 0 | BZ10: 0 | CA10: 0 | CB10: 0 | CC10: 0 | CD10: 0 | CE10: 0 | CF10: 0 | CG10: 0 | CH10: 0 | CI10: 0 | CJ10: 0 | CK10: 0 | CL10: 0 | CM10: 0 | CN10: 0 | CO10: 0 | CP10: 0 | CQ10: 0 | CR10: 0 | CS10: 0 | CT10: 0 | CV10: 142.5649988 | CW10: 113.2795257 | CX10: 941.6409027 | CY10: 56.5075717 | CZ10: 414.7396019 | DA10: 186.8937576 | DB10: 41.16876099 | DC10: 328.4888908 | DD10: 75.78031127 | DE10: 0 | DF10: 73.92433439 | DG10: 17.10732277 | DH10: 83.5401632 | DI10: 693.1268574 | DJ10: 1557.38724 | DK10: 0 | DL10: 11.98996846 | DM10: 311.9843464 | DN10: 219.6533066 | DO10: 1174.050157 | DP10: 0 | DQ10: 397.6713733 | DR10: 38.42620894 | DS10: 0 | DT10: 0 | DU10: 16.04979364 | DV10: 157.5711782 | DW10: 410.1165563 | DX10: 0 | DY10: 73.96011545 | DZ10: 0 | EA10: 0 | EB10: 0 | EC10: 250.5734441 | ED10: 0 | EE10: 992.5242217 | EF10: 185.6361195 | EG10: 2258.645675 | EH10: 112.1557353 | EI10: 662.3074369 | EJ10: 1002.506475 | EK10: 0 | EL10: 275.211355 | EM10: 238.8286422 | EN10: 819.4797225 | EO10: 178.2108868 | EP10: 868.5309187 | EQ10: 29.21258576 | ER10: 0 | ES10: 0 | ET10: 1385.26576 | EU10: 0 | EV10: 531.1897272 | EW10: 2645.900121 | EX10: 0 | EY10: 1614.187024 | EZ10: 0 | FA10: 0 | FB10: 0 | FC10: 0 | FD10: 0 | FE10: 0 | FF10: 0 | FG10: 0 | FH10: 0 | FI10: 0 | FJ10: 0 | FK10: 0 | FL10: 0 | FM10: 0 | FN10: 0 | FO10: 0 | FP10: 0 | FQ10: 0 | FR10: 0 | FS10: 0 | FT10: 0 | FU10: 0 | FV10: 0 | FW10: 0 | FX10: 0 | FY10: 0 | FZ10: 0 | GA10: 0 | GB10: 0 | GC10: 0 | GD10: 0 | GE10: 0 | GF10: 0 | GG10: 0 | GH10: 0
A11: 2 | B11: POLES | C11: ˂ = 1 kv ; concrete | D11: 14.74925654 | E11: 69.43244562 | F11: 8.332613373 | G11: 2 | H11: 37 | I11: 18 | J11: 6 | K11: 15 | L11: 5 | M11: 8 | N11: 8 | O11: 20 | P11: 9 | Q11: 15 | R11: 9 | S11: 13 | T11: 20 | U11: 16 | V11: 14 | W11: 10 | X11: 25 | Y11: 21 | Z11: 21 | AA11: 49 | AB11: 134 | AC11: 340 | AD11: 409 | AE11: 269 | AF11: 204 | AG11: 509 | AH11: 733 | AI11: 516 | AJ11: 674 | AK11: 885 | AL11: 317 | AM11: 743 | AN11: 548 | AO11: 576 | AP11: 550 | AQ11: 468 | AR11: 406 | AS11: 193 | AT11: 215 | AU11: 656 | AV11: 35 | AW11: 583 | AX11: 182 | AY11: 125 | AZ11: 23 | BA11: 15 | BB11: 107 | BC11: 84 | BD11: 17 | BE11: 7 | BF11: 8 | BG11: 13 | BH11: 13 | BI11: 9 | BJ11: 3 | BK11: 5 | BL11: 3 | BM11: 6 | BN11: 4 | BO11: 1 | BP11: 0 | BQ11: 3 | BR11: 0 | BS11: 2 | BT11: 2 | BU11: 1 | BV11: 2 | BW11: 0 | BX11: 0 | BY11: 3 | BZ11: 0 | CA11: 0 | CB11: 0 | CC11: 0 | CD11: 0 | CE11: 0 | CF11: 0 | CG11: 0 | CH11: 0 | CI11: 2 | CJ11: 0 | CK11: 0 | CL11: 0 | CM11: 1 | CN11: 0 | CO11: 0 | CP11: 0 | CQ11: 1 | CR11: 0 | CS11: 0 | CT11: 0 | CV11: 545.7224922 | CW11: 265.4866178 | CX11: 88.49553927 | CY11: 221.2388482 | CZ11: 73.74628272 | DA11: 117.9940524 | DB11: 117.9940524 | DC11: 294.9851309 | DD11: 132.7433089 | DE11: 221.2388482 | DF11: 132.7433089 | DG11: 191.7403351 | DH11: 294.9851309 | DI11: 235.9881047 | DJ11: 206.4895916 | DK11: 147.4925654 | DL11: 368.7314136 | DM11: 309.7343874 | DN11: 309.7343874 | DO11: 722.7135707 | DP11: 1976.400377 | DQ11: 5014.747225 | DR11: 6032.445927 | DS11: 3967.55001 | DT11: 3008.848335 | DU11: 7507.371581 | DV11: 10811.20505 | DW11: 7610.616377 | DX11: 9940.998911 | DY11: 13053.09204 | DZ11: 4675.514325 | EA11: 10958.69761 | EB11: 8082.592586 | EC11: 8495.57177 | ED11: 8112.0911 | EE11: 6902.652063 | EF11: 5988.198157 | EG11: 2846.606513 | EH11: 3171.090157 | EI11: 9675.512293 | EJ11: 516.2239791 | EK11: 8598.816566 | EL11: 2684.364691 | EM11: 1843.657068 | EN11: 339.2329005 | EO11: 221.2388482 | EP11: 1578.17045 | EQ11: 1238.93755 | ER11: 250.7373613 | ES11: 103.2447958 | ET11: 117.9940524 | EU11: 191.7403351 | EV11: 191.7403351 | EW11: 132.7433089 | EX11: 44.24776963 | EY11: 73.74628272 | EZ11: 44.24776963 | FA11: 88.49553927 | FB11: 58.99702618 | FC11: 14.74925654 | FD11: 0 | FE11: 44.24776963 | FF11: 0 | FG11: 29.49851309 | FH11: 29.49851309 | FI11: 14.74925654 | FJ11: 29.49851309 | FK11: 0 | FL11: 0 | FM11: 44.24776963 | FN11: 0 | FO11: 0 | FP11: 0 | FQ11: 0 | FR11: 0 | FS11: 0 | FT11: 0 | FU11: 0 | FV11: 0 | FW11: 29.49851309 | FX11: 0 | FY11: 0 | FZ11: 0 | GA11: 14.74925654 | GB11: 0 | GC11: 0 | GD11: 0 | GE11: 14.74925654 | GF11: 0 | GG11: 0 | GH11: 0
A12: 2 | B12: POLES | C12: ˂ = 1 kv ; steel | D12: 14.74925654 | E12: 69.43244562 | F12: 8.332613373 | G12: 2 | H12: 0 | I12: 4 | J12: 3 | K12: 8 | L12: 0 | M12: 13 | N12: 8 | O12: 13 | P12: 0 | Q12: 5 | R12: 10 | S12: 9 | T12: 5 | U12: 9 | V12: 7 | W12: 0 | X12: 7 | Y12: 15 | Z12: 22 | AA12: 35 | AB12: 13 | AC12: 28 | AD12: 16 | AE12: 4 | AF12: 15 | AG12: 20 | AH12: 16 | AI12: 17 | AJ12: 15 | AK12: 13 | AL12: 20 | AM12: 29 | AN12: 14 | AO12: 13 | AP12: 13 | AQ12: 20 | AR12: 4 | AS12: 6 | AT12: 7 | AU12: 11 | AV12: 5 | AW12: 6 | AX12: 3 | AY12: 8 | AZ12: 8 | BA12: 5 | BB12: 3 | BC12: 3 | BD12: 2 | BE12: 8 | BF12: 10 | BG12: 3 | BH12: 5 | BI12: 6 | BJ12: 10 | BK12: 3 | BL12: 1 | BM12: 7 | BN12: 1 | BO12: 0 | BP12: 0 | BQ12: 0 | BR12: 0 | BS12: 3 | BT12: 0 | BU12: 0 | BV12: 0 | BW12: 0 | BX12: 0 | BY12: 0 | BZ12: 0 | CA12: 0 | CB12: 0 | CC12: 0 | CD12: 0 | CE12: 0 | CF12: 0 | CG12: 0 | CH12: 0 | CI12: 0 | CJ12: 0 | CK12: 0 | CL12: 1 | CM12: 0 | CN12: 0 | CO12: 0 | CP12: 0 | CQ12: 0 | CR12: 0 | CS12: 0 | CT12: 0 | CV12: 0 | CW12: 58.99702618 | CX12: 44.24776963 | CY12: 117.9940524 | CZ12: 0 | DA12: 191.7403351 | DB12: 117.9940524 | DC12: 191.7403351 | DD12: 0 | DE12: 73.74628272 | DF12: 147.4925654 | DG12: 132.7433089 | DH12: 73.74628272 | DI12: 132.7433089 | DJ12: 103.2447958 | DK12: 0 | DL12: 103.2447958 | DM12: 221.2388482 | DN12: 324.483644 | DO12: 516.2239791 | DP12: 191.7403351 | DQ12: 412.9791832 | DR12: 235.9881047 | DS12: 58.99702618 | DT12: 221.2388482 | DU12: 294.9851309 | DV12: 235.9881047 | DW12: 250.7373613 | DX12: 221.2388482 | DY12: 191.7403351 | DZ12: 294.9851309 | EA12: 427.7284398 | EB12: 206.4895916 | EC12: 191.7403351 | ED12: 191.7403351 | EE12: 294.9851309 | EF12: 58.99702618 | EG12: 88.49553927 | EH12: 103.2447958 | EI12: 162.241822 | EJ12: 73.74628272 | EK12: 88.49553927 | EL12: 44.24776963 | EM12: 117.9940524 | EN12: 117.9940524 | EO12: 73.74628272 | EP12: 44.24776963 | EQ12: 44.24776963 | ER12: 29.49851309 | ES12: 117.9940524 | ET12: 147.4925654 | EU12: 44.24776963 | EV12: 73.74628272 | EW12: 88.49553927 | EX12: 147.4925654 | EY12: 44.24776963 | EZ12: 14.74925654 | FA12: 103.2447958 | FB12: 14.74925654 | FC12: 0 | FD12: 0 | FE12: 0 | FF12: 0 | FG12: 44.24776963 | FH12: 0 | FI12: 0 | FJ12: 0 | FK12: 0 | FL12: 0 | FM12: 0 | FN12: 0 | FO12: 0 | FP12: 0 | FQ12: 0 | FR12: 0 | FS12: 0 | FT12: 0 | FU12: 0 | FV12: 0 | FW12: 0 | FX12: 0 | FY12: 0 | FZ12: 14.74925654 | GA12: 0 | GB12: 0 | GC12: 0 | GD12: 0 | GE12: 0 | GF12: 0 | GG12: 0 | GH12: 0
A13: 2 | B13: POLES | C13: ˂ = 1 kv ; wood | D13: 3.531818172 | E13: 65.5601218 | F13: 8.096920513 | G13: 2 | H13: 221 | I13: 247 | J13: 166 | K13: 165 | L13: 147 | M13: 202 | N13: 291 | O13: 306 | P13: 139 | Q13: 156 | R13: 168 | S13: 190 | T13: 120 | U13: 134 | V13: 116 | W13: 122 | X13: 179 | Y13: 161 | Z13: 282 | AA13: 195 | AB13: 163 | AC13: 67 | AD13: 118 | AE13: 117 | AF13: 64 | AG13: 85 | AH13: 108 | AI13: 217 | AJ13: 152 | AK13: 344 | AL13: 340 | AM13: 537 | AN13: 381 | AO13: 815 | AP13: 634 | AQ13: 530 | AR13: 666 | AS13: 454 | AT13: 414 | AU13: 543 | AV13: 619 | AW13: 665 | AX13: 471 | AY13: 931 | AZ13: 771 | BA13: 864 | BB13: 814 | BC13: 1295 | BD13: 1228 | BE13: 596 | BF13: 883 | BG13: 1076 | BH13: 1087 | BI13: 697 | BJ13: 955 | BK13: 802 | BL13: 626 | BM13: 665 | BN13: 725 | BO13: 473 | BP13: 358 | BQ13: 296 | BR13: 238 | BS13: 106 | BT13: 144 | BU13: 68 | BV13: 127 | BW13: 21 | BX13: 34 | BY13: 94 | BZ13: 11 | CA13: 16 | CB13: 39 | CC13: 10 | CD13: 8 | CE13: 7 | CF13: 23 | CG13: 52 | CH13: 57 | CI13: 131 | CJ13: 66 | CK13: 68 | CL13: 39 | CM13: 39 | CN13: 19 | CO13: 20 | CP13: 13 | CQ13: 9 | CR13: 2 | CS13: 2 | CT13: 5 | CV13: 780.531816 | CW13: 872.3590885 | CX13: 586.2818166 | CY13: 582.7499984 | CZ13: 519.1772713 | DA13: 713.4272708 | DB13: 1027.759088 | DC13: 1080.736361 | DD13: 490.9227259 | DE13: 550.9636348 | DF13: 593.3454529 | DG13: 671.0454527 | DH13: 423.8181806 | DI13: 473.2636351 | DJ13: 409.690908 | DK13: 430.881817 | DL13: 632.1954528 | DM13: 568.6227257 | DN13: 995.9727245 | DO13: 688.7045435 | DP13: 575.686362 | DQ13: 236.6318175 | DR13: 416.7545443 | DS13: 413.2227261 | DT13: 226.036363 | DU13: 300.2045446 | DV13: 381.4363626 | DW13: 766.4045433 | DX13: 536.8363621 | DY13: 1214.945451 | DZ13: 1200.818178 | EA13: 1896.586358 | EB13: 1345.622724 | EC13: 2878.43181 | ED13: 2239.172721 | EE13: 1871.863631 | EF13: 2352.190903 | EG13: 1603.44545 | EH13: 1462.172723 | EI13: 1917.777267 | EJ13: 2186.195448 | EK13: 2348.659084 | EL13: 1663.486359 | EM13: 3288.122718 | EN13: 2723.031811 | EO13: 3051.490901 | EP13: 2874.899992 | EQ13: 4573.704533 | ER13: 4337.072715 | ES13: 2104.963631 | ET13: 3118.595446 | EU13: 3800.236353 | EV13: 3839.086353 | EW13: 2461.677266 | EX13: 3372.886354 | EY13: 2832.518174 | EZ13: 2210.918176 | FA13: 2348.659084 | FB13: 2560.568175 | FC13: 1670.549995 | FD13: 1264.390906 | FE13: 1045.418179 | FF13: 840.5727249 | FG13: 374.3727262 | FH13: 508.5818168 | FI13: 240.1636357 | FJ13: 448.5409078 | FK13: 74.16818161 | FL13: 120.0818178 | FM13: 331.9909082 | FN13: 38.84999989 | FO13: 56.50909075 | FP13: 137.7409087 | FQ13: 35.31818172 | FR13: 28.25454538 | FS13: 24.7227272 | FT13: 81.23181796 | FU13: 183.6545449 | FV13: 201.3136358 | FW13: 462.6681805 | FX13: 233.0999994 | FY13: 240.1636357 | FZ13: 137.7409087 | GA13: 137.7409087 | GB13: 67.10454527 | GC13: 70.63636344 | GD13: 45.91363624 | GE13: 31.78636355 | GF13: 7.063636344 | GG13: 7.063636344 | GH13: 17.65909086
A14: 2 | B14: POLES | C14: ˃ 11 kv & < = 22 kv ; concrete | D14: 19.31465314 | E14: 64.90866591 | F14: 8.056591457 | G14: 2 | H14: 46 | I14: 55 | J14: 45 | K14: 38 | L14: 66 | M14: 76 | N14: 59 | O14: 51 | P14: 71 | Q14: 54 | R14: 52 | S14: 49 | T14: 60 | U14: 54 | V14: 41 | W14: 47 | X14: 44 | Y14: 56 | Z14: 58 | AA14: 75 | AB14: 105 | AC14: 273 | AD14: 188 | AE14: 133 | AF14: 98 | AG14: 242 | AH14: 277 | AI14: 227 | AJ14: 123 | AK14: 190 | AL14: 102 | AM14: 276 | AN14: 157 | AO14: 165 | AP14: 259 | AQ14: 290 | AR14: 142 | AS14: 63 | AT14: 240 | AU14: 271 | AV14: 12 | AW14: 222 | AX14: 65 | AY14: 36 | AZ14: 2 | BA14: 3 | BB14: 10 | BC14: 7 | BD14: 10 | BE14: 1 | BF14: 1 | BG14: 1 | BH14: 4 | BI14: 3 | BJ14: 5 | BK14: 2 | BL14: 2 | BM14: 0 | BN14: 2 | BO14: 3 | BP14: 1 | BQ14: 0 | BR14: 0 | BS14: 0 | BT14: 1 | BU14: 1 | BV14: 0 | BW14: 0 | BX14: 0 | BY14: 0 | BZ14: 0 | CA14: 0 | CB14: 0 | CC14: 0 | CD14: 0 | CE14: 0 | CF14: 0 | CG14: 1 | CH14: 0 | CI14: 0 | CJ14: 0 | CK14: 0 | CL14: 0 | CM14: 0 | CN14: 0 | CO14: 1 | CP14: 0 | CQ14: 0 | CR14: 0 | CS14: 0 | CT14: 0 | CV14: 888.4740443 | CW14: 1062.305923 | CX14: 869.1593912 | CY14: 733.9568192 | CZ14: 1274.767107 | DA14: 1467.913638 | DB14: 1139.564535 | DC14: 985.04731 | DD14: 1371.340373 | DE14: 1042.991269 | DF14: 1004.361963 | DG14: 946.4180037 | DH14: 1158.879188 | DI14: 1042.991269 | DJ14: 791.9007786 | DK14: 907.7886975 | DL14: 849.8447381 | DM14: 1081.620576 | DN14: 1120.249882 | DO14: 1448.598985 | DP14: 2028.038579 | DQ14: 5272.900307 | DR14: 3631.15479 | DS14: 2568.848867 | DT14: 1892.836007 | DU14: 4674.146059 | DV14: 5350.158919 | DW14: 4384.426262 | DX14: 2375.702336 | DY14: 3669.784096 | DZ14: 1970.09462 | EA14: 5330.844266 | EB14: 3032.400543 | EC14: 3186.917768 | ED14: 5002.495163 | EE14: 5601.24941 | EF14: 2742.680746 | EG14: 1216.823148 | EH14: 4635.516753 | EI14: 5234.271 | EJ14: 231.7758377 | EK14: 4287.852997 | EL14: 1255.452454 | EM14: 695.327513 | EN14: 38.62930628 | EO14: 57.94395941 | EP14: 193.1465314 | EQ14: 135.202572 | ER14: 193.1465314 | ES14: 19.31465314 | ET14: 19.31465314 | EU14: 19.31465314 | EV14: 77.25861255 | EW14: 57.94395941 | EX14: 96.57326569 | EY14: 38.62930628 | EZ14: 38.62930628 | FA14: 0 | FB14: 38.62930628 | FC14: 57.94395941 | FD14: 19.31465314 | FE14: 0 | FF14: 0 | FG14: 0 | FH14: 19.31465314 | FI14: 19.31465314 | FJ14: 0 | FK14: 0 | FL14: 0 | FM14: 0 | FN14: 0 | FO14: 0 | FP14: 0 | FQ14: 0 | FR14: 0 | FS14: 0 | FT14: 0 | FU14: 19.31465314 | FV14: 0 | FW14: 0 | FX14: 0 | FY14: 0 | FZ14: 0 | GA14: 0 | GB14: 0 | GC14: 19.31465314 | GD14: 0 | GE14: 0 | GF14: 0 | GG14: 0 | GH14: 0
A15: 2 | B15: POLES | C15: ˃ 11 kv & < = 22 kv ; steel | D15: 19.31465314 | E15: 64.90866591 | F15: 8.056591457 | G15: 2 | H15: 1 | I15: 0 | J15: 3 | K15: 0 | L15: 0 | M15: 0 | N15: 0 | O15: 0 | P15: 0 | Q15: 0 | R15: 0 | S15: 0 | T15: 0 | U15: 0 | V15: 4 | W15: 0 | X15: 2 | Y15: 0 | Z15: 0 | AA15: 0 | AB15: 1 | AC15: 0 | AD15: 1 | AE15: 2 | AF15: 0 | AG15: 0 | AH15: 0 | AI15: 0 | AJ15: 0 | AK15: 2 | AL15: 0 | AM15: 0 | AN15: 0 | AO15: 1 | AP15: 0 | AQ15: 1 | AR15: 0 | AS15: 0 | AT15: 0 | AU15: 0 | AV15: 0 | AW15: 0 | AX15: 0 | AY15: 0 | AZ15: 0 | BA15: 0 | BB15: 0 | BC15: 0 | BD15: 0 | BE15: 0 | BF15: 0 | BG15: 0 | BH15: 1 | BI15: 0 | BJ15: 0 | BK15: 0 | BL15: 0 | BM15: 0 | BN15: 0 | BO15: 0 | BP15: 2 | BQ15: 0 | BR15: 0 | BS15: 0 | BT15: 0 | BU15: 0 | BV15: 0 | BW15: 0 | BX15: 0 | BY15: 0 | BZ15: 0 | CA15: 0 | CB15: 0 | CC15: 0 | CD15: 0 | CE15: 0 | CF15: 0 | CG15: 0 | CH15: 0 | CI15: 0 | CJ15: 0 | CK15: 0 | CL15: 0 | CM15: 0 | CN15: 0 | CO15: 0 | CP15: 0 | CQ15: 0 | CR15: 0 | CS15: 0 | CT15: 0 | CV15: 19.31465314 | CW15: 0 | CX15: 57.94395941 | CY15: 0 | CZ15: 0 | DA15: 0 | DB15: 0 | DC15: 0 | DD15: 0 | DE15: 0 | DF15: 0 | DG15: 0 | DH15: 0 | DI15: 0 | DJ15: 77.25861255 | DK15: 0 | DL15: 38.62930628 | DM15: 0 | DN15: 0 | DO15: 0 | DP15: 19.31465314 | DQ15: 0 | DR15: 19.31465314 | DS15: 38.62930628 | DT15: 0 | DU15: 0 | DV15: 0 | DW15: 0 | DX15: 0 | DY15: 38.62930628 | DZ15: 0 | EA15: 0 | EB15: 0 | EC15: 19.31465314 | ED15: 0 | EE15: 19.31465314 | EF15: 0 | EG15: 0 | EH15: 0 | EI15: 0 | EJ15: 0 | EK15: 0 | EL15: 0 | EM15: 0 | EN15: 0 | EO15: 0 | EP15: 0 | EQ15: 0 | ER15: 0 | ES15: 0 | ET15: 0 | EU15: 0 | EV15: 19.31465314 | EW15: 0 | EX15: 0 | EY15: 0 | EZ15: 0 | FA15: 0 | FB15: 0 | FC15: 0 | FD15: 38.62930628 | FE15: 0 | FF15: 0 | FG15: 0 | FH15: 0 | FI15: 0 | FJ15: 0 | FK15: 0 | FL15: 0 | FM15: 0 | FN15: 0 | FO15: 0 | FP15: 0 | FQ15: 0 | FR15: 0 | FS15: 0 | FT15: 0 | FU15: 0 | FV15: 0 | FW15: 0 | FX15: 0 | FY15: 0 | FZ15: 0 | GA15: 0 | GB15: 0 | GC15: 0 | GD15: 0 | GE15: 0 | GF15: 0 | GG15: 0 | GH15: 0
A16: 2 | B16: POLES | C16: ˃ 11 kv & < = 22 kv ; wood | D16: 4.442429597 | E16: 62.83620335 | F16: 7.926928999 | G16: 2 | H16: 133 | I16: 190 | J16: 198 | K16: 244 | L16: 285 | M16: 330 | N16: 388 | O16: 365 | P16: 267 | Q16: 302 | R16: 282 | S16: 225 | T16: 192 | U16: 163 | V16: 167 | W16: 149 | X16: 278 | Y16: 181 | Z16: 241 | AA16: 209 | AB16: 144 | AC16: 135 | AD16: 128 | AE16: 153 | AF16: 63 | AG16: 121 | AH16: 197 | AI16: 223 | AJ16: 285 | AK16: 764 | AL16: 605 | AM16: 553 | AN16: 427 | AO16: 773 | AP16: 496 | AQ16: 446 | AR16: 519 | AS16: 363 | AT16: 407 | AU16: 327 | AV16: 384 | AW16: 441 | AX16: 487 | AY16: 539 | AZ16: 447 | BA16: 545 | BB16: 516 | BC16: 505 | BD16: 572 | BE16: 334 | BF16: 473 | BG16: 521 | BH16: 532 | BI16: 392 | BJ16: 664 | BK16: 308 | BL16: 222 | BM16: 199 | BN16: 265 | BO16: 196 | BP16: 144 | BQ16: 82 | BR16: 52 | BS16: 26 | BT16: 26 | BU16: 58 | BV16: 17 | BW16: 32 | BX16: 18 | BY16: 11 | BZ16: 17 | CA16: 2 | CB16: 0 | CC16: 2 | CD16: 4 | CE16: 5 | CF16: 6 | CG16: 32 | CH16: 50 | CI16: 28 | CJ16: 28 | CK16: 37 | CL16: 2 | CM16: 22 | CN16: 8 | CO16: 0 | CP16: 1 | CQ16: 0 | CR16: 0 | CS16: 0 | CT16: 0 | CV16: 590.8431363 | CW16: 844.0616234 | CX16: 879.6010601 | CY16: 1083.952822 | CZ16: 1266.092435 | DA16: 1466.001767 | DB16: 1723.662683 | DC16: 1621.486803 | DD16: 1186.128702 | DE16: 1341.613738 | DF16: 1252.765146 | DG16: 999.5466592 | DH16: 852.9464825 | DI16: 724.1160242 | DJ16: 741.8857426 | DK16: 661.9220099 | DL16: 1234.995428 | DM16: 804.079757 | DN16: 1070.625533 | DO16: 928.4677857 | DP16: 639.7098619 | DQ16: 599.7279955 | DR16: 568.6309884 | DS16: 679.6917283 | DT16: 279.8730646 | DU16: 537.5339812 | DV16: 875.1586305 | DW16: 990.6618 | DX16: 1266.092435 | DY16: 3394.016212 | DZ16: 2687.669906 | EA16: 2456.663567 | EB16: 1896.917438 | EC16: 3433.998078 | ED16: 2203.44508 | EE16: 1981.3236 | EF16: 2305.620961 | EG16: 1612.601944 | EH16: 1808.068846 | EI16: 1452.674478 | EJ16: 1705.892965 | EK16: 1959.111452 | EL16: 2163.463214 | EM16: 2394.469553 | EN16: 1985.76603 | EO16: 2421.12413 | EP16: 2292.293672 | EQ16: 2243.426946 | ER16: 2541.069729 | ES16: 1483.771485 | ET16: 2101.269199 | EU16: 2314.50582 | EV16: 2363.372545 | EW16: 1741.432402 | EX16: 2949.773252 | EY16: 1368.268316 | EZ16: 986.2193704 | FA16: 884.0434897 | FB16: 1177.243843 | FC16: 870.7162009 | FD16: 639.7098619 | FE16: 364.2792269 | FF16: 231.006339 | FG16: 115.5031695 | FH16: 115.5031695 | FI16: 257.6609166 | FJ16: 75.52130314 | FK16: 142.1577471 | FL16: 79.96373274 | FM16: 48.86672556 | FN16: 75.52130314 | FO16: 8.884859193 | FP16: 0 | FQ16: 8.884859193 | FR16: 17.76971839 | FS16: 22.21214798 | FT16: 26.65457758 | FU16: 142.1577471 | FV16: 222.1214798 | FW16: 124.3880287 | FX16: 124.3880287 | FY16: 164.3698951 | FZ16: 8.884859193 | GA16: 97.73345113 | GB16: 35.53943677 | GC16: 0 | GD16: 4.442429597 | GE16: 0 | GF16: 0 | GG16: 0 | GH16: 0
A17: 2 | B17: POLES | C17: > 1 kv & < = 11 kv ; concrete | D17: 18.1362806 | E17: 71.05678913 | F17: 8.429518914 | G17: 2 | H17: 28 | I17: 19 | J17: 15 | K17: 20 | L17: 22 | M17: 24 | N17: 20 | O17: 22 | P17: 16 | Q17: 26 | R17: 25 | S17: 20 | T17: 11 | U17: 18 | V17: 10 | W17: 9 | X17: 8 | Y17: 7 | Z17: 11 | AA17: 19 | AB17: 17 | AC17: 54 | AD17: 31 | AE17: 38 | AF17: 65 | AG17: 39 | AH17: 36 | AI17: 52 | AJ17: 38 | AK17: 44 | AL17: 18 | AM17: 124 | AN17: 60 | AO17: 58 | AP17: 66 | AQ17: 125 | AR17: 64 | AS17: 24 | AT17: 84 | AU17: 125 | AV17: 8 | AW17: 114 | AX17: 53 | AY17: 9 | AZ17: 2 | BA17: 0 | BB17: 4 | BC17: 0 | BD17: 0 | BE17: 0 | BF17: 0 | BG17: 0 | BH17: 0 | BI17: 1 | BJ17: 1 | BK17: 0 | BL17: 1 | BM17: 0 | BN17: 1 | BO17: 0 | BP17: 0 | BQ17: 0 | BR17: 1 | BS17: 0 | BT17: 0 | BU17: 0 | BV17: 0 | BW17: 0 | BX17: 0 | BY17: 0 | BZ17: 0 | CA17: 0 | CB17: 0 | CC17: 0 | CD17: 0 | CE17: 0 | CF17: 0 | CG17: 0 | CH17: 1 | CI17: 0 | CJ17: 0 | CK17: 0 | CL17: 0 | CM17: 0 | CN17: 0 | CO17: 0 | CP17: 0 | CQ17: 0 | CR17: 0 | CS17: 0 | CT17: 0 | CV17: 507.8158568 | CW17: 344.5893314 | CX17: 272.044209 | CY17: 362.725612 | CZ17: 398.9981732 | DA17: 435.2707344 | DB17: 362.725612 | DC17: 398.9981732 | DD17: 290.1804896 | DE17: 471.5432956 | DF17: 453.407015 | DG17: 362.725612 | DH17: 199.4990866 | DI17: 326.4530508 | DJ17: 181.362806 | DK17: 163.2265254 | DL17: 145.0902448 | DM17: 126.9539642 | DN17: 199.4990866 | DO17: 344.5893314 | DP17: 308.3167702 | DQ17: 979.3591523 | DR17: 562.2246986 | DS17: 689.1786627 | DT17: 1178.858239 | DU17: 707.3149433 | DV17: 652.9061016 | DW17: 943.0865911 | DX17: 689.1786627 | DY17: 797.9963463 | DZ17: 326.4530508 | EA17: 2248.898794 | EB17: 1088.176836 | EC17: 1051.904275 | ED17: 1196.99452 | EE17: 2267.035075 | EF17: 1160.721958 | EG17: 435.2707344 | EH17: 1523.44757 | EI17: 2267.035075 | EJ17: 145.0902448 | EK17: 2067.535988 | EL17: 961.2228717 | EM17: 163.2265254 | EN17: 36.2725612 | EO17: 0 | EP17: 72.54512239 | EQ17: 0 | ER17: 0 | ES17: 0 | ET17: 0 | EU17: 0 | EV17: 0 | EW17: 18.1362806 | EX17: 18.1362806 | EY17: 0 | EZ17: 18.1362806 | FA17: 0 | FB17: 18.1362806 | FC17: 0 | FD17: 0 | FE17: 0 | FF17: 18.1362806 | FG17: 0 | FH17: 0 | FI17: 0 | FJ17: 0 | FK17: 0 | FL17: 0 | FM17: 0 | FN17: 0 | FO17: 0 | FP17: 0 | FQ17: 0 | FR17: 0 | FS17: 0 | FT17: 0 | FU17: 0 | FV17: 18.1362806 | FW17: 0 | FX17: 0 | FY17: 0 | FZ17: 0 | GA17: 0 | GB17: 0 | GC17: 0 | GD17: 0 | GE17: 0 | GF17: 0 | GG17: 0 | GH17: 0
A18: 2 | B18: POLES | C18: > 1 kv & < = 11 kv ; steel | D18: 18.1362806 | E18: 71.05678913 | F18: 8.429518914 | G18: 2 | H18: 0 | I18: 0 | J18: 0 | K18: 0 | L18: 0 | M18: 0 | N18: 0 | O18: 0 | P18: 0 | Q18: 0 | R18: 0 | S18: 0 | T18: 0 | U18: 0 | V18: 0 | W18: 0 | X18: 0 | Y18: 0 | Z18: 0 | AA18: 0 | AB18: 0 | AC18: 0 | AD18: 0 | AE18: 0 | AF18: 0 | AG18: 0 | AH18: 0 | AI18: 0 | AJ18: 0 | AK18: 0 | AL18: 0 | AM18: 0 | AN18: 0 | AO18: 0 | AP18: 0 | AQ18: 0 | AR18: 0 | AS18: 0 | AT18: 0 | AU18: 0 | AV18: 0 | AW18: 0 | AX18: 0 | AY18: 0 | AZ18: 0 | BA18: 0 | BB18: 0 | BC18: 0 | BD18: 0 | BE18: 0 | BF18: 0 | BG18: 1 | BH18: 0 | BI18: 0 | BJ18: 0 | BK18: 0 | BL18: 0 | BM18: 0 | BN18: 0 | BO18: 0 | BP18: 0 | BQ18: 0 | BR18: 0 | BS18: 0 | BT18: 0 | BU18: 0 | BV18: 0 | BW18: 0 | BX18: 0 | BY18: 0 | BZ18: 0 | CA18: 0 | CB18: 0 | CC18: 0 | CD18: 0 | CE18: 0 | CF18: 0 | CG18: 0 | CH18: 0 | CI18: 0 | CJ18: 0 | CK18: 0 | CL18: 0 | CM18: 0 | CN18: 0 | CO18: 0 | CP18: 0 | CQ18: 0 | CR18: 0 | CS18: 0 | CT18: 0 | CV18: 0 | CW18: 0 | CX18: 0 | CY18: 0 | CZ18: 0 | DA18: 0 | DB18: 0 | DC18: 0 | DD18: 0 | DE18: 0 | DF18: 0 | DG18: 0 | DH18: 0 | DI18: 0 | DJ18: 0 | DK18: 0 | DL18: 0 | DM18: 0 | DN18: 0 | DO18: 0 | DP18: 0 | DQ18: 0 | DR18: 0 | DS18: 0 | DT18: 0 | DU18: 0 | DV18: 0 | DW18: 0 | DX18: 0 | DY18: 0 | DZ18: 0 | EA18: 0 | EB18: 0 | EC18: 0 | ED18: 0 | EE18: 0 | EF18: 0 | EG18: 0 | EH18: 0 | EI18: 0 | EJ18: 0 | EK18: 0 | EL18: 0 | EM18: 0 | EN18: 0 | EO18: 0 | EP18: 0 | EQ18: 0 | ER18: 0 | ES18: 0 | ET18: 0 | EU18: 18.1362806 | EV18: 0 | EW18: 0 | EX18: 0 | EY18: 0 | EZ18: 0 | FA18: 0 | FB18: 0 | FC18: 0 | FD18: 0 | FE18: 0 | FF18: 0 | FG18: 0 | FH18: 0 | FI18: 0 | FJ18: 0 | FK18: 0 | FL18: 0 | FM18: 0 | FN18: 0 | FO18: 0 | FP18: 0 | FQ18: 0 | FR18: 0 | FS18: 0 | FT18: 0 | FU18: 0 | FV18: 0 | FW18: 0 | FX18: 0 | FY18: 0 | FZ18: 0 | GA18: 0 | GB18: 0 | GC18: 0 | GD18: 0 | GE18: 0 | GF18: 0 | GG18: 0 | GH18: 0
A19: 2 | B19: POLES | C19: > 1 kv & < = 11 kv ; wood | D19: 4.752200095 | E19: 70.13882593 | F19: 8.374892592 | G19: 2 | H19: 56 | I19: 46 | J19: 51 | K19: 96 | L19: 66 | M19: 43 | N19: 55 | O19: 75 | P19: 53 | Q19: 35 | R19: 69 | S19: 51 | T19: 36 | U19: 17 | V19: 14 | W19: 18 | X19: 32 | Y19: 24 | Z19: 41 | AA19: 33 | AB19: 16 | AC19: 27 | AD19: 24 | AE19: 40 | AF19: 18 | AG19: 27 | AH19: 36 | AI19: 57 | AJ19: 84 | AK19: 144 | AL19: 110 | AM19: 190 | AN19: 112 | AO19: 216 | AP19: 120 | AQ19: 63 | AR19: 40 | AS19: 97 | AT19: 150 | AU19: 82 | AV19: 71 | AW19: 65 | AX19: 96 | AY19: 104 | AZ19: 91 | BA19: 93 | BB19: 83 | BC19: 72 | BD19: 83 | BE19: 46 | BF19: 71 | BG19: 166 | BH19: 153 | BI19: 101 | BJ19: 169 | BK19: 152 | BL19: 92 | BM19: 108 | BN19: 128 | BO19: 90 | BP19: 104 | BQ19: 49 | BR19: 51 | BS19: 16 | BT19: 33 | BU19: 28 | BV19: 29 | BW19: 6 | BX19: 15 | BY19: 16 | BZ19: 12 | CA19: 0 | CB19: 14 | CC19: 2 | CD19: 1 | CE19: 0 | CF19: 8 | CG19: 51 | CH19: 16 | CI19: 20 | CJ19: 7 | CK19: 6 | CL19: 9 | CM19: 13 | CN19: 4 | CO19: 8 | CP19: 5 | CQ19: 3 | CR19: 1 | CS19: 0 | CT19: 1 | CV19: 266.1232053 | CW19: 218.6012044 | CX19: 242.3622048 | CY19: 456.2112091 | CZ19: 313.6452063 | DA19: 204.3446041 | DB19: 261.3710052 | DC19: 356.4150071 | DD19: 251.866605 | DE19: 166.3270033 | DF19: 327.9018065 | DG19: 242.3622048 | DH19: 171.0792034 | DI19: 80.78740161 | DJ19: 66.53080133 | DK19: 85.53960171 | DL19: 152.070403 | DM19: 114.0528023 | DN19: 194.8402039 | DO19: 156.8226031 | DP19: 76.03520152 | DQ19: 128.3094026 | DR19: 114.0528023 | DS19: 190.0880038 | DT19: 85.53960171 | DU19: 128.3094026 | DV19: 171.0792034 | DW19: 270.8754054 | DX19: 399.184808 | DY19: 684.3168137 | DZ19: 522.7420104 | EA19: 902.918018 | EB19: 532.2464106 | EC19: 1026.47522 | ED19: 570.2640114 | EE19: 299.388606 | EF19: 190.0880038 | EG19: 460.9634092 | EH19: 712.8300142 | EI19: 389.6804078 | EJ19: 337.4062067 | EK19: 308.8930062 | EL19: 456.2112091 | EM19: 494.2288099 | EN19: 432.4502086 | EO19: 441.9546088 | EP19: 394.4326079 | EQ19: 342.1584068 | ER19: 394.4326079 | ES19: 218.6012044 | ET19: 337.4062067 | EU19: 788.8652158 | EV19: 727.0866145 | EW19: 479.9722096 | EX19: 803.121816 | EY19: 722.3344144 | EZ19: 437.2024087 | FA19: 513.2376102 | FB19: 608.2816121 | FC19: 427.6980085 | FD19: 494.2288099 | FE19: 232.8578046 | FF19: 242.3622048 | FG19: 76.03520152 | FH19: 156.8226031 | FI19: 133.0616027 | FJ19: 137.8138028 | FK19: 28.51320057 | FL19: 71.28300142 | FM19: 76.03520152 | FN19: 57.02640114 | FO19: 0 | FP19: 66.53080133 | FQ19: 9.50440019 | FR19: 4.752200095 | FS19: 0 | FT19: 38.01760076 | FU19: 242.3622048 | FV19: 76.03520152 | FW19: 95.0440019 | FX19: 33.26540066 | FY19: 28.51320057 | FZ19: 42.76980085 | GA19: 61.77860123 | GB19: 19.00880038 | GC19: 38.01760076 | GD19: 23.76100047 | GE19: 14.25660028 | GF19: 4.752200095 | GG19: 0 | GH19: 4.752200095
A20: 2 | B20: POLES | C20: > 22 kv & < = 66 kv ; concrete | D20: 18.95157333 | E20: 65.12868361 | F20: 8.070234421 | G20: 2 | H20: 31 | I20: 12 | J20: 3 | K20: 1 | L20: 1 | M20: 3 | N20: 3 | O20: 7 | P20: 7 | Q20: 0 | R20: 10 | S20: 7 | T20: 2 | U20: 2 | V20: 24 | W20: 2 | X20: 6 | Y20: 8 | Z20: 7 | AA20: 6 | AB20: 10 | AC20: 37 | AD20: 32 | AE20: 19 | AF20: 57 | AG20: 28 | AH20: 9 | AI20: 6 | AJ20: 2 | AK20: 4 | AL20: 3 | AM20: 9 | AN20: 7 | AO20: 3 | AP20: 18 | AQ20: 12 | AR20: 15 | AS20: 3 | AT20: 16 | AU20: 5 | AV20: 1 | AW20: 8 | AX20: 30 | AY20: 1 | AZ20: 0 | BA20: 1 | BB20: 7 | BC20: 14 | BD20: 0 | BE20: 0 | BF20: 0 | BG20: 0 | BH20: 0 | BI20: 0 | BJ20: 1 | BK20: 1 | BL20: 1 | BM20: 0 | BN20: 0 | BO20: 0 | BP20: 0 | BQ20: 0 | BR20: 0 | BS20: 0 | BT20: 0 | BU20: 0 | BV20: 0 | BW20: 0 | BX20: 0 | BY20: 0 | BZ20: 0 | CA20: 0 | CB20: 0 | CC20: 0 | CD20: 0 | CE20: 0 | CF20: 0 | CG20: 0 | CH20: 0 | CI20: 0 | CJ20: 0 | CK20: 1 | CL20: 0 | CM20: 0 | CN20: 0 | CO20: 0 | CP20: 0 | CQ20: 0 | CR20: 0 | CS20: 0 | CT20: 0 | CV20: 587.4987733 | CW20: 227.41888 | CX20: 56.85471999 | CY20: 18.95157333 | CZ20: 18.95157333 | DA20: 56.85471999 | DB20: 56.85471999 | DC20: 132.6610133 | DD20: 132.6610133 | DE20: 0 | DF20: 189.5157333 | DG20: 132.6610133 | DH20: 37.90314666 | DI20: 37.90314666 | DJ20: 454.83776 | DK20: 37.90314666 | DL20: 113.70944 | DM20: 151.6125867 | DN20: 132.6610133 | DO20: 113.70944 | DP20: 189.5157333 | DQ20: 701.2082133 | DR20: 606.4503466 | DS20: 360.0798933 | DT20: 1080.23968 | DU20: 530.6440533 | DV20: 170.56416 | DW20: 113.70944 | DX20: 37.90314666 | DY20: 75.80629333 | DZ20: 56.85471999 | EA20: 170.56416 | EB20: 132.6610133 | EC20: 56.85471999 | ED20: 341.12832 | EE20: 227.41888 | EF20: 284.2736 | EG20: 56.85471999 | EH20: 303.2251733 | EI20: 94.75786666 | EJ20: 18.95157333 | EK20: 151.6125867 | EL20: 568.5471999 | EM20: 18.95157333 | EN20: 0 | EO20: 18.95157333 | EP20: 132.6610133 | EQ20: 265.3220266 | ER20: 0 | ES20: 0 | ET20: 0 | EU20: 0 | EV20: 0 | EW20: 0 | EX20: 18.95157333 | EY20: 18.95157333 | EZ20: 18.95157333 | FA20: 0 | FB20: 0 | FC20: 0 | FD20: 0 | FE20: 0 | FF20: 0 | FG20: 0 | FH20: 0 | FI20: 0 | FJ20: 0 | FK20: 0 | FL20: 0 | FM20: 0 | FN20: 0 | FO20: 0 | FP20: 0 | FQ20: 0 | FR20: 0 | FS20: 0 | FT20: 0 | FU20: 0 | FV20: 0 | FW20: 0 | FX20: 0 | FY20: 18.95157333 | FZ20: 0 | GA20: 0 | GB20: 0 | GC20: 0 | GD20: 0 | GE20: 0 | GF20: 0 | GG20: 0 | GH20: 0
A21: 2 | B21: POLES | C21: > 22 kv & < = 66 kv ; steel | D21: 18.95157333 | E21: 65.12868361 | F21: 8.070234421 | G21: 2 | H21: 0 | I21: 0 | J21: 0 | K21: 0 | L21: 0 | M21: 0 | N21: 2 | O21: 0 | P21: 0 | Q21: 0 | R21: 0 | S21: 0 | T21: 0 | U21: 0 | V21: 0 | W21: 0 | X21: 0 | Y21: 0 | Z21: 2 | AA21: 0 | AB21: 0 | AC21: 0 | AD21: 1 | AE21: 0 | AF21: 0 | AG21: 0 | AH21: 0 | AI21: 0 | AJ21: 0 | AK21: 0 | AL21: 0 | AM21: 1 | AN21: 1 | AO21: 2 | AP21: 0 | AQ21: 0 | AR21: 0 | AS21: 1 | AT21: 0 | AU21: 0 | AV21: 0 | AW21: 0 | AX21: 0 | AY21: 0 | AZ21: 0 | BA21: 2 | BB21: 0 | BC21: 0 | BD21: 0 | BE21: 0 | BF21: 1 | BG21: 0 | BH21: 0 | BI21: 0 | BJ21: 0 | BK21: 0 | BL21: 0 | BM21: 0 | BN21: 0 | BO21: 0 | BP21: 0 | BQ21: 0 | BR21: 0 | BS21: 0 | BT21: 0 | BU21: 0 | BV21: 0 | BW21: 0 | BX21: 0 | BY21: 0 | BZ21: 0 | CA21: 0 | CB21: 0 | CC21: 0 | CD21: 0 | CE21: 0 | CF21: 0 | CG21: 0 | CH21: 0 | CI21: 0 | CJ21: 0 | CK21: 0 | CL21: 0 | CM21: 0 | CN21: 0 | CO21: 0 | CP21: 0 | CQ21: 0 | CR21: 0 | CS21: 0 | CT21: 0 | CV21: 0 | CW21: 0 | CX21: 0 | CY21: 0 | CZ21: 0 | DA21: 0 | DB21: 37.90314666 | DC21: 0 | DD21: 0 | DE21: 0 | DF21: 0 | DG21: 0 | DH21: 0 | DI21: 0 | DJ21: 0 | DK21: 0 | DL21: 0 | DM21: 0 | DN21: 37.90314666 | DO21: 0 | DP21: 0 | DQ21: 0 | DR21: 18.95157333 | DS21: 0 | DT21: 0 | DU21: 0 | DV21: 0 | DW21: 0 | DX21: 0 | DY21: 0 | DZ21: 0 | EA21: 18.95157333 | EB21: 18.95157333 | EC21: 37.90314666 | ED21: 0 | EE21: 0 | EF21: 0 | EG21: 18.95157333 | EH21: 0 | EI21: 0 | EJ21: 0 | EK21: 0 | EL21: 0 | EM21: 0 | EN21: 0 | EO21: 37.90314666 | EP21: 0 | EQ21: 0 | ER21: 0 | ES21: 0 | ET21: 18.95157333 | EU21: 0 | EV21: 0 | EW21: 0 | EX21: 0 | EY21: 0 | EZ21: 0 | FA21: 0 | FB21: 0 | FC21: 0 | FD21: 0 | FE21: 0 | FF21: 0 | FG21: 0 | FH21: 0 | FI21: 0 | FJ21: 0 | FK21: 0 | FL21: 0 | FM21: 0 | FN21: 0 | FO21: 0 | FP21: 0 | FQ21: 0 | FR21: 0 | FS21: 0 | FT21: 0 | FU21: 0 | FV21: 0 | FW21: 0 | FX21: 0 | FY21: 0 | FZ21: 0 | GA21: 0 | GB21: 0 | GC21: 0 | GD21: 0 | GE21: 0 | GF21: 0 | GG21: 0 | GH21: 0
A22: 2 | B22: POLES | C22: > 22 kv & < = 66 kv ; wood | D22: 4.415387775 | E22: 62.23077049 | F22: 7.888648204 | G22: 2 | H22: 36 | I22: 80 | J22: 194 | K22: 53 | L22: 98 | M22: 55 | N22: 37 | O22: 72 | P22: 27 | Q22: 18 | R22: 69 | S22: 23 | T22: 29 | U22: 39 | V22: 291 | W22: 25 | X22: 23 | Y22: 184 | Z22: 95 | AA22: 24 | AB22: 20 | AC22: 30 | AD22: 15 | AE22: 18 | AF22: 13 | AG22: 28 | AH22: 45 | AI22: 12 | AJ22: 33 | AK22: 71 | AL22: 52 | AM22: 70 | AN22: 52 | AO22: 266 | AP22: 137 | AQ22: 125 | AR22: 71 | AS22: 51 | AT22: 82 | AU22: 17 | AV22: 26 | AW22: 23 | AX22: 152 | AY22: 109 | AZ22: 170 | BA22: 51 | BB22: 45 | BC22: 29 | BD22: 29 | BE22: 47 | BF22: 55 | BG22: 33 | BH22: 47 | BI22: 154 | BJ22: 189 | BK22: 182 | BL22: 48 | BM22: 14 | BN22: 13 | BO22: 17 | BP22: 18 | BQ22: 12 | BR22: 9 | BS22: 2 | BT22: 7 | BU22: 2 | BV22: 1 | BW22: 15 | BX22: 5 | BY22: 6 | BZ22: 1 | CA22: 0 | CB22: 1 | CC22: 1 | CD22: 1 | CE22: 6 | CF22: 0 | CG22: 7 | CH22: 0 | CI22: 5 | CJ22: 7 | CK22: 18 | CL22: 0 | CM22: 0 | CN22: 0 | CO22: 0 | CP22: 0 | CQ22: 0 | CR22: 0 | CS22: 0 | CT22: 0 | CV22: 158.9539599 | CW22: 353.231022 | CX22: 856.5852284 | CY22: 234.0155521 | CZ22: 432.708002 | DA22: 242.8463276 | DB22: 163.3693477 | DC22: 317.9079198 | DD22: 119.2154699 | DE22: 79.47697995 | DF22: 304.6617565 | DG22: 101.5539188 | DH22: 128.0462455 | DI22: 172.2001232 | DJ22: 1284.877843 | DK22: 110.3846944 | DL22: 101.5539188 | DM22: 812.4313506 | DN22: 419.4618386 | DO22: 105.9693066 | DP22: 88.3077555 | DQ22: 132.4616333 | DR22: 66.23081663 | DS22: 79.47697995 | DT22: 57.40004108 | DU22: 123.6308577 | DV22: 198.6924499 | DW22: 52.9846533 | DX22: 145.7077966 | DY22: 313.492532 | DZ22: 229.6001643 | EA22: 309.0771443 | EB22: 229.6001643 | EC22: 1174.493148 | ED22: 604.9081252 | EE22: 551.9234719 | EF22: 313.492532 | EG22: 225.1847765 | EH22: 362.0617976 | EI22: 75.06159218 | EJ22: 114.8000822 | EK22: 101.5539188 | EL22: 671.1389418 | EM22: 481.2772675 | EN22: 750.6159218 | EO22: 225.1847765 | EP22: 198.6924499 | EQ22: 128.0462455 | ER22: 128.0462455 | ES22: 207.5232254 | ET22: 242.8463276 | EU22: 145.7077966 | EV22: 207.5232254 | EW22: 679.9697174 | EX22: 834.5082895 | EY22: 803.6005751 | EZ22: 211.9386132 | FA22: 61.81542885 | FB22: 57.40004108 | FC22: 75.06159218 | FD22: 79.47697995 | FE22: 52.9846533 | FF22: 39.73848998 | FG22: 8.83077555 | FH22: 30.90771443 | FI22: 8.83077555 | FJ22: 4.415387775 | FK22: 66.23081663 | FL22: 22.07693888 | FM22: 26.49232665 | FN22: 4.415387775 | FO22: 0 | FP22: 4.415387775 | FQ22: 4.415387775 | FR22: 4.415387775 | FS22: 26.49232665 | FT22: 0 | FU22: 30.90771443 | FV22: 0 | FW22: 22.07693888 | FX22: 30.90771443 | FY22: 79.47697995 | FZ22: 0 | GA22: 0 | GB22: 0 | GC22: 0 | GD22: 0 | GE22: 0 | GF22: 0 | GG22: 0 | GH22: 0
A23: 2 | B23: POLES | C23: staking of a wooden pole | D23: 16.25463806 | E23: 33.63455837 | F23: 5.799530875 | G23: 2 | H23: 969 | I23: 1416 | J23: 418 | K23: 294 | L23: 1868 | M23: 1261 | N23: 876 | O23: 309 | P23: 522 | Q23: 296 | R23: 512 | S23: 322 | T23: 148 | U23: 268 | V23: 628 | W23: 675 | X23: 310 | Y23: 173 | Z23: 134 | AA23: 123 | AB23: 143 | AC23: 217 | AD23: 400 | AE23: 343 | AF23: 352 | AG23: 89 | AH23: 23 | AI23: 104 | AJ23: 124 | AK23: 83 | AL23: 1 | AM23: 1 | AN23: 3 | AO23: 21 | AP23: 1 | AQ23: 0 | AR23: 0 | AS23: 0 | AT23: 1 | AU23: 0 | AV23: 0 | AW23: 0 | AX23: 0 | AY23: 1 | AZ23: 0 | BA23: 0 | BB23: 0 | BC23: 0 | BD23: 1 | BE23: 7 | BF23: 1 | BG23: 0 | BH23: 1 | BI23: 0 | BJ23: 0 | BK23: 0 | BL23: 0 | BM23: 0 | BN23: 0 | BO23: 0 | BP23: 0 | BQ23: 0 | BR23: 0 | BS23: 0 | BT23: 0 | BU23: 0 | BV23: 0 | BW23: 0 | BX23: 0 | BY23: 0 | BZ23: 0 | CA23: 0 | CB23: 0 | CC23: 0 | CD23: 0 | CE23: 0 | CF23: 0 | CG23: 0 | CH23: 0 | CI23: 1 | CJ23: 0 | CK23: 0 | CL23: 0 | CM23: 0 | CN23: 0 | CO23: 0 | CP23: 0 | CQ23: 0 | CR23: 0 | CS23: 0 | CT23: 0 | CV23: 15750.74428 | CW23: 23016.56749 | CX23: 6794.438707 | CY23: 4778.863588 | CZ23: 30363.66389 | DA23: 20497.09859 | DB23: 14239.06294 | DC23: 5022.683159 | DD23: 8484.921065 | DE23: 4811.372864 | DF23: 8322.374684 | DG23: 5233.993454 | DH23: 2405.686432 | DI23: 4356.242999 | DJ23: 10207.9127 | DK23: 10971.88069 | DL23: 5038.937797 | DM23: 2812.052384 | DN23: 2178.121499 | DO23: 1999.320481 | DP23: 2324.413242 | DQ23: 3527.256458 | DR23: 6501.855222 | DS23: 5575.340853 | DT23: 5721.632596 | DU23: 1446.662787 | DV23: 373.8566753 | DW23: 1690.482358 | DX23: 2015.575119 | DY23: 1349.134959 | DZ23: 16.25463806 | EA23: 16.25463806 | EB23: 48.76391417 | EC23: 341.3473992 | ED23: 16.25463806 | EE23: 0 | EF23: 0 | EG23: 0 | EH23: 16.25463806 | EI23: 0 | EJ23: 0 | EK23: 0 | EL23: 0 | EM23: 16.25463806 | EN23: 0 | EO23: 0 | EP23: 0 | EQ23: 0 | ER23: 16.25463806 | ES23: 113.7824664 | ET23: 16.25463806 | EU23: 0 | EV23: 16.25463806 | EW23: 0 | EX23: 0 | EY23: 0 | EZ23: 0 | FA23: 0 | FB23: 0 | FC23: 0 | FD23: 0 | FE23: 0 | FF23: 0 | FG23: 0 | FH23: 0 | FI23: 0 | FJ23: 0 | FK23: 0 | FL23: 0 | FM23: 0 | FN23: 0 | FO23: 0 | FP23: 0 | FQ23: 0 | FR23: 0 | FS23: 0 | FT23: 0 | FU23: 0 | FV23: 0 | FW23: 16.25463806 | FX23: 0 | FY23: 0 | FZ23: 0 | GA23: 0 | GB23: 0 | GC23: 0 | GD23: 0 | GE23: 0 | GF23: 0 | GG23: 0 | GH23: 0
A24: 3 | B24: SERVICE LINES | C24: ˂ = 11 kv ; commercial and industrial ; simple type | D24: 0.8671085491 | E24: 56.11870831 | F24: 7.491242107 | G24: 2 | H24: 1342 | I24: 1820 | J24: 2070 | K24: 2117 | L24: 1918 | M24: 1838 | N24: 1402 | O24: 1488 | P24: 1365 | Q24: 1500 | R24: 1134 | S24: 1190 | T24: 1512 | U24: 1381 | V24: 1704 | W24: 1687 | X24: 1856 | Y24: 2107 | Z24: 1769 | AA24: 1593 | AB24: 1574 | AC24: 1569 | AD24: 1006 | AE24: 797 | AF24: 1033 | AG24: 866 | AH24: 931 | AI24: 822 | AJ24: 789 | AK24: 794 | AL24: 673 | AM24: 517 | AN24: 401 | AO24: 398 | AP24: 415 | AQ24: 260 | AR24: 251 | AS24: 282 | AT24: 237 | AU24: 290 | AV24: 258 | AW24: 167 | AX24: 224 | AY24: 195 | AZ24: 279 | BA24: 364 | BB24: 270 | BC24: 333 | BD24: 344 | BE24: 303 | BF24: 263 | BG24: 244 | BH24: 277 | BI24: 288 | BJ24: 310 | BK24: 246 | BL24: 229 | BM24: 240 | BN24: 217 | BO24: 202 | BP24: 12 | BQ24: 14 | BR24: 5 | BS24: 3 | BT24: 2 | BU24: 0 | BV24: 2 | BW24: 3 | BX24: 12 | BY24: 2 | BZ24: 1 | CA24: 2 | CB24: 1 | CC24: 0 | CD24: 0 | CE24: 0 | CF24: 2 | CG24: 1 | CH24: 4 | CI24: 0 | CJ24: 1 | CK24: 1 | CL24: 1 | CM24: 4 | CN24: 0 | CO24: 1 | CP24: 0 | CQ24: 0 | CR24: 0 | CS24: 0 | CT24: 1 | CV24: 1163.659673 | CW24: 1578.137559 | CX24: 1794.914697 | CY24: 1835.668798 | CZ24: 1663.114197 | DA24: 1593.745513 | DB24: 1215.686186 | DC24: 1290.257521 | DD24: 1183.603169 | DE24: 1300.662824 | DF24: 983.3010947 | DG24: 1031.859173 | DH24: 1311.068126 | DI24: 1197.476906 | DJ24: 1477.552968 | DK24: 1462.812122 | DL24: 1609.353467 | DM24: 1826.997713 | DN24: 1533.915023 | DO24: 1381.303919 | DP24: 1364.828856 | DQ24: 1360.493314 | DR24: 872.3112004 | DS24: 691.0855136 | DT24: 895.7231312 | DU24: 750.9160035 | DV24: 807.2780592 | DW24: 712.7632273 | DX24: 684.1486452 | DY24: 688.484188 | DZ24: 583.5640535 | EA24: 448.2951199 | EB24: 347.7105282 | EC24: 345.1092025 | ED24: 359.8500479 | EE24: 225.4482228 | EF24: 217.6442458 | EG24: 244.5246108 | EH24: 205.5047261 | EI24: 251.4614792 | EJ24: 223.7140057 | EK24: 144.8071277 | EL24: 194.232315 | EM24: 169.0861671 | EN24: 241.9232852 | EO24: 315.6275119 | EP24: 234.1193083 | EQ24: 288.7471468 | ER24: 298.2853409 | ES24: 262.7338904 | ET24: 228.0495484 | EU24: 211.574486 | EV24: 240.1890681 | EW24: 249.7272621 | EX24: 268.8036502 | EY24: 213.3087031 | EZ24: 198.5678577 | FA24: 208.1060518 | FB24: 188.1625551 | FC24: 175.1559269 | FD24: 10.40530259 | FE24: 12.13951969 | FF24: 4.335542745 | FG24: 2.601325647 | FH24: 1.734217098 | FI24: 0 | FJ24: 1.734217098 | FK24: 2.601325647 | FL24: 10.40530259 | FM24: 1.734217098 | FN24: 0.8671085491 | FO24: 1.734217098 | FP24: 0.8671085491 | FQ24: 0 | FR24: 0 | FS24: 0 | FT24: 1.734217098 | FU24: 0.8671085491 | FV24: 3.468434196 | FW24: 0 | FX24: 0.8671085491 | FY24: 0.8671085491 | FZ24: 0.8671085491 | GA24: 3.468434196 | GB24: 0 | GC24: 0.8671085491 | GD24: 0 | GE24: 0 | GF24: 0 | GG24: 0 | GH24: 0.8671085491
A25: 3 | B25: SERVICE LINES | C25: ˂ = 11 kv ; residential ; simple type | D25: 0.9013406562 | E25: 57.36817299 | F25: 7.57417804 | G25: 2 | H25: 7227 | I25: 4745 | J25: 8809 | K25: 7814 | L25: 10679 | M25: 9197 | N25: 9138 | O25: 7458 | P25: 6434 | Q25: 5544 | R25: 6099 | S25: 4188 | T25: 5062 | U25: 4846 | V25: 6310 | W25: 5747 | X25: 5593 | Y25: 4505 | Z25: 4449 | AA25: 3702 | AB25: 3099 | AC25: 2710 | AD25: 2058 | AE25: 1455 | AF25: 2037 | AG25: 1868 | AH25: 2282 | AI25: 1824 | AJ25: 2133 | AK25: 1904 | AL25: 1675 | AM25: 2124 | AN25: 1573 | AO25: 2167 | AP25: 1906 | AQ25: 1532 | AR25: 1600 | AS25: 1559 | AT25: 1301 | AU25: 1604 | AV25: 1584 | AW25: 1403 | AX25: 1353 | AY25: 1228 | AZ25: 2184 | BA25: 3183 | BB25: 3244 | BC25: 3840 | BD25: 3843 | BE25: 3117 | BF25: 3565 | BG25: 3640 | BH25: 3876 | BI25: 3243 | BJ25: 3806 | BK25: 3313 | BL25: 2887 | BM25: 2986 | BN25: 3014 | BO25: 2502 | BP25: 38 | BQ25: 45 | BR25: 26 | BS25: 5 | BT25: 11 | BU25: 8 | BV25: 12 | BW25: 3 | BX25: 7 | BY25: 12 | BZ25: 1 | CA25: 1 | CB25: 5 | CC25: 1 | CD25: 0 | CE25: 1 | CF25: 2 | CG25: 2 | CH25: 6 | CI25: 15 | CJ25: 4 | CK25: 9 | CL25: 13 | CM25: 9 | CN25: 1 | CO25: 3 | CP25: 2 | CQ25: 0 | CR25: 0 | CS25: 0 | CT25: 5 | CV25: 6513.988922 | CW25: 4276.861414 | CX25: 7939.90984 | CY25: 7043.075887 | CZ25: 9625.416867 | DA25: 8289.630015 | DB25: 8236.450916 | DC25: 6722.198614 | DD25: 5799.225782 | DE25: 4997.032598 | DF25: 5497.276662 | DG25: 3774.814668 | DH25: 4562.586402 | DI25: 4367.89682 | DJ25: 5687.45954 | DK25: 5180.004751 | DL25: 5041.19829 | DM25: 4060.539656 | DN25: 4010.064579 | DO25: 3336.763109 | DP25: 2793.254693 | DQ25: 2442.633178 | DR25: 1854.95907 | DS25: 1311.450655 | DT25: 1836.030917 | DU25: 1683.704346 | DV25: 2056.859377 | DW25: 1644.045357 | DX25: 1922.55962 | DY25: 1716.152609 | DZ25: 1509.745599 | EA25: 1914.447554 | EB25: 1417.808852 | EC25: 1953.205202 | ED25: 1717.955291 | EE25: 1380.853885 | EF25: 1442.14505 | EG25: 1405.190083 | EH25: 1172.644194 | EI25: 1445.750412 | EJ25: 1427.723599 | EK25: 1264.580941 | EL25: 1219.513908 | EM25: 1106.846326 | EN25: 1968.527993 | EO25: 2868.967309 | EP25: 2923.949089 | EQ25: 3461.14812 | ER25: 3463.852142 | ES25: 2809.478825 | ET25: 3213.279439 | EU25: 3280.879988 | EV25: 3493.596383 | EW25: 2923.047748 | EX25: 3430.502537 | EY25: 2986.141594 | EZ25: 2602.170474 | FA25: 2691.403199 | FB25: 2716.640738 | FC25: 2255.154322 | FD25: 34.25094493 | FE25: 40.56032953 | FF25: 23.43485706 | FG25: 4.506703281 | FH25: 9.914747218 | FI25: 7.210725249 | FJ25: 10.81608787 | FK25: 2.704021969 | FL25: 6.309384593 | FM25: 10.81608787 | FN25: 0.9013406562 | FO25: 0.9013406562 | FP25: 4.506703281 | FQ25: 0.9013406562 | FR25: 0 | FS25: 0.9013406562 | FT25: 1.802681312 | FU25: 1.802681312 | FV25: 5.408043937 | FW25: 13.52010984 | FX25: 3.605362625 | FY25: 8.112065906 | FZ25: 11.71742853 | GA25: 8.112065906 | GB25: 0.9013406562 | GC25: 2.704021969 | GD25: 1.802681312 | GE25: 0 | GF25: 0 | GG25: 0 | GH25: 4.506703281
A26: 4 | B26: SWITCHGEAR | C26: ˂ = 11 kv ; circuit breaker | D26: 79.02857614 | E26: 53.77743538 | F26: 7.333309988 | G26: 2 | H26: 5 | I26: 27 | J26: 5 | K26: 3 | L26: 3 | M26: 21 | N26: 2 | O26: 8 | P26: 44 | Q26: 2 | R26: 4 | S26: 7 | T26: 28 | U26: 23 | V26: 4 | W26: 5 | X26: 6 | Y26: 8 | Z26: 4 | AA26: 5 | AB26: 7 | AC26: 9 | AD26: 6 | AE26: 6 | AF26: 4 | AG26: 22 | AH26: 2 | AI26: 2 | AJ26: 1 | AK26: 2 | AL26: 46 | AM26: 0 | AN26: 2 | AO26: 3 | AP26: 0 | AQ26: 0 | AR26: 0 | AS26: 0 | AT26: 2 | AU26: 19 | AV26: 0 | AW26: 1 | AX26: 0 | AY26: 2 | AZ26: 2 | BA26: 1 | BB26: 2 | BC26: 0 | BD26: 2 | BE26: 8 | BF26: 0 | BG26: 0 | BH26: 23 | BI26: 1 | BJ26: 1 | BK26: 0 | BL26: 1 | BM26: 0 | BN26: 1 | BO26: 3 | BP26: 0 | BQ26: 0 | BR26: 0 | BS26: 0 | BT26: 0 | BU26: 0 | BV26: 0 | BW26: 0 | BX26: 0 | BY26: 0 | BZ26: 0 | CA26: 0 | CB26: 0 | CC26: 0 | CD26: 0 | CE26: 0 | CF26: 0 | CG26: 0 | CH26: 0 | CI26: 0 | CJ26: 0 | CK26: 0 | CL26: 0 | CM26: 0 | CN26: 0 | CO26: 0 | CP26: 0 | CQ26: 0 | CR26: 0 | CS26: 0 | CT26: 0 | CV26: 395.1428807 | CW26: 2133.771556 | CX26: 395.1428807 | CY26: 237.0857284 | CZ26: 237.0857284 | DA26: 1659.600099 | DB26: 158.0571523 | DC26: 632.2286091 | DD26: 3477.25735 | DE26: 158.0571523 | DF26: 316.1143045 | DG26: 553.200033 | DH26: 2212.800132 | DI26: 1817.657251 | DJ26: 316.1143045 | DK26: 395.1428807 | DL26: 474.1714568 | DM26: 632.2286091 | DN26: 316.1143045 | DO26: 395.1428807 | DP26: 553.200033 | DQ26: 711.2571852 | DR26: 474.1714568 | DS26: 474.1714568 | DT26: 316.1143045 | DU26: 1738.628675 | DV26: 158.0571523 | DW26: 158.0571523 | DX26: 79.02857614 | DY26: 158.0571523 | DZ26: 3635.314502 | EA26: 0 | EB26: 158.0571523 | EC26: 237.0857284 | ED26: 0 | EE26: 0 | EF26: 0 | EG26: 0 | EH26: 158.0571523 | EI26: 1501.542947 | EJ26: 0 | EK26: 79.02857614 | EL26: 0 | EM26: 158.0571523 | EN26: 158.0571523 | EO26: 79.02857614 | EP26: 158.0571523 | EQ26: 0 | ER26: 158.0571523 | ES26: 632.2286091 | ET26: 0 | EU26: 0 | EV26: 1817.657251 | EW26: 79.02857614 | EX26: 79.02857614 | EY26: 0 | EZ26: 79.02857614 | FA26: 0 | FB26: 79.02857614 | FC26: 237.0857284 | FD26: 0 | FE26: 0 | FF26: 0 | FG26: 0 | FH26: 0 | FI26: 0 | FJ26: 0 | FK26: 0 | FL26: 0 | FM26: 0 | FN26: 0 | FO26: 0 | FP26: 0 | FQ26: 0 | FR26: 0 | FS26: 0 | FT26: 0 | FU26: 0 | FV26: 0 | FW26: 0 | FX26: 0 | FY26: 0 | FZ26: 0 | GA26: 0 | GB26: 0 | GC26: 0 | GD26: 0 | GE26: 0 | GF26: 0 | GG26: 0 | GH26: 0
A27: 4 | B27: SWITCHGEAR | C27: ˂ = 11 kv ; fuse | D27: 4.870078421 | E27: 59.12086027 | F27: 7.689009056 | G27: 2 | H27: 590 | I27: 593 | J27: 611 | K27: 563 | L27: 553 | M27: 533 | N27: 684 | O27: 618 | P27: 641 | Q27: 537 | R27: 563 | S27: 527 | T27: 463 | U27: 423 | V27: 355 | W27: 266 | X27: 313 | Y27: 290 | Z27: 279 | AA27: 283 | AB27: 413 | AC27: 286 | AD27: 280 | AE27: 174 | AF27: 139 | AG27: 179 | AH27: 187 | AI27: 175 | AJ27: 173 | AK27: 226 | AL27: 251 | AM27: 245 | AN27: 223 | AO27: 221 | AP27: 220 | AQ27: 145 | AR27: 162 | AS27: 132 | AT27: 106 | AU27: 144 | AV27: 95 | AW27: 122 | AX27: 107 | AY27: 88 | AZ27: 90 | BA27: 71 | BB27: 82 | BC27: 76 | BD27: 70 | BE27: 26 | BF27: 68 | BG27: 66 | BH27: 45 | BI27: 46 | BJ27: 45 | BK27: 13 | BL27: 9 | BM27: 9 | BN27: 18 | BO27: 12 | BP27: 18 | BQ27: 2 | BR27: 2 | BS27: 2 | BT27: 5 | BU27: 0 | BV27: 0 | BW27: 0 | BX27: 1 | BY27: 0 | BZ27: 0 | CA27: 0 | CB27: 4 | CC27: 0 | CD27: 0 | CE27: 0 | CF27: 0 | CG27: 0 | CH27: 0 | CI27: 0 | CJ27: 0 | CK27: 0 | CL27: 0 | CM27: 0 | CN27: 0 | CO27: 0 | CP27: 0 | CQ27: 0 | CR27: 0 | CS27: 0 | CT27: 0 | CV27: 2873.346269 | CW27: 2887.956504 | CX27: 2975.617915 | CY27: 2741.854151 | CZ27: 2693.153367 | DA27: 2595.751799 | DB27: 3331.13364 | DC27: 3009.708464 | DD27: 3121.720268 | DE27: 2615.232112 | DF27: 2741.854151 | DG27: 2566.531328 | DH27: 2254.846309 | DI27: 2060.043172 | DJ27: 1728.87784 | DK27: 1295.44086 | DL27: 1524.334546 | DM27: 1412.322742 | DN27: 1358.75188 | DO27: 1378.232193 | DP27: 2011.342388 | DQ27: 1392.842428 | DR27: 1363.621958 | DS27: 847.3936453 | DT27: 676.9409006 | DU27: 871.7440374 | DV27: 910.7046648 | DW27: 852.2637237 | DX27: 842.5235669 | DY27: 1100.637723 | DZ27: 1222.389684 | EA27: 1193.169213 | EB27: 1086.027488 | EC27: 1076.287331 | ED27: 1071.417253 | EE27: 706.1613711 | EF27: 788.9527043 | EG27: 642.8503516 | EH27: 516.2283127 | EI27: 701.2912927 | EJ27: 462.65745 | EK27: 594.1495674 | EL27: 521.0983911 | EM27: 428.5669011 | EN27: 438.3070579 | EO27: 345.7755679 | EP27: 399.3464305 | EQ27: 370.12596 | ER27: 340.9054895 | ES27: 126.622039 | ET27: 331.1653326 | EU27: 321.4251758 | EV27: 219.153529 | EW27: 224.0236074 | EX27: 219.153529 | EY27: 63.31101948 | EZ27: 43.83070579 | FA27: 43.83070579 | FB27: 87.66141158 | FC27: 58.44094106 | FD27: 87.66141158 | FE27: 9.740156843 | FF27: 9.740156843 | FG27: 9.740156843 | FH27: 24.35039211 | FI27: 0 | FJ27: 0 | FK27: 0 | FL27: 4.870078421 | FM27: 0 | FN27: 0 | FO27: 0 | FP27: 19.48031369 | FQ27: 0 | FR27: 0 | FS27: 0 | FT27: 0 | FU27: 0 | FV27: 0 | FW27: 0 | FX27: 0 | FY27: 0 | FZ27: 0 | GA27: 0 | GB27: 0 | GC27: 0 | GD27: 0 | GE27: 0 | GF27: 0 | GG27: 0 | GH27: 0
A28: 4 | B28: SWITCHGEAR | C28: ˂ = 11 kv ; switch | D28: 3.518149415 | E28: 63.64818359 | F28: 7.977981172 | G28: 2 | H28: 460 | I28: 577 | J28: 531 | K28: 556 | L28: 532 | M28: 489 | N28: 859 | O28: 755 | P28: 811 | Q28: 611 | R28: 718 | S28: 565 | T28: 607 | U28: 525 | V28: 488 | W28: 458 | X28: 481 | Y28: 403 | Z28: 449 | AA28: 316 | AB28: 432 | AC28: 327 | AD28: 292 | AE28: 231 | AF28: 238 | AG28: 307 | AH28: 222 | AI28: 347 | AJ28: 259 | AK28: 382 | AL28: 431 | AM28: 378 | AN28: 370 | AO28: 576 | AP28: 376 | AQ28: 201 | AR28: 209 | AS28: 179 | AT28: 142 | AU28: 185 | AV28: 147 | AW28: 228 | AX28: 176 | AY28: 175 | AZ28: 132 | BA28: 159 | BB28: 149 | BC28: 176 | BD28: 141 | BE28: 52 | BF28: 106 | BG28: 111 | BH28: 82 | BI28: 71 | BJ28: 96 | BK28: 25 | BL28: 19 | BM28: 17 | BN28: 38 | BO28: 23 | BP28: 25 | BQ28: 14 | BR28: 6 | BS28: 6 | BT28: 10 | BU28: 3 | BV28: 3 | BW28: 1 | BX28: 5 | BY28: 0 | BZ28: 2 | CA28: 0 | CB28: 4 | CC28: 0 | CD28: 1 | CE28: 0 | CF28: 0 | CG28: 5 | CH28: 0 | CI28: 0 | CJ28: 0 | CK28: 1 | CL28: 1 | CM28: 1 | CN28: 1 | CO28: 0 | CP28: 0 | CQ28: 1 | CR28: 0 | CS28: 0 | CT28: 1 | CV28: 1618.348731 | CW28: 2029.972212 | CX28: 1868.137339 | CY28: 1956.091075 | CZ28: 1871.655489 | DA28: 1720.375064 | DB28: 3022.090347 | DC28: 2656.202808 | DD28: 2853.219175 | DE28: 2149.589292 | DF28: 2526.03128 | DG28: 1987.754419 | DH28: 2135.516695 | DI28: 1847.028443 | DJ28: 1716.856914 | DK28: 1611.312432 | DL28: 1692.229869 | DM28: 1417.814214 | DN28: 1579.649087 | DO28: 1111.735215 | DP28: 1519.840547 | DQ28: 1150.434859 | DR28: 1027.299629 | DS28: 812.6925148 | DT28: 837.3195607 | DU28: 1080.07187 | DV28: 781.0291701 | DW28: 1220.797847 | DX28: 911.2006984 | DY28: 1343.933076 | DZ28: 1516.322398 | EA28: 1329.860479 | EB28: 1301.715283 | EC28: 2026.454063 | ED28: 1322.82418 | EE28: 707.1480324 | EF28: 735.2932277 | EG28: 629.7487453 | EH28: 499.5772169 | EI28: 650.8576417 | EJ28: 517.167964 | EK28: 802.1380666 | EL28: 619.194297 | EM28: 615.6761476 | EN28: 464.3957228 | EO28: 559.385757 | EP28: 524.2042628 | EQ28: 619.194297 | ER28: 496.0590675 | ES28: 182.9437696 | ET28: 372.923838 | EU28: 390.514585 | EV28: 288.488252 | EW28: 249.7886085 | EX28: 337.7423438 | EY28: 87.95373537 | EZ28: 66.84483888 | FA28: 59.80854005 | FB28: 133.6896778 | FC28: 80.91743654 | FD28: 87.95373537 | FE28: 49.25409181 | FF28: 21.10889649 | FG28: 21.10889649 | FH28: 35.18149415 | FI28: 10.55444824 | FJ28: 10.55444824 | FK28: 3.518149415 | FL28: 17.59074707 | FM28: 0 | FN28: 7.03629883 | FO28: 0 | FP28: 14.07259766 | FQ28: 0 | FR28: 3.518149415 | FS28: 0 | FT28: 0 | FU28: 17.59074707 | FV28: 0 | FW28: 0 | FX28: 0 | FY28: 3.518149415 | FZ28: 3.518149415 | GA28: 3.518149415 | GB28: 3.518149415 | GC28: 0 | GD28: 0 | GE28: 3.518149415 | GF28: 0 | GG28: 0 | GH28: 3.518149415
A29: 4 | B29: SWITCHGEAR | C29: > 11 kv & < = 22 kv ; circuit breaker | D29: 79.02857614 | E29: 53.77743538 | F29: 7.333309988 | G29: 2 | H29: 7 | I29: 23 | J29: 13 | K29: 36 | L29: 35 | M29: 18 | N29: 6 | O29: 20 | P29: 14 | Q29: 5 | R29: 35 | S29: 32 | T29: 18 | U29: 14 | V29: 7 | W29: 10 | X29: 12 | Y29: 5 | Z29: 10 | AA29: 10 | AB29: 22 | AC29: 13 | AD29: 9 | AE29: 4 | AF29: 9 | AG29: 5 | AH29: 8 | AI29: 7 | AJ29: 2 | AK29: 10 | AL29: 0 | AM29: 2 | AN29: 1 | AO29: 9 | AP29: 24 | AQ29: 16 | AR29: 9 | AS29: 4 | AT29: 7 | AU29: 11 | AV29: 1 | AW29: 2 | AX29: 4 | AY29: 17 | AZ29: 2 | BA29: 0 | BB29: 17 | BC29: 0 | BD29: 1 | BE29: 10 | BF29: 3 | BG29: 9 | BH29: 20 | BI29: 18 | BJ29: 6 | BK29: 2 | BL29: 9 | BM29: 3 | BN29: 1 | BO29: 0 | BP29: 1 | BQ29: 0 | BR29: 0 | BS29: 0 | BT29: 0 | BU29: 0 | BV29: 0 | BW29: 0 | BX29: 0 | BY29: 0 | BZ29: 2 | CA29: 0 | CB29: 0 | CC29: 0 | CD29: 0 | CE29: 0 | CF29: 0 | CG29: 0 | CH29: 0 | CI29: 0 | CJ29: 0 | CK29: 0 | CL29: 0 | CM29: 0 | CN29: 0 | CO29: 0 | CP29: 0 | CQ29: 0 | CR29: 0 | CS29: 0 | CT29: 0 | CV29: 553.200033 | CW29: 1817.657251 | CX29: 1027.37149 | CY29: 2845.028741 | CZ29: 2766.000165 | DA29: 1422.51437 | DB29: 474.1714568 | DC29: 1580.571523 | DD29: 1106.400066 | DE29: 395.1428807 | DF29: 2766.000165 | DG29: 2528.914436 | DH29: 1422.51437 | DI29: 1106.400066 | DJ29: 553.200033 | DK29: 790.2857614 | DL29: 948.3429136 | DM29: 395.1428807 | DN29: 790.2857614 | DO29: 790.2857614 | DP29: 1738.628675 | DQ29: 1027.37149 | DR29: 711.2571852 | DS29: 316.1143045 | DT29: 711.2571852 | DU29: 395.1428807 | DV29: 632.2286091 | DW29: 553.200033 | DX29: 158.0571523 | DY29: 790.2857614 | DZ29: 0 | EA29: 158.0571523 | EB29: 79.02857614 | EC29: 711.2571852 | ED29: 1896.685827 | EE29: 1264.457218 | EF29: 711.2571852 | EG29: 316.1143045 | EH29: 553.200033 | EI29: 869.3143375 | EJ29: 79.02857614 | EK29: 158.0571523 | EL29: 316.1143045 | EM29: 1343.485794 | EN29: 158.0571523 | EO29: 0 | EP29: 1343.485794 | EQ29: 0 | ER29: 79.02857614 | ES29: 790.2857614 | ET29: 237.0857284 | EU29: 711.2571852 | EV29: 1580.571523 | EW29: 1422.51437 | EX29: 474.1714568 | EY29: 158.0571523 | EZ29: 711.2571852 | FA29: 237.0857284 | FB29: 79.02857614 | FC29: 0 | FD29: 79.02857614 | FE29: 0 | FF29: 0 | FG29: 0 | FH29: 0 | FI29: 0 | FJ29: 0 | FK29: 0 | FL29: 0 | FM29: 0 | FN29: 158.0571523 | FO29: 0 | FP29: 0 | FQ29: 0 | FR29: 0 | FS29: 0 | FT29: 0 | FU29: 0 | FV29: 0 | FW29: 0 | FX29: 0 | FY29: 0 | FZ29: 0 | GA29: 0 | GB29: 0 | GC29: 0 | GD29: 0 | GE29: 0 | GF29: 0 | GG29: 0 | GH29: 0
A30: 4 | B30: SWITCHGEAR | C30: > 11 kv & < = 22 kv ; switch | D30: 13.35656148 | E30: 57.08551942 | F30: 7.555495974 | G30: 2 | H30: 403 | I30: 487 | J30: 493 | K30: 565 | L30: 546 | M30: 452 | N30: 566 | O30: 543 | P30: 596 | Q30: 422 | R30: 474 | S30: 415 | T30: 427 | U30: 438 | V30: 296 | W30: 228 | X30: 333 | Y30: 253 | Z30: 278 | AA30: 265 | AB30: 356 | AC30: 276 | AD30: 261 | AE30: 186 | AF30: 129 | AG30: 155 | AH30: 177 | AI30: 174 | AJ30: 174 | AK30: 232 | AL30: 247 | AM30: 193 | AN30: 192 | AO30: 212 | AP30: 176 | AQ30: 175 | AR30: 152 | AS30: 95 | AT30: 118 | AU30: 140 | AV30: 102 | AW30: 124 | AX30: 82 | AY30: 119 | AZ30: 78 | BA30: 65 | BB30: 74 | BC30: 68 | BD30: 67 | BE30: 38 | BF30: 55 | BG30: 60 | BH30: 137 | BI30: 128 | BJ30: 56 | BK30: 15 | BL30: 57 | BM30: 18 | BN30: 38 | BO30: 9 | BP30: 23 | BQ30: 7 | BR30: 2 | BS30: 4 | BT30: 4 | BU30: 3 | BV30: 2 | BW30: 2 | BX30: 2 | BY30: 0 | BZ30: 4 | CA30: 0 | CB30: 0 | CC30: 0 | CD30: 0 | CE30: 0 | CF30: 0 | CG30: 0 | CH30: 2 | CI30: 0 | CJ30: 1 | CK30: 1 | CL30: 0 | CM30: 2 | CN30: 0 | CO30: 0 | CP30: 1 | CQ30: 0 | CR30: 0 | CS30: 0 | CT30: 0 | CV30: 5382.694278 | CW30: 6504.645442 | CX30: 6584.784811 | CY30: 7546.457238 | CZ30: 7292.68257 | DA30: 6037.16579 | DB30: 7559.813799 | DC30: 7252.612885 | DD30: 7960.510644 | DE30: 5636.468946 | DF30: 6331.010143 | DG30: 5542.973015 | DH30: 5703.251753 | DI30: 5850.17393 | DJ30: 3953.542199 | DK30: 3045.296018 | DL30: 4447.734974 | DM30: 3379.210055 | DN30: 3713.124092 | DO30: 3539.488793 | DP30: 4754.935888 | DQ30: 3686.410969 | DR30: 3486.062547 | DS30: 2484.320436 | DT30: 1722.996431 | DU30: 2070.26703 | DV30: 2364.111382 | DW30: 2324.041698 | DX30: 2324.041698 | DY30: 3098.722264 | DZ30: 3299.070686 | EA30: 2577.816366 | EB30: 2564.459805 | EC30: 2831.591034 | ED30: 2350.754821 | EE30: 2337.39826 | EF30: 2030.197345 | EG30: 1268.873341 | EH30: 1576.074255 | EI30: 1869.918608 | EJ30: 1362.369271 | EK30: 1656.213624 | EL30: 1095.238042 | EM30: 1589.430816 | EN30: 1041.811796 | EO30: 868.1764964 | EP30: 988.3855497 | EQ30: 908.2461808 | ER30: 894.8896194 | ES30: 507.5493364 | ET30: 734.6108816 | EU30: 801.393689 | EV30: 1829.848923 | EW30: 1709.63987 | EX30: 747.967443 | EY30: 200.3484222 | EZ30: 761.3240045 | FA30: 240.4181067 | FB30: 507.5493364 | FC30: 120.2090533 | FD30: 307.2009141 | FE30: 93.49593038 | FF30: 26.71312297 | FG30: 53.42624593 | FH30: 53.42624593 | FI30: 40.06968445 | FJ30: 26.71312297 | FK30: 26.71312297 | FL30: 26.71312297 | FM30: 0 | FN30: 53.42624593 | FO30: 0 | FP30: 0 | FQ30: 0 | FR30: 0 | FS30: 0 | FT30: 0 | FU30: 0 | FV30: 26.71312297 | FW30: 0 | FX30: 13.35656148 | FY30: 13.35656148 | FZ30: 0 | GA30: 26.71312297 | GB30: 0 | GC30: 0 | GD30: 13.35656148 | GE30: 0 | GF30: 0 | GG30: 0 | GH30: 0
A31: 4 | B31: SWITCHGEAR | C31: > 33 kv & < = 66 kv ; circuit breaker | D31: 24.46978286 | E31: 61.36762761 | F31: 7.833749269 | G31: 2 | H31: 8 | I31: 1 | J31: 3 | K31: 1 | L31: 2 | M31: 3 | N31: 0 | O31: 4 | P31: 0 | Q31: 0 | R31: 0 | S31: 5 | T31: 2 | U31: 1 | V31: 2 | W31: 0 | X31: 0 | Y31: 5 | Z31: 9 | AA31: 1 | AB31: 2 | AC31: 0 | AD31: 0 | AE31: 1 | AF31: 0 | AG31: 0 | AH31: 0 | AI31: 0 | AJ31: 0 | AK31: 2 | AL31: 0 | AM31: 1 | AN31: 0 | AO31: 1 | AP31: 1 | AQ31: 1 | AR31: 1 | AS31: 1 | AT31: 2 | AU31: 1 | AV31: 2 | AW31: 1 | AX31: 0 | AY31: 1 | AZ31: 4 | BA31: 0 | BB31: 3 | BC31: 1 | BD31: 2 | BE31: 0 | BF31: 3 | BG31: 3 | BH31: 6 | BI31: 5 | BJ31: 0 | BK31: 2 | BL31: 0 | BM31: 0 | BN31: 0 | BO31: 0 | BP31: 0 | BQ31: 0 | BR31: 0 | BS31: 0 | BT31: 0 | BU31: 0 | BV31: 0 | BW31: 0 | BX31: 0 | BY31: 0 | BZ31: 0 | CA31: 0 | CB31: 0 | CC31: 0 | CD31: 0 | CE31: 0 | CF31: 0 | CG31: 0 | CH31: 0 | CI31: 0 | CJ31: 0 | CK31: 0 | CL31: 0 | CM31: 0 | CN31: 0 | CO31: 0 | CP31: 0 | CQ31: 0 | CR31: 0 | CS31: 0 | CT31: 0 | CV31: 195.7582629 | CW31: 24.46978286 | CX31: 73.40934859 | CY31: 24.46978286 | CZ31: 48.93956572 | DA31: 73.40934859 | DB31: 0 | DC31: 97.87913145 | DD31: 0 | DE31: 0 | DF31: 0 | DG31: 122.3489143 | DH31: 48.93956572 | DI31: 24.46978286 | DJ31: 48.93956572 | DK31: 0 | DL31: 0 | DM31: 122.3489143 | DN31: 220.2280458 | DO31: 24.46978286 | DP31: 48.93956572 | DQ31: 0 | DR31: 0 | DS31: 24.46978286 | DT31: 0 | DU31: 0 | DV31: 0 | DW31: 0 | DX31: 0 | DY31: 48.93956572 | DZ31: 0 | EA31: 24.46978286 | EB31: 0 | EC31: 24.46978286 | ED31: 24.46978286 | EE31: 24.46978286 | EF31: 24.46978286 | EG31: 24.46978286 | EH31: 48.93956572 | EI31: 24.46978286 | EJ31: 48.93956572 | EK31: 24.46978286 | EL31: 0 | EM31: 24.46978286 | EN31: 97.87913145 | EO31: 0 | EP31: 73.40934859 | EQ31: 24.46978286 | ER31: 48.93956572 | ES31: 0 | ET31: 73.40934859 | EU31: 73.40934859 | EV31: 146.8186972 | EW31: 122.3489143 | EX31: 0 | EY31: 48.93956572 | EZ31: 0 | FA31: 0 | FB31: 0 | FC31: 0 | FD31: 0 | FE31: 0 | FF31: 0 | FG31: 0 | FH31: 0 | FI31: 0 | FJ31: 0 | FK31: 0 | FL31: 0 | FM31: 0 | FN31: 0 | FO31: 0 | FP31: 0 | FQ31: 0 | FR31: 0 | FS31: 0 | FT31: 0 | FU31: 0 | FV31: 0 | FW31: 0 | FX31: 0 | FY31: 0 | FZ31: 0 | GA31: 0 | GB31: 0 | GC31: 0 | GD31: 0 | GE31: 0 | GF31: 0 | GG31: 0 | GH31: 0
A32: 4 | B32: SWITCHGEAR | C32: > 33 kv & < = 66 kv ; switch | D32: 13.35656148 | E32: 57.08551942 | F32: 7.555495974 | G32: 2 | H32: 19 | I32: 6 | J32: 0 | K32: 7 | L32: 37 | M32: 7 | N32: 22 | O32: 0 | P32: 15 | Q32: 0 | R32: 0 | S32: 3 | T32: 23 | U32: 16 | V32: 3 | W32: 2 | X32: 0 | Y32: 32 | Z32: 36 | AA32: 3 | AB32: 9 | AC32: 7 | AD32: 0 | AE32: 7 | AF32: 0 | AG32: 0 | AH32: 2 | AI32: 0 | AJ32: 0 | AK32: 28 | AL32: 0 | AM32: 8 | AN32: 0 | AO32: 6 | AP32: 15 | AQ32: 7 | AR32: 0 | AS32: 0 | AT32: 3 | AU32: 0 | AV32: 0 | AW32: 4 | AX32: 0 | AY32: 10 | AZ32: 1 | BA32: 0 | BB32: 17 | BC32: 7 | BD32: 14 | BE32: 14 | BF32: 2 | BG32: 2 | BH32: 27 | BI32: 31 | BJ32: 19 | BK32: 2 | BL32: 0 | BM32: 0 | BN32: 0 | BO32: 0 | BP32: 0 | BQ32: 2 | BR32: 0 | BS32: 0 | BT32: 0 | BU32: 0 | BV32: 0 | BW32: 0 | BX32: 0 | BY32: 0 | BZ32: 10 | CA32: 0 | CB32: 0 | CC32: 0 | CD32: 0 | CE32: 0 | CF32: 0 | CG32: 0 | CH32: 0 | CI32: 0 | CJ32: 0 | CK32: 0 | CL32: 0 | CM32: 0 | CN32: 0 | CO32: 0 | CP32: 0 | CQ32: 0 | CR32: 0 | CS32: 0 | CT32: 0 | CV32: 253.7746682 | CW32: 80.1393689 | CX32: 0 | CY32: 93.49593038 | CZ32: 494.1927749 | DA32: 93.49593038 | DB32: 293.8443526 | DC32: 0 | DD32: 200.3484222 | DE32: 0 | DF32: 0 | DG32: 40.06968445 | DH32: 307.2009141 | DI32: 213.7049837 | DJ32: 40.06968445 | DK32: 26.71312297 | DL32: 0 | DM32: 427.4099675 | DN32: 480.8362134 | DO32: 40.06968445 | DP32: 120.2090533 | DQ32: 93.49593038 | DR32: 0 | DS32: 93.49593038 | DT32: 0 | DU32: 0 | DV32: 26.71312297 | DW32: 0 | DX32: 0 | DY32: 373.9837215 | DZ32: 0 | EA32: 106.8524919 | EB32: 0 | EC32: 80.1393689 | ED32: 200.3484222 | EE32: 93.49593038 | EF32: 0 | EG32: 0 | EH32: 40.06968445 | EI32: 0 | EJ32: 0 | EK32: 53.42624593 | EL32: 0 | EM32: 133.5656148 | EN32: 13.35656148 | EO32: 0 | EP32: 227.0615452 | EQ32: 93.49593038 | ER32: 186.9918608 | ES32: 186.9918608 | ET32: 26.71312297 | EU32: 26.71312297 | EV32: 360.62716 | EW32: 414.053406 | EX32: 253.7746682 | EY32: 26.71312297 | EZ32: 0 | FA32: 0 | FB32: 0 | FC32: 0 | FD32: 0 | FE32: 26.71312297 | FF32: 0 | FG32: 0 | FH32: 0 | FI32: 0 | FJ32: 0 | FK32: 0 | FL32: 0 | FM32: 0 | FN32: 133.5656148 | FO32: 0 | FP32: 0 | FQ32: 0 | FR32: 0 | FS32: 0 | FT32: 0 | FU32: 0 | FV32: 0 | FW32: 0 | FX32: 0 | FY32: 0 | FZ32: 0 | GA32: 0 | GB32: 0 | GC32: 0 | GD32: 0 | GE32: 0 | GF32: 0 | GG32: 0 | GH32: 0
B33: TRANSFORMERS | C33: ground outdoor / indoor chamber mounted ; ˂ 22 kv ; < = 60 kva ; multiple phase | D33: 28.49124396 | E33: 62.96772775 | F33: 7.935220712 | G33: 2 | H33: 0 | I33: 0 | J33: 0 | K33: 0 | L33: 0 | M33: 0 | N33: 0 | O33: 0 | P33: 0 | Q33: 0 | R33: 0 | S33: 0 | T33: 0 | U33: 0 | V33: 0 | W33: 0 | X33: 0 | Y33: 0 | Z33: 0 | AA33: 0 | AB33: 0 | AC33: 0 | AD33: 0 | AE33: 0 | AF33: 0 | AG33: 0 | AH33: 0 | AI33: 0 | AJ33: 0 | AK33: 0 | AL33: 0 | AM33: 0 | AN33: 0 | AO33: 0 | AP33: 0 | AQ33: 1 | AR33: 0 | AS33: 0 | AT33: 0 | AU33: 0 | AV33: 0 | AW33: 0 | AX33: 0 | AY33: 0 | AZ33: 0 | BA33: 0 | BB33: 0 | BC33: 0 | BD33: 0 | BE33: 0 | BF33: 0 | BG33: 0 | BH33: 0 | BI33: 0 | BJ33: 0 | BK33: 0 | BL33: 0 | BM33: 0 | BN33: 0 | BO33: 0 | BP33: 0 | BQ33: 0 | BR33: 0 | BS33: 0 | BT33: 0 | BU33: 0 | BV33: 0 | BW33: 0 | BX33: 0 | BY33: 0 | BZ33: 0 | CA33: 0 | CB33: 0 | CC33: 0 | CD33: 0 | CE33: 0 | CF33: 0 | CG33: 0 | CH33: 0 | CI33: 0 | CJ33: 0 | CK33: 0 | CL33: 0 | CM33: 0 | CN33: 0 | CO33: 0 | CP33: 0 | CQ33: 0 | CR33: 0 | CS33: 0 | CT33: 0 | CV33: 0 | CW33: 0 | CX33: 0 | CY33: 0 | CZ33: 0 | DA33: 0 | DB33: 0 | DC33: 0 | DD33: 0 | DE33: 0 | DF33: 0 | DG33: 0 | DH33: 0 | DI33: 0 | DJ33: 0 | DK33: 0 | DL33: 0 | DM33: 0 | DN33: 0 | DO33: 0 | DP33: 0 | DQ33: 0 | DR33: 0 | DS33: 0 | DT33: 0 | DU33: 0 | DV33: 0 | DW33: 0 | DX33: 0 | DY33: 0 | DZ33: 0 | EA33: 0 | EB33: 0 | EC33: 0 | ED33: 0 | EE33: 28.49124396 | EF33: 0 | EG33: 0 | EH33: 0 | EI33: 0 | EJ33: 0 | EK33: 0 | EL33: 0 | EM33: 0 | EN33: 0 | EO33: 0 | EP33: 0 | EQ33: 0 | ER33: 0 | ES33: 0 | ET33: 0 | EU33: 0 | EV33: 0 | EW33: 0 | EX33: 0 | EY33: 0 | EZ33: 0 | FA33: 0 | FB33: 0 | FC33: 0 | FD33: 0 | FE33: 0 | FF33: 0 | FG33: 0 | FH33: 0 | FI33: 0 | FJ33: 0 | FK33: 0 | FL33: 0 | FM33: 0 | FN33: 0 | FO33: 0 | FP33: 0 | FQ33: 0 | FR33: 0 | FS33: 0 | FT33: 0 | FU33: 0 | FV33: 0 | FW33: 0 | FX33: 0 | FY33: 0 | FZ33: 0 | GA33: 0 | GB33: 0 | GC33: 0 | GD33: 0 | GE33: 0 | GF33: 0 | GG33: 0 | GH33: 0
A34: 5 | B34: TRANSFORMERS | C34: ground outdoor / indoor chamber mounted ; ˂ 22 kv ; > 60 kva and < = 600 kva ; multiple phase | D34: 28.49124396 | E34: 62.96772775 | F34: 7.935220712 | G34: 2 | H34: 3 | I34: 5 | J34: 2 | K34: 5 | L34: 4 | M34: 0 | N34: 2 | O34: 1 | P34: 1 | Q34: 1 | R34: 1 | S34: 0 | T34: 1 | U34: 0 | V34: 0 | W34: 1 | X34: 0 | Y34: 4 | Z34: 3 | AA34: 2 | AB34: 2 | AC34: 2 | AD34: 1 | AE34: 0 | AF34: 1 | AG34: 0 | AH34: 2 | AI34: 1 | AJ34: 1 | AK34: 3 | AL34: 0 | AM34: 2 | AN34: 1 | AO34: 6 | AP34: 1 | AQ34: 0 | AR34: 3 | AS34: 3 | AT34: 0 | AU34: 0 | AV34: 3 | AW34: 1 | AX34: 2 | AY34: 1 | AZ34: 2 | BA34: 2 | BB34: 6 | BC34: 5 | BD34: 1 | BE34: 6 | BF34: 0 | BG34: 2 | BH34: 1 | BI34: 4 | BJ34: 1 | BK34: 0 | BL34: 0 | BM34: 0 | BN34: 1 | BO34: 2 | BP34: 0 | BQ34: 1 | BR34: 0 | BS34: 0 | BT34: 0 | BU34: 0 | BV34: 0 | BW34: 0 | BX34: 0 | BY34: 0 | BZ34: 0 | CA34: 0 | CB34: 0 | CC34: 0 | CD34: 0 | CE34: 0 | CF34: 0 | CG34: 0 | CH34: 0 | CI34: 0 | CJ34: 0 | CK34: 0 | CL34: 0 | CM34: 0 | CN34: 0 | CO34: 0 | CP34: 0 | CQ34: 0 | CR34: 0 | CS34: 0 | CT34: 0 | CV34: 85.47373189 | CW34: 142.4562198 | CX34: 56.98248792 | CY34: 142.4562198 | CZ34: 113.9649758 | DA34: 0 | DB34: 56.98248792 | DC34: 28.49124396 | DD34: 28.49124396 | DE34: 28.49124396 | DF34: 28.49124396 | DG34: 0 | DH34: 28.49124396 | DI34: 0 | DJ34: 0 | DK34: 28.49124396 | DL34: 0 | DM34: 113.9649758 | DN34: 85.47373189 | DO34: 56.98248792 | DP34: 56.98248792 | DQ34: 56.98248792 | DR34: 28.49124396 | DS34: 0 | DT34: 28.49124396 | DU34: 0 | DV34: 56.98248792 | DW34: 28.49124396 | DX34: 28.49124396 | DY34: 85.47373189 | DZ34: 0 | EA34: 56.98248792 | EB34: 28.49124396 | EC34: 170.9474638 | ED34: 28.49124396 | EE34: 0 | EF34: 85.47373189 | EG34: 85.47373189 | EH34: 0 | EI34: 0 | EJ34: 85.47373189 | EK34: 28.49124396 | EL34: 56.98248792 | EM34: 28.49124396 | EN34: 56.98248792 | EO34: 56.98248792 | EP34: 170.9474638 | EQ34: 142.4562198 | ER34: 28.49124396 | ES34: 170.9474638 | ET34: 0 | EU34: 56.98248792 | EV34: 28.49124396 | EW34: 113.9649758 | EX34: 28.49124396 | EY34: 0 | EZ34: 0 | FA34: 0 | FB34: 28.49124396 | FC34: 56.98248792 | FD34: 0 | FE34: 28.49124396 | FF34: 0 | FG34: 0 | FH34: 0 | FI34: 0 | FJ34: 0 | FK34: 0 | FL34: 0 | FM34: 0 | FN34: 0 | FO34: 0 | FP34: 0 | FQ34: 0 | FR34: 0 | FS34: 0 | FT34: 0 | FU34: 0 | FV34: 0 | FW34: 0 | FX34: 0 | FY34: 0 | FZ34: 0 | GA34: 0 | GB34: 0 | GC34: 0 | GD34: 0 | GE34: 0 | GF34: 0 | GG34: 0 | GH34: 0
A35: 5 | B35: TRANSFORMERS | C35: ground outdoor / indoor chamber mounted ; ˂ 22 kv ; > 600 kva ; multiple phase | D35: 23.38397908 | E35: 65.92295893 | F35: 8.11929547 | G35: 2 | H35: 4 | I35: 0 | J35: 1 | K35: 4 | L35: 3 | M35: 2 | N35: 2 | O35: 5 | P35: 3 | Q35: 2 | R35: 3 | S35: 3 | T35: 3 | U35: 2 | V35: 3 | W35: 0 | X35: 0 | Y35: 2 | Z35: 2 | AA35: 0 | AB35: 4 | AC35: 2 | AD35: 5 | AE35: 0 | AF35: 1 | AG35: 1 | AH35: 5 | AI35: 2 | AJ35: 2 | AK35: 2 | AL35: 0 | AM35: 3 | AN35: 1 | AO35: 0 | AP35: 1 | AQ35: 0 | AR35: 0 | AS35: 3 | AT35: 0 | AU35: 1 | AV35: 5 | AW35: 1 | AX35: 2 | AY35: 2 | AZ35: 0 | BA35: 1 | BB35: 1 | BC35: 1 | BD35: 0 | BE35: 7 | BF35: 0 | BG35: 0 | BH35: 0 | BI35: 2 | BJ35: 1 | BK35: 0 | BL35: 1 | BM35: 1 | BN35: 0 | BO35: 0 | BP35: 0 | BQ35: 0 | BR35: 0 | BS35: 2 | BT35: 0 | BU35: 0 | BV35: 0 | BW35: 0 | BX35: 0 | BY35: 0 | BZ35: 0 | CA35: 0 | CB35: 0 | CC35: 0 | CD35: 0 | CE35: 0 | CF35: 0 | CG35: 0 | CH35: 0 | CI35: 0 | CJ35: 0 | CK35: 0 | CL35: 0 | CM35: 0 | CN35: 0 | CO35: 0 | CP35: 0 | CQ35: 0 | CR35: 0 | CS35: 0 | CT35: 0 | CV35: 93.53591631 | CW35: 0 | CX35: 23.38397908 | CY35: 93.53591631 | CZ35: 70.15193723 | DA35: 46.76795816 | DB35: 46.76795816 | DC35: 116.9198954 | DD35: 70.15193723 | DE35: 46.76795816 | DF35: 70.15193723 | DG35: 70.15193723 | DH35: 70.15193723 | DI35: 46.76795816 | DJ35: 70.15193723 | DK35: 0 | DL35: 0 | DM35: 46.76795816 | DN35: 46.76795816 | DO35: 0 | DP35: 93.53591631 | DQ35: 46.76795816 | DR35: 116.9198954 | DS35: 0 | DT35: 23.38397908 | DU35: 23.38397908 | DV35: 116.9198954 | DW35: 46.76795816 | DX35: 46.76795816 | DY35: 46.76795816 | DZ35: 0 | EA35: 70.15193723 | EB35: 23.38397908 | EC35: 0 | ED35: 23.38397908 | EE35: 0 | EF35: 0 | EG35: 70.15193723 | EH35: 0 | EI35: 23.38397908 | EJ35: 116.9198954 | EK35: 23.38397908 | EL35: 46.76795816 | EM35: 46.76795816 | EN35: 0 | EO35: 23.38397908 | EP35: 23.38397908 | EQ35: 23.38397908 | ER35: 0 | ES35: 163.6878535 | ET35: 0 | EU35: 0 | EV35: 0 | EW35: 46.76795816 | EX35: 23.38397908 | EY35: 0 | EZ35: 23.38397908 | FA35: 23.38397908 | FB35: 0 | FC35: 0 | FD35: 0 | FE35: 0 | FF35: 0 | FG35: 46.76795816 | FH35: 0 | FI35: 0 | FJ35: 0 | FK35: 0 | FL35: 0 | FM35: 0 | FN35: 0 | FO35: 0 | FP35: 0 | FQ35: 0 | FR35: 0 | FS35: 0 | FT35: 0 | FU35: 0 | FV35: 0 | FW35: 0 | FX35: 0 | FY35: 0 | FZ35: 0 | GA35: 0 | GB35: 0 | GC35: 0 | GD35: 0 | GE35: 0 | GF35: 0 | GG35: 0 | GH35: 0
A36: 5 | B36: TRANSFORMERS | C36: ground outdoor / indoor chamber mounted ; > = 22 kv & < = 33 kv ; < = 15 mva | D36: 683.687217 | E36: 63.46782855 | F36: 7.966669853 | G36: 2 | H36: 11 | I36: 7 | J36: 15 | K36: 27 | L36: 8 | M36: 6 | N36: 10 | O36: 13 | P36: 19 | Q36: 6 | R36: 14 | S36: 13 | T36: 17 | U36: 10 | V36: 7 | W36: 6 | X36: 15 | Y36: 6 | Z36: 23 | AA36: 11 | AB36: 6 | AC36: 13 | AD36: 8 | AE36: 15 | AF36: 11 | AG36: 11 | AH36: 10 | AI36: 15 | AJ36: 7 | AK36: 18 | AL36: 15 | AM36: 21 | AN36: 12 | AO36: 13 | AP36: 10 | AQ36: 14 | AR36: 10 | AS36: 8 | AT36: 10 | AU36: 20 | AV36: 10 | AW36: 9 | AX36: 5 | AY36: 13 | AZ36: 9 | BA36: 2 | BB36: 5 | BC36: 3 | BD36: 0 | BE36: 14 | BF36: 4 | BG36: 5 | BH36: 5 | BI36: 7 | BJ36: 4 | BK36: 0 | BL36: 0 | BM36: 1 | BN36: 1 | BO36: 0 | BP36: 2 | BQ36: 0 | BR36: 0 | BS36: 0 | BT36: 3 | BU36: 0 | BV36: 0 | BW36: 0 | BX36: 0 | BY36: 0 | BZ36: 0 | CA36: 0 | CB36: 0 | CC36: 0 | CD36: 0 | CE36: 0 | CF36: 0 | CG36: 0 | CH36: 0 | CI36: 0 | CJ36: 0 | CK36: 0 | CL36: 0 | CM36: 0 | CN36: 0 | CO36: 0 | CP36: 0 | CQ36: 0 | CR36: 0 | CS36: 0 | CT36: 1 | CV36: 7520.559387 | CW36: 4785.810519 | CX36: 10255.30825 | CY36: 18459.55486 | CZ36: 5469.497736 | DA36: 4102.123302 | DB36: 6836.87217 | DC36: 8887.933821 | DD36: 12990.05712 | DE36: 4102.123302 | DF36: 9571.621038 | DG36: 8887.933821 | DH36: 11622.68269 | DI36: 6836.87217 | DJ36: 4785.810519 | DK36: 4102.123302 | DL36: 10255.30825 | DM36: 4102.123302 | DN36: 15724.80599 | DO36: 7520.559387 | DP36: 4102.123302 | DQ36: 8887.933821 | DR36: 5469.497736 | DS36: 10255.30825 | DT36: 7520.559387 | DU36: 7520.559387 | DV36: 6836.87217 | DW36: 10255.30825 | DX36: 4785.810519 | DY36: 12306.36991 | DZ36: 10255.30825 | EA36: 14357.43156 | EB36: 8204.246604 | EC36: 8887.933821 | ED36: 6836.87217 | EE36: 9571.621038 | EF36: 6836.87217 | EG36: 5469.497736 | EH36: 6836.87217 | EI36: 13673.74434 | EJ36: 6836.87217 | EK36: 6153.184953 | EL36: 3418.436085 | EM36: 8887.933821 | EN36: 6153.184953 | EO36: 1367.374434 | EP36: 3418.436085 | EQ36: 2051.061651 | ER36: 0 | ES36: 9571.621038 | ET36: 2734.748868 | EU36: 3418.436085 | EV36: 3418.436085 | EW36: 4785.810519 | EX36: 2734.748868 | EY36: 0 | EZ36: 0 | FA36: 683.687217 | FB36: 683.687217 | FC36: 0 | FD36: 1367.374434 | FE36: 0 | FF36: 0 | FG36: 0 | FH36: 2051.061651 | FI36: 0 | FJ36: 0 | FK36: 0 | FL36: 0 | FM36: 0 | FN36: 0 | FO36: 0 | FP36: 0 | FQ36: 0 | FR36: 0 | FS36: 0 | FT36: 0 | FU36: 0 | FV36: 0 | FW36: 0 | FX36: 0 | FY36: 0 | FZ36: 0 | GA36: 0 | GB36: 0 | GC36: 0 | GD36: 0 | GE36: 0 | GF36: 0 | GG36: 0 | GH36: 683.687217
A37: 5 | B37: TRANSFORMERS | C37: ground outdoor / indoor chamber mounted ; > = 22 kv & < = 33 kv ; > 15 mva and < = 40 mva | D37: 683.687217 | E37: 63.46782855 | F37: 7.966669853 | G37: 2 | H37: 0 | I37: 0 | J37: 3 | K37: 0 | L37: 0 | M37: 0 | N37: 0 | O37: 0 | P37: 0 | Q37: 0 | R37: 0 | S37: 0 | T37: 0 | U37: 1 | V37: 0 | W37: 0 | X37: 0 | Y37: 0 | Z37: 0 | AA37: 0 | AB37: 0 | AC37: 0 | AD37: 0 | AE37: 0 | AF37: 0 | AG37: 0 | AH37: 0 | AI37: 0 | AJ37: 0 | AK37: 0 | AL37: 0 | AM37: 0 | AN37: 0 | AO37: 0 | AP37: 0 | AQ37: 0 | AR37: 0 | AS37: 0 | AT37: 0 | AU37: 0 | AV37: 0 | AW37: 0 | AX37: 0 | AY37: 0 | AZ37: 0 | BA37: 0 | BB37: 0 | BC37: 0 | BD37: 0 | BE37: 0 | BF37: 0 | BG37: 0 | BH37: 0 | BI37: 0 | BJ37: 0 | BK37: 0 | BL37: 0 | BM37: 0 | BN37: 0 | BO37: 0 | BP37: 0 | BQ37: 0 | BR37: 0 | BS37: 0 | BT37: 0 | BU37: 0 | BV37: 0 | BW37: 0 | BX37: 0 | BY37: 0 | BZ37: 0 | CA37: 0 | CB37: 0 | CC37: 0 | CD37: 0 | CE37: 0 | CF37: 0 | CG37: 0 | CH37: 0 | CI37: 0 | CJ37: 0 | CK37: 0 | CL37: 0 | CM37: 0 | CN37: 0 | CO37: 0 | CP37: 0 | CQ37: 0 | CR37: 0 | CS37: 0 | CT37: 0 | CV37: 0 | CW37: 0 | CX37: 2051.061651 | CY37: 0 | CZ37: 0 | DA37: 0 | DB37: 0 | DC37: 0 | DD37: 0 | DE37: 0 | DF37: 0 | DG37: 0 | DH37: 0 | DI37: 683.687217 | DJ37: 0 | DK37: 0 | DL37: 0 | DM37: 0 | DN37: 0 | DO37: 0 | DP37: 0 | DQ37: 0 | DR37: 0 | DS37: 0 | DT37: 0 | DU37: 0 | DV37: 0 | DW37: 0 | DX37: 0 | DY37: 0 | DZ37: 0 | EA37: 0 | EB37: 0 | EC37: 0 | ED37: 0 | EE37: 0 | EF37: 0 | EG37: 0 | EH37: 0 | EI37: 0 | EJ37: 0 | EK37: 0 | EL37: 0 | EM37: 0 | EN37: 0 | EO37: 0 | EP37: 0 | EQ37: 0 | ER37: 0 | ES37: 0 | ET37: 0 | EU37: 0 | EV37: 0 | EW37: 0 | EX37: 0 | EY37: 0 | EZ37: 0 | FA37: 0 | FB37: 0 | FC37: 0 | FD37: 0 | FE37: 0 | FF37: 0 | FG37: 0 | FH37: 0 | FI37: 0 | FJ37: 0 | FK37: 0 | FL37: 0 | FM37: 0 | FN37: 0 | FO37: 0 | FP37: 0 | FQ37: 0 | FR37: 0 | FS37: 0 | FT37: 0 | FU37: 0 | FV37: 0 | FW37: 0 | FX37: 0 | FY37: 0 | FZ37: 0 | GA37: 0 | GB37: 0 | GC37: 0 | GD37: 0 | GE37: 0 | GF37: 0 | GG37: 0 | GH37: 0
A38: 5 | B38: TRANSFORMERS | C38: ground outdoor / indoor chamber mounted ; > 33 kv & < = 66 kv ; < = 15 mva | D38: 683.687217 | E38: 63.46782855 | F38: 7.966669853 | G38: 2 | H38: 0 | I38: 0 | J38: 0 | K38: 0 | L38: 0 | M38: 0 | N38: 0 | O38: 0 | P38: 0 | Q38: 0 | R38: 0 | S38: 0 | T38: 0 | U38: 0 | V38: 0 | W38: 0 | X38: 0 | Y38: 0 | Z38: 0 | AA38: 0 | AB38: 0 | AC38: 0 | AD38: 0 | AE38: 0 | AF38: 0 | AG38: 0 | AH38: 0 | AI38: 0 | AJ38: 0 | AK38: 0 | AL38: 0 | AM38: 0 | AN38: 0 | AO38: 0 | AP38: 0 | AQ38: 0 | AR38: 0 | AS38: 0 | AT38: 0 | AU38: 0 | AV38: 0 | AW38: 0 | AX38: 0 | AY38: 0 | AZ38: 0 | BA38: 0 | BB38: 0 | BC38: 0 | BD38: 0 | BE38: 0 | BF38: 0 | BG38: 0 | BH38: 0 | BI38: 0 | BJ38: 0 | BK38: 1 | BL38: 0 | BM38: 0 | BN38: 0 | BO38: 0 | BP38: 1 | BQ38: 1 | BR38: 0 | BS38: 0 | BT38: 0 | BU38: 0 | BV38: 0 | BW38: 0 | BX38: 0 | BY38: 0 | BZ38: 0 | CA38: 0 | CB38: 0 | CC38: 0 | CD38: 0 | CE38: 0 | CF38: 0 | CG38: 0 | CH38: 0 | CI38: 0 | CJ38: 0 | CK38: 0 | CL38: 0 | CM38: 0 | CN38: 0 | CO38: 0 | CP38: 0 | CQ38: 0 | CR38: 0 | CS38: 0 | CT38: 0 | CV38: 0 | CW38: 0 | CX38: 0 | CY38: 0 | CZ38: 0 | DA38: 0 | DB38: 0 | DC38: 0 | DD38: 0 | DE38: 0 | DF38: 0 | DG38: 0 | DH38: 0 | DI38: 0 | DJ38: 0 | DK38: 0 | DL38: 0 | DM38: 0 | DN38: 0 | DO38: 0 | DP38: 0 | DQ38: 0 | DR38: 0 | DS38: 0 | DT38: 0 | DU38: 0 | DV38: 0 | DW38: 0 | DX38: 0 | DY38: 0 | DZ38: 0 | EA38: 0 | EB38: 0 | EC38: 0 | ED38: 0 | EE38: 0 | EF38: 0 | EG38: 0 | EH38: 0 | EI38: 0 | EJ38: 0 | EK38: 0 | EL38: 0 | EM38: 0 | EN38: 0 | EO38: 0 | EP38: 0 | EQ38: 0 | ER38: 0 | ES38: 0 | ET38: 0 | EU38: 0 | EV38: 0 | EW38: 0 | EX38: 0 | EY38: 683.687217 | EZ38: 0 | FA38: 0 | FB38: 0 | FC38: 0 | FD38: 683.687217 | FE38: 683.687217 | FF38: 0 | FG38: 0 | FH38: 0 | FI38: 0 | FJ38: 0 | FK38: 0 | FL38: 0 | FM38: 0 | FN38: 0 | FO38: 0 | FP38: 0 | FQ38: 0 | FR38: 0 | FS38: 0 | FT38: 0 | FU38: 0 | FV38: 0 | FW38: 0 | FX38: 0 | FY38: 0 | FZ38: 0 | GA38: 0 | GB38: 0 | GC38: 0 | GD38: 0 | GE38: 0 | GF38: 0 | GG38: 0 | GH38: 0
A39: 5 | B39: TRANSFORMERS | C39: ground outdoor / indoor chamber mounted ; > 33 kv & < = 66 kv ; > 15 mva and < = 40 mva | D39: 4206.768167 | E39: 59.24135691 | F39: 7.696840709 | G39: 2 | H39: 0 | I39: 1 | J39: 0 | K39: 0 | L39: 4 | M39: 3 | N39: 0 | O39: 2 | P39: 1 | Q39: 2 | R39: 0 | S39: 3 | T39: 1 | U39: 1 | V39: 0 | W39: 0 | X39: 0 | Y39: 2 | Z39: 1 | AA39: 0 | AB39: 0 | AC39: 0 | AD39: 0 | AE39: 0 | AF39: 0 | AG39: 0 | AH39: 0 | AI39: 0 | AJ39: 0 | AK39: 1 | AL39: 0 | AM39: 1 | AN39: 0 | AO39: 0 | AP39: 3 | AQ39: 0 | AR39: 0 | AS39: 0 | AT39: 0 | AU39: 0 | AV39: 0 | AW39: 0 | AX39: 0 | AY39: 2 | AZ39: 0 | BA39: 0 | BB39: 4 | BC39: 1 | BD39: 1 | BE39: 2 | BF39: 0 | BG39: 2 | BH39: 4 | BI39: 7 | BJ39: 2 | BK39: 0 | BL39: 0 | BM39: 1 | BN39: 0 | BO39: 0 | BP39: 0 | BQ39: 0 | BR39: 0 | BS39: 0 | BT39: 0 | BU39: 0 | BV39: 0 | BW39: 0 | BX39: 0 | BY39: 0 | BZ39: 0 | CA39: 0 | CB39: 0 | CC39: 0 | CD39: 0 | CE39: 0 | CF39: 0 | CG39: 0 | CH39: 0 | CI39: 0 | CJ39: 0 | CK39: 0 | CL39: 0 | CM39: 0 | CN39: 0 | CO39: 0 | CP39: 0 | CQ39: 0 | CR39: 0 | CS39: 0 | CT39: 0 | CV39: 0 | CW39: 4206.768167 | CX39: 0 | CY39: 0 | CZ39: 16827.07267 | DA39: 12620.3045 | DB39: 0 | DC39: 8413.536333 | DD39: 4206.768167 | DE39: 8413.536333 | DF39: 0 | DG39: 12620.3045 | DH39: 4206.768167 | DI39: 4206.768167 | DJ39: 0 | DK39: 0 | DL39: 0 | DM39: 8413.536333 | DN39: 4206.768167 | DO39: 0 | DP39: 0 | DQ39: 0 | DR39: 0 | DS39: 0 | DT39: 0 | DU39: 0 | DV39: 0 | DW39: 0 | DX39: 0 | DY39: 4206.768167 | DZ39: 0 | EA39: 4206.768167 | EB39: 0 | EC39: 0 | ED39: 12620.3045 | EE39: 0 | EF39: 0 | EG39: 0 | EH39: 0 | EI39: 0 | EJ39: 0 | EK39: 0 | EL39: 0 | EM39: 8413.536333 | EN39: 0 | EO39: 0 | EP39: 16827.07267 | EQ39: 4206.768167 | ER39: 4206.768167 | ES39: 8413.536333 | ET39: 0 | EU39: 8413.536333 | EV39: 16827.07267 | EW39: 29447.37717 | EX39: 8413.536333 | EY39: 0 | EZ39: 0 | FA39: 4206.768167 | FB39: 0 | FC39: 0 | FD39: 0 | FE39: 0 | FF39: 0 | FG39: 0 | FH39: 0 | FI39: 0 | FJ39: 0 | FK39: 0 | FL39: 0 | FM39: 0 | FN39: 0 | FO39: 0 | FP39: 0 | FQ39: 0 | FR39: 0 | FS39: 0 | FT39: 0 | FU39: 0 | FV39: 0 | FW39: 0 | FX39: 0 | FY39: 0 | FZ39: 0 | GA39: 0 | GB39: 0 | GC39: 0 | GD39: 0 | GE39: 0 | GF39: 0 | GG39: 0 | GH39: 0
B40: TRANSFORMERS | C40: ground outdoor / indoor chamber mounted ; > 33 kv & < = 66 kv ; > 40 mva | D40: 4206.768167 | E40: 59.24135691 | F40: 7.696840709 | G40: 2 | H40: 0 | I40: 0 | J40: 0 | K40: 0 | L40: 0 | M40: 0 | N40: 0 | O40: 0 | P40: 0 | Q40: 0 | R40: 0 | S40: 0 | T40: 0 | U40: 0 | V40: 0 | W40: 0 | X40: 0 | Y40: 0 | Z40: 0 | AA40: 0 | AB40: 0 | AC40: 0 | AD40: 0 | AE40: 0 | AF40: 0 | AG40: 0 | AH40: 0 | AI40: 0 | AJ40: 0 | AK40: 0 | AL40: 0 | AM40: 0 | AN40: 0 | AO40: 0 | AP40: 0 | AQ40: 2 | AR40: 0 | AS40: 0 | AT40: 0 | AU40: 0 | AV40: 0 | AW40: 0 | AX40: 0 | AY40: 0 | AZ40: 0 | BA40: 0 | BB40: 0 | BC40: 0 | BD40: 0 | BE40: 0 | BF40: 0 | BG40: 0 | BH40: 0 | BI40: 0 | BJ40: 0 | BK40: 0 | BL40: 0 | BM40: 0 | BN40: 0 | BO40: 0 | BP40: 0 | BQ40: 0 | BR40: 0 | BS40: 0 | BT40: 0 | BU40: 0 | BV40: 0 | BW40: 0 | BX40: 0 | BY40: 0 | BZ40: 0 | CA40: 0 | CB40: 0 | CC40: 0 | CD40: 0 | CE40: 0 | CF40: 0 | CG40: 0 | CH40: 0 | CI40: 0 | CJ40: 0 | CK40: 0 | CL40: 0 | CM40: 0 | CN40: 0 | CO40: 0 | CP40: 0 | CQ40: 0 | CR40: 0 | CS40: 0 | CT40: 0 | CV40: 0 | CW40: 0 | CX40: 0 | CY40: 0 | CZ40: 0 | DA40: 0 | DB40: 0 | DC40: 0 | DD40: 0 | DE40: 0 | DF40: 0 | DG40: 0 | DH40: 0 | DI40: 0 | DJ40: 0 | DK40: 0 | DL40: 0 | DM40: 0 | DN40: 0 | DO40: 0 | DP40: 0 | DQ40: 0 | DR40: 0 | DS40: 0 | DT40: 0 | DU40: 0 | DV40: 0 | DW40: 0 | DX40: 0 | DY40: 0 | DZ40: 0 | EA40: 0 | EB40: 0 | EC40: 0 | ED40: 0 | EE40: 8413.536333 | EF40: 0 | EG40: 0 | EH40: 0 | EI40: 0 | EJ40: 0 | EK40: 0 | EL40: 0 | EM40: 0 | EN40: 0 | EO40: 0 | EP40: 0 | EQ40: 0 | ER40: 0 | ES40: 0 | ET40: 0 | EU40: 0 | EV40: 0 | EW40: 0 | EX40: 0 | EY40: 0 | EZ40: 0 | FA40: 0 | FB40: 0 | FC40: 0 | FD40: 0 | FE40: 0 | FF40: 0 | FG40: 0 | FH40: 0 | FI40: 0 | FJ40: 0 | FK40: 0 | FL40: 0 | FM40: 0 | FN40: 0 | FO40: 0 | FP40: 0 | FQ40: 0 | FR40: 0 | FS40: 0 | FT40: 0 | FU40: 0 | FV40: 0 | FW40: 0 | FX40: 0 | FY40: 0 | FZ40: 0 | GA40: 0 | GB40: 0 | GC40: 0 | GD40: 0 | GE40: 0 | GF40: 0 | GG40: 0 | GH40: 0
A41: 5 | B41: TRANSFORMERS | C41: kiosk mounted ; < = 22 kv ; < = 60 kva ; single phase | D41: 12.23113457 | E41: 27.48136862 | F41: 5.242267508 | G41: 2 | H41: 0 | I41: 1 | J41: 0 | K41: 0 | L41: 0 | M41: 0 | N41: 0 | O41: 0 | P41: 0 | Q41: 0 | R41: 0 | S41: 0 | T41: 0 | U41: 0 | V41: 0 | W41: 0 | X41: 2 | Y41: 0 | Z41: 0 | AA41: 0 | AB41: 0 | AC41: 0 | AD41: 1 | AE41: 4 | AF41: 0 | AG41: 0 | AH41: 0 | AI41: 0 | AJ41: 0 | AK41: 0 | AL41: 0 | AM41: 0 | AN41: 0 | AO41: 0 | AP41: 0 | AQ41: 0 | AR41: 0 | AS41: 0 | AT41: 0 | AU41: 0 | AV41: 0 | AW41: 0 | AX41: 0 | AY41: 0 | AZ41: 0 | BA41: 0 | BB41: 0 | BC41: 0 | BD41: 0 | BE41: 0 | BF41: 0 | BG41: 0 | BH41: 0 | BI41: 0 | BJ41: 0 | BK41: 0 | BL41: 0 | BM41: 0 | BN41: 0 | BO41: 0 | BP41: 0 | BQ41: 0 | BR41: 0 | BS41: 0 | BT41: 0 | BU41: 0 | BV41: 0 | BW41: 0 | BX41: 0 | BY41: 0 | BZ41: 0 | CA41: 0 | CB41: 0 | CC41: 0 | CD41: 0 | CE41: 0 | CF41: 0 | CG41: 0 | CH41: 0 | CI41: 0 | CJ41: 0 | CK41: 0 | CL41: 0 | CM41: 0 | CN41: 0 | CO41: 0 | CP41: 0 | CQ41: 0 | CR41: 0 | CS41: 0 | CT41: 0 | CV41: 0 | CW41: 12.23113457 | CX41: 0 | CY41: 0 | CZ41: 0 | DA41: 0 | DB41: 0 | DC41: 0 | DD41: 0 | DE41: 0 | DF41: 0 | DG41: 0 | DH41: 0 | DI41: 0 | DJ41: 0 | DK41: 0 | DL41: 24.46226914 | DM41: 0 | DN41: 0 | DO41: 0 | DP41: 0 | DQ41: 0 | DR41: 12.23113457 | DS41: 48.92453829 | DT41: 0 | DU41: 0 | DV41: 0 | DW41: 0 | DX41: 0 | DY41: 0 | DZ41: 0 | EA41: 0 | EB41: 0 | EC41: 0 | ED41: 0 | EE41: 0 | EF41: 0 | EG41: 0 | EH41: 0 | EI41: 0 | EJ41: 0 | EK41: 0 | EL41: 0 | EM41: 0 | EN41: 0 | EO41: 0 | EP41: 0 | EQ41: 0 | ER41: 0 | ES41: 0 | ET41: 0 | EU41: 0 | EV41: 0 | EW41: 0 | EX41: 0 | EY41: 0 | EZ41: 0 | FA41: 0 | FB41: 0 | FC41: 0 | FD41: 0 | FE41: 0 | FF41: 0 | FG41: 0 | FH41: 0 | FI41: 0 | FJ41: 0 | FK41: 0 | FL41: 0 | FM41: 0 | FN41: 0 | FO41: 0 | FP41: 0 | FQ41: 0 | FR41: 0 | FS41: 0 | FT41: 0 | FU41: 0 | FV41: 0 | FW41: 0 | FX41: 0 | FY41: 0 | FZ41: 0 | GA41: 0 | GB41: 0 | GC41: 0 | GD41: 0 | GE41: 0 | GF41: 0 | GG41: 0 | GH41: 0
A42: 5 | B42: TRANSFORMERS | C42: kiosk mounted ; < = 22 kv ; > 60 kva and < = 600 kva ; multiple phase | D42: 23.71771437 | E42: 38.92861218 | F42: 6.23927978 | G42: 2 | H42: 52 | I42: 63 | J42: 65 | K42: 86 | L42: 53 | M42: 50 | N42: 47 | O42: 45 | P42: 52 | Q42: 36 | R42: 32 | S42: 35 | T42: 34 | U42: 33 | V42: 32 | W42: 30 | X42: 43 | Y42: 34 | Z42: 32 | AA42: 30 | AB42: 50 | AC42: 28 | AD42: 24 | AE42: 23 | AF42: 21 | AG42: 18 | AH42: 19 | AI42: 11 | AJ42: 20 | AK42: 18 | AL42: 15 | AM42: 10 | AN42: 12 | AO42: 6 | AP42: 8 | AQ42: 5 | AR42: 3 | AS42: 2 | AT42: 6 | AU42: 3 | AV42: 0 | AW42: 0 | AX42: 0 | AY42: 0 | AZ42: 2 | BA42: 0 | BB42: 1 | BC42: 0 | BD42: 0 | BE42: 5 | BF42: 0 | BG42: 0 | BH42: 1 | BI42: 2 | BJ42: 0 | BK42: 0 | BL42: 0 | BM42: 0 | BN42: 0 | BO42: 0 | BP42: 0 | BQ42: 0 | BR42: 0 | BS42: 0 | BT42: 0 | BU42: 0 | BV42: 0 | BW42: 0 | BX42: 0 | BY42: 0 | BZ42: 0 | CA42: 0 | CB42: 0 | CC42: 0 | CD42: 0 | CE42: 0 | CF42: 0 | CG42: 0 | CH42: 0 | CI42: 0 | CJ42: 0 | CK42: 0 | CL42: 0 | CM42: 0 | CN42: 0 | CO42: 0 | CP42: 0 | CQ42: 0 | CR42: 0 | CS42: 0 | CT42: 0 | CV42: 1233.321147 | CW42: 1494.216006 | CX42: 1541.651434 | CY42: 2039.723436 | CZ42: 1257.038862 | DA42: 1185.885719 | DB42: 1114.732576 | DC42: 1067.297147 | DD42: 1233.321147 | DE42: 853.8377175 | DF42: 758.96686 | DG42: 830.1200031 | DH42: 806.4022887 | DI42: 782.6845743 | DJ42: 758.96686 | DK42: 711.5314312 | DL42: 1019.861718 | DM42: 806.4022887 | DN42: 758.96686 | DO42: 711.5314312 | DP42: 1185.885719 | DQ42: 664.0960025 | DR42: 569.225145 | DS42: 545.5074306 | DT42: 498.0720019 | DU42: 426.9188587 | DV42: 450.6365731 | DW42: 260.8948581 | DX42: 474.3542875 | DY42: 426.9188587 | DZ42: 355.7657156 | EA42: 237.1771437 | EB42: 284.6125725 | EC42: 142.3062862 | ED42: 189.741715 | EE42: 118.5885719 | EF42: 71.15314312 | EG42: 47.43542875 | EH42: 142.3062862 | EI42: 71.15314312 | EJ42: 0 | EK42: 0 | EL42: 0 | EM42: 0 | EN42: 47.43542875 | EO42: 0 | EP42: 23.71771437 | EQ42: 0 | ER42: 0 | ES42: 118.5885719 | ET42: 0 | EU42: 0 | EV42: 23.71771437 | EW42: 47.43542875 | EX42: 0 | EY42: 0 | EZ42: 0 | FA42: 0 | FB42: 0 | FC42: 0 | FD42: 0 | FE42: 0 | FF42: 0 | FG42: 0 | FH42: 0 | FI42: 0 | FJ42: 0 | FK42: 0 | FL42: 0 | FM42: 0 | FN42: 0 | FO42: 0 | FP42: 0 | FQ42: 0 | FR42: 0 | FS42: 0 | FT42: 0 | FU42: 0 | FV42: 0 | FW42: 0 | FX42: 0 | FY42: 0 | FZ42: 0 | GA42: 0 | GB42: 0 | GC42: 0 | GD42: 0 | GE42: 0 | GF42: 0 | GG42: 0 | GH42: 0
A43: 5 | B43: TRANSFORMERS | C43: kiosk mounted ; < = 22 kv ; > 600 kva ; multiple phase | D43: 21.42221259 | E43: 46.45724784 | F43: 6.815955387 | G43: 2 | H43: 25 | I43: 16 | J43: 24 | K43: 18 | L43: 21 | M43: 20 | N43: 36 | O43: 30 | P43: 24 | Q43: 23 | R43: 25 | S43: 28 | T43: 30 | U43: 24 | V43: 16 | W43: 11 | X43: 15 | Y43: 16 | Z43: 11 | AA43: 12 | AB43: 13 | AC43: 7 | AD43: 10 | AE43: 8 | AF43: 3 | AG43: 1 | AH43: 5 | AI43: 2 | AJ43: 1 | AK43: 3 | AL43: 3 | AM43: 1 | AN43: 0 | AO43: 1 | AP43: 0 | AQ43: 0 | AR43: 1 | AS43: 2 | AT43: 0 | AU43: 3 | AV43: 0 | AW43: 0 | AX43: 0 | AY43: 0 | AZ43: 0 | BA43: 0 | BB43: 0 | BC43: 0 | BD43: 0 | BE43: 2 | BF43: 0 | BG43: 0 | BH43: 0 | BI43: 0 | BJ43: 0 | BK43: 0 | BL43: 0 | BM43: 0 | BN43: 0 | BO43: 0 | BP43: 0 | BQ43: 0 | BR43: 0 | BS43: 0 | BT43: 0 | BU43: 0 | BV43: 0 | BW43: 0 | BX43: 0 | BY43: 0 | BZ43: 0 | CA43: 0 | CB43: 0 | CC43: 0 | CD43: 0 | CE43: 0 | CF43: 0 | CG43: 0 | CH43: 0 | CI43: 0 | CJ43: 0 | CK43: 0 | CL43: 0 | CM43: 0 | CN43: 0 | CO43: 0 | CP43: 0 | CQ43: 0 | CR43: 0 | CS43: 0 | CT43: 0 | CV43: 535.5553148 | CW43: 342.7554015 | CX43: 514.1331022 | CY43: 385.5998267 | CZ43: 449.8664645 | DA43: 428.4442519 | DB43: 771.1996534 | DC43: 642.6663778 | DD43: 514.1331022 | DE43: 492.7108897 | DF43: 535.5553148 | DG43: 599.8219526 | DH43: 642.6663778 | DI43: 514.1331022 | DJ43: 342.7554015 | DK43: 235.6443385 | DL43: 321.3331889 | DM43: 342.7554015 | DN43: 235.6443385 | DO43: 257.0665511 | DP43: 278.4887637 | DQ43: 149.9554882 | DR43: 214.2221259 | DS43: 171.3777007 | DT43: 64.26663778 | DU43: 21.42221259 | DV43: 107.111063 | DW43: 42.84442519 | DX43: 21.42221259 | DY43: 64.26663778 | DZ43: 64.26663778 | EA43: 21.42221259 | EB43: 0 | EC43: 21.42221259 | ED43: 0 | EE43: 0 | EF43: 21.42221259 | EG43: 42.84442519 | EH43: 0 | EI43: 64.26663778 | EJ43: 0 | EK43: 0 | EL43: 0 | EM43: 0 | EN43: 0 | EO43: 0 | EP43: 0 | EQ43: 0 | ER43: 0 | ES43: 42.84442519 | ET43: 0 | EU43: 0 | EV43: 0 | EW43: 0 | EX43: 0 | EY43: 0 | EZ43: 0 | FA43: 0 | FB43: 0 | FC43: 0 | FD43: 0 | FE43: 0 | FF43: 0 | FG43: 0 | FH43: 0 | FI43: 0 | FJ43: 0 | FK43: 0 | FL43: 0 | FM43: 0 | FN43: 0 | FO43: 0 | FP43: 0 | FQ43: 0 | FR43: 0 | FS43: 0 | FT43: 0 | FU43: 0 | FV43: 0 | FW43: 0 | FX43: 0 | FY43: 0 | FZ43: 0 | GA43: 0 | GB43: 0 | GC43: 0 | GD43: 0 | GE43: 0 | GF43: 0 | GG43: 0 | GH43: 0
A44: 5 | B44: TRANSFORMERS | C44: pole mounted ; < = 22 kv ; < = 60 kva ; multiple phase | D44: 21.66571825 | E44: 47.98335926 | F44: 6.927002184 | G44: 2 | H44: 2 | I44: 5 | J44: 4 | K44: 2 | L44: 6 | M44: 1 | N44: 5 | O44: 3 | P44: 3 | Q44: 2 | R44: 3 | S44: 1 | T44: 2 | U44: 2 | V44: 3 | W44: 4 | X44: 3 | Y44: 2 | Z44: 6 | AA44: 9 | AB44: 4 | AC44: 9 | AD44: 6 | AE44: 8 | AF44: 3 | AG44: 4 | AH44: 6 | AI44: 3 | AJ44: 2 | AK44: 9 | AL44: 6 | AM44: 3 | AN44: 8 | AO44: 3 | AP44: 8 | AQ44: 4 | AR44: 8 | AS44: 4 | AT44: 3 | AU44: 6 | AV44: 3 | AW44: 1 | AX44: 0 | AY44: 1 | AZ44: 2 | BA44: 0 | BB44: 1 | BC44: 0 | BD44: 2 | BE44: 10 | BF44: 0 | BG44: 0 | BH44: 0 | BI44: 1 | BJ44: 1 | BK44: 0 | BL44: 0 | BM44: 2 | BN44: 0 | BO44: 0 | BP44: 1 | BQ44: 1 | BR44: 0 | BS44: 0 | BT44: 0 | BU44: 0 | BV44: 0 | BW44: 0 | BX44: 0 | BY44: 0 | BZ44: 0 | CA44: 0 | CB44: 0 | CC44: 0 | CD44: 0 | CE44: 0 | CF44: 0 | CG44: 0 | CH44: 0 | CI44: 0 | CJ44: 0 | CK44: 0 | CL44: 0 | CM44: 0 | CN44: 0 | CO44: 0 | CP44: 0 | CQ44: 0 | CR44: 0 | CS44: 0 | CT44: 0 | CV44: 43.3314365 | CW44: 108.3285912 | CX44: 86.66287299 | CY44: 43.3314365 | CZ44: 129.9943095 | DA44: 21.66571825 | DB44: 108.3285912 | DC44: 64.99715474 | DD44: 64.99715474 | DE44: 43.3314365 | DF44: 64.99715474 | DG44: 21.66571825 | DH44: 43.3314365 | DI44: 43.3314365 | DJ44: 64.99715474 | DK44: 86.66287299 | DL44: 64.99715474 | DM44: 43.3314365 | DN44: 129.9943095 | DO44: 194.9914642 | DP44: 86.66287299 | DQ44: 194.9914642 | DR44: 129.9943095 | DS44: 173.325746 | DT44: 64.99715474 | DU44: 86.66287299 | DV44: 129.9943095 | DW44: 64.99715474 | DX44: 43.3314365 | DY44: 194.9914642 | DZ44: 129.9943095 | EA44: 64.99715474 | EB44: 173.325746 | EC44: 64.99715474 | ED44: 173.325746 | EE44: 86.66287299 | EF44: 173.325746 | EG44: 86.66287299 | EH44: 64.99715474 | EI44: 129.9943095 | EJ44: 64.99715474 | EK44: 21.66571825 | EL44: 0 | EM44: 21.66571825 | EN44: 43.3314365 | EO44: 0 | EP44: 21.66571825 | EQ44: 0 | ER44: 43.3314365 | ES44: 216.6571825 | ET44: 0 | EU44: 0 | EV44: 0 | EW44: 21.66571825 | EX44: 21.66571825 | EY44: 0 | EZ44: 0 | FA44: 43.3314365 | FB44: 0 | FC44: 0 | FD44: 21.66571825 | FE44: 21.66571825 | FF44: 0 | FG44: 0 | FH44: 0 | FI44: 0 | FJ44: 0 | FK44: 0 | FL44: 0 | FM44: 0 | FN44: 0 | FO44: 0 | FP44: 0 | FQ44: 0 | FR44: 0 | FS44: 0 | FT44: 0 | FU44: 0 | FV44: 0 | FW44: 0 | FX44: 0 | FY44: 0 | FZ44: 0 | GA44: 0 | GB44: 0 | GC44: 0 | GD44: 0 | GE44: 0 | GF44: 0 | GG44: 0 | GH44: 0
A45: 5 | B45: TRANSFORMERS | C45: pole mounted ; < = 22 kv ; < = 60 kva ; single phase | D45: 5.905835844 | E45: 54.65423364 | F45: 7.392850171 | G45: 2 | H45: 11 | I45: 12 | J45: 17 | K45: 10 | L45: 17 | M45: 13 | N45: 25 | O45: 12 | P45: 22 | Q45: 19 | R45: 16 | S45: 5 | T45: 13 | U45: 9 | V45: 14 | W45: 5 | X45: 15 | Y45: 11 | Z45: 15 | AA45: 8 | AB45: 14 | AC45: 6 | AD45: 25 | AE45: 8 | AF45: 8 | AG45: 16 | AH45: 22 | AI45: 22 | AJ45: 25 | AK45: 24 | AL45: 32 | AM45: 24 | AN45: 37 | AO45: 33 | AP45: 55 | AQ45: 48 | AR45: 47 | AS45: 26 | AT45: 22 | AU45: 22 | AV45: 25 | AW45: 19 | AX45: 20 | AY45: 12 | AZ45: 5 | BA45: 8 | BB45: 8 | BC45: 9 | BD45: 7 | BE45: 17 | BF45: 2 | BG45: 1 | BH45: 4 | BI45: 2 | BJ45: 3 | BK45: 0 | BL45: 4 | BM45: 2 | BN45: 0 | BO45: 1 | BP45: 1 | BQ45: 0 | BR45: 0 | BS45: 0 | BT45: 0 | BU45: 0 | BV45: 0 | BW45: 0 | BX45: 0 | BY45: 0 | BZ45: 0 | CA45: 0 | CB45: 0 | CC45: 0 | CD45: 0 | CE45: 0 | CF45: 0 | CG45: 0 | CH45: 0 | CI45: 0 | CJ45: 0 | CK45: 0 | CL45: 0 | CM45: 0 | CN45: 0 | CO45: 0 | CP45: 0 | CQ45: 0 | CR45: 0 | CS45: 0 | CT45: 0 | CV45: 64.96419428 | CW45: 70.87003013 | CX45: 100.3992093 | CY45: 59.05835844 | CZ45: 100.3992093 | DA45: 76.77586597 | DB45: 147.6458961 | DC45: 70.87003013 | DD45: 129.9283886 | DE45: 112.210881 | DF45: 94.4933735 | DG45: 29.52917922 | DH45: 76.77586597 | DI45: 53.1525226 | DJ45: 82.68170182 | DK45: 29.52917922 | DL45: 88.58753766 | DM45: 64.96419428 | DN45: 88.58753766 | DO45: 47.24668675 | DP45: 82.68170182 | DQ45: 35.43501506 | DR45: 147.6458961 | DS45: 47.24668675 | DT45: 47.24668675 | DU45: 94.4933735 | DV45: 129.9283886 | DW45: 129.9283886 | DX45: 147.6458961 | DY45: 141.7400603 | DZ45: 188.986747 | EA45: 141.7400603 | EB45: 218.5159262 | EC45: 194.8925829 | ED45: 324.8209714 | EE45: 283.4801205 | EF45: 277.5742847 | EG45: 153.5517319 | EH45: 129.9283886 | EI45: 129.9283886 | EJ45: 147.6458961 | EK45: 112.210881 | EL45: 118.1167169 | EM45: 70.87003013 | EN45: 29.52917922 | EO45: 47.24668675 | EP45: 47.24668675 | EQ45: 53.1525226 | ER45: 41.34085091 | ES45: 100.3992093 | ET45: 11.81167169 | EU45: 5.905835844 | EV45: 23.62334338 | EW45: 11.81167169 | EX45: 17.71750753 | EY45: 0 | EZ45: 23.62334338 | FA45: 11.81167169 | FB45: 0 | FC45: 5.905835844 | FD45: 5.905835844 | FE45: 0 | FF45: 0 | FG45: 0 | FH45: 0 | FI45: 0 | FJ45: 0 | FK45: 0 | FL45: 0 | FM45: 0 | FN45: 0 | FO45: 0 | FP45: 0 | FQ45: 0 | FR45: 0 | FS45: 0 | FT45: 0 | FU45: 0 | FV45: 0 | FW45: 0 | FX45: 0 | FY45: 0 | FZ45: 0 | GA45: 0 | GB45: 0 | GC45: 0 | GD45: 0 | GE45: 0 | GF45: 0 | GG45: 0 | GH45: 0
A46: 5 | B46: TRANSFORMERS | C46: pole mounted ; < = 22 kv ; > 60 kva and < = 600 kva ; multiple phase | D46: 20.35034151 | E46: 55.50765219 | F46: 7.450345777 | G46: 2 | H46: 92 | I46: 95 | J46: 79 | K46: 79 | L46: 92 | M46: 121 | N46: 108 | O46: 90 | P46: 117 | Q46: 129 | R46: 130 | S46: 99 | T46: 84 | U46: 90 | V46: 94 | W46: 75 | X46: 60 | Y46: 62 | Z46: 62 | AA46: 41 | AB46: 59 | AC46: 54 | AD46: 41 | AE46: 31 | AF46: 21 | AG46: 26 | AH46: 22 | AI46: 42 | AJ46: 25 | AK46: 52 | AL46: 55 | AM46: 56 | AN46: 53 | AO46: 55 | AP46: 46 | AQ46: 32 | AR46: 34 | AS46: 31 | AT46: 16 | AU46: 21 | AV46: 17 | AW46: 44 | AX46: 22 | AY46: 24 | AZ46: 23 | BA46: 23 | BB46: 25 | BC46: 21 | BD46: 17 | BE46: 53 | BF46: 12 | BG46: 23 | BH46: 17 | BI46: 12 | BJ46: 13 | BK46: 2 | BL46: 4 | BM46: 5 | BN46: 7 | BO46: 0 | BP46: 4 | BQ46: 4 | BR46: 0 | BS46: 2 | BT46: 1 | BU46: 0 | BV46: 0 | BW46: 0 | BX46: 1 | BY46: 0 | BZ46: 0 | CA46: 0 | CB46: 0 | CC46: 0 | CD46: 0 | CE46: 0 | CF46: 0 | CG46: 0 | CH46: 0 | CI46: 0 | CJ46: 0 | CK46: 0 | CL46: 0 | CM46: 1 | CN46: 0 | CO46: 0 | CP46: 0 | CQ46: 0 | CR46: 0 | CS46: 0 | CT46: 0 | CV46: 1872.231419 | CW46: 1933.282443 | CX46: 1607.676979 | CY46: 1607.676979 | CZ46: 1872.231419 | DA46: 2462.391322 | DB46: 2197.836883 | DC46: 1831.530736 | DD46: 2380.989956 | DE46: 2625.194054 | DF46: 2645.544396 | DG46: 2014.683809 | DH46: 1709.428686 | DI46: 1831.530736 | DJ46: 1912.932102 | DK46: 1526.275613 | DL46: 1221.02049 | DM46: 1261.721173 | DN46: 1261.721173 | DO46: 834.3640017 | DP46: 1200.670149 | DQ46: 1098.918441 | DR46: 834.3640017 | DS46: 630.8605867 | DT46: 427.3571716 | DU46: 529.1088791 | DV46: 447.7075131 | DW46: 854.7143432 | DX46: 508.7585376 | DY46: 1058.217758 | DZ46: 1119.268783 | EA46: 1139.619124 | EB46: 1078.5681 | EC46: 1119.268783 | ED46: 936.1157093 | EE46: 651.2109282 | EF46: 691.9116112 | EG46: 630.8605867 | EH46: 325.6054641 | EI46: 427.3571716 | EJ46: 345.9558056 | EK46: 895.4150263 | EL46: 447.7075131 | EM46: 488.4081961 | EN46: 468.0578546 | EO46: 468.0578546 | EP46: 508.7585376 | EQ46: 427.3571716 | ER46: 345.9558056 | ES46: 1078.5681 | ET46: 244.2040981 | EU46: 468.0578546 | EV46: 345.9558056 | EW46: 244.2040981 | EX46: 264.5544396 | EY46: 40.70068301 | EZ46: 81.40136602 | FA46: 101.7517075 | FB46: 142.4523905 | FC46: 0 | FD46: 81.40136602 | FE46: 81.40136602 | FF46: 0 | FG46: 40.70068301 | FH46: 20.35034151 | FI46: 0 | FJ46: 0 | FK46: 0 | FL46: 20.35034151 | FM46: 0 | FN46: 0 | FO46: 0 | FP46: 0 | FQ46: 0 | FR46: 0 | FS46: 0 | FT46: 0 | FU46: 0 | FV46: 0 | FW46: 0 | FX46: 0 | FY46: 0 | FZ46: 0 | GA46: 20.35034151 | GB46: 0 | GC46: 0 | GD46: 0 | GE46: 0 | GF46: 0 | GG46: 0 | GH46: 0
A47: 5 | B47: TRANSFORMERS | C47: pole mounted ; < = 22 kv ; > 60 kva and < = 600 kva ; single phase | D47: 15.46187761 | E47: 46.46744288 | F47: 7.450345777 | G47: 2 | H47: 2 | I47: 0 | J47: 0 | K47: 1 | L47: 1 | M47: 1 | N47: 5 | O47: 3 | P47: 1 | Q47: 2 | R47: 0 | S47: 2 | T47: 2 | U47: 2 | V47: 2 | W47: 2 | X47: 1 | Y47: 2 | Z47: 1 | AA47: 1 | AB47: 2 | AC47: 0 | AD47: 0 | AE47: 1 | AF47: 0 | AG47: 0 | AH47: 0 | AI47: 1 | AJ47: 0 | AK47: 0 | AL47: 0 | AM47: 0 | AN47: 0 | AO47: 0 | AP47: 0 | AQ47: 0 | AR47: 0 | AS47: 0 | AT47: 0 | AU47: 0 | AV47: 0 | AW47: 0 | AX47: 0 | AY47: 0 | AZ47: 0 | BA47: 0 | BB47: 0 | BC47: 0 | BD47: 0 | BE47: 1 | BF47: 0 | BG47: 0 | BH47: 0 | BI47: 0 | BJ47: 0 | BK47: 0 | BL47: 0 | BM47: 0 | BN47: 0 | BO47: 0 | BP47: 0 | BQ47: 0 | BR47: 0 | BS47: 0 | BT47: 0 | BU47: 0 | BV47: 0 | BW47: 0 | BX47: 0 | BY47: 0 | BZ47: 0 | CA47: 0 | CB47: 0 | CC47: 0 | CD47: 0 | CE47: 0 | CF47: 0 | CG47: 0 | CH47: 0 | CI47: 0 | CJ47: 0 | CK47: 0 | CL47: 0 | CM47: 0 | CN47: 0 | CO47: 0 | CP47: 0 | CQ47: 0 | CR47: 0 | CS47: 0 | CT47: 0 | CV47: 30.92375521 | CW47: 0 | CX47: 0 | CY47: 15.46187761 | CZ47: 15.46187761 | DA47: 15.46187761 | DB47: 77.30938804 | DC47: 46.38563282 | DD47: 15.46187761 | DE47: 30.92375521 | DF47: 0 | DG47: 30.92375521 | DH47: 30.92375521 | DI47: 30.92375521 | DJ47: 30.92375521 | DK47: 30.92375521 | DL47: 15.46187761 | DM47: 30.92375521 | DN47: 15.46187761 | DO47: 15.46187761 | DP47: 30.92375521 | DQ47: 0 | DR47: 0 | DS47: 15.46187761 | DT47: 0 | DU47: 0 | DV47: 0 | DW47: 15.46187761 | DX47: 0 | DY47: 0 | DZ47: 0 | EA47: 0 | EB47: 0 | EC47: 0 | ED47: 0 | EE47: 0 | EF47: 0 | EG47: 0 | EH47: 0 | EI47: 0 | EJ47: 0 | EK47: 0 | EL47: 0 | EM47: 0 | EN47: 0 | EO47: 0 | EP47: 0 | EQ47: 0 | ER47: 0 | ES47: 15.46187761 | ET47: 0 | EU47: 0 | EV47: 0 | EW47: 0 | EX47: 0 | EY47: 0 | EZ47: 0 | FA47: 0 | FB47: 0 | FC47: 0 | FD47: 0 | FE47: 0 | FF47: 0 | FG47: 0 | FH47: 0 | FI47: 0 | FJ47: 0 | FK47: 0 | FL47: 0 | FM47: 0 | FN47: 0 | FO47: 0 | FP47: 0 | FQ47: 0 | FR47: 0 | FS47: 0 | FT47: 0 | FU47: 0 | FV47: 0 | FW47: 0 | FX47: 0 | FY47: 0 | FZ47: 0 | GA47: 0 | GB47: 0 | GC47: 0 | GD47: 0 | GE47: 0 | GF47: 0 | GG47: 0 | GH47: 0
A48: 5 | B48: TRANSFORMERS | C48: pole mounted ; < = 22 kv ; > 600 kva ; multiple phase | D48: 20.35034151 | E48: 55.50765219 | F48: 7.450345777 | G48: 2 | H48: 0 | I48: 0 | J48: 0 | K48: 0 | L48: 1 | M48: 0 | N48: 0 | O48: 0 | P48: 0 | Q48: 0 | R48: 0 | S48: 0 | T48: 0 | U48: 0 | V48: 0 | W48: 0 | X48: 0 | Y48: 0 | Z48: 0 | AA48: 0 | AB48: 0 | AC48: 0 | AD48: 0 | AE48: 0 | AF48: 0 | AG48: 0 | AH48: 0 | AI48: 0 | AJ48: 0 | AK48: 0 | AL48: 0 | AM48: 0 | AN48: 0 | AO48: 0 | AP48: 0 | AQ48: 0 | AR48: 0 | AS48: 0 | AT48: 0 | AU48: 0 | AV48: 0 | AW48: 0 | AX48: 0 | AY48: 0 | AZ48: 0 | BA48: 0 | BB48: 0 | BC48: 0 | BD48: 0 | BE48: 0 | BF48: 0 | BG48: 0 | BH48: 0 | BI48: 1 | BJ48: 0 | BK48: 0 | BL48: 0 | BM48: 0 | BN48: 0 | BO48: 0 | BP48: 0 | BQ48: 0 | BR48: 0 | BS48: 0 | BT48: 0 | BU48: 0 | BV48: 0 | BW48: 0 | BX48: 0 | BY48: 0 | BZ48: 0 | CA48: 0 | CB48: 0 | CC48: 0 | CD48: 0 | CE48: 0 | CF48: 0 | CG48: 0 | CH48: 0 | CI48: 0 | CJ48: 0 | CK48: 0 | CL48: 0 | CM48: 0 | CN48: 0 | CO48: 0 | CP48: 0 | CQ48: 0 | CR48: 0 | CS48: 0 | CT48: 0 | CV48: 0 | CW48: 0 | CX48: 0 | CY48: 0 | CZ48: 20.35034151 | DA48: 0 | DB48: 0 | DC48: 0 | DD48: 0 | DE48: 0 | DF48: 0 | DG48: 0 | DH48: 0 | DI48: 0 | DJ48: 0 | DK48: 0 | DL48: 0 | DM48: 0 | DN48: 0 | DO48: 0 | DP48: 0 | DQ48: 0 | DR48: 0 | DS48: 0 | DT48: 0 | DU48: 0 | DV48: 0 | DW48: 0 | DX48: 0 | DY48: 0 | DZ48: 0 | EA48: 0 | EB48: 0 | EC48: 0 | ED48: 0 | EE48: 0 | EF48: 0 | EG48: 0 | EH48: 0 | EI48: 0 | EJ48: 0 | EK48: 0 | EL48: 0 | EM48: 0 | EN48: 0 | EO48: 0 | EP48: 0 | EQ48: 0 | ER48: 0 | ES48: 0 | ET48: 0 | EU48: 0 | EV48: 0 | EW48: 20.35034151 | EX48: 0 | EY48: 0 | EZ48: 0 | FA48: 0 | FB48: 0 | FC48: 0 | FD48: 0 | FE48: 0 | FF48: 0 | FG48: 0 | FH48: 0 | FI48: 0 | FJ48: 0 | FK48: 0 | FL48: 0 | FM48: 0 | FN48: 0 | FO48: 0 | FP48: 0 | FQ48: 0 | FR48: 0 | FS48: 0 | FT48: 0 | FU48: 0 | FV48: 0 | FW48: 0 | FX48: 0 | FY48: 0 | FZ48: 0 | GA48: 0 | GB48: 0 | GC48: 0 | GD48: 0 | GE48: 0 | GF48: 0 | GG48: 0 | GH48: 0
A49: 6 | B49: UNDERGROUND CABLES | C49: ˂ = 1 kv | D49: 2741.019663 | E49: 76.59410235 | F49: 8.751805662 | G49: 2 | H49: 38.69064 | I49: 52.36795 | J49: 63.5135 | K49: 59.976546 | L49: 38.030833 | M49: 37.942276 | N49: 28.165173 | O49: 30.47219 | P49: 40.514351 | Q49: 32.069899 | R49: 27.064857 | S49: 24.488386 | T49: 36.203973 | U49: 33.197929 | V49: 37.722935 | W49: 40.801919 | X49: 51.048027 | Y49: 52.036489 | Z49: 35.005749 | AA49: 54.939673 | AB49: 70.289013 | AC49: 45.226486 | AD49: 30.920176 | AE49: 27.172755 | AF49: 38.726262 | AG49: 32.671219 | AH49: 35.85394 | AI49: 26.540222 | AJ49: 39.12388 | AK49: 26.094494 | AL49: 17.448537 | AM49: 18.710748 | AN49: 9.273005 | AO49: 9.183564 | AP49: 8.830022 | AQ49: 7.129998 | AR49: 3.634343 | AS49: 5.863471 | AT49: 3.37657 | AU49: 8.768677 | AV49: 5.093824 | AW49: 1.507318 | AX49: 4.454453 | AY49: 5.936371 | AZ49: 6.432545 | BA49: 8.91107 | BB49: 0.916833 | BC49: 1.562371 | BD49: 0.3466 | BE49: 1.088613 | BF49: 4.037067 | BG49: 0.03581 | BH49: 0.350466 | BI49: 0.018084 | BJ49: 0.16845 | BK49: 0.177255 | BL49: 0.07567 | BM49: 0.033097 | BN49: 0.07755 | BO49: 0.09472 | BP49: 0.110075 | BQ49: 0.592009 | BR49: 0.03924 | BS49: 0.309608 | BT49: 0.14783 | BU49: 0 | BV49: 0 | BW49: 0 | BX49: 0.1192 | BY49: 0.08424 | BZ49: 0.152024 | CA49: 0.845332 | CB49: 0.14656 | CC49: 0.08176 | CD49: 0.00047 | CE49: 0 | CF49: 0.08976 | CG49: 0 | CH49: 0 | CI49: 0 | CJ49: 0 | CK49: 0 | CL49: 0.02801 | CM49: 0 | CN49: 0 | CO49: 0 | CP49: 0 | CQ49: 0.08685 | CR49: 0 | CS49: 0 | CT49: 0.257833 | CV49: 106051.805 | CW49: 143541.5807 | CX49: 174091.7524 | CY49: 164396.8919 | CZ49: 104243.2611 | DA49: 104000.5246 | DB49: 77201.29301 | DC49: 83524.87197 | DD49: 111050.6327 | DE49: 87904.22376 | DF49: 74185.30522 | DG49: 67123.14755 | DH49: 99235.80188 | DI49: 90996.17617 | DJ49: 103399.3066 | DK49: 111838.8623 | DL49: 139923.6458 | DM49: 142633.0396 | DN49: 95951.44634 | DO49: 150590.724 | DP49: 192663.5667 | DQ49: 123966.6874 | DR49: 84752.81041 | DS49: 74481.05576 | DT49: 106149.4456 | DU49: 89552.4537 | DV49: 98276.35455 | DW49: 72747.27037 | DX49: 107239.3244 | DY49: 71525.52116 | DZ49: 47826.78301 | EA49: 51286.52818 | EB49: 25417.48904 | EC49: 25172.3295 | ED49: 24203.26393 | EE49: 19543.46472 | EF49: 9961.805626 | EG49: 16071.88931 | EH49: 9255.244764 | EI49: 24035.11608 | EJ49: 13962.27175 | EK49: 4131.588277 | EL49: 12209.74326 | EM49: 16271.70964 | EN49: 17631.73233 | EO49: 24425.41809 | EP49: 2513.057281 | EQ49: 4282.489632 | ER49: 950.0374153 | ES49: 2983.909639 | ET49: 11065.68003 | EU49: 98.15591414 | EV49: 960.6341973 | EW49: 49.56859959 | EX49: 461.7247623 | EY49: 485.8594404 | EZ49: 207.4129579 | FA49: 90.7195278 | FB49: 212.5660749 | FC49: 259.6293825 | FD49: 301.7177394 | FE49: 1622.70831 | FF49: 107.5576116 | FG49: 848.6416159 | FH49: 405.2049368 | FI49: 0 | FJ49: 0 | FK49: 0 | FL49: 326.7295439 | FM49: 230.9034964 | FN49: 416.7007733 | FO49: 2317.071634 | FP49: 401.7238419 | FQ49: 224.1057677 | FR49: 1.288279242 | FS49: 0 | FT49: 246.033925 | FU49: 0 | FV49: 0 | FW49: 0 | FX49: 0 | FY49: 0 | FZ49: 76.77596077 | GA49: 0 | GB49: 0 | GC49: 0 | GD49: 0 | GE49: 238.0575578 | GF49: 0 | GG49: 0 | GH49: 706.7253228
A50: 6 | B50: UNDERGROUND CABLES | C50: > 1 kv & < = 11 kv | D50: 5165.584984 | E50: 83.7059784 | F50: 9.149097136 | G50: 2 | H50: 0.80771 | I50: 11.62226 | J50: 4.2409 | K50: 4.133512 | L50: 3.21686 | M50: 2.421408 | N50: 4.026422 | O50: 1.72796 | P50: 2.708335 | Q50: 2.794112 | R50: 5.448904 | S50: 2.797846 | T50: 2.341737 | U50: 3.860445 | V50: 1.44907 | W50: 1.945712 | X50: 0.901668 | Y50: 2.657218 | Z50: 2.179995 | AA50: 1.73986 | AB50: 0.666666 | AC50: 1.121598 | AD50: 0.148504 | AE50: 2.236137 | AF50: 0.31498 | AG50: 1.16204 | AH50: 0.62169 | AI50: 0.556353 | AJ50: 1.06825 | AK50: 0.21438 | AL50: 0.89354 | AM50: 0.489217 | AN50: 0.01193 | AO50: 0.305788 | AP50: 0.345382 | AQ50: 0.30154 | AR50: 0.611585 | AS50: 0.255479 | AT50: 0.30538 | AU50: 0.291733 | AV50: 0.24534 | AW50: 0.568366 | AX50: 0.26987 | AY50: 1.018556 | AZ50: 1.61551 | BA50: 0.5663 | BB50: 0.39245 | BC50: 1.156705 | BD50: 0.131 | BE50: 0.990501 | BF50: 1.535867 | BG50: 0.372835 | BH50: 0.478253 | BI50: 0.171502 | BJ50: 1.936425 | BK50: 0.588877 | BL50: 1.053609 | BM50: 0.033405 | BN50: 0.25858 | BO50: 0.06983 | BP50: 0.05774 | BQ50: 0.373462 | BR50: 0 | BS50: 0.329464 | BT50: 0.68177 | BU50: 0.32135 | BV50: 0.36096 | BW50: 0 | BX50: 0 | BY50: 0.23236 | BZ50: 0.519816 | CA50: 1.593085 | CB50: 0 | CC50: 0.04384 | CD50: 0 | CE50: 0 | CF50: 0.249525 | CG50: 0 | CH50: 0 | CI50: 0 | CJ50: 0 | CK50: 0 | CL50: 0 | CM50: 0 | CN50: 0 | CO50: 0 | CP50: 0 | CQ50: 0 | CR50: 0 | CS50: 0 | CT50: 0 | CV50: 4172.294648 | CW50: 60035.77174 | CX50: 21906.72936 | CY50: 21352.00752 | CZ50: 16616.96371 | DA50: 12507.98881 | DB50: 20798.82502 | DC50: 8925.92423 | DD50: 13990.13461 | DE50: 14433.22299 | DF50: 28146.77668 | DG50: 14452.51129 | DH50: 12096.44148 | DI50: 19941.45673 | DJ50: 7485.294233 | DK50: 10050.74069 | DL50: 4657.642682 | DM50: 13726.0854 | DN50: 11260.94944 | DO50: 8987.394691 | DP50: 3443.719879 | DQ50: 5793.709787 | DR50: 767.1100325 | DS50: 11550.95571 | DT50: 1627.055958 | DU50: 6002.616375 | DV50: 3211.392529 | DW50: 2873.888703 | DX50: 5518.13616 | DY50: 1107.398109 | DZ50: 4615.656807 | EA50: 2527.091989 | EB50: 61.62542886 | EC50: 1579.573901 | ED50: 1784.100073 | EE50: 1557.630496 | EF50: 3159.194293 | EG50: 1319.698486 | EH50: 1577.466343 | EI50: 1506.971604 | EJ50: 1267.32462 | EK50: 2935.942875 | EL50: 1394.03642 | EM50: 5261.437579 | EN50: 8345.054198 | EO50: 2925.270777 | EP50: 2027.233827 | EQ50: 5975.057979 | ER50: 676.691633 | ES50: 5116.517093 | ET50: 7933.651513 | EU50: 1925.910878 | EV50: 2470.456516 | EW50: 885.908156 | EX50: 10002.7679 | EY50: 3041.894189 | EZ50: 5442.50683 | FA50: 172.5563664 | FB50: 1335.716965 | FC50: 360.7127995 | FD50: 298.260877 | FE50: 1929.149699 | FF50: 0 | FG50: 1701.874291 | FH50: 3521.740875 | FI50: 1659.960735 | FJ50: 1864.569556 | FK50: 0 | FL50: 0 | FM50: 1200.275327 | FN50: 2685.153724 | FO50: 8229.215955 | FP50: 0 | FQ50: 226.4592457 | FR50: 0 | FS50: 0 | FT50: 1288.942593 | FU50: 0 | FV50: 0 | FW50: 0 | FX50: 0 | FY50: 0 | FZ50: 0 | GA50: 0 | GB50: 0 | GC50: 0 | GD50: 0 | GE50: 0 | GF50: 0 | GG50: 0 | GH50: 0
A51: 6 | B51: UNDERGROUND CABLES | C51: > 11 kv & < = 22 kv | D51: 2039.006359 | E51: 86.9120585 | F51: 9.322663702 | G51: 2 | H51: 17.86379 | I51: 27.01325 | J51: 27.8427 | K51: 29.91841 | L51: 24.259833 | M51: 25.523853 | N51: 24.551851 | O51: 23.176593 | P51: 24.802072 | Q51: 17.117087 | R51: 17.898556 | S51: 21.643834 | T51: 27.717602 | U51: 15.540848 | V51: 20.294491 | W51: 14.524157 | X51: 23.739241 | Y51: 22.459083 | Z51: 25.520645 | AA51: 26.055297 | AB51: 34.995494 | AC51: 28.663245 | AD51: 18.043769 | AE51: 16.214332 | AF51: 12.156235 | AG51: 12.824206 | AH51: 12.559748 | AI51: 12.377743 | AJ51: 14.145828 | AK51: 9.028141 | AL51: 7.24506 | AM51: 10.051516 | AN51: 3.587848 | AO51: 4.046904 | AP51: 1.661189 | AQ51: 2.642185 | AR51: 3.162147 | AS51: 2.787276 | AT51: 2.693826 | AU51: 5.0455 | AV51: 1.917638 | AW51: 0.35602 | AX51: 2.249396 | AY51: 2.499003 | AZ51: 1.027132 | BA51: 2.864965 | BB51: 2.104906 | BC51: 0.382272 | BD51: 0.907615 | BE51: 1.2483 | BF51: 5.037688 | BG51: 0.522171 | BH51: 3.188666 | BI51: 3.32614 | BJ51: 0.17053 | BK51: 0.802413 | BL51: 0 | BM51: 2.97 | BN51: 1.82728 | BO51: 0.437521 | BP51: 0.02578 | BQ51: 0.08171 | BR51: 0 | BS51: 0 | BT51: 0 | BU51: 0 | BV51: 0 | BW51: 0 | BX51: 0 | BY51: 0 | BZ51: 0.17984 | CA51: 0 | CB51: 0.00939 | CC51: 0 | CD51: 0 | CE51: 0 | CF51: 0 | CG51: 0 | CH51: 0 | CI51: 0 | CJ51: 0 | CK51: 0 | CL51: 6.59592 | CM51: 0.5379 | CN51: 0 | CO51: 0 | CP51: 0 | CQ51: 0 | CR51: 0 | CS51: 0 | CT51: 0.65445 | CV51: 36424.3814 | CW51: 55080.18851 | CX51: 56771.44234 | CY51: 61003.82823 | CZ51: 49465.95374 | DA51: 52043.29856 | DB51: 50061.3803 | DC51: 47257.2205 | DD51: 50571.58251 | DE51: 34901.84923 | DF51: 36495.26949 | DG51: 44131.91515 | DH51: 56516.36672 | DI51: 31687.88789 | DJ51: 41380.59619 | DK51: 29614.84848 | DL51: 48404.46335 | DM51: 45794.21304 | DN51: 52036.75743 | DO51: 53126.91626 | DP51: 71356.03479 | DQ51: 58444.53881 | DR51: 36791.35972 | DS51: 33061.12605 | DT51: 24786.64046 | DU51: 26148.63758 | DV51: 25609.40603 | DW51: 25238.29668 | DX51: 28843.43324 | DY51: 18408.4369 | DZ51: 14772.72341 | EA51: 20495.10504 | EB51: 7315.644885 | EC51: 8251.662988 | ED51: 3387.174934 | EE51: 5387.432015 | EF51: 6447.63784 | EG51: 5683.273487 | EH51: 5492.728343 | EI51: 10287.80658 | EJ51: 3910.076075 | EK51: 725.9270438 | EL51: 4586.532747 | EM51: 5095.483007 | EN51: 2094.328679 | EO51: 5841.681852 | EP51: 4291.916718 | EQ51: 779.4550387 | ER51: 1850.632756 | ES51: 2545.291637 | ET51: 10271.87786 | EU51: 1064.709989 | EV51: 6501.710249 | EW51: 6782.020609 | EX51: 347.7117543 | EY51: 1636.125209 | EZ51: 0 | FA51: 6055.848885 | FB51: 3725.835539 | FC51: 892.108101 | FD51: 52.56558392 | FE51: 166.6072096 | FF51: 0 | FG51: 0 | FH51: 0 | FI51: 0 | FJ51: 0 | FK51: 0 | FL51: 0 | FM51: 0 | FN51: 366.6949035 | FO51: 0 | FP51: 19.14626971 | FQ51: 0 | FR51: 0 | FS51: 0 | FT51: 0 | FU51: 0 | FV51: 0 | FW51: 0 | FX51: 0 | FY51: 0 | FZ51: 13449.12282 | GA51: 1096.78152 | GB51: 0 | GC51: 0 | GD51: 0 | GE51: 0 | GF51: 0 | GG51: 0 | GH51: 1334.427711
A52: 6 | B52: UNDERGROUND CABLES | C52: > 33 kv & < = 66 kv | D52: 2039.006359 | E52: 86.9120585 | F52: 9.322663702 | G52: 2 | H52: 4.00644 | I52: 2.09914 | J52: 2.74149 | K52: 0.0325 | L52: 0 | M52: 0 | N52: 0 | O52: 0.2479 | P52: 0.51487 | Q52: 0.32332 | R52: 0 | S52: 0 | T52: 0 | U52: 0 | V52: 1.73107 | W52: 0 | X52: 2.26137 | Y52: 0.03165 | Z52: 0 | AA52: 0 | AB52: 0 | AC52: 0 | AD52: 0 | AE52: 0.6115 | AF52: 0 | AG52: 0 | AH52: 0 | AI52: 0 | AJ52: 0 | AK52: 0 | AL52: 0 | AM52: 0 | AN52: 0 | AO52: 0.1208 | AP52: 0 | AQ52: 0 | AR52: 0 | AS52: 0 | AT52: 0 | AU52: 0 | AV52: 0 | AW52: 0 | AX52: 0 | AY52: 0.9703 | AZ52: 0 | BA52: 0.20674 | BB52: 1.41725 | BC52: 0 | BD52: 0 | BE52: 0 | BF52: 2.13931 | BG52: 0.59475 | BH52: 0.35739 | BI52: 0 | BJ52: 0 | BK52: 0 | BL52: 0 | BM52: 0 | BN52: 0 | BO52: 0 | BP52: 0 | BQ52: 0 | BR52: 0 | BS52: 0 | BT52: 0 | BU52: 0 | BV52: 0 | BW52: 0 | BX52: 0 | BY52: 0 | BZ52: 0 | CA52: 0 | CB52: 0 | CC52: 0 | CD52: 0 | CE52: 0 | CF52: 0 | CG52: 0 | CH52: 0 | CI52: 0 | CJ52: 0 | CK52: 0 | CL52: 0 | CM52: 0 | CN52: 0 | CO52: 0 | CP52: 0 | CQ52: 0 | CR52: 0 | CS52: 0 | CT52: 0 | CV52: 8169.156635 | CW52: 4280.159807 | CX52: 5589.915542 | CY52: 66.26770665 | CZ52: 0 | DA52: 0 | DB52: 0 | DC52: 505.4696763 | DD52: 1049.823204 | DE52: 659.2515358 | DF52: 0 | DG52: 0 | DH52: 0 | DI52: 0 | DJ52: 3529.662737 | DK52: 0 | DL52: 4610.947809 | DM52: 64.53455125 | DN52: 0 | DO52: 0 | DP52: 0 | DQ52: 0 | DR52: 0 | DS52: 1246.852388 | DT52: 0 | DU52: 0 | DV52: 0 | DW52: 0 | DX52: 0 | DY52: 0 | DZ52: 0 | EA52: 0 | EB52: 0 | EC52: 246.3119681 | ED52: 0 | EE52: 0 | EF52: 0 | EG52: 0 | EH52: 0 | EI52: 0 | EJ52: 0 | EK52: 0 | EL52: 0 | EM52: 1978.44787 | EN52: 0 | EO52: 421.5441746 | EP52: 2889.781762 | EQ52: 0 | ER52: 0 | ES52: 0 | ET52: 4362.066693 | EU52: 1212.699032 | EV52: 728.7204825 | EW52: 0 | EX52: 0 | EY52: 0 | EZ52: 0 | FA52: 0 | FB52: 0 | FC52: 0 | FD52: 0 | FE52: 0 | FF52: 0 | FG52: 0 | FH52: 0 | FI52: 0 | FJ52: 0 | FK52: 0 | FL52: 0 | FM52: 0 | FN52: 0 | FO52: 0 | FP52: 0 | FQ52: 0 | FR52: 0 | FS52: 0 | FT52: 0 | FU52: 0 | FV52: 0 | FW52: 0 | FX52: 0 | FY52: 0 | FZ52: 0 | GA52: 0 | GB52: 0 | GC52: 0 | GD52: 0 | GE52: 0 | GF52: 0 | GG52: 0 | GH52: 0
CV53: 0 | CW53: 0 | CX53: 0 | CY53: 0 | CZ53: 0 | DA53: 0 | DB53: 0 | DC53: 0 | DD53: 0 | DE53: 0 | DF53: 0 | DG53: 0 | DH53: 0 | DI53: 0 | DJ53: 0 | DK53: 0 | DL53: 0 | DM53: 0 | DN53: 0 | DO53: 0 | DP53: 0 | DQ53: 0 | DR53: 0 | DS53: 0 | DT53: 0 | DU53: 0 | DV53: 0 | DW53: 0 | DX53: 0 | DY53: 0 | DZ53: 0 | EA53: 0 | EB53: 0 | EC53: 0 | ED53: 0 | EE53: 0 | EF53: 0 | EG53: 0 | EH53: 0 | EI53: 0 | EJ53: 0 | EK53: 0 | EL53: 0 | EM53: 0 | EN53: 0 | EO53: 0 | EP53: 0 | EQ53: 0 | ER53: 0 | ES53: 0 | ET53: 0 | EU53: 0 | EV53: 0 | EW53: 0 | EX53: 0 | EY53: 0 | EZ53: 0 | FA53: 0 | FB53: 0 | FC53: 0 | FD53: 0 | FE53: 0 | FF53: 0 | FG53: 0 | FH53: 0 | FI53: 0 | FJ53: 0 | FK53: 0 | FL53: 0 | FM53: 0 | FN53: 0 | FO53: 0 | FP53: 0 | FQ53: 0 | FR53: 0 | FS53: 0 | FT53: 0 | FU53: 0 | FV53: 0 | FW53: 0 | FX53: 0 | FY53: 0 | FZ53: 0 | GA53: 0 | GB53: 0 | GC53: 0 | GD53: 0 | GE53: 0 | GF53: 0 | GG53: 0 | GH53: 0
CV54: 0 | CW54: 0 | CX54: 0 | CY54: 0 | CZ54: 0 | DA54: 0 | DB54: 0 | DC54: 0 | DD54: 0 | DE54: 0 | DF54: 0 | DG54: 0 | DH54: 0 | DI54: 0 | DJ54: 0 | DK54: 0 | DL54: 0 | DM54: 0 | DN54: 0 | DO54: 0 | DP54: 0 | DQ54: 0 | DR54: 0 | DS54: 0 | DT54: 0 | DU54: 0 | DV54: 0 | DW54: 0 | DX54: 0 | DY54: 0 | DZ54: 0 | EA54: 0 | EB54: 0 | EC54: 0 | ED54: 0 | EE54: 0 | EF54: 0 | EG54: 0 | EH54: 0 | EI54: 0 | EJ54: 0 | EK54: 0 | EL54: 0 | EM54: 0 | EN54: 0 | EO54: 0 | EP54: 0 | EQ54: 0 | ER54: 0 | ES54: 0 | ET54: 0 | EU54: 0 | EV54: 0 | EW54: 0 | EX54: 0 | EY54: 0 | EZ54: 0 | FA54: 0 | FB54: 0 | FC54: 0 | FD54: 0 | FE54: 0 | FF54: 0 | FG54: 0 | FH54: 0 | FI54: 0 | FJ54: 0 | FK54: 0 | FL54: 0 | FM54: 0 | FN54: 0 | FO54: 0 | FP54: 0 | FQ54: 0 | FR54: 0 | FS54: 0 | FT54: 0 | FU54: 0 | FV54: 0 | FW54: 0 | FX54: 0 | FY54: 0 | FZ54: 0 | GA54: 0 | GB54: 0 | GC54: 0 | GD54: 0 | GE54: 0 | GF54: 0 | GG54: 0 | GH54: 0
CV55: 0 | CW55: 0 | CX55: 0 | CY55: 0 | CZ55: 0 | DA55: 0 | DB55: 0 | DC55: 0 | DD55: 0 | DE55: 0 | DF55: 0 | DG55: 0 | DH55: 0 | DI55: 0 | DJ55: 0 | DK55: 0 | DL55: 0 | DM55: 0 | DN55: 0 | DO55: 0 | DP55: 0 | DQ55: 0 | DR55: 0 | DS55: 0 | DT55: 0 | DU55: 0 | DV55: 0 | DW55: 0 | DX55: 0 | DY55: 0 | DZ55: 0 | EA55: 0 | EB55: 0 | EC55: 0 | ED55: 0 | EE55: 0 | EF55: 0 | EG55: 0 | EH55: 0 | EI55: 0 | EJ55: 0 | EK55: 0 | EL55: 0 | EM55: 0 | EN55: 0 | EO55: 0 | EP55: 0 | EQ55: 0 | ER55: 0 | ES55: 0 | ET55: 0 | EU55: 0 | EV55: 0 | EW55: 0 | EX55: 0 | EY55: 0 | EZ55: 0 | FA55: 0 | FB55: 0 | FC55: 0 | FD55: 0 | FE55: 0 | FF55: 0 | FG55: 0 | FH55: 0 | FI55: 0 | FJ55: 0 | FK55: 0 | FL55: 0 | FM55: 0 | FN55: 0 | FO55: 0 | FP55: 0 | FQ55: 0 | FR55: 0 | FS55: 0 | FT55: 0 | FU55: 0 | FV55: 0 | FW55: 0 | FX55: 0 | FY55: 0 | FZ55: 0 | GA55: 0 | GB55: 0 | GC55: 0 | GD55: 0 | GE55: 0 | GF55: 0 | GG55: 0 | GH55: 0
CV56: 0 | CW56: 0 | CX56: 0 | CY56: 0 | CZ56: 0 | DA56: 0 | DB56: 0 | DC56: 0 | DD56: 0 | DE56: 0 | DF56: 0 | DG56: 0 | DH56: 0 | DI56: 0 | DJ56: 0 | DK56: 0 | DL56: 0 | DM56: 0 | DN56: 0 | DO56: 0 | DP56: 0 | DQ56: 0 | DR56: 0 | DS56: 0 | DT56: 0 | DU56: 0 | DV56: 0 | DW56: 0 | DX56: 0 | DY56: 0 | DZ56: 0 | EA56: 0 | EB56: 0 | EC56: 0 | ED56: 0 | EE56: 0 | EF56: 0 | EG56: 0 | EH56: 0 | EI56: 0 | EJ56: 0 | EK56: 0 | EL56: 0 | EM56: 0 | EN56: 0 | EO56: 0 | EP56: 0 | EQ56: 0 | ER56: 0 | ES56: 0 | ET56: 0 | EU56: 0 | EV56: 0 | EW56: 0 | EX56: 0 | EY56: 0 | EZ56: 0 | FA56: 0 | FB56: 0 | FC56: 0 | FD56: 0 | FE56: 0 | FF56: 0 | FG56: 0 | FH56: 0 | FI56: 0 | FJ56: 0 | FK56: 0 | FL56: 0 | FM56: 0 | FN56: 0 | FO56: 0 | FP56: 0 | FQ56: 0 | FR56: 0 | FS56: 0 | FT56: 0 | FU56: 0 | FV56: 0 | FW56: 0 | FX56: 0 | FY56: 0 | FZ56: 0 | GA56: 0 | GB56: 0 | GC56: 0 | GD56: 0 | GE56: 0 | GF56: 0 | GG56: 0 | GH56: 0
CV57: 0 | CW57: 0 | CX57: 0 | CY57: 0 | CZ57: 0 | DA57: 0 | DB57: 0 | DC57: 0 | DD57: 0 | DE57: 0 | DF57: 0 | DG57: 0 | DH57: 0 | DI57: 0 | DJ57: 0 | DK57: 0 | DL57: 0 | DM57: 0 | DN57: 0 | DO57: 0 | DP57: 0 | DQ57: 0 | DR57: 0 | DS57: 0 | DT57: 0 | DU57: 0 | DV57: 0 | DW57: 0 | DX57: 0 | DY57: 0 | DZ57: 0 | EA57: 0 | EB57: 0 | EC57: 0 | ED57: 0 | EE57: 0 | EF57: 0 | EG57: 0 | EH57: 0 | EI57: 0 | EJ57: 0 | EK57: 0 | EL57: 0 | EM57: 0 | EN57: 0 | EO57: 0 | EP57: 0 | EQ57: 0 | ER57: 0 | ES57: 0 | ET57: 0 | EU57: 0 | EV57: 0 | EW57: 0 | EX57: 0 | EY57: 0 | EZ57: 0 | FA57: 0 | FB57: 0 | FC57: 0 | FD57: 0 | FE57: 0 | FF57: 0 | FG57: 0 | FH57: 0 | FI57: 0 | FJ57: 0 | FK57: 0 | FL57: 0 | FM57: 0 | FN57: 0 | FO57: 0 | FP57: 0 | FQ57: 0 | FR57: 0 | FS57: 0 | FT57: 0 | FU57: 0 | FV57: 0 | FW57: 0 | FX57: 0 | FY57: 0 | FZ57: 0 | GA57: 0 | GB57: 0 | GC57: 0 | GD57: 0 | GE57: 0 | GF57: 0 | GG57: 0 | GH57: 0
CV58: 0 | CW58: 0 | CX58: 0 | CY58: 0 | CZ58: 0 | DA58: 0 | DB58: 0 | DC58: 0 | DD58: 0 | DE58: 0 | DF58: 0 | DG58: 0 | DH58: 0 | DI58: 0 | DJ58: 0 | DK58: 0 | DL58: 0 | DM58: 0 | DN58: 0 | DO58: 0 | DP58: 0 | DQ58: 0 | DR58: 0 | DS58: 0 | DT58: 0 | DU58: 0 | DV58: 0 | DW58: 0 | DX58: 0 | DY58: 0 | DZ58: 0 | EA58: 0 | EB58: 0 | EC58: 0 | ED58: 0 | EE58: 0 | EF58: 0 | EG58: 0 | EH58: 0 | EI58: 0 | EJ58: 0 | EK58: 0 | EL58: 0 | EM58: 0 | EN58: 0 | EO58: 0 | EP58: 0 | EQ58: 0 | ER58: 0 | ES58: 0 | ET58: 0 | EU58: 0 | EV58: 0 | EW58: 0 | EX58: 0 | EY58: 0 | EZ58: 0 | FA58: 0 | FB58: 0 | FC58: 0 | FD58: 0 | FE58: 0 | FF58: 0 | FG58: 0 | FH58: 0 | FI58: 0 | FJ58: 0 | FK58: 0 | FL58: 0 | FM58: 0 | FN58: 0 | FO58: 0 | FP58: 0 | FQ58: 0 | FR58: 0 | FS58: 0 | FT58: 0 | FU58: 0 | FV58: 0 | FW58: 0 | FX58: 0 | FY58: 0 | FZ58: 0 | GA58: 0 | GB58: 0 | GC58: 0 | GD58: 0 | GE58: 0 | GF58: 0 | GG58: 0 | GH58: 0
CV59: 0 | CW59: 0 | CX59: 0 | CY59: 0 | CZ59: 0 | DA59: 0 | DB59: 0 | DC59: 0 | DD59: 0 | DE59: 0 | DF59: 0 | DG59: 0 | DH59: 0 | DI59: 0 | DJ59: 0 | DK59: 0 | DL59: 0 | DM59: 0 | DN59: 0 | DO59: 0 | DP59: 0 | DQ59: 0 | DR59: 0 | DS59: 0 | DT59: 0 | DU59: 0 | DV59: 0 | DW59: 0 | DX59: 0 | DY59: 0 | DZ59: 0 | EA59: 0 | EB59: 0 | EC59: 0 | ED59: 0 | EE59: 0 | EF59: 0 | EG59: 0 | EH59: 0 | EI59: 0 | EJ59: 0 | EK59: 0 | EL59: 0 | EM59: 0 | EN59: 0 | EO59: 0 | EP59: 0 | EQ59: 0 | ER59: 0 | ES59: 0 | ET59: 0 | EU59: 0 | EV59: 0 | EW59: 0 | EX59: 0 | EY59: 0 | EZ59: 0 | FA59: 0 | FB59: 0 | FC59: 0 | FD59: 0 | FE59: 0 | FF59: 0 | FG59: 0 | FH59: 0 | FI59: 0 | FJ59: 0 | FK59: 0 | FL59: 0 | FM59: 0 | FN59: 0 | FO59: 0 | FP59: 0 | FQ59: 0 | FR59: 0 | FS59: 0 | FT59: 0 | FU59: 0 | FV59: 0 | FW59: 0 | FX59: 0 | FY59: 0 | FZ59: 0 | GA59: 0 | GB59: 0 | GC59: 0 | GD59: 0 | GE59: 0 | GF59: 0 | GG59: 0 | GH59: 0
CV60: 0 | CW60: 0 | CX60: 0 | CY60: 0 | CZ60: 0 | DA60: 0 | DB60: 0 | DC60: 0 | DD60: 0 | DE60: 0 | DF60: 0 | DG60: 0 | DH60: 0 | DI60: 0 | DJ60: 0 | DK60: 0 | DL60: 0 | DM60: 0 | DN60: 0 | DO60: 0 | DP60: 0 | DQ60: 0 | DR60: 0 | DS60: 0 | DT60: 0 | DU60: 0 | DV60: 0 | DW60: 0 | DX60: 0 | DY60: 0 | DZ60: 0 | EA60: 0 | EB60: 0 | EC60: 0 | ED60: 0 | EE60: 0 | EF60: 0 | EG60: 0 | EH60: 0 | EI60: 0 | EJ60: 0 | EK60: 0 | EL60: 0 | EM60: 0 | EN60: 0 | EO60: 0 | EP60: 0 | EQ60: 0 | ER60: 0 | ES60: 0 | ET60: 0 | EU60: 0 | EV60: 0 | EW60: 0 | EX60: 0 | EY60: 0 | EZ60: 0 | FA60: 0 | FB60: 0 | FC60: 0 | FD60: 0 | FE60: 0 | FF60: 0 | FG60: 0 | FH60: 0 | FI60: 0 | FJ60: 0 | FK60: 0 | FL60: 0 | FM60: 0 | FN60: 0 | FO60: 0 | FP60: 0 | FQ60: 0 | FR60: 0 | FS60: 0 | FT60: 0 | FU60: 0 | FV60: 0 | FW60: 0 | FX60: 0 | FY60: 0 | FZ60: 0 | GA60: 0 | GB60: 0 | GC60: 0 | GD60: 0 | GE60: 0 | GF60: 0 | GG60: 0 | GH60: 0
CV61: 0 | CW61: 0 | CX61: 0 | CY61: 0 | CZ61: 0 | DA61: 0 | DB61: 0 | DC61: 0 | DD61: 0 | DE61: 0 | DF61: 0 | DG61: 0 | DH61: 0 | DI61: 0 | DJ61: 0 | DK61: 0 | DL61: 0 | DM61: 0 | DN61: 0 | DO61: 0 | DP61: 0 | DQ61: 0 | DR61: 0 | DS61: 0 | DT61: 0 | DU61: 0 | DV61: 0 | DW61: 0 | DX61: 0 | DY61: 0 | DZ61: 0 | EA61: 0 | EB61: 0 | EC61: 0 | ED61: 0 | EE61: 0 | EF61: 0 | EG61: 0 | EH61: 0 | EI61: 0 | EJ61: 0 | EK61: 0 | EL61: 0 | EM61: 0 | EN61: 0 | EO61: 0 | EP61: 0 | EQ61: 0 | ER61: 0 | ES61: 0 | ET61: 0 | EU61: 0 | EV61: 0 | EW61: 0 | EX61: 0 | EY61: 0 | EZ61: 0 | FA61: 0 | FB61: 0 | FC61: 0 | FD61: 0 | FE61: 0 | FF61: 0 | FG61: 0 | FH61: 0 | FI61: 0 | FJ61: 0 | FK61: 0 | FL61: 0 | FM61: 0 | FN61: 0 | FO61: 0 | FP61: 0 | FQ61: 0 | FR61: 0 | FS61: 0 | FT61: 0 | FU61: 0 | FV61: 0 | FW61: 0 | FX61: 0 | FY61: 0 | FZ61: 0 | GA61: 0 | GB61: 0 | GC61: 0 | GD61: 0 | GE61: 0 | GF61: 0 | GG61: 0 | GH61: 0
CV62: 0 | CW62: 0 | CX62: 0 | CY62: 0 | CZ62: 0 | DA62: 0 | DB62: 0 | DC62: 0 | DD62: 0 | DE62: 0 | DF62: 0 | DG62: 0 | DH62: 0 | DI62: 0 | DJ62: 0 | DK62: 0 | DL62: 0 | DM62: 0 | DN62: 0 | DO62: 0 | DP62: 0 | DQ62: 0 | DR62: 0 | DS62: 0 | DT62: 0 | DU62: 0 | DV62: 0 | DW62: 0 | DX62: 0 | DY62: 0 | DZ62: 0 | EA62: 0 | EB62: 0 | EC62: 0 | ED62: 0 | EE62: 0 | EF62: 0 | EG62: 0 | EH62: 0 | EI62: 0 | EJ62: 0 | EK62: 0 | EL62: 0 | EM62: 0 | EN62: 0 | EO62: 0 | EP62: 0 | EQ62: 0 | ER62: 0 | ES62: 0 | ET62: 0 | EU62: 0 | EV62: 0 | EW62: 0 | EX62: 0 | EY62: 0 | EZ62: 0 | FA62: 0 | FB62: 0 | FC62: 0 | FD62: 0 | FE62: 0 | FF62: 0 | FG62: 0 | FH62: 0 | FI62: 0 | FJ62: 0 | FK62: 0 | FL62: 0 | FM62: 0 | FN62: 0 | FO62: 0 | FP62: 0 | FQ62: 0 | FR62: 0 | FS62: 0 | FT62: 0 | FU62: 0 | FV62: 0 | FW62: 0 | FX62: 0 | FY62: 0 | FZ62: 0 | GA62: 0 | GB62: 0 | GC62: 0 | GD62: 0 | GE62: 0 | GF62: 0 | GG62: 0 | GH62: 0
CV63: 0 | CW63: 0 | CX63: 0 | CY63: 0 | CZ63: 0 | DA63: 0 | DB63: 0 | DC63: 0 | DD63: 0 | DE63: 0 | DF63: 0 | DG63: 0 | DH63: 0 | DI63: 0 | DJ63: 0 | DK63: 0 | DL63: 0 | DM63: 0 | DN63: 0 | DO63: 0 | DP63: 0 | DQ63: 0 | DR63: 0 | DS63: 0 | DT63: 0 | DU63: 0 | DV63: 0 | DW63: 0 | DX63: 0 | DY63: 0 | DZ63: 0 | EA63: 0 | EB63: 0 | EC63: 0 | ED63: 0 | EE63: 0 | EF63: 0 | EG63: 0 | EH63: 0 | EI63: 0 | EJ63: 0 | EK63: 0 | EL63: 0 | EM63: 0 | EN63: 0 | EO63: 0 | EP63: 0 | EQ63: 0 | ER63: 0 | ES63: 0 | ET63: 0 | EU63: 0 | EV63: 0 | EW63: 0 | EX63: 0 | EY63: 0 | EZ63: 0 | FA63: 0 | FB63: 0 | FC63: 0 | FD63: 0 | FE63: 0 | FF63: 0 | FG63: 0 | FH63: 0 | FI63: 0 | FJ63: 0 | FK63: 0 | FL63: 0 | FM63: 0 | FN63: 0 | FO63: 0 | FP63: 0 | FQ63: 0 | FR63: 0 | FS63: 0 | FT63: 0 | FU63: 0 | FV63: 0 | FW63: 0 | FX63: 0 | FY63: 0 | FZ63: 0 | GA63: 0 | GB63: 0 | GC63: 0 | GD63: 0 | GE63: 0 | GF63: 0 | GG63: 0 | GH63: 0
CV64: 0 | CW64: 0 | CX64: 0 | CY64: 0 | CZ64: 0 | DA64: 0 | DB64: 0 | DC64: 0 | DD64: 0 | DE64: 0 | DF64: 0 | DG64: 0 | DH64: 0 | DI64: 0 | DJ64: 0 | DK64: 0 | DL64: 0 | DM64: 0 | DN64: 0 | DO64: 0 | DP64: 0 | DQ64: 0 | DR64: 0 | DS64: 0 | DT64: 0 | DU64: 0 | DV64: 0 | DW64: 0 | DX64: 0 | DY64: 0 | DZ64: 0 | EA64: 0 | EB64: 0 | EC64: 0 | ED64: 0 | EE64: 0 | EF64: 0 | EG64: 0 | EH64: 0 | EI64: 0 | EJ64: 0 | EK64: 0 | EL64: 0 | EM64: 0 | EN64: 0 | EO64: 0 | EP64: 0 | EQ64: 0 | ER64: 0 | ES64: 0 | ET64: 0 | EU64: 0 | EV64: 0 | EW64: 0 | EX64: 0 | EY64: 0 | EZ64: 0 | FA64: 0 | FB64: 0 | FC64: 0 | FD64: 0 | FE64: 0 | FF64: 0 | FG64: 0 | FH64: 0 | FI64: 0 | FJ64: 0 | FK64: 0 | FL64: 0 | FM64: 0 | FN64: 0 | FO64: 0 | FP64: 0 | FQ64: 0 | FR64: 0 | FS64: 0 | FT64: 0 | FU64: 0 | FV64: 0 | FW64: 0 | FX64: 0 | FY64: 0 | FZ64: 0 | GA64: 0 | GB64: 0 | GC64: 0 | GD64: 0 | GE64: 0 | GF64: 0 | GG64: 0 | GH64: 0
CV65: 0 | CW65: 0 | CX65: 0 | CY65: 0 | CZ65: 0 | DA65: 0 | DB65: 0 | DC65: 0 | DD65: 0 | DE65: 0 | DF65: 0 | DG65: 0 | DH65: 0 | DI65: 0 | DJ65: 0 | DK65: 0 | DL65: 0 | DM65: 0 | DN65: 0 | DO65: 0 | DP65: 0 | DQ65: 0 | DR65: 0 | DS65: 0 | DT65: 0 | DU65: 0 | DV65: 0 | DW65: 0 | DX65: 0 | DY65: 0 | DZ65: 0 | EA65: 0 | EB65: 0 | EC65: 0 | ED65: 0 | EE65: 0 | EF65: 0 | EG65: 0 | EH65: 0 | EI65: 0 | EJ65: 0 | EK65: 0 | EL65: 0 | EM65: 0 | EN65: 0 | EO65: 0 | EP65: 0 | EQ65: 0 | ER65: 0 | ES65: 0 | ET65: 0 | EU65: 0 | EV65: 0 | EW65: 0 | EX65: 0 | EY65: 0 | EZ65: 0 | FA65: 0 | FB65: 0 | FC65: 0 | FD65: 0 | FE65: 0 | FF65: 0 | FG65: 0 | FH65: 0 | FI65: 0 | FJ65: 0 | FK65: 0 | FL65: 0 | FM65: 0 | FN65: 0 | FO65: 0 | FP65: 0 | FQ65: 0 | FR65: 0 | FS65: 0 | FT65: 0 | FU65: 0 | FV65: 0 | FW65: 0 | FX65: 0 | FY65: 0 | FZ65: 0 | GA65: 0 | GB65: 0 | GC65: 0 | GD65: 0 | GE65: 0 | GF65: 0 | GG65: 0 | GH65: 0
CV66: 0 | CW66: 0 | CX66: 0 | CY66: 0 | CZ66: 0 | DA66: 0 | DB66: 0 | DC66: 0 | DD66: 0 | DE66: 0 | DF66: 0 | DG66: 0 | DH66: 0 | DI66: 0 | DJ66: 0 | DK66: 0 | DL66: 0 | DM66: 0 | DN66: 0 | DO66: 0 | DP66: 0 | DQ66: 0 | DR66: 0 | DS66: 0 | DT66: 0 | DU66: 0 | DV66: 0 | DW66: 0 | DX66: 0 | DY66: 0 | DZ66: 0 | EA66: 0 | EB66: 0 | EC66: 0 | ED66: 0 | EE66: 0 | EF66: 0 | EG66: 0 | EH66: 0 | EI66: 0 | EJ66: 0 | EK66: 0 | EL66: 0 | EM66: 0 | EN66: 0 | EO66: 0 | EP66: 0 | EQ66: 0 | ER66: 0 | ES66: 0 | ET66: 0 | EU66: 0 | EV66: 0 | EW66: 0 | EX66: 0 | EY66: 0 | EZ66: 0 | FA66: 0 | FB66: 0 | FC66: 0 | FD66: 0 | FE66: 0 | FF66: 0 | FG66: 0 | FH66: 0 | FI66: 0 | FJ66: 0 | FK66: 0 | FL66: 0 | FM66: 0 | FN66: 0 | FO66: 0 | FP66: 0 | FQ66: 0 | FR66: 0 | FS66: 0 | FT66: 0 | FU66: 0 | FV66: 0 | FW66: 0 | FX66: 0 | FY66: 0 | FZ66: 0 | GA66: 0 | GB66: 0 | GC66: 0 | GD66: 0 | GE66: 0 | GF66: 0 | GG66: 0 | GH66: 0
CV67: 0 | CW67: 0 | CX67: 0 | CY67: 0 | CZ67: 0 | DA67: 0 | DB67: 0 | DC67: 0 | DD67: 0 | DE67: 0 | DF67: 0 | DG67: 0 | DH67: 0 | DI67: 0 | DJ67: 0 | DK67: 0 | DL67: 0 | DM67: 0 | DN67: 0 | DO67: 0 | DP67: 0 | DQ67: 0 | DR67: 0 | DS67: 0 | DT67: 0 | DU67: 0 | DV67: 0 | DW67: 0 | DX67: 0 | DY67: 0 | DZ67: 0 | EA67: 0 | EB67: 0 | EC67: 0 | ED67: 0 | EE67: 0 | EF67: 0 | EG67: 0 | EH67: 0 | EI67: 0 | EJ67: 0 | EK67: 0 | EL67: 0 | EM67: 0 | EN67: 0 | EO67: 0 | EP67: 0 | EQ67: 0 | ER67: 0 | ES67: 0 | ET67: 0 | EU67: 0 | EV67: 0 | EW67: 0 | EX67: 0 | EY67: 0 | EZ67: 0 | FA67: 0 | FB67: 0 | FC67: 0 | FD67: 0 | FE67: 0 | FF67: 0 | FG67: 0 | FH67: 0 | FI67: 0 | FJ67: 0 | FK67: 0 | FL67: 0 | FM67: 0 | FN67: 0 | FO67: 0 | FP67: 0 | FQ67: 0 | FR67: 0 | FS67: 0 | FT67: 0 | FU67: 0 | FV67: 0 | FW67: 0 | FX67: 0 | FY67: 0 | FZ67: 0 | GA67: 0 | GB67: 0 | GC67: 0 | GD67: 0 | GE67: 0 | GF67: 0 | GG67: 0 | GH67: 0
CV68: 0 | CW68: 0 | CX68: 0 | CY68: 0 | CZ68: 0 | DA68: 0 | DB68: 0 | DC68: 0 | DD68: 0 | DE68: 0 | DF68: 0 | DG68: 0 | DH68: 0 | DI68: 0 | DJ68: 0 | DK68: 0 | DL68: 0 | DM68: 0 | DN68: 0 | DO68: 0 | DP68: 0 | DQ68: 0 | DR68: 0 | DS68: 0 | DT68: 0 | DU68: 0 | DV68: 0 | DW68: 0 | DX68: 0 | DY68: 0 | DZ68: 0 | EA68: 0 | EB68: 0 | EC68: 0 | ED68: 0 | EE68: 0 | EF68: 0 | EG68: 0 | EH68: 0 | EI68: 0 | EJ68: 0 | EK68: 0 | EL68: 0 | EM68: 0 | EN68: 0 | EO68: 0 | EP68: 0 | EQ68: 0 | ER68: 0 | ES68: 0 | ET68: 0 | EU68: 0 | EV68: 0 | EW68: 0 | EX68: 0 | EY68: 0 | EZ68: 0 | FA68: 0 | FB68: 0 | FC68: 0 | FD68: 0 | FE68: 0 | FF68: 0 | FG68: 0 | FH68: 0 | FI68: 0 | FJ68: 0 | FK68: 0 | FL68: 0 | FM68: 0 | FN68: 0 | FO68: 0 | FP68: 0 | FQ68: 0 | FR68: 0 | FS68: 0 | FT68: 0 | FU68: 0 | FV68: 0 | FW68: 0 | FX68: 0 | FY68: 0 | FZ68: 0 | GA68: 0 | GB68: 0 | GC68: 0 | GD68: 0 | GE68: 0 | GF68: 0 | GG68: 0 | GH68: 0
CV69: 0 | CW69: 0 | CX69: 0 | CY69: 0 | CZ69: 0 | DA69: 0 | DB69: 0 | DC69: 0 | DD69: 0 | DE69: 0 | DF69: 0 | DG69: 0 | DH69: 0 | DI69: 0 | DJ69: 0 | DK69: 0 | DL69: 0 | DM69: 0 | DN69: 0 | DO69: 0 | DP69: 0 | DQ69: 0 | DR69: 0 | DS69: 0 | DT69: 0 | DU69: 0 | DV69: 0 | DW69: 0 | DX69: 0 | DY69: 0 | DZ69: 0 | EA69: 0 | EB69: 0 | EC69: 0 | ED69: 0 | EE69: 0 | EF69: 0 | EG69: 0 | EH69: 0 | EI69: 0 | EJ69: 0 | EK69: 0 | EL69: 0 | EM69: 0 | EN69: 0 | EO69: 0 | EP69: 0 | EQ69: 0 | ER69: 0 | ES69: 0 | ET69: 0 | EU69: 0 | EV69: 0 | EW69: 0 | EX69: 0 | EY69: 0 | EZ69: 0 | FA69: 0 | FB69: 0 | FC69: 0 | FD69: 0 | FE69: 0 | FF69: 0 | FG69: 0 | FH69: 0 | FI69: 0 | FJ69: 0 | FK69: 0 | FL69: 0 | FM69: 0 | FN69: 0 | FO69: 0 | FP69: 0 | FQ69: 0 | FR69: 0 | FS69: 0 | FT69: 0 | FU69: 0 | FV69: 0 | FW69: 0 | FX69: 0 | FY69: 0 | FZ69: 0 | GA69: 0 | GB69: 0 | GC69: 0 | GD69: 0 | GE69: 0 | GF69: 0 | GG69: 0 | GH69: 0
CV70: 0 | CW70: 0 | CX70: 0 | CY70: 0 | CZ70: 0 | DA70: 0 | DB70: 0 | DC70: 0 | DD70: 0 | DE70: 0 | DF70: 0 | DG70: 0 | DH70: 0 | DI70: 0 | DJ70: 0 | DK70: 0 | DL70: 0 | DM70: 0 | DN70: 0 | DO70: 0 | DP70: 0 | DQ70: 0 | DR70: 0 | DS70: 0 | DT70: 0 | DU70: 0 | DV70: 0 | DW70: 0 | DX70: 0 | DY70: 0 | DZ70: 0 | EA70: 0 | EB70: 0 | EC70: 0 | ED70: 0 | EE70: 0 | EF70: 0 | EG70: 0 | EH70: 0 | EI70: 0 | EJ70: 0 | EK70: 0 | EL70: 0 | EM70: 0 | EN70: 0 | EO70: 0 | EP70: 0 | EQ70: 0 | ER70: 0 | ES70: 0 | ET70: 0 | EU70: 0 | EV70: 0 | EW70: 0 | EX70: 0 | EY70: 0 | EZ70: 0 | FA70: 0 | FB70: 0 | FC70: 0 | FD70: 0 | FE70: 0 | FF70: 0 | FG70: 0 | FH70: 0 | FI70: 0 | FJ70: 0 | FK70: 0 | FL70: 0 | FM70: 0 | FN70: 0 | FO70: 0 | FP70: 0 | FQ70: 0 | FR70: 0 | FS70: 0 | FT70: 0 | FU70: 0 | FV70: 0 | FW70: 0 | FX70: 0 | FY70: 0 | FZ70: 0 | GA70: 0 | GB70: 0 | GC70: 0 | GD70: 0 | GE70: 0 | GF70: 0 | GG70: 0 | GH70: 0
CV71: 0 | CW71: 0 | CX71: 0 | CY71: 0 | CZ71: 0 | DA71: 0 | DB71: 0 | DC71: 0 | DD71: 0 | DE71: 0 | DF71: 0 | DG71: 0 | DH71: 0 | DI71: 0 | DJ71: 0 | DK71: 0 | DL71: 0 | DM71: 0 | DN71: 0 | DO71: 0 | DP71: 0 | DQ71: 0 | DR71: 0 | DS71: 0 | DT71: 0 | DU71: 0 | DV71: 0 | DW71: 0 | DX71: 0 | DY71: 0 | DZ71: 0 | EA71: 0 | EB71: 0 | EC71: 0 | ED71: 0 | EE71: 0 | EF71: 0 | EG71: 0 | EH71: 0 | EI71: 0 | EJ71: 0 | EK71: 0 | EL71: 0 | EM71: 0 | EN71: 0 | EO71: 0 | EP71: 0 | EQ71: 0 | ER71: 0 | ES71: 0 | ET71: 0 | EU71: 0 | EV71: 0 | EW71: 0 | EX71: 0 | EY71: 0 | EZ71: 0 | FA71: 0 | FB71: 0 | FC71: 0 | FD71: 0 | FE71: 0 | FF71: 0 | FG71: 0 | FH71: 0 | FI71: 0 | FJ71: 0 | FK71: 0 | FL71: 0 | FM71: 0 | FN71: 0 | FO71: 0 | FP71: 0 | FQ71: 0 | FR71: 0 | FS71: 0 | FT71: 0 | FU71: 0 | FV71: 0 | FW71: 0 | FX71: 0 | FY71: 0 | FZ71: 0 | GA71: 0 | GB71: 0 | GC71: 0 | GD71: 0 | GE71: 0 | GF71: 0 | GG71: 0 | GH71: 0
CV72: 0 | CW72: 0 | CX72: 0 | CY72: 0 | CZ72: 0 | DA72: 0 | DB72: 0 | DC72: 0 | DD72: 0 | DE72: 0 | DF72: 0 | DG72: 0 | DH72: 0 | DI72: 0 | DJ72: 0 | DK72: 0 | DL72: 0 | DM72: 0 | DN72: 0 | DO72: 0 | DP72: 0 | DQ72: 0 | DR72: 0 | DS72: 0 | DT72: 0 | DU72: 0 | DV72: 0 | DW72: 0 | DX72: 0 | DY72: 0 | DZ72: 0 | EA72: 0 | EB72: 0 | EC72: 0 | ED72: 0 | EE72: 0 | EF72: 0 | EG72: 0 | EH72: 0 | EI72: 0 | EJ72: 0 | EK72: 0 | EL72: 0 | EM72: 0 | EN72: 0 | EO72: 0 | EP72: 0 | EQ72: 0 | ER72: 0 | ES72: 0 | ET72: 0 | EU72: 0 | EV72: 0 | EW72: 0 | EX72: 0 | EY72: 0 | EZ72: 0 | FA72: 0 | FB72: 0 | FC72: 0 | FD72: 0 | FE72: 0 | FF72: 0 | FG72: 0 | FH72: 0 | FI72: 0 | FJ72: 0 | FK72: 0 | FL72: 0 | FM72: 0 | FN72: 0 | FO72: 0 | FP72: 0 | FQ72: 0 | FR72: 0 | FS72: 0 | FT72: 0 | FU72: 0 | FV72: 0 | FW72: 0 | FX72: 0 | FY72: 0 | FZ72: 0 | GA72: 0 | GB72: 0 | GC72: 0 | GD72: 0 | GE72: 0 | GF72: 0 | GG72: 0 | GH72: 0
CV73: 0 | CW73: 0 | CX73: 0 | CY73: 0 | CZ73: 0 | DA73: 0 | DB73: 0 | DC73: 0 | DD73: 0 | DE73: 0 | DF73: 0 | DG73: 0 | DH73: 0 | DI73: 0 | DJ73: 0 | DK73: 0 | DL73: 0 | DM73: 0 | DN73: 0 | DO73: 0 | DP73: 0 | DQ73: 0 | DR73: 0 | DS73: 0 | DT73: 0 | DU73: 0 | DV73: 0 | DW73: 0 | DX73: 0 | DY73: 0 | DZ73: 0 | EA73: 0 | EB73: 0 | EC73: 0 | ED73: 0 | EE73: 0 | EF73: 0 | EG73: 0 | EH73: 0 | EI73: 0 | EJ73: 0 | EK73: 0 | EL73: 0 | EM73: 0 | EN73: 0 | EO73: 0 | EP73: 0 | EQ73: 0 | ER73: 0 | ES73: 0 | ET73: 0 | EU73: 0 | EV73: 0 | EW73: 0 | EX73: 0 | EY73: 0 | EZ73: 0 | FA73: 0 | FB73: 0 | FC73: 0 | FD73: 0 | FE73: 0 | FF73: 0 | FG73: 0 | FH73: 0 | FI73: 0 | FJ73: 0 | FK73: 0 | FL73: 0 | FM73: 0 | FN73: 0 | FO73: 0 | FP73: 0 | FQ73: 0 | FR73: 0 | FS73: 0 | FT73: 0 | FU73: 0 | FV73: 0 | FW73: 0 | FX73: 0 | FY73: 0 | FZ73: 0 | GA73: 0 | GB73: 0 | GC73: 0 | GD73: 0 | GE73: 0 | GF73: 0 | GG73: 0 | GH73: 0
CV74: 0 | CW74: 0 | CX74: 0 | CY74: 0 | CZ74: 0 | DA74: 0 | DB74: 0 | DC74: 0 | DD74: 0 | DE74: 0 | DF74: 0 | DG74: 0 | DH74: 0 | DI74: 0 | DJ74: 0 | DK74: 0 | DL74: 0 | DM74: 0 | DN74: 0 | DO74: 0 | DP74: 0 | DQ74: 0 | DR74: 0 | DS74: 0 | DT74: 0 | DU74: 0 | DV74: 0 | DW74: 0 | DX74: 0 | DY74: 0 | DZ74: 0 | EA74: 0 | EB74: 0 | EC74: 0 | ED74: 0 | EE74: 0 | EF74: 0 | EG74: 0 | EH74: 0 | EI74: 0 | EJ74: 0 | EK74: 0 | EL74: 0 | EM74: 0 | EN74: 0 | EO74: 0 | EP74: 0 | EQ74: 0 | ER74: 0 | ES74: 0 | ET74: 0 | EU74: 0 | EV74: 0 | EW74: 0 | EX74: 0 | EY74: 0 | EZ74: 0 | FA74: 0 | FB74: 0 | FC74: 0 | FD74: 0 | FE74: 0 | FF74: 0 | FG74: 0 | FH74: 0 | FI74: 0 | FJ74: 0 | FK74: 0 | FL74: 0 | FM74: 0 | FN74: 0 | FO74: 0 | FP74: 0 | FQ74: 0 | FR74: 0 | FS74: 0 | FT74: 0 | FU74: 0 | FV74: 0 | FW74: 0 | FX74: 0 | FY74: 0 | FZ74: 0 | GA74: 0 | GB74: 0 | GC74: 0 | GD74: 0 | GE74: 0 | GF74: 0 | GG74: 0 | GH74: 0
CV75: 0 | CW75: 0 | CX75: 0 | CY75: 0 | CZ75: 0 | DA75: 0 | DB75: 0 | DC75: 0 | DD75: 0 | DE75: 0 | DF75: 0 | DG75: 0 | DH75: 0 | DI75: 0 | DJ75: 0 | DK75: 0 | DL75: 0 | DM75: 0 | DN75: 0 | DO75: 0 | DP75: 0 | DQ75: 0 | DR75: 0 | DS75: 0 | DT75: 0 | DU75: 0 | DV75: 0 | DW75: 0 | DX75: 0 | DY75: 0 | DZ75: 0 | EA75: 0 | EB75: 0 | EC75: 0 | ED75: 0 | EE75: 0 | EF75: 0 | EG75: 0 | EH75: 0 | EI75: 0 | EJ75: 0 | EK75: 0 | EL75: 0 | EM75: 0 | EN75: 0 | EO75: 0 | EP75: 0 | EQ75: 0 | ER75: 0 | ES75: 0 | ET75: 0 | EU75: 0 | EV75: 0 | EW75: 0 | EX75: 0 | EY75: 0 | EZ75: 0 | FA75: 0 | FB75: 0 | FC75: 0 | FD75: 0 | FE75: 0 | FF75: 0 | FG75: 0 | FH75: 0 | FI75: 0 | FJ75: 0 | FK75: 0 | FL75: 0 | FM75: 0 | FN75: 0 | FO75: 0 | FP75: 0 | FQ75: 0 | FR75: 0 | FS75: 0 | FT75: 0 | FU75: 0 | FV75: 0 | FW75: 0 | FX75: 0 | FY75: 0 | FZ75: 0 | GA75: 0 | GB75: 0 | GC75: 0 | GD75: 0 | GE75: 0 | GF75: 0 | GG75: 0 | GH75: 0
CV76: 0 | CW76: 0 | CX76: 0 | CY76: 0 | CZ76: 0 | DA76: 0 | DB76: 0 | DC76: 0 | DD76: 0 | DE76: 0 | DF76: 0 | DG76: 0 | DH76: 0 | DI76: 0 | DJ76: 0 | DK76: 0 | DL76: 0 | DM76: 0 | DN76: 0 | DO76: 0 | DP76: 0 | DQ76: 0 | DR76: 0 | DS76: 0 | DT76: 0 | DU76: 0 | DV76: 0 | DW76: 0 | DX76: 0 | DY76: 0 | DZ76: 0 | EA76: 0 | EB76: 0 | EC76: 0 | ED76: 0 | EE76: 0 | EF76: 0 | EG76: 0 | EH76: 0 | EI76: 0 | EJ76: 0 | EK76: 0 | EL76: 0 | EM76: 0 | EN76: 0 | EO76: 0 | EP76: 0 | EQ76: 0 | ER76: 0 | ES76: 0 | ET76: 0 | EU76: 0 | EV76: 0 | EW76: 0 | EX76: 0 | EY76: 0 | EZ76: 0 | FA76: 0 | FB76: 0 | FC76: 0 | FD76: 0 | FE76: 0 | FF76: 0 | FG76: 0 | FH76: 0 | FI76: 0 | FJ76: 0 | FK76: 0 | FL76: 0 | FM76: 0 | FN76: 0 | FO76: 0 | FP76: 0 | FQ76: 0 | FR76: 0 | FS76: 0 | FT76: 0 | FU76: 0 | FV76: 0 | FW76: 0 | FX76: 0 | FY76: 0 | FZ76: 0 | GA76: 0 | GB76: 0 | GC76: 0 | GD76: 0 | GE76: 0 | GF76: 0 | GG76: 0 | GH76: 0
CV77: 0 | CW77: 0 | CX77: 0 | CY77: 0 | CZ77: 0 | DA77: 0 | DB77: 0 | DC77: 0 | DD77: 0 | DE77: 0 | DF77: 0 | DG77: 0 | DH77: 0 | DI77: 0 | DJ77: 0 | DK77: 0 | DL77: 0 | DM77: 0 | DN77: 0 | DO77: 0 | DP77: 0 | DQ77: 0 | DR77: 0 | DS77: 0 | DT77: 0 | DU77: 0 | DV77: 0 | DW77: 0 | DX77: 0 | DY77: 0 | DZ77: 0 | EA77: 0 | EB77: 0 | EC77: 0 | ED77: 0 | EE77: 0 | EF77: 0 | EG77: 0 | EH77: 0 | EI77: 0 | EJ77: 0 | EK77: 0 | EL77: 0 | EM77: 0 | EN77: 0 | EO77: 0 | EP77: 0 | EQ77: 0 | ER77: 0 | ES77: 0 | ET77: 0 | EU77: 0 | EV77: 0 | EW77: 0 | EX77: 0 | EY77: 0 | EZ77: 0 | FA77: 0 | FB77: 0 | FC77: 0 | FD77: 0 | FE77: 0 | FF77: 0 | FG77: 0 | FH77: 0 | FI77: 0 | FJ77: 0 | FK77: 0 | FL77: 0 | FM77: 0 | FN77: 0 | FO77: 0 | FP77: 0 | FQ77: 0 | FR77: 0 | FS77: 0 | FT77: 0 | FU77: 0 | FV77: 0 | FW77: 0 | FX77: 0 | FY77: 0 | FZ77: 0 | GA77: 0 | GB77: 0 | GC77: 0 | GD77: 0 | GE77: 0 | GF77: 0 | GG77: 0 | GH77: 0
CV78: 0 | CW78: 0 | CX78: 0 | CY78: 0 | CZ78: 0 | DA78: 0 | DB78: 0 | DC78: 0 | DD78: 0 | DE78: 0 | DF78: 0 | DG78: 0 | DH78: 0 | DI78: 0 | DJ78: 0 | DK78: 0 | DL78: 0 | DM78: 0 | DN78: 0 | DO78: 0 | DP78: 0 | DQ78: 0 | DR78: 0 | DS78: 0 | DT78: 0 | DU78: 0 | DV78: 0 | DW78: 0 | DX78: 0 | DY78: 0 | DZ78: 0 | EA78: 0 | EB78: 0 | EC78: 0 | ED78: 0 | EE78: 0 | EF78: 0 | EG78: 0 | EH78: 0 | EI78: 0 | EJ78: 0 | EK78: 0 | EL78: 0 | EM78: 0 | EN78: 0 | EO78: 0 | EP78: 0 | EQ78: 0 | ER78: 0 | ES78: 0 | ET78: 0 | EU78: 0 | EV78: 0 | EW78: 0 | EX78: 0 | EY78: 0 | EZ78: 0 | FA78: 0 | FB78: 0 | FC78: 0 | FD78: 0 | FE78: 0 | FF78: 0 | FG78: 0 | FH78: 0 | FI78: 0 | FJ78: 0 | FK78: 0 | FL78: 0 | FM78: 0 | FN78: 0 | FO78: 0 | FP78: 0 | FQ78: 0 | FR78: 0 | FS78: 0 | FT78: 0 | FU78: 0 | FV78: 0 | FW78: 0 | FX78: 0 | FY78: 0 | FZ78: 0 | GA78: 0 | GB78: 0 | GC78: 0 | GD78: 0 | GE78: 0 | GF78: 0 | GG78: 0 | GH78: 0
CV79: 0 | CW79: 0 | CX79: 0 | CY79: 0 | CZ79: 0 | DA79: 0 | DB79: 0 | DC79: 0 | DD79: 0 | DE79: 0 | DF79: 0 | DG79: 0 | DH79: 0 | DI79: 0 | DJ79: 0 | DK79: 0 | DL79: 0 | DM79: 0 | DN79: 0 | DO79: 0 | DP79: 0 | DQ79: 0 | DR79: 0 | DS79: 0 | DT79: 0 | DU79: 0 | DV79: 0 | DW79: 0 | DX79: 0 | DY79: 0 | DZ79: 0 | EA79: 0 | EB79: 0 | EC79: 0 | ED79: 0 | EE79: 0 | EF79: 0 | EG79: 0 | EH79: 0 | EI79: 0 | EJ79: 0 | EK79: 0 | EL79: 0 | EM79: 0 | EN79: 0 | EO79: 0 | EP79: 0 | EQ79: 0 | ER79: 0 | ES79: 0 | ET79: 0 | EU79: 0 | EV79: 0 | EW79: 0 | EX79: 0 | EY79: 0 | EZ79: 0 | FA79: 0 | FB79: 0 | FC79: 0 | FD79: 0 | FE79: 0 | FF79: 0 | FG79: 0 | FH79: 0 | FI79: 0 | FJ79: 0 | FK79: 0 | FL79: 0 | FM79: 0 | FN79: 0 | FO79: 0 | FP79: 0 | FQ79: 0 | FR79: 0 | FS79: 0 | FT79: 0 | FU79: 0 | FV79: 0 | FW79: 0 | FX79: 0 | FY79: 0 | FZ79: 0 | GA79: 0 | GB79: 0 | GC79: 0 | GD79: 0 | GE79: 0 | GF79: 0 | GG79: 0 | GH79: 0
CV80: 0 | CW80: 0 | CX80: 0 | CY80: 0 | CZ80: 0 | DA80: 0 | DB80: 0 | DC80: 0 | DD80: 0 | DE80: 0 | DF80: 0 | DG80: 0 | DH80: 0 | DI80: 0 | DJ80: 0 | DK80: 0 | DL80: 0 | DM80: 0 | DN80: 0 | DO80: 0 | DP80: 0 | DQ80: 0 | DR80: 0 | DS80: 0 | DT80: 0 | DU80: 0 | DV80: 0 | DW80: 0 | DX80: 0 | DY80: 0 | DZ80: 0 | EA80: 0 | EB80: 0 | EC80: 0 | ED80: 0 | EE80: 0 | EF80: 0 | EG80: 0 | EH80: 0 | EI80: 0 | EJ80: 0 | EK80: 0 | EL80: 0 | EM80: 0 | EN80: 0 | EO80: 0 | EP80: 0 | EQ80: 0 | ER80: 0 | ES80: 0 | ET80: 0 | EU80: 0 | EV80: 0 | EW80: 0 | EX80: 0 | EY80: 0 | EZ80: 0 | FA80: 0 | FB80: 0 | FC80: 0 | FD80: 0 | FE80: 0 | FF80: 0 | FG80: 0 | FH80: 0 | FI80: 0 | FJ80: 0 | FK80: 0 | FL80: 0 | FM80: 0 | FN80: 0 | FO80: 0 | FP80: 0 | FQ80: 0 | FR80: 0 | FS80: 0 | FT80: 0 | FU80: 0 | FV80: 0 | FW80: 0 | FX80: 0 | FY80: 0 | FZ80: 0 | GA80: 0 | GB80: 0 | GC80: 0 | GD80: 0 | GE80: 0 | GF80: 0 | GG80: 0 | GH80: 0
CV81: 0 | CW81: 0 | CX81: 0 | CY81: 0 | CZ81: 0 | DA81: 0 | DB81: 0 | DC81: 0 | DD81: 0 | DE81: 0 | DF81: 0 | DG81: 0 | DH81: 0 | DI81: 0 | DJ81: 0 | DK81: 0 | DL81: 0 | DM81: 0 | DN81: 0 | DO81: 0 | DP81: 0 | DQ81: 0 | DR81: 0 | DS81: 0 | DT81: 0 | DU81: 0 | DV81: 0 | DW81: 0 | DX81: 0 | DY81: 0 | DZ81: 0 | EA81: 0 | EB81: 0 | EC81: 0 | ED81: 0 | EE81: 0 | EF81: 0 | EG81: 0 | EH81: 0 | EI81: 0 | EJ81: 0 | EK81: 0 | EL81: 0 | EM81: 0 | EN81: 0 | EO81: 0 | EP81: 0 | EQ81: 0 | ER81: 0 | ES81: 0 | ET81: 0 | EU81: 0 | EV81: 0 | EW81: 0 | EX81: 0 | EY81: 0 | EZ81: 0 | FA81: 0 | FB81: 0 | FC81: 0 | FD81: 0 | FE81: 0 | FF81: 0 | FG81: 0 | FH81: 0 | FI81: 0 | FJ81: 0 | FK81: 0 | FL81: 0 | FM81: 0 | FN81: 0 | FO81: 0 | FP81: 0 | FQ81: 0 | FR81: 0 | FS81: 0 | FT81: 0 | FU81: 0 | FV81: 0 | FW81: 0 | FX81: 0 | FY81: 0 | FZ81: 0 | GA81: 0 | GB81: 0 | GC81: 0 | GD81: 0 | GE81: 0 | GF81: 0 | GG81: 0 | GH81: 0
CV82: 0 | CW82: 0 | CX82: 0 | CY82: 0 | CZ82: 0 | DA82: 0 | DB82: 0 | DC82: 0 | DD82: 0 | DE82: 0 | DF82: 0 | DG82: 0 | DH82: 0 | DI82: 0 | DJ82: 0 | DK82: 0 | DL82: 0 | DM82: 0 | DN82: 0 | DO82: 0 | DP82: 0 | DQ82: 0 | DR82: 0 | DS82: 0 | DT82: 0 | DU82: 0 | DV82: 0 | DW82: 0 | DX82: 0 | DY82: 0 | DZ82: 0 | EA82: 0 | EB82: 0 | EC82: 0 | ED82: 0 | EE82: 0 | EF82: 0 | EG82: 0 | EH82: 0 | EI82: 0 | EJ82: 0 | EK82: 0 | EL82: 0 | EM82: 0 | EN82: 0 | EO82: 0 | EP82: 0 | EQ82: 0 | ER82: 0 | ES82: 0 | ET82: 0 | EU82: 0 | EV82: 0 | EW82: 0 | EX82: 0 | EY82: 0 | EZ82: 0 | FA82: 0 | FB82: 0 | FC82: 0 | FD82: 0 | FE82: 0 | FF82: 0 | FG82: 0 | FH82: 0 | FI82: 0 | FJ82: 0 | FK82: 0 | FL82: 0 | FM82: 0 | FN82: 0 | FO82: 0 | FP82: 0 | FQ82: 0 | FR82: 0 | FS82: 0 | FT82: 0 | FU82: 0 | FV82: 0 | FW82: 0 | FX82: 0 | FY82: 0 | FZ82: 0 | GA82: 0 | GB82: 0 | GC82: 0 | GD82: 0 | GE82: 0 | GF82: 0 | GG82: 0 | GH82: 0
CV83: 0 | CW83: 0 | CX83: 0 | CY83: 0 | CZ83: 0 | DA83: 0 | DB83: 0 | DC83: 0 | DD83: 0 | DE83: 0 | DF83: 0 | DG83: 0 | DH83: 0 | DI83: 0 | DJ83: 0 | DK83: 0 | DL83: 0 | DM83: 0 | DN83: 0 | DO83: 0 | DP83: 0 | DQ83: 0 | DR83: 0 | DS83: 0 | DT83: 0 | DU83: 0 | DV83: 0 | DW83: 0 | DX83: 0 | DY83: 0 | DZ83: 0 | EA83: 0 | EB83: 0 | EC83: 0 | ED83: 0 | EE83: 0 | EF83: 0 | EG83: 0 | EH83: 0 | EI83: 0 | EJ83: 0 | EK83: 0 | EL83: 0 | EM83: 0 | EN83: 0 | EO83: 0 | EP83: 0 | EQ83: 0 | ER83: 0 | ES83: 0 | ET83: 0 | EU83: 0 | EV83: 0 | EW83: 0 | EX83: 0 | EY83: 0 | EZ83: 0 | FA83: 0 | FB83: 0 | FC83: 0 | FD83: 0 | FE83: 0 | FF83: 0 | FG83: 0 | FH83: 0 | FI83: 0 | FJ83: 0 | FK83: 0 | FL83: 0 | FM83: 0 | FN83: 0 | FO83: 0 | FP83: 0 | FQ83: 0 | FR83: 0 | FS83: 0 | FT83: 0 | FU83: 0 | FV83: 0 | FW83: 0 | FX83: 0 | FY83: 0 | FZ83: 0 | GA83: 0 | GB83: 0 | GC83: 0 | GD83: 0 | GE83: 0 | GF83: 0 | GG83: 0 | GH83: 0
CV84: 0 | CW84: 0 | CX84: 0 | CY84: 0 | CZ84: 0 | DA84: 0 | DB84: 0 | DC84: 0 | DD84: 0 | DE84: 0 | DF84: 0 | DG84: 0 | DH84: 0 | DI84: 0 | DJ84: 0 | DK84: 0 | DL84: 0 | DM84: 0 | DN84: 0 | DO84: 0 | DP84: 0 | DQ84: 0 | DR84: 0 | DS84: 0 | DT84: 0 | DU84: 0 | DV84: 0 | DW84: 0 | DX84: 0 | DY84: 0 | DZ84: 0 | EA84: 0 | EB84: 0 | EC84: 0 | ED84: 0 | EE84: 0 | EF84: 0 | EG84: 0 | EH84: 0 | EI84: 0 | EJ84: 0 | EK84: 0 | EL84: 0 | EM84: 0 | EN84: 0 | EO84: 0 | EP84: 0 | EQ84: 0 | ER84: 0 | ES84: 0 | ET84: 0 | EU84: 0 | EV84: 0 | EW84: 0 | EX84: 0 | EY84: 0 | EZ84: 0 | FA84: 0 | FB84: 0 | FC84: 0 | FD84: 0 | FE84: 0 | FF84: 0 | FG84: 0 | FH84: 0 | FI84: 0 | FJ84: 0 | FK84: 0 | FL84: 0 | FM84: 0 | FN84: 0 | FO84: 0 | FP84: 0 | FQ84: 0 | FR84: 0 | FS84: 0 | FT84: 0 | FU84: 0 | FV84: 0 | FW84: 0 | FX84: 0 | FY84: 0 | FZ84: 0 | GA84: 0 | GB84: 0 | GC84: 0 | GD84: 0 | GE84: 0 | GF84: 0 | GG84: 0 | GH84: 0
CV85: 0 | CW85: 0 | CX85: 0 | CY85: 0 | CZ85: 0 | DA85: 0 | DB85: 0 | DC85: 0 | DD85: 0 | DE85: 0 | DF85: 0 | DG85: 0 | DH85: 0 | DI85: 0 | DJ85: 0 | DK85: 0 | DL85: 0 | DM85: 0 | DN85: 0 | DO85: 0 | DP85: 0 | DQ85: 0 | DR85: 0 | DS85: 0 | DT85: 0 | DU85: 0 | DV85: 0 | DW85: 0 | DX85: 0 | DY85: 0 | DZ85: 0 | EA85: 0 | EB85: 0 | EC85: 0 | ED85: 0 | EE85: 0 | EF85: 0 | EG85: 0 | EH85: 0 | EI85: 0 | EJ85: 0 | EK85: 0 | EL85: 0 | EM85: 0 | EN85: 0 | EO85: 0 | EP85: 0 | EQ85: 0 | ER85: 0 | ES85: 0 | ET85: 0 | EU85: 0 | EV85: 0 | EW85: 0 | EX85: 0 | EY85: 0 | EZ85: 0 | FA85: 0 | FB85: 0 | FC85: 0 | FD85: 0 | FE85: 0 | FF85: 0 | FG85: 0 | FH85: 0 | FI85: 0 | FJ85: 0 | FK85: 0 | FL85: 0 | FM85: 0 | FN85: 0 | FO85: 0 | FP85: 0 | FQ85: 0 | FR85: 0 | FS85: 0 | FT85: 0 | FU85: 0 | FV85: 0 | FW85: 0 | FX85: 0 | FY85: 0 | FZ85: 0 | GA85: 0 | GB85: 0 | GC85: 0 | GD85: 0 | GE85: 0 | GF85: 0 | GG85: 0 | GH85: 0
CV86: 0 | CW86: 0 | CX86: 0 | CY86: 0 | CZ86: 0 | DA86: 0 | DB86: 0 | DC86: 0 | DD86: 0 | DE86: 0 | DF86: 0 | DG86: 0 | DH86: 0 | DI86: 0 | DJ86: 0 | DK86: 0 | DL86: 0 | DM86: 0 | DN86: 0 | DO86: 0 | DP86: 0 | DQ86: 0 | DR86: 0 | DS86: 0 | DT86: 0 | DU86: 0 | DV86: 0 | DW86: 0 | DX86: 0 | DY86: 0 | DZ86: 0 | EA86: 0 | EB86: 0 | EC86: 0 | ED86: 0 | EE86: 0 | EF86: 0 | EG86: 0 | EH86: 0 | EI86: 0 | EJ86: 0 | EK86: 0 | EL86: 0 | EM86: 0 | EN86: 0 | EO86: 0 | EP86: 0 | EQ86: 0 | ER86: 0 | ES86: 0 | ET86: 0 | EU86: 0 | EV86: 0 | EW86: 0 | EX86: 0 | EY86: 0 | EZ86: 0 | FA86: 0 | FB86: 0 | FC86: 0 | FD86: 0 | FE86: 0 | FF86: 0 | FG86: 0 | FH86: 0 | FI86: 0 | FJ86: 0 | FK86: 0 | FL86: 0 | FM86: 0 | FN86: 0 | FO86: 0 | FP86: 0 | FQ86: 0 | FR86: 0 | FS86: 0 | FT86: 0 | FU86: 0 | FV86: 0 | FW86: 0 | FX86: 0 | FY86: 0 | FZ86: 0 | GA86: 0 | GB86: 0 | GC86: 0 | GD86: 0 | GE86: 0 | GF86: 0 | GG86: 0 | GH86: 0
CV87: 0 | CW87: 0 | CX87: 0 | CY87: 0 | CZ87: 0 | DA87: 0 | DB87: 0 | DC87: 0 | DD87: 0 | DE87: 0 | DF87: 0 | DG87: 0 | DH87: 0 | DI87: 0 | DJ87: 0 | DK87: 0 | DL87: 0 | DM87: 0 | DN87: 0 | DO87: 0 | DP87: 0 | DQ87: 0 | DR87: 0 | DS87: 0 | DT87: 0 | DU87: 0 | DV87: 0 | DW87: 0 | DX87: 0 | DY87: 0 | DZ87: 0 | EA87: 0 | EB87: 0 | EC87: 0 | ED87: 0 | EE87: 0 | EF87: 0 | EG87: 0 | EH87: 0 | EI87: 0 | EJ87: 0 | EK87: 0 | EL87: 0 | EM87: 0 | EN87: 0 | EO87: 0 | EP87: 0 | EQ87: 0 | ER87: 0 | ES87: 0 | ET87: 0 | EU87: 0 | EV87: 0 | EW87: 0 | EX87: 0 | EY87: 0 | EZ87: 0 | FA87: 0 | FB87: 0 | FC87: 0 | FD87: 0 | FE87: 0 | FF87: 0 | FG87: 0 | FH87: 0 | FI87: 0 | FJ87: 0 | FK87: 0 | FL87: 0 | FM87: 0 | FN87: 0 | FO87: 0 | FP87: 0 | FQ87: 0 | FR87: 0 | FS87: 0 | FT87: 0 | FU87: 0 | FV87: 0 | FW87: 0 | FX87: 0 | FY87: 0 | FZ87: 0 | GA87: 0 | GB87: 0 | GC87: 0 | GD87: 0 | GE87: 0 | GF87: 0 | GG87: 0 | GH87: 0
CV88: 0 | CW88: 0 | CX88: 0 | CY88: 0 | CZ88: 0 | DA88: 0 | DB88: 0 | DC88: 0 | DD88: 0 | DE88: 0 | DF88: 0 | DG88: 0 | DH88: 0 | DI88: 0 | DJ88: 0 | DK88: 0 | DL88: 0 | DM88: 0 | DN88: 0 | DO88: 0 | DP88: 0 | DQ88: 0 | DR88: 0 | DS88: 0 | DT88: 0 | DU88: 0 | DV88: 0 | DW88: 0 | DX88: 0 | DY88: 0 | DZ88: 0 | EA88: 0 | EB88: 0 | EC88: 0 | ED88: 0 | EE88: 0 | EF88: 0 | EG88: 0 | EH88: 0 | EI88: 0 | EJ88: 0 | EK88: 0 | EL88: 0 | EM88: 0 | EN88: 0 | EO88: 0 | EP88: 0 | EQ88: 0 | ER88: 0 | ES88: 0 | ET88: 0 | EU88: 0 | EV88: 0 | EW88: 0 | EX88: 0 | EY88: 0 | EZ88: 0 | FA88: 0 | FB88: 0 | FC88: 0 | FD88: 0 | FE88: 0 | FF88: 0 | FG88: 0 | FH88: 0 | FI88: 0 | FJ88: 0 | FK88: 0 | FL88: 0 | FM88: 0 | FN88: 0 | FO88: 0 | FP88: 0 | FQ88: 0 | FR88: 0 | FS88: 0 | FT88: 0 | FU88: 0 | FV88: 0 | FW88: 0 | FX88: 0 | FY88: 0 | FZ88: 0 | GA88: 0 | GB88: 0 | GC88: 0 | GD88: 0 | GE88: 0 | GF88: 0 | GG88: 0 | GH88: 0
CV89: 0 | CW89: 0 | CX89: 0 | CY89: 0 | CZ89: 0 | DA89: 0 | DB89: 0 | DC89: 0 | DD89: 0 | DE89: 0 | DF89: 0 | DG89: 0 | DH89: 0 | DI89: 0 | DJ89: 0 | DK89: 0 | DL89: 0 | DM89: 0 | DN89: 0 | DO89: 0 | DP89: 0 | DQ89: 0 | DR89: 0 | DS89: 0 | DT89: 0 | DU89: 0 | DV89: 0 | DW89: 0 | DX89: 0 | DY89: 0 | DZ89: 0 | EA89: 0 | EB89: 0 | EC89: 0 | ED89: 0 | EE89: 0 | EF89: 0 | EG89: 0 | EH89: 0 | EI89: 0 | EJ89: 0 | EK89: 0 | EL89: 0 | EM89: 0 | EN89: 0 | EO89: 0 | EP89: 0 | EQ89: 0 | ER89: 0 | ES89: 0 | ET89: 0 | EU89: 0 | EV89: 0 | EW89: 0 | EX89: 0 | EY89: 0 | EZ89: 0 | FA89: 0 | FB89: 0 | FC89: 0 | FD89: 0 | FE89: 0 | FF89: 0 | FG89: 0 | FH89: 0 | FI89: 0 | FJ89: 0 | FK89: 0 | FL89: 0 | FM89: 0 | FN89: 0 | FO89: 0 | FP89: 0 | FQ89: 0 | FR89: 0 | FS89: 0 | FT89: 0 | FU89: 0 | FV89: 0 | FW89: 0 | FX89: 0 | FY89: 0 | FZ89: 0 | GA89: 0 | GB89: 0 | GC89: 0 | GD89: 0 | GE89: 0 | GF89: 0 | GG89: 0 | GH89: 0
CV90: 0 | CW90: 0 | CX90: 0 | CY90: 0 | CZ90: 0 | DA90: 0 | DB90: 0 | DC90: 0 | DD90: 0 | DE90: 0 | DF90: 0 | DG90: 0 | DH90: 0 | DI90: 0 | DJ90: 0 | DK90: 0 | DL90: 0 | DM90: 0 | DN90: 0 | DO90: 0 | DP90: 0 | DQ90: 0 | DR90: 0 | DS90: 0 | DT90: 0 | DU90: 0 | DV90: 0 | DW90: 0 | DX90: 0 | DY90: 0 | DZ90: 0 | EA90: 0 | EB90: 0 | EC90: 0 | ED90: 0 | EE90: 0 | EF90: 0 | EG90: 0 | EH90: 0 | EI90: 0 | EJ90: 0 | EK90: 0 | EL90: 0 | EM90: 0 | EN90: 0 | EO90: 0 | EP90: 0 | EQ90: 0 | ER90: 0 | ES90: 0 | ET90: 0 | EU90: 0 | EV90: 0 | EW90: 0 | EX90: 0 | EY90: 0 | EZ90: 0 | FA90: 0 | FB90: 0 | FC90: 0 | FD90: 0 | FE90: 0 | FF90: 0 | FG90: 0 | FH90: 0 | FI90: 0 | FJ90: 0 | FK90: 0 | FL90: 0 | FM90: 0 | FN90: 0 | FO90: 0 | FP90: 0 | FQ90: 0 | FR90: 0 | FS90: 0 | FT90: 0 | FU90: 0 | FV90: 0 | FW90: 0 | FX90: 0 | FY90: 0 | FZ90: 0 | GA90: 0 | GB90: 0 | GC90: 0 | GD90: 0 | GE90: 0 | GF90: 0 | GG90: 0 | GH90: 0
CV91: 0 | CW91: 0 | CX91: 0 | CY91: 0 | CZ91: 0 | DA91: 0 | DB91: 0 | DC91: 0 | DD91: 0 | DE91: 0 | DF91: 0 | DG91: 0 | DH91: 0 | DI91: 0 | DJ91: 0 | DK91: 0 | DL91: 0 | DM91: 0 | DN91: 0 | DO91: 0 | DP91: 0 | DQ91: 0 | DR91: 0 | DS91: 0 | DT91: 0 | DU91: 0 | DV91: 0 | DW91: 0 | DX91: 0 | DY91: 0 | DZ91: 0 | EA91: 0 | EB91: 0 | EC91: 0 | ED91: 0 | EE91: 0 | EF91: 0 | EG91: 0 | EH91: 0 | EI91: 0 | EJ91: 0 | EK91: 0 | EL91: 0 | EM91: 0 | EN91: 0 | EO91: 0 | EP91: 0 | EQ91: 0 | ER91: 0 | ES91: 0 | ET91: 0 | EU91: 0 | EV91: 0 | EW91: 0 | EX91: 0 | EY91: 0 | EZ91: 0 | FA91: 0 | FB91: 0 | FC91: 0 | FD91: 0 | FE91: 0 | FF91: 0 | FG91: 0 | FH91: 0 | FI91: 0 | FJ91: 0 | FK91: 0 | FL91: 0 | FM91: 0 | FN91: 0 | FO91: 0 | FP91: 0 | FQ91: 0 | FR91: 0 | FS91: 0 | FT91: 0 | FU91: 0 | FV91: 0 | FW91: 0 | FX91: 0 | FY91: 0 | FZ91: 0 | GA91: 0 | GB91: 0 | GC91: 0 | GD91: 0 | GE91: 0 | GF91: 0 | GG91: 0 | GH91: 0
CV92: 0 | CW92: 0 | CX92: 0 | CY92: 0 | CZ92: 0 | DA92: 0 | DB92: 0 | DC92: 0 | DD92: 0 | DE92: 0 | DF92: 0 | DG92: 0 | DH92: 0 | DI92: 0 | DJ92: 0 | DK92: 0 | DL92: 0 | DM92: 0 | DN92: 0 | DO92: 0 | DP92: 0 | DQ92: 0 | DR92: 0 | DS92: 0 | DT92: 0 | DU92: 0 | DV92: 0 | DW92: 0 | DX92: 0 | DY92: 0 | DZ92: 0 | EA92: 0 | EB92: 0 | EC92: 0 | ED92: 0 | EE92: 0 | EF92: 0 | EG92: 0 | EH92: 0 | EI92: 0 | EJ92: 0 | EK92: 0 | EL92: 0 | EM92: 0 | EN92: 0 | EO92: 0 | EP92: 0 | EQ92: 0 | ER92: 0 | ES92: 0 | ET92: 0 | EU92: 0 | EV92: 0 | EW92: 0 | EX92: 0 | EY92: 0 | EZ92: 0 | FA92: 0 | FB92: 0 | FC92: 0 | FD92: 0 | FE92: 0 | FF92: 0 | FG92: 0 | FH92: 0 | FI92: 0 | FJ92: 0 | FK92: 0 | FL92: 0 | FM92: 0 | FN92: 0 | FO92: 0 | FP92: 0 | FQ92: 0 | FR92: 0 | FS92: 0 | FT92: 0 | FU92: 0 | FV92: 0 | FW92: 0 | FX92: 0 | FY92: 0 | FZ92: 0 | GA92: 0 | GB92: 0 | GC92: 0 | GD92: 0 | GE92: 0 | GF92: 0 | GG92: 0 | GH92: 0
CV93: 0 | CW93: 0 | CX93: 0 | CY93: 0 | CZ93: 0 | DA93: 0 | DB93: 0 | DC93: 0 | DD93: 0 | DE93: 0 | DF93: 0 | DG93: 0 | DH93: 0 | DI93: 0 | DJ93: 0 | DK93: 0 | DL93: 0 | DM93: 0 | DN93: 0 | DO93: 0 | DP93: 0 | DQ93: 0 | DR93: 0 | DS93: 0 | DT93: 0 | DU93: 0 | DV93: 0 | DW93: 0 | DX93: 0 | DY93: 0 | DZ93: 0 | EA93: 0 | EB93: 0 | EC93: 0 | ED93: 0 | EE93: 0 | EF93: 0 | EG93: 0 | EH93: 0 | EI93: 0 | EJ93: 0 | EK93: 0 | EL93: 0 | EM93: 0 | EN93: 0 | EO93: 0 | EP93: 0 | EQ93: 0 | ER93: 0 | ES93: 0 | ET93: 0 | EU93: 0 | EV93: 0 | EW93: 0 | EX93: 0 | EY93: 0 | EZ93: 0 | FA93: 0 | FB93: 0 | FC93: 0 | FD93: 0 | FE93: 0 | FF93: 0 | FG93: 0 | FH93: 0 | FI93: 0 | FJ93: 0 | FK93: 0 | FL93: 0 | FM93: 0 | FN93: 0 | FO93: 0 | FP93: 0 | FQ93: 0 | FR93: 0 | FS93: 0 | FT93: 0 | FU93: 0 | FV93: 0 | FW93: 0 | FX93: 0 | FY93: 0 | FZ93: 0 | GA93: 0 | GB93: 0 | GC93: 0 | GD93: 0 | GE93: 0 | GF93: 0 | GG93: 0 | GH93: 0
CV94: 0 | CW94: 0 | CX94: 0 | CY94: 0 | CZ94: 0 | DA94: 0 | DB94: 0 | DC94: 0 | DD94: 0 | DE94: 0 | DF94: 0 | DG94: 0 | DH94: 0 | DI94: 0 | DJ94: 0 | DK94: 0 | DL94: 0 | DM94: 0 | DN94: 0 | DO94: 0 | DP94: 0 | DQ94: 0 | DR94: 0 | DS94: 0 | DT94: 0 | DU94: 0 | DV94: 0 | DW94: 0 | DX94: 0 | DY94: 0 | DZ94: 0 | EA94: 0 | EB94: 0 | EC94: 0 | ED94: 0 | EE94: 0 | EF94: 0 | EG94: 0 | EH94: 0 | EI94: 0 | EJ94: 0 | EK94: 0 | EL94: 0 | EM94: 0 | EN94: 0 | EO94: 0 | EP94: 0 | EQ94: 0 | ER94: 0 | ES94: 0 | ET94: 0 | EU94: 0 | EV94: 0 | EW94: 0 | EX94: 0 | EY94: 0 | EZ94: 0 | FA94: 0 | FB94: 0 | FC94: 0 | FD94: 0 | FE94: 0 | FF94: 0 | FG94: 0 | FH94: 0 | FI94: 0 | FJ94: 0 | FK94: 0 | FL94: 0 | FM94: 0 | FN94: 0 | FO94: 0 | FP94: 0 | FQ94: 0 | FR94: 0 | FS94: 0 | FT94: 0 | FU94: 0 | FV94: 0 | FW94: 0 | FX94: 0 | FY94: 0 | FZ94: 0 | GA94: 0 | GB94: 0 | GC94: 0 | GD94: 0 | GE94: 0 | GF94: 0 | GG94: 0 | GH94: 0
CV95: 0 | CW95: 0 | CX95: 0 | CY95: 0 | CZ95: 0 | DA95: 0 | DB95: 0 | DC95: 0 | DD95: 0 | DE95: 0 | DF95: 0 | DG95: 0 | DH95: 0 | DI95: 0 | DJ95: 0 | DK95: 0 | DL95: 0 | DM95: 0 | DN95: 0 | DO95: 0 | DP95: 0 | DQ95: 0 | DR95: 0 | DS95: 0 | DT95: 0 | DU95: 0 | DV95: 0 | DW95: 0 | DX95: 0 | DY95: 0 | DZ95: 0 | EA95: 0 | EB95: 0 | EC95: 0 | ED95: 0 | EE95: 0 | EF95: 0 | EG95: 0 | EH95: 0 | EI95: 0 | EJ95: 0 | EK95: 0 | EL95: 0 | EM95: 0 | EN95: 0 | EO95: 0 | EP95: 0 | EQ95: 0 | ER95: 0 | ES95: 0 | ET95: 0 | EU95: 0 | EV95: 0 | EW95: 0 | EX95: 0 | EY95: 0 | EZ95: 0 | FA95: 0 | FB95: 0 | FC95: 0 | FD95: 0 | FE95: 0 | FF95: 0 | FG95: 0 | FH95: 0 | FI95: 0 | FJ95: 0 | FK95: 0 | FL95: 0 | FM95: 0 | FN95: 0 | FO95: 0 | FP95: 0 | FQ95: 0 | FR95: 0 | FS95: 0 | FT95: 0 | FU95: 0 | FV95: 0 | FW95: 0 | FX95: 0 | FY95: 0 | FZ95: 0 | GA95: 0 | GB95: 0 | GC95: 0 | GD95: 0 | GE95: 0 | GF95: 0 | GG95: 0 | GH95: 0
CV96: 0 | CW96: 0 | CX96: 0 | CY96: 0 | CZ96: 0 | DA96: 0 | DB96: 0 | DC96: 0 | DD96: 0 | DE96: 0 | DF96: 0 | DG96: 0 | DH96: 0 | DI96: 0 | DJ96: 0 | DK96: 0 | DL96: 0 | DM96: 0 | DN96: 0 | DO96: 0 | DP96: 0 | DQ96: 0 | DR96: 0 | DS96: 0 | DT96: 0 | DU96: 0 | DV96: 0 | DW96: 0 | DX96: 0 | DY96: 0 | DZ96: 0 | EA96: 0 | EB96: 0 | EC96: 0 | ED96: 0 | EE96: 0 | EF96: 0 | EG96: 0 | EH96: 0 | EI96: 0 | EJ96: 0 | EK96: 0 | EL96: 0 | EM96: 0 | EN96: 0 | EO96: 0 | EP96: 0 | EQ96: 0 | ER96: 0 | ES96: 0 | ET96: 0 | EU96: 0 | EV96: 0 | EW96: 0 | EX96: 0 | EY96: 0 | EZ96: 0 | FA96: 0 | FB96: 0 | FC96: 0 | FD96: 0 | FE96: 0 | FF96: 0 | FG96: 0 | FH96: 0 | FI96: 0 | FJ96: 0 | FK96: 0 | FL96: 0 | FM96: 0 | FN96: 0 | FO96: 0 | FP96: 0 | FQ96: 0 | FR96: 0 | FS96: 0 | FT96: 0 | FU96: 0 | FV96: 0 | FW96: 0 | FX96: 0 | FY96: 0 | FZ96: 0 | GA96: 0 | GB96: 0 | GC96: 0 | GD96: 0 | GE96: 0 | GF96: 0 | GG96: 0 | GH96: 0
CV97: 0 | CW97: 0 | CX97: 0 | CY97: 0 | CZ97: 0 | DA97: 0 | DB97: 0 | DC97: 0 | DD97: 0 | DE97: 0 | DF97: 0 | DG97: 0 | DH97: 0 | DI97: 0 | DJ97: 0 | DK97: 0 | DL97: 0 | DM97: 0 | DN97: 0 | DO97: 0 | DP97: 0 | DQ97: 0 | DR97: 0 | DS97: 0 | DT97: 0 | DU97: 0 | DV97: 0 | DW97: 0 | DX97: 0 | DY97: 0 | DZ97: 0 | EA97: 0 | EB97: 0 | EC97: 0 | ED97: 0 | EE97: 0 | EF97: 0 | EG97: 0 | EH97: 0 | EI97: 0 | EJ97: 0 | EK97: 0 | EL97: 0 | EM97: 0 | EN97: 0 | EO97: 0 | EP97: 0 | EQ97: 0 | ER97: 0 | ES97: 0 | ET97: 0 | EU97: 0 | EV97: 0 | EW97: 0 | EX97: 0 | EY97: 0 | EZ97: 0 | FA97: 0 | FB97: 0 | FC97: 0 | FD97: 0 | FE97: 0 | FF97: 0 | FG97: 0 | FH97: 0 | FI97: 0 | FJ97: 0 | FK97: 0 | FL97: 0 | FM97: 0 | FN97: 0 | FO97: 0 | FP97: 0 | FQ97: 0 | FR97: 0 | FS97: 0 | FT97: 0 | FU97: 0 | FV97: 0 | FW97: 0 | FX97: 0 | FY97: 0 | FZ97: 0 | GA97: 0 | GB97: 0 | GC97: 0 | GD97: 0 | GE97: 0 | GF97: 0 | GG97: 0 | GH97: 0
CV98: 0 | CW98: 0 | CX98: 0 | CY98: 0 | CZ98: 0 | DA98: 0 | DB98: 0 | DC98: 0 | DD98: 0 | DE98: 0 | DF98: 0 | DG98: 0 | DH98: 0 | DI98: 0 | DJ98: 0 | DK98: 0 | DL98: 0 | DM98: 0 | DN98: 0 | DO98: 0 | DP98: 0 | DQ98: 0 | DR98: 0 | DS98: 0 | DT98: 0 | DU98: 0 | DV98: 0 | DW98: 0 | DX98: 0 | DY98: 0 | DZ98: 0 | EA98: 0 | EB98: 0 | EC98: 0 | ED98: 0 | EE98: 0 | EF98: 0 | EG98: 0 | EH98: 0 | EI98: 0 | EJ98: 0 | EK98: 0 | EL98: 0 | EM98: 0 | EN98: 0 | EO98: 0 | EP98: 0 | EQ98: 0 | ER98: 0 | ES98: 0 | ET98: 0 | EU98: 0 | EV98: 0 | EW98: 0 | EX98: 0 | EY98: 0 | EZ98: 0 | FA98: 0 | FB98: 0 | FC98: 0 | FD98: 0 | FE98: 0 | FF98: 0 | FG98: 0 | FH98: 0 | FI98: 0 | FJ98: 0 | FK98: 0 | FL98: 0 | FM98: 0 | FN98: 0 | FO98: 0 | FP98: 0 | FQ98: 0 | FR98: 0 | FS98: 0 | FT98: 0 | FU98: 0 | FV98: 0 | FW98: 0 | FX98: 0 | FY98: 0 | FZ98: 0 | GA98: 0 | GB98: 0 | GC98: 0 | GD98: 0 | GE98: 0 | GF98: 0 | GG98: 0 | GH98: 0
CV99: 0 | CW99: 0 | CX99: 0 | CY99: 0 | CZ99: 0 | DA99: 0 | DB99: 0 | DC99: 0 | DD99: 0 | DE99: 0 | DF99: 0 | DG99: 0 | DH99: 0 | DI99: 0 | DJ99: 0 | DK99: 0 | DL99: 0 | DM99: 0 | DN99: 0 | DO99: 0 | DP99: 0 | DQ99: 0 | DR99: 0 | DS99: 0 | DT99: 0 | DU99: 0 | DV99: 0 | DW99: 0 | DX99: 0 | DY99: 0 | DZ99: 0 | EA99: 0 | EB99: 0 | EC99: 0 | ED99: 0 | EE99: 0 | EF99: 0 | EG99: 0 | EH99: 0 | EI99: 0 | EJ99: 0 | EK99: 0 | EL99: 0 | EM99: 0 | EN99: 0 | EO99: 0 | EP99: 0 | EQ99: 0 | ER99: 0 | ES99: 0 | ET99: 0 | EU99: 0 | EV99: 0 | EW99: 0 | EX99: 0 | EY99: 0 | EZ99: 0 | FA99: 0 | FB99: 0 | FC99: 0 | FD99: 0 | FE99: 0 | FF99: 0 | FG99: 0 | FH99: 0 | FI99: 0 | FJ99: 0 | FK99: 0 | FL99: 0 | FM99: 0 | FN99: 0 | FO99: 0 | FP99: 0 | FQ99: 0 | FR99: 0 | FS99: 0 | FT99: 0 | FU99: 0 | FV99: 0 | FW99: 0 | FX99: 0 | FY99: 0 | FZ99: 0 | GA99: 0 | GB99: 0 | GC99: 0 | GD99: 0 | GE99: 0 | GF99: 0 | GG99: 0 | GH99: 0
CV100: 0 | CW100: 0 | CX100: 0 | CY100: 0 | CZ100: 0 | DA100: 0 | DB100: 0 | DC100: 0 | DD100: 0 | DE100: 0 | DF100: 0 | DG100: 0 | DH100: 0 | DI100: 0 | DJ100: 0 | DK100: 0 | DL100: 0 | DM100: 0 | DN100: 0 | DO100: 0 | DP100: 0 | DQ100: 0 | DR100: 0 | DS100: 0 | DT100: 0 | DU100: 0 | DV100: 0 | DW100: 0 | DX100: 0 | DY100: 0 | DZ100: 0 | EA100: 0 | EB100: 0 | EC100: 0 | ED100: 0 | EE100: 0 | EF100: 0 | EG100: 0 | EH100: 0 | EI100: 0 | EJ100: 0 | EK100: 0 | EL100: 0 | EM100: 0 | EN100: 0 | EO100: 0 | EP100: 0 | EQ100: 0 | ER100: 0 | ES100: 0 | ET100: 0 | EU100: 0 | EV100: 0 | EW100: 0 | EX100: 0 | EY100: 0 | EZ100: 0 | FA100: 0 | FB100: 0 | FC100: 0 | FD100: 0 | FE100: 0 | FF100: 0 | FG100: 0 | FH100: 0 | FI100: 0 | FJ100: 0 | FK100: 0 | FL100: 0 | FM100: 0 | FN100: 0 | FO100: 0 | FP100: 0 | FQ100: 0 | FR100: 0 | FS100: 0 | FT100: 0 | FU100: 0 | FV100: 0 | FW100: 0 | FX100: 0 | FY100: 0 | FZ100: 0 | GA100: 0 | GB100: 0 | GC100: 0 | GD100: 0 | GE100: 0 | GF100: 0 | GG100: 0 | GH100: 0
CV101: 0 | CW101: 0 | CX101: 0 | CY101: 0 | CZ101: 0 | DA101: 0 | DB101: 0 | DC101: 0 | DD101: 0 | DE101: 0 | DF101: 0 | DG101: 0 | DH101: 0 | DI101: 0 | DJ101: 0 | DK101: 0 | DL101: 0 | DM101: 0 | DN101: 0 | DO101: 0 | DP101: 0 | DQ101: 0 | DR101: 0 | DS101: 0 | DT101: 0 | DU101: 0 | DV101: 0 | DW101: 0 | DX101: 0 | DY101: 0 | DZ101: 0 | EA101: 0 | EB101: 0 | EC101: 0 | ED101: 0 | EE101: 0 | EF101: 0 | EG101: 0 | EH101: 0 | EI101: 0 | EJ101: 0 | EK101: 0 | EL101: 0 | EM101: 0 | EN101: 0 | EO101: 0 | EP101: 0 | EQ101: 0 | ER101: 0 | ES101: 0 | ET101: 0 | EU101: 0 | EV101: 0 | EW101: 0 | EX101: 0 | EY101: 0 | EZ101: 0 | FA101: 0 | FB101: 0 | FC101: 0 | FD101: 0 | FE101: 0 | FF101: 0 | FG101: 0 | FH101: 0 | FI101: 0 | FJ101: 0 | FK101: 0 | FL101: 0 | FM101: 0 | FN101: 0 | FO101: 0 | FP101: 0 | FQ101: 0 | FR101: 0 | FS101: 0 | FT101: 0 | FU101: 0 | FV101: 0 | FW101: 0 | FX101: 0 | FY101: 0 | FZ101: 0 | GA101: 0 | GB101: 0 | GC101: 0 | GD101: 0 | GE101: 0 | GF101: 0 | GG101: 0 | GH101: 0
CV102: 0 | CW102: 0 | CX102: 0 | CY102: 0 | CZ102: 0 | DA102: 0 | DB102: 0 | DC102: 0 | DD102: 0 | DE102: 0 | DF102: 0 | DG102: 0 | DH102: 0 | DI102: 0 | DJ102: 0 | DK102: 0 | DL102: 0 | DM102: 0 | DN102: 0 | DO102: 0 | DP102: 0 | DQ102: 0 | DR102: 0 | DS102: 0 | DT102: 0 | DU102: 0 | DV102: 0 | DW102: 0 | DX102: 0 | DY102: 0 | DZ102: 0 | EA102: 0 | EB102: 0 | EC102: 0 | ED102: 0 | EE102: 0 | EF102: 0 | EG102: 0 | EH102: 0 | EI102: 0 | EJ102: 0 | EK102: 0 | EL102: 0 | EM102: 0 | EN102: 0 | EO102: 0 | EP102: 0 | EQ102: 0 | ER102: 0 | ES102: 0 | ET102: 0 | EU102: 0 | EV102: 0 | EW102: 0 | EX102: 0 | EY102: 0 | EZ102: 0 | FA102: 0 | FB102: 0 | FC102: 0 | FD102: 0 | FE102: 0 | FF102: 0 | FG102: 0 | FH102: 0 | FI102: 0 | FJ102: 0 | FK102: 0 | FL102: 0 | FM102: 0 | FN102: 0 | FO102: 0 | FP102: 0 | FQ102: 0 | FR102: 0 | FS102: 0 | FT102: 0 | FU102: 0 | FV102: 0 | FW102: 0 | FX102: 0 | FY102: 0 | FZ102: 0 | GA102: 0 | GB102: 0 | GC102: 0 | GD102: 0 | GE102: 0 | GF102: 0 | GG102: 0 | GH102: 0
CV103: 0 | CW103: 0 | CX103: 0 | CY103: 0 | CZ103: 0 | DA103: 0 | DB103: 0 | DC103: 0 | DD103: 0 | DE103: 0 | DF103: 0 | DG103: 0 | DH103: 0 | DI103: 0 | DJ103: 0 | DK103: 0 | DL103: 0 | DM103: 0 | DN103: 0 | DO103: 0 | DP103: 0 | DQ103: 0 | DR103: 0 | DS103: 0 | DT103: 0 | DU103: 0 | DV103: 0 | DW103: 0 | DX103: 0 | DY103: 0 | DZ103: 0 | EA103: 0 | EB103: 0 | EC103: 0 | ED103: 0 | EE103: 0 | EF103: 0 | EG103: 0 | EH103: 0 | EI103: 0 | EJ103: 0 | EK103: 0 | EL103: 0 | EM103: 0 | EN103: 0 | EO103: 0 | EP103: 0 | EQ103: 0 | ER103: 0 | ES103: 0 | ET103: 0 | EU103: 0 | EV103: 0 | EW103: 0 | EX103: 0 | EY103: 0 | EZ103: 0 | FA103: 0 | FB103: 0 | FC103: 0 | FD103: 0 | FE103: 0 | FF103: 0 | FG103: 0 | FH103: 0 | FI103: 0 | FJ103: 0 | FK103: 0 | FL103: 0 | FM103: 0 | FN103: 0 | FO103: 0 | FP103: 0 | FQ103: 0 | FR103: 0 | FS103: 0 | FT103: 0 | FU103: 0 | FV103: 0 | FW103: 0 | FX103: 0 | FY103: 0 | FZ103: 0 | GA103: 0 | GB103: 0 | GC103: 0 | GD103: 0 | GE103: 0 | GF103: 0 | GG103: 0 | GH103: 0
CV104: 0 | CW104: 0 | CX104: 0 | CY104: 0 | CZ104: 0 | DA104: 0 | DB104: 0 | DC104: 0 | DD104: 0 | DE104: 0 | DF104: 0 | DG104: 0 | DH104: 0 | DI104: 0 | DJ104: 0 | DK104: 0 | DL104: 0 | DM104: 0 | DN104: 0 | DO104: 0 | DP104: 0 | DQ104: 0 | DR104: 0 | DS104: 0 | DT104: 0 | DU104: 0 | DV104: 0 | DW104: 0 | DX104: 0 | DY104: 0 | DZ104: 0 | EA104: 0 | EB104: 0 | EC104: 0 | ED104: 0 | EE104: 0 | EF104: 0 | EG104: 0 | EH104: 0 | EI104: 0 | EJ104: 0 | EK104: 0 | EL104: 0 | EM104: 0 | EN104: 0 | EO104: 0 | EP104: 0 | EQ104: 0 | ER104: 0 | ES104: 0 | ET104: 0 | EU104: 0 | EV104: 0 | EW104: 0 | EX104: 0 | EY104: 0 | EZ104: 0 | FA104: 0 | FB104: 0 | FC104: 0 | FD104: 0 | FE104: 0 | FF104: 0 | FG104: 0 | FH104: 0 | FI104: 0 | FJ104: 0 | FK104: 0 | FL104: 0 | FM104: 0 | FN104: 0 | FO104: 0 | FP104: 0 | FQ104: 0 | FR104: 0 | FS104: 0 | FT104: 0 | FU104: 0 | FV104: 0 | FW104: 0 | FX104: 0 | FY104: 0 | FZ104: 0 | GA104: 0 | GB104: 0 | GC104: 0 | GD104: 0 | GE104: 0 | GF104: 0 | GG104: 0 | GH104: 0
CV105: 0 | CW105: 0 | CX105: 0 | CY105: 0 | CZ105: 0 | DA105: 0 | DB105: 0 | DC105: 0 | DD105: 0 | DE105: 0 | DF105: 0 | DG105: 0 | DH105: 0 | DI105: 0 | DJ105: 0 | DK105: 0 | DL105: 0 | DM105: 0 | DN105: 0 | DO105: 0 | DP105: 0 | DQ105: 0 | DR105: 0 | DS105: 0 | DT105: 0 | DU105: 0 | DV105: 0 | DW105: 0 | DX105: 0 | DY105: 0 | DZ105: 0 | EA105: 0 | EB105: 0 | EC105: 0 | ED105: 0 | EE105: 0 | EF105: 0 | EG105: 0 | EH105: 0 | EI105: 0 | EJ105: 0 | EK105: 0 | EL105: 0 | EM105: 0 | EN105: 0 | EO105: 0 | EP105: 0 | EQ105: 0 | ER105: 0 | ES105: 0 | ET105: 0 | EU105: 0 | EV105: 0 | EW105: 0 | EX105: 0 | EY105: 0 | EZ105: 0 | FA105: 0 | FB105: 0 | FC105: 0 | FD105: 0 | FE105: 0 | FF105: 0 | FG105: 0 | FH105: 0 | FI105: 0 | FJ105: 0 | FK105: 0 | FL105: 0 | FM105: 0 | FN105: 0 | FO105: 0 | FP105: 0 | FQ105: 0 | FR105: 0 | FS105: 0 | FT105: 0 | FU105: 0 | FV105: 0 | FW105: 0 | FX105: 0 | FY105: 0 | FZ105: 0 | GA105: 0 | GB105: 0 | GC105: 0 | GD105: 0 | GE105: 0 | GF105: 0 | GG105: 0 | GH105: 0
CV106: 0 | CW106: 0 | CX106: 0 | CY106: 0 | CZ106: 0 | DA106: 0 | DB106: 0 | DC106: 0 | DD106: 0 | DE106: 0 | DF106: 0 | DG106: 0 | DH106: 0 | DI106: 0 | DJ106: 0 | DK106: 0 | DL106: 0 | DM106: 0 | DN106: 0 | DO106: 0 | DP106: 0 | DQ106: 0 | DR106: 0 | DS106: 0 | DT106: 0 | DU106: 0 | DV106: 0 | DW106: 0 | DX106: 0 | DY106: 0 | DZ106: 0 | EA106: 0 | EB106: 0 | EC106: 0 | ED106: 0 | EE106: 0 | EF106: 0 | EG106: 0 | EH106: 0 | EI106: 0 | EJ106: 0 | EK106: 0 | EL106: 0 | EM106: 0 | EN106: 0 | EO106: 0 | EP106: 0 | EQ106: 0 | ER106: 0 | ES106: 0 | ET106: 0 | EU106: 0 | EV106: 0 | EW106: 0 | EX106: 0 | EY106: 0 | EZ106: 0 | FA106: 0 | FB106: 0 | FC106: 0 | FD106: 0 | FE106: 0 | FF106: 0 | FG106: 0 | FH106: 0 | FI106: 0 | FJ106: 0 | FK106: 0 | FL106: 0 | FM106: 0 | FN106: 0 | FO106: 0 | FP106: 0 | FQ106: 0 | FR106: 0 | FS106: 0 | FT106: 0 | FU106: 0 | FV106: 0 | FW106: 0 | FX106: 0 | FY106: 0 | FZ106: 0 | GA106: 0 | GB106: 0 | GC106: 0 | GD106: 0 | GE106: 0 | GF106: 0 | GG106: 0 | GH106: 0
CV107: 0 | CW107: 0 | CX107: 0 | CY107: 0 | CZ107: 0 | DA107: 0 | DB107: 0 | DC107: 0 | DD107: 0 | DE107: 0 | DF107: 0 | DG107: 0 | DH107: 0 | DI107: 0 | DJ107: 0 | DK107: 0 | DL107: 0 | DM107: 0 | DN107: 0 | DO107: 0 | DP107: 0 | DQ107: 0 | DR107: 0 | DS107: 0 | DT107: 0 | DU107: 0 | DV107: 0 | DW107: 0 | DX107: 0 | DY107: 0 | DZ107: 0 | EA107: 0 | EB107: 0 | EC107: 0 | ED107: 0 | EE107: 0 | EF107: 0 | EG107: 0 | EH107: 0 | EI107: 0 | EJ107: 0 | EK107: 0 | EL107: 0 | EM107: 0 | EN107: 0 | EO107: 0 | EP107: 0 | EQ107: 0 | ER107: 0 | ES107: 0 | ET107: 0 | EU107: 0 | EV107: 0 | EW107: 0 | EX107: 0 | EY107: 0 | EZ107: 0 | FA107: 0 | FB107: 0 | FC107: 0 | FD107: 0 | FE107: 0 | FF107: 0 | FG107: 0 | FH107: 0 | FI107: 0 | FJ107: 0 | FK107: 0 | FL107: 0 | FM107: 0 | FN107: 0 | FO107: 0 | FP107: 0 | FQ107: 0 | FR107: 0 | FS107: 0 | FT107: 0 | FU107: 0 | FV107: 0 | FW107: 0 | FX107: 0 | FY107: 0 | FZ107: 0 | GA107: 0 | GB107: 0 | GC107: 0 | GD107: 0 | GE107: 0 | GF107: 0 | GG107: 0 | GH107: 0
CV108: 0 | CW108: 0 | CX108: 0 | CY108: 0 | CZ108: 0 | DA108: 0 | DB108: 0 | DC108: 0 | DD108: 0 | DE108: 0 | DF108: 0 | DG108: 0 | DH108: 0 | DI108: 0 | DJ108: 0 | DK108: 0 | DL108: 0 | DM108: 0 | DN108: 0 | DO108: 0 | DP108: 0 | DQ108: 0 | DR108: 0 | DS108: 0 | DT108: 0 | DU108: 0 | DV108: 0 | DW108: 0 | DX108: 0 | DY108: 0 | DZ108: 0 | EA108: 0 | EB108: 0 | EC108: 0 | ED108: 0 | EE108: 0 | EF108: 0 | EG108: 0 | EH108: 0 | EI108: 0 | EJ108: 0 | EK108: 0 | EL108: 0 | EM108: 0 | EN108: 0 | EO108: 0 | EP108: 0 | EQ108: 0 | ER108: 0 | ES108: 0 | ET108: 0 | EU108: 0 | EV108: 0 | EW108: 0 | EX108: 0 | EY108: 0 | EZ108: 0 | FA108: 0 | FB108: 0 | FC108: 0 | FD108: 0 | FE108: 0 | FF108: 0 | FG108: 0 | FH108: 0 | FI108: 0 | FJ108: 0 | FK108: 0 | FL108: 0 | FM108: 0 | FN108: 0 | FO108: 0 | FP108: 0 | FQ108: 0 | FR108: 0 | FS108: 0 | FT108: 0 | FU108: 0 | FV108: 0 | FW108: 0 | FX108: 0 | FY108: 0 | FZ108: 0 | GA108: 0 | GB108: 0 | GC108: 0 | GD108: 0 | GE108: 0 | GF108: 0 | GG108: 0 | GH108: 0
CV109: 0 | CW109: 0 | CX109: 0 | CY109: 0 | CZ109: 0 | DA109: 0 | DB109: 0 | DC109: 0 | DD109: 0 | DE109: 0 | DF109: 0 | DG109: 0 | DH109: 0 | DI109: 0 | DJ109: 0 | DK109: 0 | DL109: 0 | DM109: 0 | DN109: 0 | DO109: 0 | DP109: 0 | DQ109: 0 | DR109: 0 | DS109: 0 | DT109: 0 | DU109: 0 | DV109: 0 | DW109: 0 | DX109: 0 | DY109: 0 | DZ109: 0 | EA109: 0 | EB109: 0 | EC109: 0 | ED109: 0 | EE109: 0 | EF109: 0 | EG109: 0 | EH109: 0 | EI109: 0 | EJ109: 0 | EK109: 0 | EL109: 0 | EM109: 0 | EN109: 0 | EO109: 0 | EP109: 0 | EQ109: 0 | ER109: 0 | ES109: 0 | ET109: 0 | EU109: 0 | EV109: 0 | EW109: 0 | EX109: 0 | EY109: 0 | EZ109: 0 | FA109: 0 | FB109: 0 | FC109: 0 | FD109: 0 | FE109: 0 | FF109: 0 | FG109: 0 | FH109: 0 | FI109: 0 | FJ109: 0 | FK109: 0 | FL109: 0 | FM109: 0 | FN109: 0 | FO109: 0 | FP109: 0 | FQ109: 0 | FR109: 0 | FS109: 0 | FT109: 0 | FU109: 0 | FV109: 0 | FW109: 0 | FX109: 0 | FY109: 0 | FZ109: 0 | GA109: 0 | GB109: 0 | GC109: 0 | GD109: 0 | GE109: 0 | GF109: 0 | GG109: 0 | GH109: 0
CV110: 0 | CW110: 0 | CX110: 0 | CY110: 0 | CZ110: 0 | DA110: 0 | DB110: 0 | DC110: 0 | DD110: 0 | DE110: 0 | DF110: 0 | DG110: 0 | DH110: 0 | DI110: 0 | DJ110: 0 | DK110: 0 | DL110: 0 | DM110: 0 | DN110: 0 | DO110: 0 | DP110: 0 | DQ110: 0 | DR110: 0 | DS110: 0 | DT110: 0 | DU110: 0 | DV110: 0 | DW110: 0 | DX110: 0 | DY110: 0 | DZ110: 0 | EA110: 0 | EB110: 0 | EC110: 0 | ED110: 0 | EE110: 0 | EF110: 0 | EG110: 0 | EH110: 0 | EI110: 0 | EJ110: 0 | EK110: 0 | EL110: 0 | EM110: 0 | EN110: 0 | EO110: 0 | EP110: 0 | EQ110: 0 | ER110: 0 | ES110: 0 | ET110: 0 | EU110: 0 | EV110: 0 | EW110: 0 | EX110: 0 | EY110: 0 | EZ110: 0 | FA110: 0 | FB110: 0 | FC110: 0 | FD110: 0 | FE110: 0 | FF110: 0 | FG110: 0 | FH110: 0 | FI110: 0 | FJ110: 0 | FK110: 0 | FL110: 0 | FM110: 0 | FN110: 0 | FO110: 0 | FP110: 0 | FQ110: 0 | FR110: 0 | FS110: 0 | FT110: 0 | FU110: 0 | FV110: 0 | FW110: 0 | FX110: 0 | FY110: 0 | FZ110: 0 | GA110: 0 | GB110: 0 | GC110: 0 | GD110: 0 | GE110: 0 | GF110: 0 | GG110: 0 | GH110: 0
CV111: 0 | CW111: 0 | CX111: 0 | CY111: 0 | CZ111: 0 | DA111: 0 | DB111: 0 | DC111: 0 | DD111: 0 | DE111: 0 | DF111: 0 | DG111: 0 | DH111: 0 | DI111: 0 | DJ111: 0 | DK111: 0 | DL111: 0 | DM111: 0 | DN111: 0 | DO111: 0 | DP111: 0 | DQ111: 0 | DR111: 0 | DS111: 0 | DT111: 0 | DU111: 0 | DV111: 0 | DW111: 0 | DX111: 0 | DY111: 0 | DZ111: 0 | EA111: 0 | EB111: 0 | EC111: 0 | ED111: 0 | EE111: 0 | EF111: 0 | EG111: 0 | EH111: 0 | EI111: 0 | EJ111: 0 | EK111: 0 | EL111: 0 | EM111: 0 | EN111: 0 | EO111: 0 | EP111: 0 | EQ111: 0 | ER111: 0 | ES111: 0 | ET111: 0 | EU111: 0 | EV111: 0 | EW111: 0 | EX111: 0 | EY111: 0 | EZ111: 0 | FA111: 0 | FB111: 0 | FC111: 0 | FD111: 0 | FE111: 0 | FF111: 0 | FG111: 0 | FH111: 0 | FI111: 0 | FJ111: 0 | FK111: 0 | FL111: 0 | FM111: 0 | FN111: 0 | FO111: 0 | FP111: 0 | FQ111: 0 | FR111: 0 | FS111: 0 | FT111: 0 | FU111: 0 | FV111: 0 | FW111: 0 | FX111: 0 | FY111: 0 | FZ111: 0 | GA111: 0 | GB111: 0 | GC111: 0 | GD111: 0 | GE111: 0 | GF111: 0 | GG111: 0 | GH111: 0
CV112: 0 | CW112: 0 | CX112: 0 | CY112: 0 | CZ112: 0 | DA112: 0 | DB112: 0 | DC112: 0 | DD112: 0 | DE112: 0 | DF112: 0 | DG112: 0 | DH112: 0 | DI112: 0 | DJ112: 0 | DK112: 0 | DL112: 0 | DM112: 0 | DN112: 0 | DO112: 0 | DP112: 0 | DQ112: 0 | DR112: 0 | DS112: 0 | DT112: 0 | DU112: 0 | DV112: 0 | DW112: 0 | DX112: 0 | DY112: 0 | DZ112: 0 | EA112: 0 | EB112: 0 | EC112: 0 | ED112: 0 | EE112: 0 | EF112: 0 | EG112: 0 | EH112: 0 | EI112: 0 | EJ112: 0 | EK112: 0 | EL112: 0 | EM112: 0 | EN112: 0 | EO112: 0 | EP112: 0 | EQ112: 0 | ER112: 0 | ES112: 0 | ET112: 0 | EU112: 0 | EV112: 0 | EW112: 0 | EX112: 0 | EY112: 0 | EZ112: 0 | FA112: 0 | FB112: 0 | FC112: 0 | FD112: 0 | FE112: 0 | FF112: 0 | FG112: 0 | FH112: 0 | FI112: 0 | FJ112: 0 | FK112: 0 | FL112: 0 | FM112: 0 | FN112: 0 | FO112: 0 | FP112: 0 | FQ112: 0 | FR112: 0 | FS112: 0 | FT112: 0 | FU112: 0 | FV112: 0 | FW112: 0 | FX112: 0 | FY112: 0 | FZ112: 0 | GA112: 0 | GB112: 0 | GC112: 0 | GD112: 0 | GE112: 0 | GF112: 0 | GG112: 0 | GH112: 0
CV113: 0 | CW113: 0 | CX113: 0 | CY113: 0 | CZ113: 0 | DA113: 0 | DB113: 0 | DC113: 0 | DD113: 0 | DE113: 0 | DF113: 0 | DG113: 0 | DH113: 0 | DI113: 0 | DJ113: 0 | DK113: 0 | DL113: 0 | DM113: 0 | DN113: 0 | DO113: 0 | DP113: 0 | DQ113: 0 | DR113: 0 | DS113: 0 | DT113: 0 | DU113: 0 | DV113: 0 | DW113: 0 | DX113: 0 | DY113: 0 | DZ113: 0 | EA113: 0 | EB113: 0 | EC113: 0 | ED113: 0 | EE113: 0 | EF113: 0 | EG113: 0 | EH113: 0 | EI113: 0 | EJ113: 0 | EK113: 0 | EL113: 0 | EM113: 0 | EN113: 0 | EO113: 0 | EP113: 0 | EQ113: 0 | ER113: 0 | ES113: 0 | ET113: 0 | EU113: 0 | EV113: 0 | EW113: 0 | EX113: 0 | EY113: 0 | EZ113: 0 | FA113: 0 | FB113: 0 | FC113: 0 | FD113: 0 | FE113: 0 | FF113: 0 | FG113: 0 | FH113: 0 | FI113: 0 | FJ113: 0 | FK113: 0 | FL113: 0 | FM113: 0 | FN113: 0 | FO113: 0 | FP113: 0 | FQ113: 0 | FR113: 0 | FS113: 0 | FT113: 0 | FU113: 0 | FV113: 0 | FW113: 0 | FX113: 0 | FY113: 0 | FZ113: 0 | GA113: 0 | GB113: 0 | GC113: 0 | GD113: 0 | GE113: 0 | GF113: 0 | GG113: 0 | GH113: 0
CV114: 0 | CW114: 0 | CX114: 0 | CY114: 0 | CZ114: 0 | DA114: 0 | DB114: 0 | DC114: 0 | DD114: 0 | DE114: 0 | DF114: 0 | DG114: 0 | DH114: 0 | DI114: 0 | DJ114: 0 | DK114: 0 | DL114: 0 | DM114: 0 | DN114: 0 | DO114: 0 | DP114: 0 | DQ114: 0 | DR114: 0 | DS114: 0 | DT114: 0 | DU114: 0 | DV114: 0 | DW114: 0 | DX114: 0 | DY114: 0 | DZ114: 0 | EA114: 0 | EB114: 0 | EC114: 0 | ED114: 0 | EE114: 0 | EF114: 0 | EG114: 0 | EH114: 0 | EI114: 0 | EJ114: 0 | EK114: 0 | EL114: 0 | EM114: 0 | EN114: 0 | EO114: 0 | EP114: 0 | EQ114: 0 | ER114: 0 | ES114: 0 | ET114: 0 | EU114: 0 | EV114: 0 | EW114: 0 | EX114: 0 | EY114: 0 | EZ114: 0 | FA114: 0 | FB114: 0 | FC114: 0 | FD114: 0 | FE114: 0 | FF114: 0 | FG114: 0 | FH114: 0 | FI114: 0 | FJ114: 0 | FK114: 0 | FL114: 0 | FM114: 0 | FN114: 0 | FO114: 0 | FP114: 0 | FQ114: 0 | FR114: 0 | FS114: 0 | FT114: 0 | FU114: 0 | FV114: 0 | FW114: 0 | FX114: 0 | FY114: 0 | FZ114: 0 | GA114: 0 | GB114: 0 | GC114: 0 | GD114: 0 | GE114: 0 | GF114: 0 | GG114: 0 | GH114: 0
CV115: 0 | CW115: 0 | CX115: 0 | CY115: 0 | CZ115: 0 | DA115: 0 | DB115: 0 | DC115: 0 | DD115: 0 | DE115: 0 | DF115: 0 | DG115: 0 | DH115: 0 | DI115: 0 | DJ115: 0 | DK115: 0 | DL115: 0 | DM115: 0 | DN115: 0 | DO115: 0 | DP115: 0 | DQ115: 0 | DR115: 0 | DS115: 0 | DT115: 0 | DU115: 0 | DV115: 0 | DW115: 0 | DX115: 0 | DY115: 0 | DZ115: 0 | EA115: 0 | EB115: 0 | EC115: 0 | ED115: 0 | EE115: 0 | EF115: 0 | EG115: 0 | EH115: 0 | EI115: 0 | EJ115: 0 | EK115: 0 | EL115: 0 | EM115: 0 | EN115: 0 | EO115: 0 | EP115: 0 | EQ115: 0 | ER115: 0 | ES115: 0 | ET115: 0 | EU115: 0 | EV115: 0 | EW115: 0 | EX115: 0 | EY115: 0 | EZ115: 0 | FA115: 0 | FB115: 0 | FC115: 0 | FD115: 0 | FE115: 0 | FF115: 0 | FG115: 0 | FH115: 0 | FI115: 0 | FJ115: 0 | FK115: 0 | FL115: 0 | FM115: 0 | FN115: 0 | FO115: 0 | FP115: 0 | FQ115: 0 | FR115: 0 | FS115: 0 | FT115: 0 | FU115: 0 | FV115: 0 | FW115: 0 | FX115: 0 | FY115: 0 | FZ115: 0 | GA115: 0 | GB115: 0 | GC115: 0 | GD115: 0 | GE115: 0 | GF115: 0 | GG115: 0 | GH115: 0
CV116: 0 | CW116: 0 | CX116: 0 | CY116: 0 | CZ116: 0 | DA116: 0 | DB116: 0 | DC116: 0 | DD116: 0 | DE116: 0 | DF116: 0 | DG116: 0 | DH116: 0 | DI116: 0 | DJ116: 0 | DK116: 0 | DL116: 0 | DM116: 0 | DN116: 0 | DO116: 0 | DP116: 0 | DQ116: 0 | DR116: 0 | DS116: 0 | DT116: 0 | DU116: 0 | DV116: 0 | DW116: 0 | DX116: 0 | DY116: 0 | DZ116: 0 | EA116: 0 | EB116: 0 | EC116: 0 | ED116: 0 | EE116: 0 | EF116: 0 | EG116: 0 | EH116: 0 | EI116: 0 | EJ116: 0 | EK116: 0 | EL116: 0 | EM116: 0 | EN116: 0 | EO116: 0 | EP116: 0 | EQ116: 0 | ER116: 0 | ES116: 0 | ET116: 0 | EU116: 0 | EV116: 0 | EW116: 0 | EX116: 0 | EY116: 0 | EZ116: 0 | FA116: 0 | FB116: 0 | FC116: 0 | FD116: 0 | FE116: 0 | FF116: 0 | FG116: 0 | FH116: 0 | FI116: 0 | FJ116: 0 | FK116: 0 | FL116: 0 | FM116: 0 | FN116: 0 | FO116: 0 | FP116: 0 | FQ116: 0 | FR116: 0 | FS116: 0 | FT116: 0 | FU116: 0 | FV116: 0 | FW116: 0 | FX116: 0 | FY116: 0 | FZ116: 0 | GA116: 0 | GB116: 0 | GC116: 0 | GD116: 0 | GE116: 0 | GF116: 0 | GG116: 0 | GH116: 0
CV117: 0 | CW117: 0 | CX117: 0 | CY117: 0 | CZ117: 0 | DA117: 0 | DB117: 0 | DC117: 0 | DD117: 0 | DE117: 0 | DF117: 0 | DG117: 0 | DH117: 0 | DI117: 0 | DJ117: 0 | DK117: 0 | DL117: 0 | DM117: 0 | DN117: 0 | DO117: 0 | DP117: 0 | DQ117: 0 | DR117: 0 | DS117: 0 | DT117: 0 | DU117: 0 | DV117: 0 | DW117: 0 | DX117: 0 | DY117: 0 | DZ117: 0 | EA117: 0 | EB117: 0 | EC117: 0 | ED117: 0 | EE117: 0 | EF117: 0 | EG117: 0 | EH117: 0 | EI117: 0 | EJ117: 0 | EK117: 0 | EL117: 0 | EM117: 0 | EN117: 0 | EO117: 0 | EP117: 0 | EQ117: 0 | ER117: 0 | ES117: 0 | ET117: 0 | EU117: 0 | EV117: 0 | EW117: 0 | EX117: 0 | EY117: 0 | EZ117: 0 | FA117: 0 | FB117: 0 | FC117: 0 | FD117: 0 | FE117: 0 | FF117: 0 | FG117: 0 | FH117: 0 | FI117: 0 | FJ117: 0 | FK117: 0 | FL117: 0 | FM117: 0 | FN117: 0 | FO117: 0 | FP117: 0 | FQ117: 0 | FR117: 0 | FS117: 0 | FT117: 0 | FU117: 0 | FV117: 0 | FW117: 0 | FX117: 0 | FY117: 0 | FZ117: 0 | GA117: 0 | GB117: 0 | GC117: 0 | GD117: 0 | GE117: 0 | GF117: 0 | GG117: 0 | GH117: 0
CV118: 0 | CW118: 0 | CX118: 0 | CY118: 0 | CZ118: 0 | DA118: 0 | DB118: 0 | DC118: 0 | DD118: 0 | DE118: 0 | DF118: 0 | DG118: 0 | DH118: 0 | DI118: 0 | DJ118: 0 | DK118: 0 | DL118: 0 | DM118: 0 | DN118: 0 | DO118: 0 | DP118: 0 | DQ118: 0 | DR118: 0 | DS118: 0 | DT118: 0 | DU118: 0 | DV118: 0 | DW118: 0 | DX118: 0 | DY118: 0 | DZ118: 0 | EA118: 0 | EB118: 0 | EC118: 0 | ED118: 0 | EE118: 0 | EF118: 0 | EG118: 0 | EH118: 0 | EI118: 0 | EJ118: 0 | EK118: 0 | EL118: 0 | EM118: 0 | EN118: 0 | EO118: 0 | EP118: 0 | EQ118: 0 | ER118: 0 | ES118: 0 | ET118: 0 | EU118: 0 | EV118: 0 | EW118: 0 | EX118: 0 | EY118: 0 | EZ118: 0 | FA118: 0 | FB118: 0 | FC118: 0 | FD118: 0 | FE118: 0 | FF118: 0 | FG118: 0 | FH118: 0 | FI118: 0 | FJ118: 0 | FK118: 0 | FL118: 0 | FM118: 0 | FN118: 0 | FO118: 0 | FP118: 0 | FQ118: 0 | FR118: 0 | FS118: 0 | FT118: 0 | FU118: 0 | FV118: 0 | FW118: 0 | FX118: 0 | FY118: 0 | FZ118: 0 | GA118: 0 | GB118: 0 | GC118: 0 | GD118: 0 | GE118: 0 | GF118: 0 | GG118: 0 | GH118: 0
CV119: 0 | CW119: 0 | CX119: 0 | CY119: 0 | CZ119: 0 | DA119: 0 | DB119: 0 | DC119: 0 | DD119: 0 | DE119: 0 | DF119: 0 | DG119: 0 | DH119: 0 | DI119: 0 | DJ119: 0 | DK119: 0 | DL119: 0 | DM119: 0 | DN119: 0 | DO119: 0 | DP119: 0 | DQ119: 0 | DR119: 0 | DS119: 0 | DT119: 0 | DU119: 0 | DV119: 0 | DW119: 0 | DX119: 0 | DY119: 0 | DZ119: 0 | EA119: 0 | EB119: 0 | EC119: 0 | ED119: 0 | EE119: 0 | EF119: 0 | EG119: 0 | EH119: 0 | EI119: 0 | EJ119: 0 | EK119: 0 | EL119: 0 | EM119: 0 | EN119: 0 | EO119: 0 | EP119: 0 | EQ119: 0 | ER119: 0 | ES119: 0 | ET119: 0 | EU119: 0 | EV119: 0 | EW119: 0 | EX119: 0 | EY119: 0 | EZ119: 0 | FA119: 0 | FB119: 0 | FC119: 0 | FD119: 0 | FE119: 0 | FF119: 0 | FG119: 0 | FH119: 0 | FI119: 0 | FJ119: 0 | FK119: 0 | FL119: 0 | FM119: 0 | FN119: 0 | FO119: 0 | FP119: 0 | FQ119: 0 | FR119: 0 | FS119: 0 | FT119: 0 | FU119: 0 | FV119: 0 | FW119: 0 | FX119: 0 | FY119: 0 | FZ119: 0 | GA119: 0 | GB119: 0 | GC119: 0 | GD119: 0 | GE119: 0 | GF119: 0 | GG119: 0 | GH119: 0
CV120: 0 | CW120: 0 | CX120: 0 | CY120: 0 | CZ120: 0 | DA120: 0 | DB120: 0 | DC120: 0 | DD120: 0 | DE120: 0 | DF120: 0 | DG120: 0 | DH120: 0 | DI120: 0 | DJ120: 0 | DK120: 0 | DL120: 0 | DM120: 0 | DN120: 0 | DO120: 0 | DP120: 0 | DQ120: 0 | DR120: 0 | DS120: 0 | DT120: 0 | DU120: 0 | DV120: 0 | DW120: 0 | DX120: 0 | DY120: 0 | DZ120: 0 | EA120: 0 | EB120: 0 | EC120: 0 | ED120: 0 | EE120: 0 | EF120: 0 | EG120: 0 | EH120: 0 | EI120: 0 | EJ120: 0 | EK120: 0 | EL120: 0 | EM120: 0 | EN120: 0 | EO120: 0 | EP120: 0 | EQ120: 0 | ER120: 0 | ES120: 0 | ET120: 0 | EU120: 0 | EV120: 0 | EW120: 0 | EX120: 0 | EY120: 0 | EZ120: 0 | FA120: 0 | FB120: 0 | FC120: 0 | FD120: 0 | FE120: 0 | FF120: 0 | FG120: 0 | FH120: 0 | FI120: 0 | FJ120: 0 | FK120: 0 | FL120: 0 | FM120: 0 | FN120: 0 | FO120: 0 | FP120: 0 | FQ120: 0 | FR120: 0 | FS120: 0 | FT120: 0 | FU120: 0 | FV120: 0 | FW120: 0 | FX120: 0 | FY120: 0 | FZ120: 0 | GA120: 0 | GB120: 0 | GC120: 0 | GD120: 0 | GE120: 0 | GF120: 0 | GG120: 0 | GH120: 0
CV121: 0 | CW121: 0 | CX121: 0 | CY121: 0 | CZ121: 0 | DA121: 0 | DB121: 0 | DC121: 0 | DD121: 0 | DE121: 0 | DF121: 0 | DG121: 0 | DH121: 0 | DI121: 0 | DJ121: 0 | DK121: 0 | DL121: 0 | DM121: 0 | DN121: 0 | DO121: 0 | DP121: 0 | DQ121: 0 | DR121: 0 | DS121: 0 | DT121: 0 | DU121: 0 | DV121: 0 | DW121: 0 | DX121: 0 | DY121: 0 | DZ121: 0 | EA121: 0 | EB121: 0 | EC121: 0 | ED121: 0 | EE121: 0 | EF121: 0 | EG121: 0 | EH121: 0 | EI121: 0 | EJ121: 0 | EK121: 0 | EL121: 0 | EM121: 0 | EN121: 0 | EO121: 0 | EP121: 0 | EQ121: 0 | ER121: 0 | ES121: 0 | ET121: 0 | EU121: 0 | EV121: 0 | EW121: 0 | EX121: 0 | EY121: 0 | EZ121: 0 | FA121: 0 | FB121: 0 | FC121: 0 | FD121: 0 | FE121: 0 | FF121: 0 | FG121: 0 | FH121: 0 | FI121: 0 | FJ121: 0 | FK121: 0 | FL121: 0 | FM121: 0 | FN121: 0 | FO121: 0 | FP121: 0 | FQ121: 0 | FR121: 0 | FS121: 0 | FT121: 0 | FU121: 0 | FV121: 0 | FW121: 0 | FX121: 0 | FY121: 0 | FZ121: 0 | GA121: 0 | GB121: 0 | GC121: 0 | GD121: 0 | GE121: 0 | GF121: 0 | GG121: 0 | GH121: 0
CV122: 0 | CW122: 0 | CX122: 0 | CY122: 0 | CZ122: 0 | DA122: 0 | DB122: 0 | DC122: 0 | DD122: 0 | DE122: 0 | DF122: 0 | DG122: 0 | DH122: 0 | DI122: 0 | DJ122: 0 | DK122: 0 | DL122: 0 | DM122: 0 | DN122: 0 | DO122: 0 | DP122: 0 | DQ122: 0 | DR122: 0 | DS122: 0 | DT122: 0 | DU122: 0 | DV122: 0 | DW122: 0 | DX122: 0 | DY122: 0 | DZ122: 0 | EA122: 0 | EB122: 0 | EC122: 0 | ED122: 0 | EE122: 0 | EF122: 0 | EG122: 0 | EH122: 0 | EI122: 0 | EJ122: 0 | EK122: 0 | EL122: 0 | EM122: 0 | EN122: 0 | EO122: 0 | EP122: 0 | EQ122: 0 | ER122: 0 | ES122: 0 | ET122: 0 | EU122: 0 | EV122: 0 | EW122: 0 | EX122: 0 | EY122: 0 | EZ122: 0 | FA122: 0 | FB122: 0 | FC122: 0 | FD122: 0 | FE122: 0 | FF122: 0 | FG122: 0 | FH122: 0 | FI122: 0 | FJ122: 0 | FK122: 0 | FL122: 0 | FM122: 0 | FN122: 0 | FO122: 0 | FP122: 0 | FQ122: 0 | FR122: 0 | FS122: 0 | FT122: 0 | FU122: 0 | FV122: 0 | FW122: 0 | FX122: 0 | FY122: 0 | FZ122: 0 | GA122: 0 | GB122: 0 | GC122: 0 | GD122: 0 | GE122: 0 | GF122: 0 | GG122: 0 | GH122: 0
CV123: 0 | CW123: 0 | CX123: 0 | CY123: 0 | CZ123: 0 | DA123: 0 | DB123: 0 | DC123: 0 | DD123: 0 | DE123: 0 | DF123: 0 | DG123: 0 | DH123: 0 | DI123: 0 | DJ123: 0 | DK123: 0 | DL123: 0 | DM123: 0 | DN123: 0 | DO123: 0 | DP123: 0 | DQ123: 0 | DR123: 0 | DS123: 0 | DT123: 0 | DU123: 0 | DV123: 0 | DW123: 0 | DX123: 0 | DY123: 0 | DZ123: 0 | EA123: 0 | EB123: 0 | EC123: 0 | ED123: 0 | EE123: 0 | EF123: 0 | EG123: 0 | EH123: 0 | EI123: 0 | EJ123: 0 | EK123: 0 | EL123: 0 | EM123: 0 | EN123: 0 | EO123: 0 | EP123: 0 | EQ123: 0 | ER123: 0 | ES123: 0 | ET123: 0 | EU123: 0 | EV123: 0 | EW123: 0 | EX123: 0 | EY123: 0 | EZ123: 0 | FA123: 0 | FB123: 0 | FC123: 0 | FD123: 0 | FE123: 0 | FF123: 0 | FG123: 0 | FH123: 0 | FI123: 0 | FJ123: 0 | FK123: 0 | FL123: 0 | FM123: 0 | FN123: 0 | FO123: 0 | FP123: 0 | FQ123: 0 | FR123: 0 | FS123: 0 | FT123: 0 | FU123: 0 | FV123: 0 | FW123: 0 | FX123: 0 | FY123: 0 | FZ123: 0 | GA123: 0 | GB123: 0 | GC123: 0 | GD123: 0 | GE123: 0 | GF123: 0 | GG123: 0 | GH123: 0
CV124: 0 | CW124: 0 | CX124: 0 | CY124: 0 | CZ124: 0 | DA124: 0 | DB124: 0 | DC124: 0 | DD124: 0 | DE124: 0 | DF124: 0 | DG124: 0 | DH124: 0 | DI124: 0 | DJ124: 0 | DK124: 0 | DL124: 0 | DM124: 0 | DN124: 0 | DO124: 0 | DP124: 0 | DQ124: 0 | DR124: 0 | DS124: 0 | DT124: 0 | DU124: 0 | DV124: 0 | DW124: 0 | DX124: 0 | DY124: 0 | DZ124: 0 | EA124: 0 | EB124: 0 | EC124: 0 | ED124: 0 | EE124: 0 | EF124: 0 | EG124: 0 | EH124: 0 | EI124: 0 | EJ124: 0 | EK124: 0 | EL124: 0 | EM124: 0 | EN124: 0 | EO124: 0 | EP124: 0 | EQ124: 0 | ER124: 0 | ES124: 0 | ET124: 0 | EU124: 0 | EV124: 0 | EW124: 0 | EX124: 0 | EY124: 0 | EZ124: 0 | FA124: 0 | FB124: 0 | FC124: 0 | FD124: 0 | FE124: 0 | FF124: 0 | FG124: 0 | FH124: 0 | FI124: 0 | FJ124: 0 | FK124: 0 | FL124: 0 | FM124: 0 | FN124: 0 | FO124: 0 | FP124: 0 | FQ124: 0 | FR124: 0 | FS124: 0 | FT124: 0 | FU124: 0 | FV124: 0 | FW124: 0 | FX124: 0 | FY124: 0 | FZ124: 0 | GA124: 0 | GB124: 0 | GC124: 0 | GD124: 0 | GE124: 0 | GF124: 0 | GG124: 0 | GH124: 0
CV125: 0 | CW125: 0 | CX125: 0 | CY125: 0 | CZ125: 0 | DA125: 0 | DB125: 0 | DC125: 0 | DD125: 0 | DE125: 0 | DF125: 0 | DG125: 0 | DH125: 0 | DI125: 0 | DJ125: 0 | DK125: 0 | DL125: 0 | DM125: 0 | DN125: 0 | DO125: 0 | DP125: 0 | DQ125: 0 | DR125: 0 | DS125: 0 | DT125: 0 | DU125: 0 | DV125: 0 | DW125: 0 | DX125: 0 | DY125: 0 | DZ125: 0 | EA125: 0 | EB125: 0 | EC125: 0 | ED125: 0 | EE125: 0 | EF125: 0 | EG125: 0 | EH125: 0 | EI125: 0 | EJ125: 0 | EK125: 0 | EL125: 0 | EM125: 0 | EN125: 0 | EO125: 0 | EP125: 0 | EQ125: 0 | ER125: 0 | ES125: 0 | ET125: 0 | EU125: 0 | EV125: 0 | EW125: 0 | EX125: 0 | EY125: 0 | EZ125: 0 | FA125: 0 | FB125: 0 | FC125: 0 | FD125: 0 | FE125: 0 | FF125: 0 | FG125: 0 | FH125: 0 | FI125: 0 | FJ125: 0 | FK125: 0 | FL125: 0 | FM125: 0 | FN125: 0 | FO125: 0 | FP125: 0 | FQ125: 0 | FR125: 0 | FS125: 0 | FT125: 0 | FU125: 0 | FV125: 0 | FW125: 0 | FX125: 0 | FY125: 0 | FZ125: 0 | GA125: 0 | GB125: 0 | GC125: 0 | GD125: 0 | GE125: 0 | GF125: 0 | GG125: 0 | GH125: 0
CV126: 0 | CW126: 0 | CX126: 0 | CY126: 0 | CZ126: 0 | DA126: 0 | DB126: 0 | DC126: 0 | DD126: 0 | DE126: 0 | DF126: 0 | DG126: 0 | DH126: 0 | DI126: 0 | DJ126: 0 | DK126: 0 | DL126: 0 | DM126: 0 | DN126: 0 | DO126: 0 | DP126: 0 | DQ126: 0 | DR126: 0 | DS126: 0 | DT126: 0 | DU126: 0 | DV126: 0 | DW126: 0 | DX126: 0 | DY126: 0 | DZ126: 0 | EA126: 0 | EB126: 0 | EC126: 0 | ED126: 0 | EE126: 0 | EF126: 0 | EG126: 0 | EH126: 0 | EI126: 0 | EJ126: 0 | EK126: 0 | EL126: 0 | EM126: 0 | EN126: 0 | EO126: 0 | EP126: 0 | EQ126: 0 | ER126: 0 | ES126: 0 | ET126: 0 | EU126: 0 | EV126: 0 | EW126: 0 | EX126: 0 | EY126: 0 | EZ126: 0 | FA126: 0 | FB126: 0 | FC126: 0 | FD126: 0 | FE126: 0 | FF126: 0 | FG126: 0 | FH126: 0 | FI126: 0 | FJ126: 0 | FK126: 0 | FL126: 0 | FM126: 0 | FN126: 0 | FO126: 0 | FP126: 0 | FQ126: 0 | FR126: 0 | FS126: 0 | FT126: 0 | FU126: 0 | FV126: 0 | FW126: 0 | FX126: 0 | FY126: 0 | FZ126: 0 | GA126: 0 | GB126: 0 | GC126: 0 | GD126: 0 | GE126: 0 | GF126: 0 | GG126: 0 | GH126: 0
CV127: 0 | CW127: 0 | CX127: 0 | CY127: 0 | CZ127: 0 | DA127: 0 | DB127: 0 | DC127: 0 | DD127: 0 | DE127: 0 | DF127: 0 | DG127: 0 | DH127: 0 | DI127: 0 | DJ127: 0 | DK127: 0 | DL127: 0 | DM127: 0 | DN127: 0 | DO127: 0 | DP127: 0 | DQ127: 0 | DR127: 0 | DS127: 0 | DT127: 0 | DU127: 0 | DV127: 0 | DW127: 0 | DX127: 0 | DY127: 0 | DZ127: 0 | EA127: 0 | EB127: 0 | EC127: 0 | ED127: 0 | EE127: 0 | EF127: 0 | EG127: 0 | EH127: 0 | EI127: 0 | EJ127: 0 | EK127: 0 | EL127: 0 | EM127: 0 | EN127: 0 | EO127: 0 | EP127: 0 | EQ127: 0 | ER127: 0 | ES127: 0 | ET127: 0 | EU127: 0 | EV127: 0 | EW127: 0 | EX127: 0 | EY127: 0 | EZ127: 0 | FA127: 0 | FB127: 0 | FC127: 0 | FD127: 0 | FE127: 0 | FF127: 0 | FG127: 0 | FH127: 0 | FI127: 0 | FJ127: 0 | FK127: 0 | FL127: 0 | FM127: 0 | FN127: 0 | FO127: 0 | FP127: 0 | FQ127: 0 | FR127: 0 | FS127: 0 | FT127: 0 | FU127: 0 | FV127: 0 | FW127: 0 | FX127: 0 | FY127: 0 | FZ127: 0 | GA127: 0 | GB127: 0 | GC127: 0 | GD127: 0 | GE127: 0 | GF127: 0 | GG127: 0 | GH127: 0
CV128: 0 | CW128: 0 | CX128: 0 | CY128: 0 | CZ128: 0 | DA128: 0 | DB128: 0 | DC128: 0 | DD128: 0 | DE128: 0 | DF128: 0 | DG128: 0 | DH128: 0 | DI128: 0 | DJ128: 0 | DK128: 0 | DL128: 0 | DM128: 0 | DN128: 0 | DO128: 0 | DP128: 0 | DQ128: 0 | DR128: 0 | DS128: 0 | DT128: 0 | DU128: 0 | DV128: 0 | DW128: 0 | DX128: 0 | DY128: 0 | DZ128: 0 | EA128: 0 | EB128: 0 | EC128: 0 | ED128: 0 | EE128: 0 | EF128: 0 | EG128: 0 | EH128: 0 | EI128: 0 | EJ128: 0 | EK128: 0 | EL128: 0 | EM128: 0 | EN128: 0 | EO128: 0 | EP128: 0 | EQ128: 0 | ER128: 0 | ES128: 0 | ET128: 0 | EU128: 0 | EV128: 0 | EW128: 0 | EX128: 0 | EY128: 0 | EZ128: 0 | FA128: 0 | FB128: 0 | FC128: 0 | FD128: 0 | FE128: 0 | FF128: 0 | FG128: 0 | FH128: 0 | FI128: 0 | FJ128: 0 | FK128: 0 | FL128: 0 | FM128: 0 | FN128: 0 | FO128: 0 | FP128: 0 | FQ128: 0 | FR128: 0 | FS128: 0 | FT128: 0 | FU128: 0 | FV128: 0 | FW128: 0 | FX128: 0 | FY128: 0 | FZ128: 0 | GA128: 0 | GB128: 0 | GC128: 0 | GD128: 0 | GE128: 0 | GF128: 0 | GG128: 0 | GH128: 0
CV129: 0 | CW129: 0 | CX129: 0 | CY129: 0 | CZ129: 0 | DA129: 0 | DB129: 0 | DC129: 0 | DD129: 0 | DE129: 0 | DF129: 0 | DG129: 0 | DH129: 0 | DI129: 0 | DJ129: 0 | DK129: 0 | DL129: 0 | DM129: 0 | DN129: 0 | DO129: 0 | DP129: 0 | DQ129: 0 | DR129: 0 | DS129: 0 | DT129: 0 | DU129: 0 | DV129: 0 | DW129: 0 | DX129: 0 | DY129: 0 | DZ129: 0 | EA129: 0 | EB129: 0 | EC129: 0 | ED129: 0 | EE129: 0 | EF129: 0 | EG129: 0 | EH129: 0 | EI129: 0 | EJ129: 0 | EK129: 0 | EL129: 0 | EM129: 0 | EN129: 0 | EO129: 0 | EP129: 0 | EQ129: 0 | ER129: 0 | ES129: 0 | ET129: 0 | EU129: 0 | EV129: 0 | EW129: 0 | EX129: 0 | EY129: 0 | EZ129: 0 | FA129: 0 | FB129: 0 | FC129: 0 | FD129: 0 | FE129: 0 | FF129: 0 | FG129: 0 | FH129: 0 | FI129: 0 | FJ129: 0 | FK129: 0 | FL129: 0 | FM129: 0 | FN129: 0 | FO129: 0 | FP129: 0 | FQ129: 0 | FR129: 0 | FS129: 0 | FT129: 0 | FU129: 0 | FV129: 0 | FW129: 0 | FX129: 0 | FY129: 0 | FZ129: 0 | GA129: 0 | GB129: 0 | GC129: 0 | GD129: 0 | GE129: 0 | GF129: 0 | GG129: 0 | GH129: 0
CV130: 0 | CW130: 0 | CX130: 0 | CY130: 0 | CZ130: 0 | DA130: 0 | DB130: 0 | DC130: 0 | DD130: 0 | DE130: 0 | DF130: 0 | DG130: 0 | DH130: 0 | DI130: 0 | DJ130: 0 | DK130: 0 | DL130: 0 | DM130: 0 | DN130: 0 | DO130: 0 | DP130: 0 | DQ130: 0 | DR130: 0 | DS130: 0 | DT130: 0 | DU130: 0 | DV130: 0 | DW130: 0 | DX130: 0 | DY130: 0 | DZ130: 0 | EA130: 0 | EB130: 0 | EC130: 0 | ED130: 0 | EE130: 0 | EF130: 0 | EG130: 0 | EH130: 0 | EI130: 0 | EJ130: 0 | EK130: 0 | EL130: 0 | EM130: 0 | EN130: 0 | EO130: 0 | EP130: 0 | EQ130: 0 | ER130: 0 | ES130: 0 | ET130: 0 | EU130: 0 | EV130: 0 | EW130: 0 | EX130: 0 | EY130: 0 | EZ130: 0 | FA130: 0 | FB130: 0 | FC130: 0 | FD130: 0 | FE130: 0 | FF130: 0 | FG130: 0 | FH130: 0 | FI130: 0 | FJ130: 0 | FK130: 0 | FL130: 0 | FM130: 0 | FN130: 0 | FO130: 0 | FP130: 0 | FQ130: 0 | FR130: 0 | FS130: 0 | FT130: 0 | FU130: 0 | FV130: 0 | FW130: 0 | FX130: 0 | FY130: 0 | FZ130: 0 | GA130: 0 | GB130: 0 | GC130: 0 | GD130: 0 | GE130: 0 | GF130: 0 | GG130: 0 | GH130: 0
CV131: 0 | CW131: 0 | CX131: 0 | CY131: 0 | CZ131: 0 | DA131: 0 | DB131: 0 | DC131: 0 | DD131: 0 | DE131: 0 | DF131: 0 | DG131: 0 | DH131: 0 | DI131: 0 | DJ131: 0 | DK131: 0 | DL131: 0 | DM131: 0 | DN131: 0 | DO131: 0 | DP131: 0 | DQ131: 0 | DR131: 0 | DS131: 0 | DT131: 0 | DU131: 0 | DV131: 0 | DW131: 0 | DX131: 0 | DY131: 0 | DZ131: 0 | EA131: 0 | EB131: 0 | EC131: 0 | ED131: 0 | EE131: 0 | EF131: 0 | EG131: 0 | EH131: 0 | EI131: 0 | EJ131: 0 | EK131: 0 | EL131: 0 | EM131: 0 | EN131: 0 | EO131: 0 | EP131: 0 | EQ131: 0 | ER131: 0 | ES131: 0 | ET131: 0 | EU131: 0 | EV131: 0 | EW131: 0 | EX131: 0 | EY131: 0 | EZ131: 0 | FA131: 0 | FB131: 0 | FC131: 0 | FD131: 0 | FE131: 0 | FF131: 0 | FG131: 0 | FH131: 0 | FI131: 0 | FJ131: 0 | FK131: 0 | FL131: 0 | FM131: 0 | FN131: 0 | FO131: 0 | FP131: 0 | FQ131: 0 | FR131: 0 | FS131: 0 | FT131: 0 | FU131: 0 | FV131: 0 | FW131: 0 | FX131: 0 | FY131: 0 | FZ131: 0 | GA131: 0 | GB131: 0 | GC131: 0 | GD131: 0 | GE131: 0 | GF131: 0 | GG131: 0 | GH131: 0
CV132: 0 | CW132: 0 | CX132: 0 | CY132: 0 | CZ132: 0 | DA132: 0 | DB132: 0 | DC132: 0 | DD132: 0 | DE132: 0 | DF132: 0 | DG132: 0 | DH132: 0 | DI132: 0 | DJ132: 0 | DK132: 0 | DL132: 0 | DM132: 0 | DN132: 0 | DO132: 0 | DP132: 0 | DQ132: 0 | DR132: 0 | DS132: 0 | DT132: 0 | DU132: 0 | DV132: 0 | DW132: 0 | DX132: 0 | DY132: 0 | DZ132: 0 | EA132: 0 | EB132: 0 | EC132: 0 | ED132: 0 | EE132: 0 | EF132: 0 | EG132: 0 | EH132: 0 | EI132: 0 | EJ132: 0 | EK132: 0 | EL132: 0 | EM132: 0 | EN132: 0 | EO132: 0 | EP132: 0 | EQ132: 0 | ER132: 0 | ES132: 0 | ET132: 0 | EU132: 0 | EV132: 0 | EW132: 0 | EX132: 0 | EY132: 0 | EZ132: 0 | FA132: 0 | FB132: 0 | FC132: 0 | FD132: 0 | FE132: 0 | FF132: 0 | FG132: 0 | FH132: 0 | FI132: 0 | FJ132: 0 | FK132: 0 | FL132: 0 | FM132: 0 | FN132: 0 | FO132: 0 | FP132: 0 | FQ132: 0 | FR132: 0 | FS132: 0 | FT132: 0 | FU132: 0 | FV132: 0 | FW132: 0 | FX132: 0 | FY132: 0 | FZ132: 0 | GA132: 0 | GB132: 0 | GC132: 0 | GD132: 0 | GE132: 0 | GF132: 0 | GG132: 0 | GH132: 0
CV133: 0 | CW133: 0 | CX133: 0 | CY133: 0 | CZ133: 0 | DA133: 0 | DB133: 0 | DC133: 0 | DD133: 0 | DE133: 0 | DF133: 0 | DG133: 0 | DH133: 0 | DI133: 0 | DJ133: 0 | DK133: 0 | DL133: 0 | DM133: 0 | DN133: 0 | DO133: 0 | DP133: 0 | DQ133: 0 | DR133: 0 | DS133: 0 | DT133: 0 | DU133: 0 | DV133: 0 | DW133: 0 | DX133: 0 | DY133: 0 | DZ133: 0 | EA133: 0 | EB133: 0 | EC133: 0 | ED133: 0 | EE133: 0 | EF133: 0 | EG133: 0 | EH133: 0 | EI133: 0 | EJ133: 0 | EK133: 0 | EL133: 0 | EM133: 0 | EN133: 0 | EO133: 0 | EP133: 0 | EQ133: 0 | ER133: 0 | ES133: 0 | ET133: 0 | EU133: 0 | EV133: 0 | EW133: 0 | EX133: 0 | EY133: 0 | EZ133: 0 | FA133: 0 | FB133: 0 | FC133: 0 | FD133: 0 | FE133: 0 | FF133: 0 | FG133: 0 | FH133: 0 | FI133: 0 | FJ133: 0 | FK133: 0 | FL133: 0 | FM133: 0 | FN133: 0 | FO133: 0 | FP133: 0 | FQ133: 0 | FR133: 0 | FS133: 0 | FT133: 0 | FU133: 0 | FV133: 0 | FW133: 0 | FX133: 0 | FY133: 0 | FZ133: 0 | GA133: 0 | GB133: 0 | GC133: 0 | GD133: 0 | GE133: 0 | GF133: 0 | GG133: 0 | GH133: 0
CV134: 0 | CW134: 0 | CX134: 0 | CY134: 0 | CZ134: 0 | DA134: 0 | DB134: 0 | DC134: 0 | DD134: 0 | DE134: 0 | DF134: 0 | DG134: 0 | DH134: 0 | DI134: 0 | DJ134: 0 | DK134: 0 | DL134: 0 | DM134: 0 | DN134: 0 | DO134: 0 | DP134: 0 | DQ134: 0 | DR134: 0 | DS134: 0 | DT134: 0 | DU134: 0 | DV134: 0 | DW134: 0 | DX134: 0 | DY134: 0 | DZ134: 0 | EA134: 0 | EB134: 0 | EC134: 0 | ED134: 0 | EE134: 0 | EF134: 0 | EG134: 0 | EH134: 0 | EI134: 0 | EJ134: 0 | EK134: 0 | EL134: 0 | EM134: 0 | EN134: 0 | EO134: 0 | EP134: 0 | EQ134: 0 | ER134: 0 | ES134: 0 | ET134: 0 | EU134: 0 | EV134: 0 | EW134: 0 | EX134: 0 | EY134: 0 | EZ134: 0 | FA134: 0 | FB134: 0 | FC134: 0 | FD134: 0 | FE134: 0 | FF134: 0 | FG134: 0 | FH134: 0 | FI134: 0 | FJ134: 0 | FK134: 0 | FL134: 0 | FM134: 0 | FN134: 0 | FO134: 0 | FP134: 0 | FQ134: 0 | FR134: 0 | FS134: 0 | FT134: 0 | FU134: 0 | FV134: 0 | FW134: 0 | FX134: 0 | FY134: 0 | FZ134: 0 | GA134: 0 | GB134: 0 | GC134: 0 | GD134: 0 | GE134: 0 | GF134: 0 | GG134: 0 | GH134: 0
CV135: 0 | CW135: 0 | CX135: 0 | CY135: 0 | CZ135: 0 | DA135: 0 | DB135: 0 | DC135: 0 | DD135: 0 | DE135: 0 | DF135: 0 | DG135: 0 | DH135: 0 | DI135: 0 | DJ135: 0 | DK135: 0 | DL135: 0 | DM135: 0 | DN135: 0 | DO135: 0 | DP135: 0 | DQ135: 0 | DR135: 0 | DS135: 0 | DT135: 0 | DU135: 0 | DV135: 0 | DW135: 0 | DX135: 0 | DY135: 0 | DZ135: 0 | EA135: 0 | EB135: 0 | EC135: 0 | ED135: 0 | EE135: 0 | EF135: 0 | EG135: 0 | EH135: 0 | EI135: 0 | EJ135: 0 | EK135: 0 | EL135: 0 | EM135: 0 | EN135: 0 | EO135: 0 | EP135: 0 | EQ135: 0 | ER135: 0 | ES135: 0 | ET135: 0 | EU135: 0 | EV135: 0 | EW135: 0 | EX135: 0 | EY135: 0 | EZ135: 0 | FA135: 0 | FB135: 0 | FC135: 0 | FD135: 0 | FE135: 0 | FF135: 0 | FG135: 0 | FH135: 0 | FI135: 0 | FJ135: 0 | FK135: 0 | FL135: 0 | FM135: 0 | FN135: 0 | FO135: 0 | FP135: 0 | FQ135: 0 | FR135: 0 | FS135: 0 | FT135: 0 | FU135: 0 | FV135: 0 | FW135: 0 | FX135: 0 | FY135: 0 | FZ135: 0 | GA135: 0 | GB135: 0 | GC135: 0 | GD135: 0 | GE135: 0 | GF135: 0 | GG135: 0 | GH135: 0
CV136: 0 | CW136: 0 | CX136: 0 | CY136: 0 | CZ136: 0 | DA136: 0 | DB136: 0 | DC136: 0 | DD136: 0 | DE136: 0 | DF136: 0 | DG136: 0 | DH136: 0 | DI136: 0 | DJ136: 0 | DK136: 0 | DL136: 0 | DM136: 0 | DN136: 0 | DO136: 0 | DP136: 0 | DQ136: 0 | DR136: 0 | DS136: 0 | DT136: 0 | DU136: 0 | DV136: 0 | DW136: 0 | DX136: 0 | DY136: 0 | DZ136: 0 | EA136: 0 | EB136: 0 | EC136: 0 | ED136: 0 | EE136: 0 | EF136: 0 | EG136: 0 | EH136: 0 | EI136: 0 | EJ136: 0 | EK136: 0 | EL136: 0 | EM136: 0 | EN136: 0 | EO136: 0 | EP136: 0 | EQ136: 0 | ER136: 0 | ES136: 0 | ET136: 0 | EU136: 0 | EV136: 0 | EW136: 0 | EX136: 0 | EY136: 0 | EZ136: 0 | FA136: 0 | FB136: 0 | FC136: 0 | FD136: 0 | FE136: 0 | FF136: 0 | FG136: 0 | FH136: 0 | FI136: 0 | FJ136: 0 | FK136: 0 | FL136: 0 | FM136: 0 | FN136: 0 | FO136: 0 | FP136: 0 | FQ136: 0 | FR136: 0 | FS136: 0 | FT136: 0 | FU136: 0 | FV136: 0 | FW136: 0 | FX136: 0 | FY136: 0 | FZ136: 0 | GA136: 0 | GB136: 0 | GC136: 0 | GD136: 0 | GE136: 0 | GF136: 0 | GG136: 0 | GH136: 0
CV137: 0 | CW137: 0 | CX137: 0 | CY137: 0 | CZ137: 0 | DA137: 0 | DB137: 0 | DC137: 0 | DD137: 0 | DE137: 0 | DF137: 0 | DG137: 0 | DH137: 0 | DI137: 0 | DJ137: 0 | DK137: 0 | DL137: 0 | DM137: 0 | DN137: 0 | DO137: 0 | DP137: 0 | DQ137: 0 | DR137: 0 | DS137: 0 | DT137: 0 | DU137: 0 | DV137: 0 | DW137: 0 | DX137: 0 | DY137: 0 | DZ137: 0 | EA137: 0 | EB137: 0 | EC137: 0 | ED137: 0 | EE137: 0 | EF137: 0 | EG137: 0 | EH137: 0 | EI137: 0 | EJ137: 0 | EK137: 0 | EL137: 0 | EM137: 0 | EN137: 0 | EO137: 0 | EP137: 0 | EQ137: 0 | ER137: 0 | ES137: 0 | ET137: 0 | EU137: 0 | EV137: 0 | EW137: 0 | EX137: 0 | EY137: 0 | EZ137: 0 | FA137: 0 | FB137: 0 | FC137: 0 | FD137: 0 | FE137: 0 | FF137: 0 | FG137: 0 | FH137: 0 | FI137: 0 | FJ137: 0 | FK137: 0 | FL137: 0 | FM137: 0 | FN137: 0 | FO137: 0 | FP137: 0 | FQ137: 0 | FR137: 0 | FS137: 0 | FT137: 0 | FU137: 0 | FV137: 0 | FW137: 0 | FX137: 0 | FY137: 0 | FZ137: 0 | GA137: 0 | GB137: 0 | GC137: 0 | GD137: 0 | GE137: 0 | GF137: 0 | GG137: 0 | GH137: 0
CV138: 0 | CW138: 0 | CX138: 0 | CY138: 0 | CZ138: 0 | DA138: 0 | DB138: 0 | DC138: 0 | DD138: 0 | DE138: 0 | DF138: 0 | DG138: 0 | DH138: 0 | DI138: 0 | DJ138: 0 | DK138: 0 | DL138: 0 | DM138: 0 | DN138: 0 | DO138: 0 | DP138: 0 | DQ138: 0 | DR138: 0 | DS138: 0 | DT138: 0 | DU138: 0 | DV138: 0 | DW138: 0 | DX138: 0 | DY138: 0 | DZ138: 0 | EA138: 0 | EB138: 0 | EC138: 0 | ED138: 0 | EE138: 0 | EF138: 0 | EG138: 0 | EH138: 0 | EI138: 0 | EJ138: 0 | EK138: 0 | EL138: 0 | EM138: 0 | EN138: 0 | EO138: 0 | EP138: 0 | EQ138: 0 | ER138: 0 | ES138: 0 | ET138: 0 | EU138: 0 | EV138: 0 | EW138: 0 | EX138: 0 | EY138: 0 | EZ138: 0 | FA138: 0 | FB138: 0 | FC138: 0 | FD138: 0 | FE138: 0 | FF138: 0 | FG138: 0 | FH138: 0 | FI138: 0 | FJ138: 0 | FK138: 0 | FL138: 0 | FM138: 0 | FN138: 0 | FO138: 0 | FP138: 0 | FQ138: 0 | FR138: 0 | FS138: 0 | FT138: 0 | FU138: 0 | FV138: 0 | FW138: 0 | FX138: 0 | FY138: 0 | FZ138: 0 | GA138: 0 | GB138: 0 | GC138: 0 | GD138: 0 | GE138: 0 | GF138: 0 | GG138: 0 | GH138: 0
CV139: 0 | CW139: 0 | CX139: 0 | CY139: 0 | CZ139: 0 | DA139: 0 | DB139: 0 | DC139: 0 | DD139: 0 | DE139: 0 | DF139: 0 | DG139: 0 | DH139: 0 | DI139: 0 | DJ139: 0 | DK139: 0 | DL139: 0 | DM139: 0 | DN139: 0 | DO139: 0 | DP139: 0 | DQ139: 0 | DR139: 0 | DS139: 0 | DT139: 0 | DU139: 0 | DV139: 0 | DW139: 0 | DX139: 0 | DY139: 0 | DZ139: 0 | EA139: 0 | EB139: 0 | EC139: 0 | ED139: 0 | EE139: 0 | EF139: 0 | EG139: 0 | EH139: 0 | EI139: 0 | EJ139: 0 | EK139: 0 | EL139: 0 | EM139: 0 | EN139: 0 | EO139: 0 | EP139: 0 | EQ139: 0 | ER139: 0 | ES139: 0 | ET139: 0 | EU139: 0 | EV139: 0 | EW139: 0 | EX139: 0 | EY139: 0 | EZ139: 0 | FA139: 0 | FB139: 0 | FC139: 0 | FD139: 0 | FE139: 0 | FF139: 0 | FG139: 0 | FH139: 0 | FI139: 0 | FJ139: 0 | FK139: 0 | FL139: 0 | FM139: 0 | FN139: 0 | FO139: 0 | FP139: 0 | FQ139: 0 | FR139: 0 | FS139: 0 | FT139: 0 | FU139: 0 | FV139: 0 | FW139: 0 | FX139: 0 | FY139: 0 | FZ139: 0 | GA139: 0 | GB139: 0 | GC139: 0 | GD139: 0 | GE139: 0 | GF139: 0 | GG139: 0 | GH139: 0
CV140: 0 | CW140: 0 | CX140: 0 | CY140: 0 | CZ140: 0 | DA140: 0 | DB140: 0 | DC140: 0 | DD140: 0 | DE140: 0 | DF140: 0 | DG140: 0 | DH140: 0 | DI140: 0 | DJ140: 0 | DK140: 0 | DL140: 0 | DM140: 0 | DN140: 0 | DO140: 0 | DP140: 0 | DQ140: 0 | DR140: 0 | DS140: 0 | DT140: 0 | DU140: 0 | DV140: 0 | DW140: 0 | DX140: 0 | DY140: 0 | DZ140: 0 | EA140: 0 | EB140: 0 | EC140: 0 | ED140: 0 | EE140: 0 | EF140: 0 | EG140: 0 | EH140: 0 | EI140: 0 | EJ140: 0 | EK140: 0 | EL140: 0 | EM140: 0 | EN140: 0 | EO140: 0 | EP140: 0 | EQ140: 0 | ER140: 0 | ES140: 0 | ET140: 0 | EU140: 0 | EV140: 0 | EW140: 0 | EX140: 0 | EY140: 0 | EZ140: 0 | FA140: 0 | FB140: 0 | FC140: 0 | FD140: 0 | FE140: 0 | FF140: 0 | FG140: 0 | FH140: 0 | FI140: 0 | FJ140: 0 | FK140: 0 | FL140: 0 | FM140: 0 | FN140: 0 | FO140: 0 | FP140: 0 | FQ140: 0 | FR140: 0 | FS140: 0 | FT140: 0 | FU140: 0 | FV140: 0 | FW140: 0 | FX140: 0 | FY140: 0 | FZ140: 0 | GA140: 0 | GB140: 0 | GC140: 0 | GD140: 0 | GE140: 0 | GF140: 0 | GG140: 0 | GH140: 0
CV141: 0 | CW141: 0 | CX141: 0 | CY141: 0 | CZ141: 0 | DA141: 0 | DB141: 0 | DC141: 0 | DD141: 0 | DE141: 0 | DF141: 0 | DG141: 0 | DH141: 0 | DI141: 0 | DJ141: 0 | DK141: 0 | DL141: 0 | DM141: 0 | DN141: 0 | DO141: 0 | DP141: 0 | DQ141: 0 | DR141: 0 | DS141: 0 | DT141: 0 | DU141: 0 | DV141: 0 | DW141: 0 | DX141: 0 | DY141: 0 | DZ141: 0 | EA141: 0 | EB141: 0 | EC141: 0 | ED141: 0 | EE141: 0 | EF141: 0 | EG141: 0 | EH141: 0 | EI141: 0 | EJ141: 0 | EK141: 0 | EL141: 0 | EM141: 0 | EN141: 0 | EO141: 0 | EP141: 0 | EQ141: 0 | ER141: 0 | ES141: 0 | ET141: 0 | EU141: 0 | EV141: 0 | EW141: 0 | EX141: 0 | EY141: 0 | EZ141: 0 | FA141: 0 | FB141: 0 | FC141: 0 | FD141: 0 | FE141: 0 | FF141: 0 | FG141: 0 | FH141: 0 | FI141: 0 | FJ141: 0 | FK141: 0 | FL141: 0 | FM141: 0 | FN141: 0 | FO141: 0 | FP141: 0 | FQ141: 0 | FR141: 0 | FS141: 0 | FT141: 0 | FU141: 0 | FV141: 0 | FW141: 0 | FX141: 0 | FY141: 0 | FZ141: 0 | GA141: 0 | GB141: 0 | GC141: 0 | GD141: 0 | GE141: 0 | GF141: 0 | GG141: 0 | GH141: 0
CV142: 0 | CW142: 0 | CX142: 0 | CY142: 0 | CZ142: 0 | DA142: 0 | DB142: 0 | DC142: 0 | DD142: 0 | DE142: 0 | DF142: 0 | DG142: 0 | DH142: 0 | DI142: 0 | DJ142: 0 | DK142: 0 | DL142: 0 | DM142: 0 | DN142: 0 | DO142: 0 | DP142: 0 | DQ142: 0 | DR142: 0 | DS142: 0 | DT142: 0 | DU142: 0 | DV142: 0 | DW142: 0 | DX142: 0 | DY142: 0 | DZ142: 0 | EA142: 0 | EB142: 0 | EC142: 0 | ED142: 0 | EE142: 0 | EF142: 0 | EG142: 0 | EH142: 0 | EI142: 0 | EJ142: 0 | EK142: 0 | EL142: 0 | EM142: 0 | EN142: 0 | EO142: 0 | EP142: 0 | EQ142: 0 | ER142: 0 | ES142: 0 | ET142: 0 | EU142: 0 | EV142: 0 | EW142: 0 | EX142: 0 | EY142: 0 | EZ142: 0 | FA142: 0 | FB142: 0 | FC142: 0 | FD142: 0 | FE142: 0 | FF142: 0 | FG142: 0 | FH142: 0 | FI142: 0 | FJ142: 0 | FK142: 0 | FL142: 0 | FM142: 0 | FN142: 0 | FO142: 0 | FP142: 0 | FQ142: 0 | FR142: 0 | FS142: 0 | FT142: 0 | FU142: 0 | FV142: 0 | FW142: 0 | FX142: 0 | FY142: 0 | FZ142: 0 | GA142: 0 | GB142: 0 | GC142: 0 | GD142: 0 | GE142: 0 | GF142: 0 | GG142: 0 | GH142: 0
CV143: 0 | CW143: 0 | CX143: 0 | CY143: 0 | CZ143: 0 | DA143: 0 | DB143: 0 | DC143: 0 | DD143: 0 | DE143: 0 | DF143: 0 | DG143: 0 | DH143: 0 | DI143: 0 | DJ143: 0 | DK143: 0 | DL143: 0 | DM143: 0 | DN143: 0 | DO143: 0 | DP143: 0 | DQ143: 0 | DR143: 0 | DS143: 0 | DT143: 0 | DU143: 0 | DV143: 0 | DW143: 0 | DX143: 0 | DY143: 0 | DZ143: 0 | EA143: 0 | EB143: 0 | EC143: 0 | ED143: 0 | EE143: 0 | EF143: 0 | EG143: 0 | EH143: 0 | EI143: 0 | EJ143: 0 | EK143: 0 | EL143: 0 | EM143: 0 | EN143: 0 | EO143: 0 | EP143: 0 | EQ143: 0 | ER143: 0 | ES143: 0 | ET143: 0 | EU143: 0 | EV143: 0 | EW143: 0 | EX143: 0 | EY143: 0 | EZ143: 0 | FA143: 0 | FB143: 0 | FC143: 0 | FD143: 0 | FE143: 0 | FF143: 0 | FG143: 0 | FH143: 0 | FI143: 0 | FJ143: 0 | FK143: 0 | FL143: 0 | FM143: 0 | FN143: 0 | FO143: 0 | FP143: 0 | FQ143: 0 | FR143: 0 | FS143: 0 | FT143: 0 | FU143: 0 | FV143: 0 | FW143: 0 | FX143: 0 | FY143: 0 | FZ143: 0 | GA143: 0 | GB143: 0 | GC143: 0 | GD143: 0 | GE143: 0 | GF143: 0 | GG143: 0 | GH143: 0
CV144: 0 | CW144: 0 | CX144: 0 | CY144: 0 | CZ144: 0 | DA144: 0 | DB144: 0 | DC144: 0 | DD144: 0 | DE144: 0 | DF144: 0 | DG144: 0 | DH144: 0 | DI144: 0 | DJ144: 0 | DK144: 0 | DL144: 0 | DM144: 0 | DN144: 0 | DO144: 0 | DP144: 0 | DQ144: 0 | DR144: 0 | DS144: 0 | DT144: 0 | DU144: 0 | DV144: 0 | DW144: 0 | DX144: 0 | DY144: 0 | DZ144: 0 | EA144: 0 | EB144: 0 | EC144: 0 | ED144: 0 | EE144: 0 | EF144: 0 | EG144: 0 | EH144: 0 | EI144: 0 | EJ144: 0 | EK144: 0 | EL144: 0 | EM144: 0 | EN144: 0 | EO144: 0 | EP144: 0 | EQ144: 0 | ER144: 0 | ES144: 0 | ET144: 0 | EU144: 0 | EV144: 0 | EW144: 0 | EX144: 0 | EY144: 0 | EZ144: 0 | FA144: 0 | FB144: 0 | FC144: 0 | FD144: 0 | FE144: 0 | FF144: 0 | FG144: 0 | FH144: 0 | FI144: 0 | FJ144: 0 | FK144: 0 | FL144: 0 | FM144: 0 | FN144: 0 | FO144: 0 | FP144: 0 | FQ144: 0 | FR144: 0 | FS144: 0 | FT144: 0 | FU144: 0 | FV144: 0 | FW144: 0 | FX144: 0 | FY144: 0 | FZ144: 0 | GA144: 0 | GB144: 0 | GC144: 0 | GD144: 0 | GE144: 0 | GF144: 0 | GG144: 0 | GH144: 0
CV145: 0 | CW145: 0 | CX145: 0 | CY145: 0 | CZ145: 0 | DA145: 0 | DB145: 0 | DC145: 0 | DD145: 0 | DE145: 0 | DF145: 0 | DG145: 0 | DH145: 0 | DI145: 0 | DJ145: 0 | DK145: 0 | DL145: 0 | DM145: 0 | DN145: 0 | DO145: 0 | DP145: 0 | DQ145: 0 | DR145: 0 | DS145: 0 | DT145: 0 | DU145: 0 | DV145: 0 | DW145: 0 | DX145: 0 | DY145: 0 | DZ145: 0 | EA145: 0 | EB145: 0 | EC145: 0 | ED145: 0 | EE145: 0 | EF145: 0 | EG145: 0 | EH145: 0 | EI145: 0 | EJ145: 0 | EK145: 0 | EL145: 0 | EM145: 0 | EN145: 0 | EO145: 0 | EP145: 0 | EQ145: 0 | ER145: 0 | ES145: 0 | ET145: 0 | EU145: 0 | EV145: 0 | EW145: 0 | EX145: 0 | EY145: 0 | EZ145: 0 | FA145: 0 | FB145: 0 | FC145: 0 | FD145: 0 | FE145: 0 | FF145: 0 | FG145: 0 | FH145: 0 | FI145: 0 | FJ145: 0 | FK145: 0 | FL145: 0 | FM145: 0 | FN145: 0 | FO145: 0 | FP145: 0 | FQ145: 0 | FR145: 0 | FS145: 0 | FT145: 0 | FU145: 0 | FV145: 0 | FW145: 0 | FX145: 0 | FY145: 0 | FZ145: 0 | GA145: 0 | GB145: 0 | GC145: 0 | GD145: 0 | GE145: 0 | GF145: 0 | GG145: 0 | GH145: 0
CV146: 0 | CW146: 0 | CX146: 0 | CY146: 0 | CZ146: 0 | DA146: 0 | DB146: 0 | DC146: 0 | DD146: 0 | DE146: 0 | DF146: 0 | DG146: 0 | DH146: 0 | DI146: 0 | DJ146: 0 | DK146: 0 | DL146: 0 | DM146: 0 | DN146: 0 | DO146: 0 | DP146: 0 | DQ146: 0 | DR146: 0 | DS146: 0 | DT146: 0 | DU146: 0 | DV146: 0 | DW146: 0 | DX146: 0 | DY146: 0 | DZ146: 0 | EA146: 0 | EB146: 0 | EC146: 0 | ED146: 0 | EE146: 0 | EF146: 0 | EG146: 0 | EH146: 0 | EI146: 0 | EJ146: 0 | EK146: 0 | EL146: 0 | EM146: 0 | EN146: 0 | EO146: 0 | EP146: 0 | EQ146: 0 | ER146: 0 | ES146: 0 | ET146: 0 | EU146: 0 | EV146: 0 | EW146: 0 | EX146: 0 | EY146: 0 | EZ146: 0 | FA146: 0 | FB146: 0 | FC146: 0 | FD146: 0 | FE146: 0 | FF146: 0 | FG146: 0 | FH146: 0 | FI146: 0 | FJ146: 0 | FK146: 0 | FL146: 0 | FM146: 0 | FN146: 0 | FO146: 0 | FP146: 0 | FQ146: 0 | FR146: 0 | FS146: 0 | FT146: 0 | FU146: 0 | FV146: 0 | FW146: 0 | FX146: 0 | FY146: 0 | FZ146: 0 | GA146: 0 | GB146: 0 | GC146: 0 | GD146: 0 | GE146: 0 | GF146: 0 | GG146: 0 | GH146: 0
CV147: 0 | CW147: 0 | CX147: 0 | CY147: 0 | CZ147: 0 | DA147: 0 | DB147: 0 | DC147: 0 | DD147: 0 | DE147: 0 | DF147: 0 | DG147: 0 | DH147: 0 | DI147: 0 | DJ147: 0 | DK147: 0 | DL147: 0 | DM147: 0 | DN147: 0 | DO147: 0 | DP147: 0 | DQ147: 0 | DR147: 0 | DS147: 0 | DT147: 0 | DU147: 0 | DV147: 0 | DW147: 0 | DX147: 0 | DY147: 0 | DZ147: 0 | EA147: 0 | EB147: 0 | EC147: 0 | ED147: 0 | EE147: 0 | EF147: 0 | EG147: 0 | EH147: 0 | EI147: 0 | EJ147: 0 | EK147: 0 | EL147: 0 | EM147: 0 | EN147: 0 | EO147: 0 | EP147: 0 | EQ147: 0 | ER147: 0 | ES147: 0 | ET147: 0 | EU147: 0 | EV147: 0 | EW147: 0 | EX147: 0 | EY147: 0 | EZ147: 0 | FA147: 0 | FB147: 0 | FC147: 0 | FD147: 0 | FE147: 0 | FF147: 0 | FG147: 0 | FH147: 0 | FI147: 0 | FJ147: 0 | FK147: 0 | FL147: 0 | FM147: 0 | FN147: 0 | FO147: 0 | FP147: 0 | FQ147: 0 | FR147: 0 | FS147: 0 | FT147: 0 | FU147: 0 | FV147: 0 | FW147: 0 | FX147: 0 | FY147: 0 | FZ147: 0 | GA147: 0 | GB147: 0 | GC147: 0 | GD147: 0 | GE147: 0 | GF147: 0 | GG147: 0 | GH147: 0
CV148: 0 | CW148: 0 | CX148: 0 | CY148: 0 | CZ148: 0 | DA148: 0 | DB148: 0 | DC148: 0 | DD148: 0 | DE148: 0 | DF148: 0 | DG148: 0 | DH148: 0 | DI148: 0 | DJ148: 0 | DK148: 0 | DL148: 0 | DM148: 0 | DN148: 0 | DO148: 0 | DP148: 0 | DQ148: 0 | DR148: 0 | DS148: 0 | DT148: 0 | DU148: 0 | DV148: 0 | DW148: 0 | DX148: 0 | DY148: 0 | DZ148: 0 | EA148: 0 | EB148: 0 | EC148: 0 | ED148: 0 | EE148: 0 | EF148: 0 | EG148: 0 | EH148: 0 | EI148: 0 | EJ148: 0 | EK148: 0 | EL148: 0 | EM148: 0 | EN148: 0 | EO148: 0 | EP148: 0 | EQ148: 0 | ER148: 0 | ES148: 0 | ET148: 0 | EU148: 0 | EV148: 0 | EW148: 0 | EX148: 0 | EY148: 0 | EZ148: 0 | FA148: 0 | FB148: 0 | FC148: 0 | FD148: 0 | FE148: 0 | FF148: 0 | FG148: 0 | FH148: 0 | FI148: 0 | FJ148: 0 | FK148: 0 | FL148: 0 | FM148: 0 | FN148: 0 | FO148: 0 | FP148: 0 | FQ148: 0 | FR148: 0 | FS148: 0 | FT148: 0 | FU148: 0 | FV148: 0 | FW148: 0 | FX148: 0 | FY148: 0 | FZ148: 0 | GA148: 0 | GB148: 0 | GC148: 0 | GD148: 0 | GE148: 0 | GF148: 0 | GG148: 0 | GH148: 0
CV149: 0 | CW149: 0 | CX149: 0 | CY149: 0 | CZ149: 0 | DA149: 0 | DB149: 0 | DC149: 0 | DD149: 0 | DE149: 0 | DF149: 0 | DG149: 0 | DH149: 0 | DI149: 0 | DJ149: 0 | DK149: 0 | DL149: 0 | DM149: 0 | DN149: 0 | DO149: 0 | DP149: 0 | DQ149: 0 | DR149: 0 | DS149: 0 | DT149: 0 | DU149: 0 | DV149: 0 | DW149: 0 | DX149: 0 | DY149: 0 | DZ149: 0 | EA149: 0 | EB149: 0 | EC149: 0 | ED149: 0 | EE149: 0 | EF149: 0 | EG149: 0 | EH149: 0 | EI149: 0 | EJ149: 0 | EK149: 0 | EL149: 0 | EM149: 0 | EN149: 0 | EO149: 0 | EP149: 0 | EQ149: 0 | ER149: 0 | ES149: 0 | ET149: 0 | EU149: 0 | EV149: 0 | EW149: 0 | EX149: 0 | EY149: 0 | EZ149: 0 | FA149: 0 | FB149: 0 | FC149: 0 | FD149: 0 | FE149: 0 | FF149: 0 | FG149: 0 | FH149: 0 | FI149: 0 | FJ149: 0 | FK149: 0 | FL149: 0 | FM149: 0 | FN149: 0 | FO149: 0 | FP149: 0 | FQ149: 0 | FR149: 0 | FS149: 0 | FT149: 0 | FU149: 0 | FV149: 0 | FW149: 0 | FX149: 0 | FY149: 0 | FZ149: 0 | GA149: 0 | GB149: 0 | GC149: 0 | GD149: 0 | GE149: 0 | GF149: 0 | GG149: 0 | GH149: 0
CV150: 0 | CW150: 0 | CX150: 0 | CY150: 0 | CZ150: 0 | DA150: 0 | DB150: 0 | DC150: 0 | DD150: 0 | DE150: 0 | DF150: 0 | DG150: 0 | DH150: 0 | DI150: 0 | DJ150: 0 | DK150: 0 | DL150: 0 | DM150: 0 | DN150: 0 | DO150: 0 | DP150: 0 | DQ150: 0 | DR150: 0 | DS150: 0 | DT150: 0 | DU150: 0 | DV150: 0 | DW150: 0 | DX150: 0 | DY150: 0 | DZ150: 0 | EA150: 0 | EB150: 0 | EC150: 0 | ED150: 0 | EE150: 0 | EF150: 0 | EG150: 0 | EH150: 0 | EI150: 0 | EJ150: 0 | EK150: 0 | EL150: 0 | EM150: 0 | EN150: 0 | EO150: 0 | EP150: 0 | EQ150: 0 | ER150: 0 | ES150: 0 | ET150: 0 | EU150: 0 | EV150: 0 | EW150: 0 | EX150: 0 | EY150: 0 | EZ150: 0 | FA150: 0 | FB150: 0 | FC150: 0 | FD150: 0 | FE150: 0 | FF150: 0 | FG150: 0 | FH150: 0 | FI150: 0 | FJ150: 0 | FK150: 0 | FL150: 0 | FM150: 0 | FN150: 0 | FO150: 0 | FP150: 0 | FQ150: 0 | FR150: 0 | FS150: 0 | FT150: 0 | FU150: 0 | FV150: 0 | FW150: 0 | FX150: 0 | FY150: 0 | FZ150: 0 | GA150: 0 | GB150: 0 | GC150: 0 | GD150: 0 | GE150: 0 | GF150: 0 | GG150: 0 | GH150: 0
CV151: 0 | CW151: 0 | CX151: 0 | CY151: 0 | CZ151: 0 | DA151: 0 | DB151: 0 | DC151: 0 | DD151: 0 | DE151: 0 | DF151: 0 | DG151: 0 | DH151: 0 | DI151: 0 | DJ151: 0 | DK151: 0 | DL151: 0 | DM151: 0 | DN151: 0 | DO151: 0 | DP151: 0 | DQ151: 0 | DR151: 0 | DS151: 0 | DT151: 0 | DU151: 0 | DV151: 0 | DW151: 0 | DX151: 0 | DY151: 0 | DZ151: 0 | EA151: 0 | EB151: 0 | EC151: 0 | ED151: 0 | EE151: 0 | EF151: 0 | EG151: 0 | EH151: 0 | EI151: 0 | EJ151: 0 | EK151: 0 | EL151: 0 | EM151: 0 | EN151: 0 | EO151: 0 | EP151: 0 | EQ151: 0 | ER151: 0 | ES151: 0 | ET151: 0 | EU151: 0 | EV151: 0 | EW151: 0 | EX151: 0 | EY151: 0 | EZ151: 0 | FA151: 0 | FB151: 0 | FC151: 0 | FD151: 0 | FE151: 0 | FF151: 0 | FG151: 0 | FH151: 0 | FI151: 0 | FJ151: 0 | FK151: 0 | FL151: 0 | FM151: 0 | FN151: 0 | FO151: 0 | FP151: 0 | FQ151: 0 | FR151: 0 | FS151: 0 | FT151: 0 | FU151: 0 | FV151: 0 | FW151: 0 | FX151: 0 | FY151: 0 | FZ151: 0 | GA151: 0 | GB151: 0 | GC151: 0 | GD151: 0 | GE151: 0 | GF151: 0 | GG151: 0 | GH151: 0
CV152: 0 | CW152: 0 | CX152: 0 | CY152: 0 | CZ152: 0 | DA152: 0 | DB152: 0 | DC152: 0 | DD152: 0 | DE152: 0 | DF152: 0 | DG152: 0 | DH152: 0 | DI152: 0 | DJ152: 0 | DK152: 0 | DL152: 0 | DM152: 0 | DN152: 0 | DO152: 0 | DP152: 0 | DQ152: 0 | DR152: 0 | DS152: 0 | DT152: 0 | DU152: 0 | DV152: 0 | DW152: 0 | DX152: 0 | DY152: 0 | DZ152: 0 | EA152: 0 | EB152: 0 | EC152: 0 | ED152: 0 | EE152: 0 | EF152: 0 | EG152: 0 | EH152: 0 | EI152: 0 | EJ152: 0 | EK152: 0 | EL152: 0 | EM152: 0 | EN152: 0 | EO152: 0 | EP152: 0 | EQ152: 0 | ER152: 0 | ES152: 0 | ET152: 0 | EU152: 0 | EV152: 0 | EW152: 0 | EX152: 0 | EY152: 0 | EZ152: 0 | FA152: 0 | FB152: 0 | FC152: 0 | FD152: 0 | FE152: 0 | FF152: 0 | FG152: 0 | FH152: 0 | FI152: 0 | FJ152: 0 | FK152: 0 | FL152: 0 | FM152: 0 | FN152: 0 | FO152: 0 | FP152: 0 | FQ152: 0 | FR152: 0 | FS152: 0 | FT152: 0 | FU152: 0 | FV152: 0 | FW152: 0 | FX152: 0 | FY152: 0 | FZ152: 0 | GA152: 0 | GB152: 0 | GC152: 0 | GD152: 0 | GE152: 0 | GF152: 0 | GG152: 0 | GH152: 0
CV153: 0 | CW153: 0 | CX153: 0 | CY153: 0 | CZ153: 0 | DA153: 0 | DB153: 0 | DC153: 0 | DD153: 0 | DE153: 0 | DF153: 0 | DG153: 0 | DH153: 0 | DI153: 0 | DJ153: 0 | DK153: 0 | DL153: 0 | DM153: 0 | DN153: 0 | DO153: 0 | DP153: 0 | DQ153: 0 | DR153: 0 | DS153: 0 | DT153: 0 | DU153: 0 | DV153: 0 | DW153: 0 | DX153: 0 | DY153: 0 | DZ153: 0 | EA153: 0 | EB153: 0 | EC153: 0 | ED153: 0 | EE153: 0 | EF153: 0 | EG153: 0 | EH153: 0 | EI153: 0 | EJ153: 0 | EK153: 0 | EL153: 0 | EM153: 0 | EN153: 0 | EO153: 0 | EP153: 0 | EQ153: 0 | ER153: 0 | ES153: 0 | ET153: 0 | EU153: 0 | EV153: 0 | EW153: 0 | EX153: 0 | EY153: 0 | EZ153: 0 | FA153: 0 | FB153: 0 | FC153: 0 | FD153: 0 | FE153: 0 | FF153: 0 | FG153: 0 | FH153: 0 | FI153: 0 | FJ153: 0 | FK153: 0 | FL153: 0 | FM153: 0 | FN153: 0 | FO153: 0 | FP153: 0 | FQ153: 0 | FR153: 0 | FS153: 0 | FT153: 0 | FU153: 0 | FV153: 0 | FW153: 0 | FX153: 0 | FY153: 0 | FZ153: 0 | GA153: 0 | GB153: 0 | GC153: 0 | GD153: 0 | GE153: 0 | GF153: 0 | GG153: 0 | GH153: 0
CV154: 0 | CW154: 0 | CX154: 0 | CY154: 0 | CZ154: 0 | DA154: 0 | DB154: 0 | DC154: 0 | DD154: 0 | DE154: 0 | DF154: 0 | DG154: 0 | DH154: 0 | DI154: 0 | DJ154: 0 | DK154: 0 | DL154: 0 | DM154: 0 | DN154: 0 | DO154: 0 | DP154: 0 | DQ154: 0 | DR154: 0 | DS154: 0 | DT154: 0 | DU154: 0 | DV154: 0 | DW154: 0 | DX154: 0 | DY154: 0 | DZ154: 0 | EA154: 0 | EB154: 0 | EC154: 0 | ED154: 0 | EE154: 0 | EF154: 0 | EG154: 0 | EH154: 0 | EI154: 0 | EJ154: 0 | EK154: 0 | EL154: 0 | EM154: 0 | EN154: 0 | EO154: 0 | EP154: 0 | EQ154: 0 | ER154: 0 | ES154: 0 | ET154: 0 | EU154: 0 | EV154: 0 | EW154: 0 | EX154: 0 | EY154: 0 | EZ154: 0 | FA154: 0 | FB154: 0 | FC154: 0 | FD154: 0 | FE154: 0 | FF154: 0 | FG154: 0 | FH154: 0 | FI154: 0 | FJ154: 0 | FK154: 0 | FL154: 0 | FM154: 0 | FN154: 0 | FO154: 0 | FP154: 0 | FQ154: 0 | FR154: 0 | FS154: 0 | FT154: 0 | FU154: 0 | FV154: 0 | FW154: 0 | FX154: 0 | FY154: 0 | FZ154: 0 | GA154: 0 | GB154: 0 | GC154: 0 | GD154: 0 | GE154: 0 | GF154: 0 | GG154: 0 | GH154: 0
CV155: 0 | CW155: 0 | CX155: 0 | CY155: 0 | CZ155: 0 | DA155: 0 | DB155: 0 | DC155: 0 | DD155: 0 | DE155: 0 | DF155: 0 | DG155: 0 | DH155: 0 | DI155: 0 | DJ155: 0 | DK155: 0 | DL155: 0 | DM155: 0 | DN155: 0 | DO155: 0 | DP155: 0 | DQ155: 0 | DR155: 0 | DS155: 0 | DT155: 0 | DU155: 0 | DV155: 0 | DW155: 0 | DX155: 0 | DY155: 0 | DZ155: 0 | EA155: 0 | EB155: 0 | EC155: 0 | ED155: 0 | EE155: 0 | EF155: 0 | EG155: 0 | EH155: 0 | EI155: 0 | EJ155: 0 | EK155: 0 | EL155: 0 | EM155: 0 | EN155: 0 | EO155: 0 | EP155: 0 | EQ155: 0 | ER155: 0 | ES155: 0 | ET155: 0 | EU155: 0 | EV155: 0 | EW155: 0 | EX155: 0 | EY155: 0 | EZ155: 0 | FA155: 0 | FB155: 0 | FC155: 0 | FD155: 0 | FE155: 0 | FF155: 0 | FG155: 0 | FH155: 0 | FI155: 0 | FJ155: 0 | FK155: 0 | FL155: 0 | FM155: 0 | FN155: 0 | FO155: 0 | FP155: 0 | FQ155: 0 | FR155: 0 | FS155: 0 | FT155: 0 | FU155: 0 | FV155: 0 | FW155: 0 | FX155: 0 | FY155: 0 | FZ155: 0 | GA155: 0 | GB155: 0 | GC155: 0 | GD155: 0 | GE155: 0 | GF155: 0 | GG155: 0 | GH155: 0
CV156: 0 | CW156: 0 | CX156: 0 | CY156: 0 | CZ156: 0 | DA156: 0 | DB156: 0 | DC156: 0 | DD156: 0 | DE156: 0 | DF156: 0 | DG156: 0 | DH156: 0 | DI156: 0 | DJ156: 0 | DK156: 0 | DL156: 0 | DM156: 0 | DN156: 0 | DO156: 0 | DP156: 0 | DQ156: 0 | DR156: 0 | DS156: 0 | DT156: 0 | DU156: 0 | DV156: 0 | DW156: 0 | DX156: 0 | DY156: 0 | DZ156: 0 | EA156: 0 | EB156: 0 | EC156: 0 | ED156: 0 | EE156: 0 | EF156: 0 | EG156: 0 | EH156: 0 | EI156: 0 | EJ156: 0 | EK156: 0 | EL156: 0 | EM156: 0 | EN156: 0 | EO156: 0 | EP156: 0 | EQ156: 0 | ER156: 0 | ES156: 0 | ET156: 0 | EU156: 0 | EV156: 0 | EW156: 0 | EX156: 0 | EY156: 0 | EZ156: 0 | FA156: 0 | FB156: 0 | FC156: 0 | FD156: 0 | FE156: 0 | FF156: 0 | FG156: 0 | FH156: 0 | FI156: 0 | FJ156: 0 | FK156: 0 | FL156: 0 | FM156: 0 | FN156: 0 | FO156: 0 | FP156: 0 | FQ156: 0 | FR156: 0 | FS156: 0 | FT156: 0 | FU156: 0 | FV156: 0 | FW156: 0 | FX156: 0 | FY156: 0 | FZ156: 0 | GA156: 0 | GB156: 0 | GC156: 0 | GD156: 0 | GE156: 0 | GF156: 0 | GG156: 0 | GH156: 0
CV157: 0 | CW157: 0 | CX157: 0 | CY157: 0 | CZ157: 0 | DA157: 0 | DB157: 0 | DC157: 0 | DD157: 0 | DE157: 0 | DF157: 0 | DG157: 0 | DH157: 0 | DI157: 0 | DJ157: 0 | DK157: 0 | DL157: 0 | DM157: 0 | DN157: 0 | DO157: 0 | DP157: 0 | DQ157: 0 | DR157: 0 | DS157: 0 | DT157: 0 | DU157: 0 | DV157: 0 | DW157: 0 | DX157: 0 | DY157: 0 | DZ157: 0 | EA157: 0 | EB157: 0 | EC157: 0 | ED157: 0 | EE157: 0 | EF157: 0 | EG157: 0 | EH157: 0 | EI157: 0 | EJ157: 0 | EK157: 0 | EL157: 0 | EM157: 0 | EN157: 0 | EO157: 0 | EP157: 0 | EQ157: 0 | ER157: 0 | ES157: 0 | ET157: 0 | EU157: 0 | EV157: 0 | EW157: 0 | EX157: 0 | EY157: 0 | EZ157: 0 | FA157: 0 | FB157: 0 | FC157: 0 | FD157: 0 | FE157: 0 | FF157: 0 | FG157: 0 | FH157: 0 | FI157: 0 | FJ157: 0 | FK157: 0 | FL157: 0 | FM157: 0 | FN157: 0 | FO157: 0 | FP157: 0 | FQ157: 0 | FR157: 0 | FS157: 0 | FT157: 0 | FU157: 0 | FV157: 0 | FW157: 0 | FX157: 0 | FY157: 0 | FZ157: 0 | GA157: 0 | GB157: 0 | GC157: 0 | GD157: 0 | GE157: 0 | GF157: 0 | GG157: 0 | GH157: 0
CV158: 0 | CW158: 0 | CX158: 0 | CY158: 0 | CZ158: 0 | DA158: 0 | DB158: 0 | DC158: 0 | DD158: 0 | DE158: 0 | DF158: 0 | DG158: 0 | DH158: 0 | DI158: 0 | DJ158: 0 | DK158: 0 | DL158: 0 | DM158: 0 | DN158: 0 | DO158: 0 | DP158: 0 | DQ158: 0 | DR158: 0 | DS158: 0 | DT158: 0 | DU158: 0 | DV158: 0 | DW158: 0 | DX158: 0 | DY158: 0 | DZ158: 0 | EA158: 0 | EB158: 0 | EC158: 0 | ED158: 0 | EE158: 0 | EF158: 0 | EG158: 0 | EH158: 0 | EI158: 0 | EJ158: 0 | EK158: 0 | EL158: 0 | EM158: 0 | EN158: 0 | EO158: 0 | EP158: 0 | EQ158: 0 | ER158: 0 | ES158: 0 | ET158: 0 | EU158: 0 | EV158: 0 | EW158: 0 | EX158: 0 | EY158: 0 | EZ158: 0 | FA158: 0 | FB158: 0 | FC158: 0 | FD158: 0 | FE158: 0 | FF158: 0 | FG158: 0 | FH158: 0 | FI158: 0 | FJ158: 0 | FK158: 0 | FL158: 0 | FM158: 0 | FN158: 0 | FO158: 0 | FP158: 0 | FQ158: 0 | FR158: 0 | FS158: 0 | FT158: 0 | FU158: 0 | FV158: 0 | FW158: 0 | FX158: 0 | FY158: 0 | FZ158: 0 | GA158: 0 | GB158: 0 | GC158: 0 | GD158: 0 | GE158: 0 | GF158: 0 | GG158: 0 | GH158: 0
CV159: 0 | CW159: 0 | CX159: 0 | CY159: 0 | CZ159: 0 | DA159: 0 | DB159: 0 | DC159: 0 | DD159: 0 | DE159: 0 | DF159: 0 | DG159: 0 | DH159: 0 | DI159: 0 | DJ159: 0 | DK159: 0 | DL159: 0 | DM159: 0 | DN159: 0 | DO159: 0 | DP159: 0 | DQ159: 0 | DR159: 0 | DS159: 0 | DT159: 0 | DU159: 0 | DV159: 0 | DW159: 0 | DX159: 0 | DY159: 0 | DZ159: 0 | EA159: 0 | EB159: 0 | EC159: 0 | ED159: 0 | EE159: 0 | EF159: 0 | EG159: 0 | EH159: 0 | EI159: 0 | EJ159: 0 | EK159: 0 | EL159: 0 | EM159: 0 | EN159: 0 | EO159: 0 | EP159: 0 | EQ159: 0 | ER159: 0 | ES159: 0 | ET159: 0 | EU159: 0 | EV159: 0 | EW159: 0 | EX159: 0 | EY159: 0 | EZ159: 0 | FA159: 0 | FB159: 0 | FC159: 0 | FD159: 0 | FE159: 0 | FF159: 0 | FG159: 0 | FH159: 0 | FI159: 0 | FJ159: 0 | FK159: 0 | FL159: 0 | FM159: 0 | FN159: 0 | FO159: 0 | FP159: 0 | FQ159: 0 | FR159: 0 | FS159: 0 | FT159: 0 | FU159: 0 | FV159: 0 | FW159: 0 | FX159: 0 | FY159: 0 | FZ159: 0 | GA159: 0 | GB159: 0 | GC159: 0 | GD159: 0 | GE159: 0 | GF159: 0 | GG159: 0 | GH159: 0
CV160: 0 | CW160: 0 | CX160: 0 | CY160: 0 | CZ160: 0 | DA160: 0 | DB160: 0 | DC160: 0 | DD160: 0 | DE160: 0 | DF160: 0 | DG160: 0 | DH160: 0 | DI160: 0 | DJ160: 0 | DK160: 0 | DL160: 0 | DM160: 0 | DN160: 0 | DO160: 0 | DP160: 0 | DQ160: 0 | DR160: 0 | DS160: 0 | DT160: 0 | DU160: 0 | DV160: 0 | DW160: 0 | DX160: 0 | DY160: 0 | DZ160: 0 | EA160: 0 | EB160: 0 | EC160: 0 | ED160: 0 | EE160: 0 | EF160: 0 | EG160: 0 | EH160: 0 | EI160: 0 | EJ160: 0 | EK160: 0 | EL160: 0 | EM160: 0 | EN160: 0 | EO160: 0 | EP160: 0 | EQ160: 0 | ER160: 0 | ES160: 0 | ET160: 0 | EU160: 0 | EV160: 0 | EW160: 0 | EX160: 0 | EY160: 0 | EZ160: 0 | FA160: 0 | FB160: 0 | FC160: 0 | FD160: 0 | FE160: 0 | FF160: 0 | FG160: 0 | FH160: 0 | FI160: 0 | FJ160: 0 | FK160: 0 | FL160: 0 | FM160: 0 | FN160: 0 | FO160: 0 | FP160: 0 | FQ160: 0 | FR160: 0 | FS160: 0 | FT160: 0 | FU160: 0 | FV160: 0 | FW160: 0 | FX160: 0 | FY160: 0 | FZ160: 0 | GA160: 0 | GB160: 0 | GC160: 0 | GD160: 0 | GE160: 0 | GF160: 0 | GG160: 0 | GH160: 0
CV161: 0 | CW161: 0 | CX161: 0 | CY161: 0 | CZ161: 0 | DA161: 0 | DB161: 0 | DC161: 0 | DD161: 0 | DE161: 0 | DF161: 0 | DG161: 0 | DH161: 0 | DI161: 0 | DJ161: 0 | DK161: 0 | DL161: 0 | DM161: 0 | DN161: 0 | DO161: 0 | DP161: 0 | DQ161: 0 | DR161: 0 | DS161: 0 | DT161: 0 | DU161: 0 | DV161: 0 | DW161: 0 | DX161: 0 | DY161: 0 | DZ161: 0 | EA161: 0 | EB161: 0 | EC161: 0 | ED161: 0 | EE161: 0 | EF161: 0 | EG161: 0 | EH161: 0 | EI161: 0 | EJ161: 0 | EK161: 0 | EL161: 0 | EM161: 0 | EN161: 0 | EO161: 0 | EP161: 0 | EQ161: 0 | ER161: 0 | ES161: 0 | ET161: 0 | EU161: 0 | EV161: 0 | EW161: 0 | EX161: 0 | EY161: 0 | EZ161: 0 | FA161: 0 | FB161: 0 | FC161: 0 | FD161: 0 | FE161: 0 | FF161: 0 | FG161: 0 | FH161: 0 | FI161: 0 | FJ161: 0 | FK161: 0 | FL161: 0 | FM161: 0 | FN161: 0 | FO161: 0 | FP161: 0 | FQ161: 0 | FR161: 0 | FS161: 0 | FT161: 0 | FU161: 0 | FV161: 0 | FW161: 0 | FX161: 0 | FY161: 0 | FZ161: 0 | GA161: 0 | GB161: 0 | GC161: 0 | GD161: 0 | GE161: 0 | GF161: 0 | GG161: 0 | GH161: 0
CV162: 0 | CW162: 0 | CX162: 0 | CY162: 0 | CZ162: 0 | DA162: 0 | DB162: 0 | DC162: 0 | DD162: 0 | DE162: 0 | DF162: 0 | DG162: 0 | DH162: 0 | DI162: 0 | DJ162: 0 | DK162: 0 | DL162: 0 | DM162: 0 | DN162: 0 | DO162: 0 | DP162: 0 | DQ162: 0 | DR162: 0 | DS162: 0 | DT162: 0 | DU162: 0 | DV162: 0 | DW162: 0 | DX162: 0 | DY162: 0 | DZ162: 0 | EA162: 0 | EB162: 0 | EC162: 0 | ED162: 0 | EE162: 0 | EF162: 0 | EG162: 0 | EH162: 0 | EI162: 0 | EJ162: 0 | EK162: 0 | EL162: 0 | EM162: 0 | EN162: 0 | EO162: 0 | EP162: 0 | EQ162: 0 | ER162: 0 | ES162: 0 | ET162: 0 | EU162: 0 | EV162: 0 | EW162: 0 | EX162: 0 | EY162: 0 | EZ162: 0 | FA162: 0 | FB162: 0 | FC162: 0 | FD162: 0 | FE162: 0 | FF162: 0 | FG162: 0 | FH162: 0 | FI162: 0 | FJ162: 0 | FK162: 0 | FL162: 0 | FM162: 0 | FN162: 0 | FO162: 0 | FP162: 0 | FQ162: 0 | FR162: 0 | FS162: 0 | FT162: 0 | FU162: 0 | FV162: 0 | FW162: 0 | FX162: 0 | FY162: 0 | FZ162: 0 | GA162: 0 | GB162: 0 | GC162: 0 | GD162: 0 | GE162: 0 | GF162: 0 | GG162: 0 | GH162: 0
CV163: 0 | CW163: 0 | CX163: 0 | CY163: 0 | CZ163: 0 | DA163: 0 | DB163: 0 | DC163: 0 | DD163: 0 | DE163: 0 | DF163: 0 | DG163: 0 | DH163: 0 | DI163: 0 | DJ163: 0 | DK163: 0 | DL163: 0 | DM163: 0 | DN163: 0 | DO163: 0 | DP163: 0 | DQ163: 0 | DR163: 0 | DS163: 0 | DT163: 0 | DU163: 0 | DV163: 0 | DW163: 0 | DX163: 0 | DY163: 0 | DZ163: 0 | EA163: 0 | EB163: 0 | EC163: 0 | ED163: 0 | EE163: 0 | EF163: 0 | EG163: 0 | EH163: 0 | EI163: 0 | EJ163: 0 | EK163: 0 | EL163: 0 | EM163: 0 | EN163: 0 | EO163: 0 | EP163: 0 | EQ163: 0 | ER163: 0 | ES163: 0 | ET163: 0 | EU163: 0 | EV163: 0 | EW163: 0 | EX163: 0 | EY163: 0 | EZ163: 0 | FA163: 0 | FB163: 0 | FC163: 0 | FD163: 0 | FE163: 0 | FF163: 0 | FG163: 0 | FH163: 0 | FI163: 0 | FJ163: 0 | FK163: 0 | FL163: 0 | FM163: 0 | FN163: 0 | FO163: 0 | FP163: 0 | FQ163: 0 | FR163: 0 | FS163: 0 | FT163: 0 | FU163: 0 | FV163: 0 | FW163: 0 | FX163: 0 | FY163: 0 | FZ163: 0 | GA163: 0 | GB163: 0 | GC163: 0 | GD163: 0 | GE163: 0 | GF163: 0 | GG163: 0 | GH163: 0
CV164: 0 | CW164: 0 | CX164: 0 | CY164: 0 | CZ164: 0 | DA164: 0 | DB164: 0 | DC164: 0 | DD164: 0 | DE164: 0 | DF164: 0 | DG164: 0 | DH164: 0 | DI164: 0 | DJ164: 0 | DK164: 0 | DL164: 0 | DM164: 0 | DN164: 0 | DO164: 0 | DP164: 0 | DQ164: 0 | DR164: 0 | DS164: 0 | DT164: 0 | DU164: 0 | DV164: 0 | DW164: 0 | DX164: 0 | DY164: 0 | DZ164: 0 | EA164: 0 | EB164: 0 | EC164: 0 | ED164: 0 | EE164: 0 | EF164: 0 | EG164: 0 | EH164: 0 | EI164: 0 | EJ164: 0 | EK164: 0 | EL164: 0 | EM164: 0 | EN164: 0 | EO164: 0 | EP164: 0 | EQ164: 0 | ER164: 0 | ES164: 0 | ET164: 0 | EU164: 0 | EV164: 0 | EW164: 0 | EX164: 0 | EY164: 0 | EZ164: 0 | FA164: 0 | FB164: 0 | FC164: 0 | FD164: 0 | FE164: 0 | FF164: 0 | FG164: 0 | FH164: 0 | FI164: 0 | FJ164: 0 | FK164: 0 | FL164: 0 | FM164: 0 | FN164: 0 | FO164: 0 | FP164: 0 | FQ164: 0 | FR164: 0 | FS164: 0 | FT164: 0 | FU164: 0 | FV164: 0 | FW164: 0 | FX164: 0 | FY164: 0 | FZ164: 0 | GA164: 0 | GB164: 0 | GC164: 0 | GD164: 0 | GE164: 0 | GF164: 0 | GG164: 0 | GH164: 0
CV165: 0 | CW165: 0 | CX165: 0 | CY165: 0 | CZ165: 0 | DA165: 0 | DB165: 0 | DC165: 0 | DD165: 0 | DE165: 0 | DF165: 0 | DG165: 0 | DH165: 0 | DI165: 0 | DJ165: 0 | DK165: 0 | DL165: 0 | DM165: 0 | DN165: 0 | DO165: 0 | DP165: 0 | DQ165: 0 | DR165: 0 | DS165: 0 | DT165: 0 | DU165: 0 | DV165: 0 | DW165: 0 | DX165: 0 | DY165: 0 | DZ165: 0 | EA165: 0 | EB165: 0 | EC165: 0 | ED165: 0 | EE165: 0 | EF165: 0 | EG165: 0 | EH165: 0 | EI165: 0 | EJ165: 0 | EK165: 0 | EL165: 0 | EM165: 0 | EN165: 0 | EO165: 0 | EP165: 0 | EQ165: 0 | ER165: 0 | ES165: 0 | ET165: 0 | EU165: 0 | EV165: 0 | EW165: 0 | EX165: 0 | EY165: 0 | EZ165: 0 | FA165: 0 | FB165: 0 | FC165: 0 | FD165: 0 | FE165: 0 | FF165: 0 | FG165: 0 | FH165: 0 | FI165: 0 | FJ165: 0 | FK165: 0 | FL165: 0 | FM165: 0 | FN165: 0 | FO165: 0 | FP165: 0 | FQ165: 0 | FR165: 0 | FS165: 0 | FT165: 0 | FU165: 0 | FV165: 0 | FW165: 0 | FX165: 0 | FY165: 0 | FZ165: 0 | GA165: 0 | GB165: 0 | GC165: 0 | GD165: 0 | GE165: 0 | GF165: 0 | GG165: 0 | GH165: 0
CV166: 0 | CW166: 0 | CX166: 0 | CY166: 0 | CZ166: 0 | DA166: 0 | DB166: 0 | DC166: 0 | DD166: 0 | DE166: 0 | DF166: 0 | DG166: 0 | DH166: 0 | DI166: 0 | DJ166: 0 | DK166: 0 | DL166: 0 | DM166: 0 | DN166: 0 | DO166: 0 | DP166: 0 | DQ166: 0 | DR166: 0 | DS166: 0 | DT166: 0 | DU166: 0 | DV166: 0 | DW166: 0 | DX166: 0 | DY166: 0 | DZ166: 0 | EA166: 0 | EB166: 0 | EC166: 0 | ED166: 0 | EE166: 0 | EF166: 0 | EG166: 0 | EH166: 0 | EI166: 0 | EJ166: 0 | EK166: 0 | EL166: 0 | EM166: 0 | EN166: 0 | EO166: 0 | EP166: 0 | EQ166: 0 | ER166: 0 | ES166: 0 | ET166: 0 | EU166: 0 | EV166: 0 | EW166: 0 | EX166: 0 | EY166: 0 | EZ166: 0 | FA166: 0 | FB166: 0 | FC166: 0 | FD166: 0 | FE166: 0 | FF166: 0 | FG166: 0 | FH166: 0 | FI166: 0 | FJ166: 0 | FK166: 0 | FL166: 0 | FM166: 0 | FN166: 0 | FO166: 0 | FP166: 0 | FQ166: 0 | FR166: 0 | FS166: 0 | FT166: 0 | FU166: 0 | FV166: 0 | FW166: 0 | FX166: 0 | FY166: 0 | FZ166: 0 | GA166: 0 | GB166: 0 | GC166: 0 | GD166: 0 | GE166: 0 | GF166: 0 | GG166: 0 | GH166: 0
CV167: 0 | CW167: 0 | CX167: 0 | CY167: 0 | CZ167: 0 | DA167: 0 | DB167: 0 | DC167: 0 | DD167: 0 | DE167: 0 | DF167: 0 | DG167: 0 | DH167: 0 | DI167: 0 | DJ167: 0 | DK167: 0 | DL167: 0 | DM167: 0 | DN167: 0 | DO167: 0 | DP167: 0 | DQ167: 0 | DR167: 0 | DS167: 0 | DT167: 0 | DU167: 0 | DV167: 0 | DW167: 0 | DX167: 0 | DY167: 0 | DZ167: 0 | EA167: 0 | EB167: 0 | EC167: 0 | ED167: 0 | EE167: 0 | EF167: 0 | EG167: 0 | EH167: 0 | EI167: 0 | EJ167: 0 | EK167: 0 | EL167: 0 | EM167: 0 | EN167: 0 | EO167: 0 | EP167: 0 | EQ167: 0 | ER167: 0 | ES167: 0 | ET167: 0 | EU167: 0 | EV167: 0 | EW167: 0 | EX167: 0 | EY167: 0 | EZ167: 0 | FA167: 0 | FB167: 0 | FC167: 0 | FD167: 0 | FE167: 0 | FF167: 0 | FG167: 0 | FH167: 0 | FI167: 0 | FJ167: 0 | FK167: 0 | FL167: 0 | FM167: 0 | FN167: 0 | FO167: 0 | FP167: 0 | FQ167: 0 | FR167: 0 | FS167: 0 | FT167: 0 | FU167: 0 | FV167: 0 | FW167: 0 | FX167: 0 | FY167: 0 | FZ167: 0 | GA167: 0 | GB167: 0 | GC167: 0 | GD167: 0 | GE167: 0 | GF167: 0 | GG167: 0 | GH167: 0
CV168: 0 | CW168: 0 | CX168: 0 | CY168: 0 | CZ168: 0 | DA168: 0 | DB168: 0 | DC168: 0 | DD168: 0 | DE168: 0 | DF168: 0 | DG168: 0 | DH168: 0 | DI168: 0 | DJ168: 0 | DK168: 0 | DL168: 0 | DM168: 0 | DN168: 0 | DO168: 0 | DP168: 0 | DQ168: 0 | DR168: 0 | DS168: 0 | DT168: 0 | DU168: 0 | DV168: 0 | DW168: 0 | DX168: 0 | DY168: 0 | DZ168: 0 | EA168: 0 | EB168: 0 | EC168: 0 | ED168: 0 | EE168: 0 | EF168: 0 | EG168: 0 | EH168: 0 | EI168: 0 | EJ168: 0 | EK168: 0 | EL168: 0 | EM168: 0 | EN168: 0 | EO168: 0 | EP168: 0 | EQ168: 0 | ER168: 0 | ES168: 0 | ET168: 0 | EU168: 0 | EV168: 0 | EW168: 0 | EX168: 0 | EY168: 0 | EZ168: 0 | FA168: 0 | FB168: 0 | FC168: 0 | FD168: 0 | FE168: 0 | FF168: 0 | FG168: 0 | FH168: 0 | FI168: 0 | FJ168: 0 | FK168: 0 | FL168: 0 | FM168: 0 | FN168: 0 | FO168: 0 | FP168: 0 | FQ168: 0 | FR168: 0 | FS168: 0 | FT168: 0 | FU168: 0 | FV168: 0 | FW168: 0 | FX168: 0 | FY168: 0 | FZ168: 0 | GA168: 0 | GB168: 0 | GC168: 0 | GD168: 0 | GE168: 0 | GF168: 0 | GG168: 0 | GH168: 0
CV169: 0 | CW169: 0 | CX169: 0 | CY169: 0 | CZ169: 0 | DA169: 0 | DB169: 0 | DC169: 0 | DD169: 0 | DE169: 0 | DF169: 0 | DG169: 0 | DH169: 0 | DI169: 0 | DJ169: 0 | DK169: 0 | DL169: 0 | DM169: 0 | DN169: 0 | DO169: 0 | DP169: 0 | DQ169: 0 | DR169: 0 | DS169: 0 | DT169: 0 | DU169: 0 | DV169: 0 | DW169: 0 | DX169: 0 | DY169: 0 | DZ169: 0 | EA169: 0 | EB169: 0 | EC169: 0 | ED169: 0 | EE169: 0 | EF169: 0 | EG169: 0 | EH169: 0 | EI169: 0 | EJ169: 0 | EK169: 0 | EL169: 0 | EM169: 0 | EN169: 0 | EO169: 0 | EP169: 0 | EQ169: 0 | ER169: 0 | ES169: 0 | ET169: 0 | EU169: 0 | EV169: 0 | EW169: 0 | EX169: 0 | EY169: 0 | EZ169: 0 | FA169: 0 | FB169: 0 | FC169: 0 | FD169: 0 | FE169: 0 | FF169: 0 | FG169: 0 | FH169: 0 | FI169: 0 | FJ169: 0 | FK169: 0 | FL169: 0 | FM169: 0 | FN169: 0 | FO169: 0 | FP169: 0 | FQ169: 0 | FR169: 0 | FS169: 0 | FT169: 0 | FU169: 0 | FV169: 0 | FW169: 0 | FX169: 0 | FY169: 0 | FZ169: 0 | GA169: 0 | GB169: 0 | GC169: 0 | GD169: 0 | GE169: 0 | GF169: 0 | GG169: 0 | GH169: 0
CV170: 0 | CW170: 0 | CX170: 0 | CY170: 0 | CZ170: 0 | DA170: 0 | DB170: 0 | DC170: 0 | DD170: 0 | DE170: 0 | DF170: 0 | DG170: 0 | DH170: 0 | DI170: 0 | DJ170: 0 | DK170: 0 | DL170: 0 | DM170: 0 | DN170: 0 | DO170: 0 | DP170: 0 | DQ170: 0 | DR170: 0 | DS170: 0 | DT170: 0 | DU170: 0 | DV170: 0 | DW170: 0 | DX170: 0 | DY170: 0 | DZ170: 0 | EA170: 0 | EB170: 0 | EC170: 0 | ED170: 0 | EE170: 0 | EF170: 0 | EG170: 0 | EH170: 0 | EI170: 0 | EJ170: 0 | EK170: 0 | EL170: 0 | EM170: 0 | EN170: 0 | EO170: 0 | EP170: 0 | EQ170: 0 | ER170: 0 | ES170: 0 | ET170: 0 | EU170: 0 | EV170: 0 | EW170: 0 | EX170: 0 | EY170: 0 | EZ170: 0 | FA170: 0 | FB170: 0 | FC170: 0 | FD170: 0 | FE170: 0 | FF170: 0 | FG170: 0 | FH170: 0 | FI170: 0 | FJ170: 0 | FK170: 0 | FL170: 0 | FM170: 0 | FN170: 0 | FO170: 0 | FP170: 0 | FQ170: 0 | FR170: 0 | FS170: 0 | FT170: 0 | FU170: 0 | FV170: 0 | FW170: 0 | FX170: 0 | FY170: 0 | FZ170: 0 | GA170: 0 | GB170: 0 | GC170: 0 | GD170: 0 | GE170: 0 | GF170: 0 | GG170: 0 | GH170: 0
CV171: 0 | CW171: 0 | CX171: 0 | CY171: 0 | CZ171: 0 | DA171: 0 | DB171: 0 | DC171: 0 | DD171: 0 | DE171: 0 | DF171: 0 | DG171: 0 | DH171: 0 | DI171: 0 | DJ171: 0 | DK171: 0 | DL171: 0 | DM171: 0 | DN171: 0 | DO171: 0 | DP171: 0 | DQ171: 0 | DR171: 0 | DS171: 0 | DT171: 0 | DU171: 0 | DV171: 0 | DW171: 0 | DX171: 0 | DY171: 0 | DZ171: 0 | EA171: 0 | EB171: 0 | EC171: 0 | ED171: 0 | EE171: 0 | EF171: 0 | EG171: 0 | EH171: 0 | EI171: 0 | EJ171: 0 | EK171: 0 | EL171: 0 | EM171: 0 | EN171: 0 | EO171: 0 | EP171: 0 | EQ171: 0 | ER171: 0 | ES171: 0 | ET171: 0 | EU171: 0 | EV171: 0 | EW171: 0 | EX171: 0 | EY171: 0 | EZ171: 0 | FA171: 0 | FB171: 0 | FC171: 0 | FD171: 0 | FE171: 0 | FF171: 0 | FG171: 0 | FH171: 0 | FI171: 0 | FJ171: 0 | FK171: 0 | FL171: 0 | FM171: 0 | FN171: 0 | FO171: 0 | FP171: 0 | FQ171: 0 | FR171: 0 | FS171: 0 | FT171: 0 | FU171: 0 | FV171: 0 | FW171: 0 | FX171: 0 | FY171: 0 | FZ171: 0 | GA171: 0 | GB171: 0 | GC171: 0 | GD171: 0 | GE171: 0 | GF171: 0 | GG171: 0 | GH171: 0
CV172: 0 | CW172: 0 | CX172: 0 | CY172: 0 | CZ172: 0 | DA172: 0 | DB172: 0 | DC172: 0 | DD172: 0 | DE172: 0 | DF172: 0 | DG172: 0 | DH172: 0 | DI172: 0 | DJ172: 0 | DK172: 0 | DL172: 0 | DM172: 0 | DN172: 0 | DO172: 0 | DP172: 0 | DQ172: 0 | DR172: 0 | DS172: 0 | DT172: 0 | DU172: 0 | DV172: 0 | DW172: 0 | DX172: 0 | DY172: 0 | DZ172: 0 | EA172: 0 | EB172: 0 | EC172: 0 | ED172: 0 | EE172: 0 | EF172: 0 | EG172: 0 | EH172: 0 | EI172: 0 | EJ172: 0 | EK172: 0 | EL172: 0 | EM172: 0 | EN172: 0 | EO172: 0 | EP172: 0 | EQ172: 0 | ER172: 0 | ES172: 0 | ET172: 0 | EU172: 0 | EV172: 0 | EW172: 0 | EX172: 0 | EY172: 0 | EZ172: 0 | FA172: 0 | FB172: 0 | FC172: 0 | FD172: 0 | FE172: 0 | FF172: 0 | FG172: 0 | FH172: 0 | FI172: 0 | FJ172: 0 | FK172: 0 | FL172: 0 | FM172: 0 | FN172: 0 | FO172: 0 | FP172: 0 | FQ172: 0 | FR172: 0 | FS172: 0 | FT172: 0 | FU172: 0 | FV172: 0 | FW172: 0 | FX172: 0 | FY172: 0 | FZ172: 0 | GA172: 0 | GB172: 0 | GC172: 0 | GD172: 0 | GE172: 0 | GF172: 0 | GG172: 0 | GH172: 0
CV173: 0 | CW173: 0 | CX173: 0 | CY173: 0 | CZ173: 0 | DA173: 0 | DB173: 0 | DC173: 0 | DD173: 0 | DE173: 0 | DF173: 0 | DG173: 0 | DH173: 0 | DI173: 0 | DJ173: 0 | DK173: 0 | DL173: 0 | DM173: 0 | DN173: 0 | DO173: 0 | DP173: 0 | DQ173: 0 | DR173: 0 | DS173: 0 | DT173: 0 | DU173: 0 | DV173: 0 | DW173: 0 | DX173: 0 | DY173: 0 | DZ173: 0 | EA173: 0 | EB173: 0 | EC173: 0 | ED173: 0 | EE173: 0 | EF173: 0 | EG173: 0 | EH173: 0 | EI173: 0 | EJ173: 0 | EK173: 0 | EL173: 0 | EM173: 0 | EN173: 0 | EO173: 0 | EP173: 0 | EQ173: 0 | ER173: 0 | ES173: 0 | ET173: 0 | EU173: 0 | EV173: 0 | EW173: 0 | EX173: 0 | EY173: 0 | EZ173: 0 | FA173: 0 | FB173: 0 | FC173: 0 | FD173: 0 | FE173: 0 | FF173: 0 | FG173: 0 | FH173: 0 | FI173: 0 | FJ173: 0 | FK173: 0 | FL173: 0 | FM173: 0 | FN173: 0 | FO173: 0 | FP173: 0 | FQ173: 0 | FR173: 0 | FS173: 0 | FT173: 0 | FU173: 0 | FV173: 0 | FW173: 0 | FX173: 0 | FY173: 0 | FZ173: 0 | GA173: 0 | GB173: 0 | GC173: 0 | GD173: 0 | GE173: 0 | GF173: 0 | GG173: 0 | GH173: 0
CV174: 0 | CW174: 0 | CX174: 0 | CY174: 0 | CZ174: 0 | DA174: 0 | DB174: 0 | DC174: 0 | DD174: 0 | DE174: 0 | DF174: 0 | DG174: 0 | DH174: 0 | DI174: 0 | DJ174: 0 | DK174: 0 | DL174: 0 | DM174: 0 | DN174: 0 | DO174: 0 | DP174: 0 | DQ174: 0 | DR174: 0 | DS174: 0 | DT174: 0 | DU174: 0 | DV174: 0 | DW174: 0 | DX174: 0 | DY174: 0 | DZ174: 0 | EA174: 0 | EB174: 0 | EC174: 0 | ED174: 0 | EE174: 0 | EF174: 0 | EG174: 0 | EH174: 0 | EI174: 0 | EJ174: 0 | EK174: 0 | EL174: 0 | EM174: 0 | EN174: 0 | EO174: 0 | EP174: 0 | EQ174: 0 | ER174: 0 | ES174: 0 | ET174: 0 | EU174: 0 | EV174: 0 | EW174: 0 | EX174: 0 | EY174: 0 | EZ174: 0 | FA174: 0 | FB174: 0 | FC174: 0 | FD174: 0 | FE174: 0 | FF174: 0 | FG174: 0 | FH174: 0 | FI174: 0 | FJ174: 0 | FK174: 0 | FL174: 0 | FM174: 0 | FN174: 0 | FO174: 0 | FP174: 0 | FQ174: 0 | FR174: 0 | FS174: 0 | FT174: 0 | FU174: 0 | FV174: 0 | FW174: 0 | FX174: 0 | FY174: 0 | FZ174: 0 | GA174: 0 | GB174: 0 | GC174: 0 | GD174: 0 | GE174: 0 | GF174: 0 | GG174: 0 | GH174: 0
CV175: 0 | CW175: 0 | CX175: 0 | CY175: 0 | CZ175: 0 | DA175: 0 | DB175: 0 | DC175: 0 | DD175: 0 | DE175: 0 | DF175: 0 | DG175: 0 | DH175: 0 | DI175: 0 | DJ175: 0 | DK175: 0 | DL175: 0 | DM175: 0 | DN175: 0 | DO175: 0 | DP175: 0 | DQ175: 0 | DR175: 0 | DS175: 0 | DT175: 0 | DU175: 0 | DV175: 0 | DW175: 0 | DX175: 0 | DY175: 0 | DZ175: 0 | EA175: 0 | EB175: 0 | EC175: 0 | ED175: 0 | EE175: 0 | EF175: 0 | EG175: 0 | EH175: 0 | EI175: 0 | EJ175: 0 | EK175: 0 | EL175: 0 | EM175: 0 | EN175: 0 | EO175: 0 | EP175: 0 | EQ175: 0 | ER175: 0 | ES175: 0 | ET175: 0 | EU175: 0 | EV175: 0 | EW175: 0 | EX175: 0 | EY175: 0 | EZ175: 0 | FA175: 0 | FB175: 0 | FC175: 0 | FD175: 0 | FE175: 0 | FF175: 0 | FG175: 0 | FH175: 0 | FI175: 0 | FJ175: 0 | FK175: 0 | FL175: 0 | FM175: 0 | FN175: 0 | FO175: 0 | FP175: 0 | FQ175: 0 | FR175: 0 | FS175: 0 | FT175: 0 | FU175: 0 | FV175: 0 | FW175: 0 | FX175: 0 | FY175: 0 | FZ175: 0 | GA175: 0 | GB175: 0 | GC175: 0 | GD175: 0 | GE175: 0 | GF175: 0 | GG175: 0 | GH175: 0
CV176: 0 | CW176: 0 | CX176: 0 | CY176: 0 | CZ176: 0 | DA176: 0 | DB176: 0 | DC176: 0 | DD176: 0 | DE176: 0 | DF176: 0 | DG176: 0 | DH176: 0 | DI176: 0 | DJ176: 0 | DK176: 0 | DL176: 0 | DM176: 0 | DN176: 0 | DO176: 0 | DP176: 0 | DQ176: 0 | DR176: 0 | DS176: 0 | DT176: 0 | DU176: 0 | DV176: 0 | DW176: 0 | DX176: 0 | DY176: 0 | DZ176: 0 | EA176: 0 | EB176: 0 | EC176: 0 | ED176: 0 | EE176: 0 | EF176: 0 | EG176: 0 | EH176: 0 | EI176: 0 | EJ176: 0 | EK176: 0 | EL176: 0 | EM176: 0 | EN176: 0 | EO176: 0 | EP176: 0 | EQ176: 0 | ER176: 0 | ES176: 0 | ET176: 0 | EU176: 0 | EV176: 0 | EW176: 0 | EX176: 0 | EY176: 0 | EZ176: 0 | FA176: 0 | FB176: 0 | FC176: 0 | FD176: 0 | FE176: 0 | FF176: 0 | FG176: 0 | FH176: 0 | FI176: 0 | FJ176: 0 | FK176: 0 | FL176: 0 | FM176: 0 | FN176: 0 | FO176: 0 | FP176: 0 | FQ176: 0 | FR176: 0 | FS176: 0 | FT176: 0 | FU176: 0 | FV176: 0 | FW176: 0 | FX176: 0 | FY176: 0 | FZ176: 0 | GA176: 0 | GB176: 0 | GC176: 0 | GD176: 0 | GE176: 0 | GF176: 0 | GG176: 0 | GH176: 0
CV177: 0 | CW177: 0 | CX177: 0 | CY177: 0 | CZ177: 0 | DA177: 0 | DB177: 0 | DC177: 0 | DD177: 0 | DE177: 0 | DF177: 0 | DG177: 0 | DH177: 0 | DI177: 0 | DJ177: 0 | DK177: 0 | DL177: 0 | DM177: 0 | DN177: 0 | DO177: 0 | DP177: 0 | DQ177: 0 | DR177: 0 | DS177: 0 | DT177: 0 | DU177: 0 | DV177: 0 | DW177: 0 | DX177: 0 | DY177: 0 | DZ177: 0 | EA177: 0 | EB177: 0 | EC177: 0 | ED177: 0 | EE177: 0 | EF177: 0 | EG177: 0 | EH177: 0 | EI177: 0 | EJ177: 0 | EK177: 0 | EL177: 0 | EM177: 0 | EN177: 0 | EO177: 0 | EP177: 0 | EQ177: 0 | ER177: 0 | ES177: 0 | ET177: 0 | EU177: 0 | EV177: 0 | EW177: 0 | EX177: 0 | EY177: 0 | EZ177: 0 | FA177: 0 | FB177: 0 | FC177: 0 | FD177: 0 | FE177: 0 | FF177: 0 | FG177: 0 | FH177: 0 | FI177: 0 | FJ177: 0 | FK177: 0 | FL177: 0 | FM177: 0 | FN177: 0 | FO177: 0 | FP177: 0 | FQ177: 0 | FR177: 0 | FS177: 0 | FT177: 0 | FU177: 0 | FV177: 0 | FW177: 0 | FX177: 0 | FY177: 0 | FZ177: 0 | GA177: 0 | GB177: 0 | GC177: 0 | GD177: 0 | GE177: 0 | GF177: 0 | GG177: 0 | GH177: 0
CV178: 0 | CW178: 0 | CX178: 0 | CY178: 0 | CZ178: 0 | DA178: 0 | DB178: 0 | DC178: 0 | DD178: 0 | DE178: 0 | DF178: 0 | DG178: 0 | DH178: 0 | DI178: 0 | DJ178: 0 | DK178: 0 | DL178: 0 | DM178: 0 | DN178: 0 | DO178: 0 | DP178: 0 | DQ178: 0 | DR178: 0 | DS178: 0 | DT178: 0 | DU178: 0 | DV178: 0 | DW178: 0 | DX178: 0 | DY178: 0 | DZ178: 0 | EA178: 0 | EB178: 0 | EC178: 0 | ED178: 0 | EE178: 0 | EF178: 0 | EG178: 0 | EH178: 0 | EI178: 0 | EJ178: 0 | EK178: 0 | EL178: 0 | EM178: 0 | EN178: 0 | EO178: 0 | EP178: 0 | EQ178: 0 | ER178: 0 | ES178: 0 | ET178: 0 | EU178: 0 | EV178: 0 | EW178: 0 | EX178: 0 | EY178: 0 | EZ178: 0 | FA178: 0 | FB178: 0 | FC178: 0 | FD178: 0 | FE178: 0 | FF178: 0 | FG178: 0 | FH178: 0 | FI178: 0 | FJ178: 0 | FK178: 0 | FL178: 0 | FM178: 0 | FN178: 0 | FO178: 0 | FP178: 0 | FQ178: 0 | FR178: 0 | FS178: 0 | FT178: 0 | FU178: 0 | FV178: 0 | FW178: 0 | FX178: 0 | FY178: 0 | FZ178: 0 | GA178: 0 | GB178: 0 | GC178: 0 | GD178: 0 | GE178: 0 | GF178: 0 | GG178: 0 | GH178: 0
CV179: 0 | CW179: 0 | CX179: 0 | CY179: 0 | CZ179: 0 | DA179: 0 | DB179: 0 | DC179: 0 | DD179: 0 | DE179: 0 | DF179: 0 | DG179: 0 | DH179: 0 | DI179: 0 | DJ179: 0 | DK179: 0 | DL179: 0 | DM179: 0 | DN179: 0 | DO179: 0 | DP179: 0 | DQ179: 0 | DR179: 0 | DS179: 0 | DT179: 0 | DU179: 0 | DV179: 0 | DW179: 0 | DX179: 0 | DY179: 0 | DZ179: 0 | EA179: 0 | EB179: 0 | EC179: 0 | ED179: 0 | EE179: 0 | EF179: 0 | EG179: 0 | EH179: 0 | EI179: 0 | EJ179: 0 | EK179: 0 | EL179: 0 | EM179: 0 | EN179: 0 | EO179: 0 | EP179: 0 | EQ179: 0 | ER179: 0 | ES179: 0 | ET179: 0 | EU179: 0 | EV179: 0 | EW179: 0 | EX179: 0 | EY179: 0 | EZ179: 0 | FA179: 0 | FB179: 0 | FC179: 0 | FD179: 0 | FE179: 0 | FF179: 0 | FG179: 0 | FH179: 0 | FI179: 0 | FJ179: 0 | FK179: 0 | FL179: 0 | FM179: 0 | FN179: 0 | FO179: 0 | FP179: 0 | FQ179: 0 | FR179: 0 | FS179: 0 | FT179: 0 | FU179: 0 | FV179: 0 | FW179: 0 | FX179: 0 | FY179: 0 | FZ179: 0 | GA179: 0 | GB179: 0 | GC179: 0 | GD179: 0 | GE179: 0 | GF179: 0 | GG179: 0 | GH179: 0
CV180: 0 | CW180: 0 | CX180: 0 | CY180: 0 | CZ180: 0 | DA180: 0 | DB180: 0 | DC180: 0 | DD180: 0 | DE180: 0 | DF180: 0 | DG180: 0 | DH180: 0 | DI180: 0 | DJ180: 0 | DK180: 0 | DL180: 0 | DM180: 0 | DN180: 0 | DO180: 0 | DP180: 0 | DQ180: 0 | DR180: 0 | DS180: 0 | DT180: 0 | DU180: 0 | DV180: 0 | DW180: 0 | DX180: 0 | DY180: 0 | DZ180: 0 | EA180: 0 | EB180: 0 | EC180: 0 | ED180: 0 | EE180: 0 | EF180: 0 | EG180: 0 | EH180: 0 | EI180: 0 | EJ180: 0 | EK180: 0 | EL180: 0 | EM180: 0 | EN180: 0 | EO180: 0 | EP180: 0 | EQ180: 0 | ER180: 0 | ES180: 0 | ET180: 0 | EU180: 0 | EV180: 0 | EW180: 0 | EX180: 0 | EY180: 0 | EZ180: 0 | FA180: 0 | FB180: 0 | FC180: 0 | FD180: 0 | FE180: 0 | FF180: 0 | FG180: 0 | FH180: 0 | FI180: 0 | FJ180: 0 | FK180: 0 | FL180: 0 | FM180: 0 | FN180: 0 | FO180: 0 | FP180: 0 | FQ180: 0 | FR180: 0 | FS180: 0 | FT180: 0 | FU180: 0 | FV180: 0 | FW180: 0 | FX180: 0 | FY180: 0 | FZ180: 0 | GA180: 0 | GB180: 0 | GC180: 0 | GD180: 0 | GE180: 0 | GF180: 0 | GG180: 0 | GH180: 0
CV181: 0 | CW181: 0 | CX181: 0 | CY181: 0 | CZ181: 0 | DA181: 0 | DB181: 0 | DC181: 0 | DD181: 0 | DE181: 0 | DF181: 0 | DG181: 0 | DH181: 0 | DI181: 0 | DJ181: 0 | DK181: 0 | DL181: 0 | DM181: 0 | DN181: 0 | DO181: 0 | DP181: 0 | DQ181: 0 | DR181: 0 | DS181: 0 | DT181: 0 | DU181: 0 | DV181: 0 | DW181: 0 | DX181: 0 | DY181: 0 | DZ181: 0 | EA181: 0 | EB181: 0 | EC181: 0 | ED181: 0 | EE181: 0 | EF181: 0 | EG181: 0 | EH181: 0 | EI181: 0 | EJ181: 0 | EK181: 0 | EL181: 0 | EM181: 0 | EN181: 0 | EO181: 0 | EP181: 0 | EQ181: 0 | ER181: 0 | ES181: 0 | ET181: 0 | EU181: 0 | EV181: 0 | EW181: 0 | EX181: 0 | EY181: 0 | EZ181: 0 | FA181: 0 | FB181: 0 | FC181: 0 | FD181: 0 | FE181: 0 | FF181: 0 | FG181: 0 | FH181: 0 | FI181: 0 | FJ181: 0 | FK181: 0 | FL181: 0 | FM181: 0 | FN181: 0 | FO181: 0 | FP181: 0 | FQ181: 0 | FR181: 0 | FS181: 0 | FT181: 0 | FU181: 0 | FV181: 0 | FW181: 0 | FX181: 0 | FY181: 0 | FZ181: 0 | GA181: 0 | GB181: 0 | GC181: 0 | GD181: 0 | GE181: 0 | GF181: 0 | GG181: 0 | GH181: 0
CV182: 0 | CW182: 0 | CX182: 0 | CY182: 0 | CZ182: 0 | DA182: 0 | DB182: 0 | DC182: 0 | DD182: 0 | DE182: 0 | DF182: 0 | DG182: 0 | DH182: 0 | DI182: 0 | DJ182: 0 | DK182: 0 | DL182: 0 | DM182: 0 | DN182: 0 | DO182: 0 | DP182: 0 | DQ182: 0 | DR182: 0 | DS182: 0 | DT182: 0 | DU182: 0 | DV182: 0 | DW182: 0 | DX182: 0 | DY182: 0 | DZ182: 0 | EA182: 0 | EB182: 0 | EC182: 0 | ED182: 0 | EE182: 0 | EF182: 0 | EG182: 0 | EH182: 0 | EI182: 0 | EJ182: 0 | EK182: 0 | EL182: 0 | EM182: 0 | EN182: 0 | EO182: 0 | EP182: 0 | EQ182: 0 | ER182: 0 | ES182: 0 | ET182: 0 | EU182: 0 | EV182: 0 | EW182: 0 | EX182: 0 | EY182: 0 | EZ182: 0 | FA182: 0 | FB182: 0 | FC182: 0 | FD182: 0 | FE182: 0 | FF182: 0 | FG182: 0 | FH182: 0 | FI182: 0 | FJ182: 0 | FK182: 0 | FL182: 0 | FM182: 0 | FN182: 0 | FO182: 0 | FP182: 0 | FQ182: 0 | FR182: 0 | FS182: 0 | FT182: 0 | FU182: 0 | FV182: 0 | FW182: 0 | FX182: 0 | FY182: 0 | FZ182: 0 | GA182: 0 | GB182: 0 | GC182: 0 | GD182: 0 | GE182: 0 | GF182: 0 | GG182: 0 | GH182: 0
CV183: 0 | CW183: 0 | CX183: 0 | CY183: 0 | CZ183: 0 | DA183: 0 | DB183: 0 | DC183: 0 | DD183: 0 | DE183: 0 | DF183: 0 | DG183: 0 | DH183: 0 | DI183: 0 | DJ183: 0 | DK183: 0 | DL183: 0 | DM183: 0 | DN183: 0 | DO183: 0 | DP183: 0 | DQ183: 0 | DR183: 0 | DS183: 0 | DT183: 0 | DU183: 0 | DV183: 0 | DW183: 0 | DX183: 0 | DY183: 0 | DZ183: 0 | EA183: 0 | EB183: 0 | EC183: 0 | ED183: 0 | EE183: 0 | EF183: 0 | EG183: 0 | EH183: 0 | EI183: 0 | EJ183: 0 | EK183: 0 | EL183: 0 | EM183: 0 | EN183: 0 | EO183: 0 | EP183: 0 | EQ183: 0 | ER183: 0 | ES183: 0 | ET183: 0 | EU183: 0 | EV183: 0 | EW183: 0 | EX183: 0 | EY183: 0 | EZ183: 0 | FA183: 0 | FB183: 0 | FC183: 0 | FD183: 0 | FE183: 0 | FF183: 0 | FG183: 0 | FH183: 0 | FI183: 0 | FJ183: 0 | FK183: 0 | FL183: 0 | FM183: 0 | FN183: 0 | FO183: 0 | FP183: 0 | FQ183: 0 | FR183: 0 | FS183: 0 | FT183: 0 | FU183: 0 | FV183: 0 | FW183: 0 | FX183: 0 | FY183: 0 | FZ183: 0 | GA183: 0 | GB183: 0 | GC183: 0 | GD183: 0 | GE183: 0 | GF183: 0 | GG183: 0 | GH183: 0
CV184: 0 | CW184: 0 | CX184: 0 | CY184: 0 | CZ184: 0 | DA184: 0 | DB184: 0 | DC184: 0 | DD184: 0 | DE184: 0 | DF184: 0 | DG184: 0 | DH184: 0 | DI184: 0 | DJ184: 0 | DK184: 0 | DL184: 0 | DM184: 0 | DN184: 0 | DO184: 0 | DP184: 0 | DQ184: 0 | DR184: 0 | DS184: 0 | DT184: 0 | DU184: 0 | DV184: 0 | DW184: 0 | DX184: 0 | DY184: 0 | DZ184: 0 | EA184: 0 | EB184: 0 | EC184: 0 | ED184: 0 | EE184: 0 | EF184: 0 | EG184: 0 | EH184: 0 | EI184: 0 | EJ184: 0 | EK184: 0 | EL184: 0 | EM184: 0 | EN184: 0 | EO184: 0 | EP184: 0 | EQ184: 0 | ER184: 0 | ES184: 0 | ET184: 0 | EU184: 0 | EV184: 0 | EW184: 0 | EX184: 0 | EY184: 0 | EZ184: 0 | FA184: 0 | FB184: 0 | FC184: 0 | FD184: 0 | FE184: 0 | FF184: 0 | FG184: 0 | FH184: 0 | FI184: 0 | FJ184: 0 | FK184: 0 | FL184: 0 | FM184: 0 | FN184: 0 | FO184: 0 | FP184: 0 | FQ184: 0 | FR184: 0 | FS184: 0 | FT184: 0 | FU184: 0 | FV184: 0 | FW184: 0 | FX184: 0 | FY184: 0 | FZ184: 0 | GA184: 0 | GB184: 0 | GC184: 0 | GD184: 0 | GE184: 0 | GF184: 0 | GG184: 0 | GH184: 0
CV185: 0 | CW185: 0 | CX185: 0 | CY185: 0 | CZ185: 0 | DA185: 0 | DB185: 0 | DC185: 0 | DD185: 0 | DE185: 0 | DF185: 0 | DG185: 0 | DH185: 0 | DI185: 0 | DJ185: 0 | DK185: 0 | DL185: 0 | DM185: 0 | DN185: 0 | DO185: 0 | DP185: 0 | DQ185: 0 | DR185: 0 | DS185: 0 | DT185: 0 | DU185: 0 | DV185: 0 | DW185: 0 | DX185: 0 | DY185: 0 | DZ185: 0 | EA185: 0 | EB185: 0 | EC185: 0 | ED185: 0 | EE185: 0 | EF185: 0 | EG185: 0 | EH185: 0 | EI185: 0 | EJ185: 0 | EK185: 0 | EL185: 0 | EM185: 0 | EN185: 0 | EO185: 0 | EP185: 0 | EQ185: 0 | ER185: 0 | ES185: 0 | ET185: 0 | EU185: 0 | EV185: 0 | EW185: 0 | EX185: 0 | EY185: 0 | EZ185: 0 | FA185: 0 | FB185: 0 | FC185: 0 | FD185: 0 | FE185: 0 | FF185: 0 | FG185: 0 | FH185: 0 | FI185: 0 | FJ185: 0 | FK185: 0 | FL185: 0 | FM185: 0 | FN185: 0 | FO185: 0 | FP185: 0 | FQ185: 0 | FR185: 0 | FS185: 0 | FT185: 0 | FU185: 0 | FV185: 0 | FW185: 0 | FX185: 0 | FY185: 0 | FZ185: 0 | GA185: 0 | GB185: 0 | GC185: 0 | GD185: 0 | GE185: 0 | GF185: 0 | GG185: 0 | GH185: 0
CV186: 0 | CW186: 0 | CX186: 0 | CY186: 0 | CZ186: 0 | DA186: 0 | DB186: 0 | DC186: 0 | DD186: 0 | DE186: 0 | DF186: 0 | DG186: 0 | DH186: 0 | DI186: 0 | DJ186: 0 | DK186: 0 | DL186: 0 | DM186: 0 | DN186: 0 | DO186: 0 | DP186: 0 | DQ186: 0 | DR186: 0 | DS186: 0 | DT186: 0 | DU186: 0 | DV186: 0 | DW186: 0 | DX186: 0 | DY186: 0 | DZ186: 0 | EA186: 0 | EB186: 0 | EC186: 0 | ED186: 0 | EE186: 0 | EF186: 0 | EG186: 0 | EH186: 0 | EI186: 0 | EJ186: 0 | EK186: 0 | EL186: 0 | EM186: 0 | EN186: 0 | EO186: 0 | EP186: 0 | EQ186: 0 | ER186: 0 | ES186: 0 | ET186: 0 | EU186: 0 | EV186: 0 | EW186: 0 | EX186: 0 | EY186: 0 | EZ186: 0 | FA186: 0 | FB186: 0 | FC186: 0 | FD186: 0 | FE186: 0 | FF186: 0 | FG186: 0 | FH186: 0 | FI186: 0 | FJ186: 0 | FK186: 0 | FL186: 0 | FM186: 0 | FN186: 0 | FO186: 0 | FP186: 0 | FQ186: 0 | FR186: 0 | FS186: 0 | FT186: 0 | FU186: 0 | FV186: 0 | FW186: 0 | FX186: 0 | FY186: 0 | FZ186: 0 | GA186: 0 | GB186: 0 | GC186: 0 | GD186: 0 | GE186: 0 | GF186: 0 | GG186: 0 | GH186: 0
CV187: 0 | CW187: 0 | CX187: 0 | CY187: 0 | CZ187: 0 | DA187: 0 | DB187: 0 | DC187: 0 | DD187: 0 | DE187: 0 | DF187: 0 | DG187: 0 | DH187: 0 | DI187: 0 | DJ187: 0 | DK187: 0 | DL187: 0 | DM187: 0 | DN187: 0 | DO187: 0 | DP187: 0 | DQ187: 0 | DR187: 0 | DS187: 0 | DT187: 0 | DU187: 0 | DV187: 0 | DW187: 0 | DX187: 0 | DY187: 0 | DZ187: 0 | EA187: 0 | EB187: 0 | EC187: 0 | ED187: 0 | EE187: 0 | EF187: 0 | EG187: 0 | EH187: 0 | EI187: 0 | EJ187: 0 | EK187: 0 | EL187: 0 | EM187: 0 | EN187: 0 | EO187: 0 | EP187: 0 | EQ187: 0 | ER187: 0 | ES187: 0 | ET187: 0 | EU187: 0 | EV187: 0 | EW187: 0 | EX187: 0 | EY187: 0 | EZ187: 0 | FA187: 0 | FB187: 0 | FC187: 0 | FD187: 0 | FE187: 0 | FF187: 0 | FG187: 0 | FH187: 0 | FI187: 0 | FJ187: 0 | FK187: 0 | FL187: 0 | FM187: 0 | FN187: 0 | FO187: 0 | FP187: 0 | FQ187: 0 | FR187: 0 | FS187: 0 | FT187: 0 | FU187: 0 | FV187: 0 | FW187: 0 | FX187: 0 | FY187: 0 | FZ187: 0 | GA187: 0 | GB187: 0 | GC187: 0 | GD187: 0 | GE187: 0 | GF187: 0 | GG187: 0 | GH187: 0
CV188: 0 | CW188: 0 | CX188: 0 | CY188: 0 | CZ188: 0 | DA188: 0 | DB188: 0 | DC188: 0 | DD188: 0 | DE188: 0 | DF188: 0 | DG188: 0 | DH188: 0 | DI188: 0 | DJ188: 0 | DK188: 0 | DL188: 0 | DM188: 0 | DN188: 0 | DO188: 0 | DP188: 0 | DQ188: 0 | DR188: 0 | DS188: 0 | DT188: 0 | DU188: 0 | DV188: 0 | DW188: 0 | DX188: 0 | DY188: 0 | DZ188: 0 | EA188: 0 | EB188: 0 | EC188: 0 | ED188: 0 | EE188: 0 | EF188: 0 | EG188: 0 | EH188: 0 | EI188: 0 | EJ188: 0 | EK188: 0 | EL188: 0 | EM188: 0 | EN188: 0 | EO188: 0 | EP188: 0 | EQ188: 0 | ER188: 0 | ES188: 0 | ET188: 0 | EU188: 0 | EV188: 0 | EW188: 0 | EX188: 0 | EY188: 0 | EZ188: 0 | FA188: 0 | FB188: 0 | FC188: 0 | FD188: 0 | FE188: 0 | FF188: 0 | FG188: 0 | FH188: 0 | FI188: 0 | FJ188: 0 | FK188: 0 | FL188: 0 | FM188: 0 | FN188: 0 | FO188: 0 | FP188: 0 | FQ188: 0 | FR188: 0 | FS188: 0 | FT188: 0 | FU188: 0 | FV188: 0 | FW188: 0 | FX188: 0 | FY188: 0 | FZ188: 0 | GA188: 0 | GB188: 0 | GC188: 0 | GD188: 0 | GE188: 0 | GF188: 0 | GG188: 0 | GH188: 0
CV189: 0 | CW189: 0 | CX189: 0 | CY189: 0 | CZ189: 0 | DA189: 0 | DB189: 0 | DC189: 0 | DD189: 0 | DE189: 0 | DF189: 0 | DG189: 0 | DH189: 0 | DI189: 0 | DJ189: 0 | DK189: 0 | DL189: 0 | DM189: 0 | DN189: 0 | DO189: 0 | DP189: 0 | DQ189: 0 | DR189: 0 | DS189: 0 | DT189: 0 | DU189: 0 | DV189: 0 | DW189: 0 | DX189: 0 | DY189: 0 | DZ189: 0 | EA189: 0 | EB189: 0 | EC189: 0 | ED189: 0 | EE189: 0 | EF189: 0 | EG189: 0 | EH189: 0 | EI189: 0 | EJ189: 0 | EK189: 0 | EL189: 0 | EM189: 0 | EN189: 0 | EO189: 0 | EP189: 0 | EQ189: 0 | ER189: 0 | ES189: 0 | ET189: 0 | EU189: 0 | EV189: 0 | EW189: 0 | EX189: 0 | EY189: 0 | EZ189: 0 | FA189: 0 | FB189: 0 | FC189: 0 | FD189: 0 | FE189: 0 | FF189: 0 | FG189: 0 | FH189: 0 | FI189: 0 | FJ189: 0 | FK189: 0 | FL189: 0 | FM189: 0 | FN189: 0 | FO189: 0 | FP189: 0 | FQ189: 0 | FR189: 0 | FS189: 0 | FT189: 0 | FU189: 0 | FV189: 0 | FW189: 0 | FX189: 0 | FY189: 0 | FZ189: 0 | GA189: 0 | GB189: 0 | GC189: 0 | GD189: 0 | GE189: 0 | GF189: 0 | GG189: 0 | GH189: 0

Sheet Historical scenario - output
D1: Replacement expenditure forecast ($,000) | X1: Replacement quantity forecast (#)
D2: 1 | E2: 2 | F2: 3 | G2: 4 | H2: 5 | I2: 6 | J2: 7 | K2: 8 | L2: 9 | M2: 10 | N2: 11 | O2: 12 | P2: 13 | Q2: 14 | R2: 15 | S2: 16 | T2: 17 | U2: 18 | V2: 19 | W2: 20 | X2: 1 | Y2: 2 | Z2: 3 | AA2: 4 | AB2: 5 | AC2: 6 | AD2: 7 | AE2: 8 | AF2: 9 | AG2: 10 | AH2: 11 | AI2: 12 | AJ2: 13 | AK2: 14 | AL2: 15 | AM2: 16 | AN2: 17 | AO2: 18 | AP2: 19 | AQ2: 20
A5: ID | B5: Asset group | D5: 2020 | E5: 2021 | F5: 2022 | G5: 2023 | H5: 2024 | I5: 2025 | J5: 2026 | K5: 2027 | L5: 2028 | M5: 2029 | N5: 2030 | O5: 2031 | P5: 2032 | Q5: 2033 | R5: 2034 | S5: 2035 | T5: 2036 | U5: 2037 | V5: 2038 | W5: 2039 | X5: 2020 | Y5: 2021 | Z5: 2022 | AA5: 2023 | AB5: 2024 | AC5: 2025 | AD5: 2026 | AE5: 2027 | AF5: 2028 | AG5: 2029 | AH5: 2030 | AI5: 2031 | AJ5: 2032 | AK5: 2033 | AL5: 2034 | AM5: 2035 | AN5: 2036 | AO5: 2037 | AP5: 2038 | AQ5: 2039
A6: 1 | B6: OVERHEAD CONDUCTORS | D6: =IFERROR(IF($A6="","",SUMIFS(D$21:D$175,$A$21:$A$175,$A6)),"") -> 1399.515036 | E6: =IFERROR(IF($A6="","",SUMIFS(E$21:E$175,$A$21:$A$175,$A6)),"") -> 1658.635711 | F6: 1957.673456 | G6: 2299.057735 | H6: 2684.748097 | I6: 3116.141263 | J6: 3593.981932 | K6: 4118.280117 | L6: 4688.238136 | M6: 5302.190673 | N6: 5957.561563 | O6: 6650.841149 | P6: 7377.588128 | Q6: 8132.459542 | R6: 8909.272063 | S6: 9701.09658 | T6: 10500.38649 | U6: =IFERROR(IF($A6="","",SUMIFS(U$21:U$175,$A$21:$A$175,$A6)),"") -> 11299.13785 | V6: 12089.07691 | W6: 12861.86768 | X6: =IFERROR(IF($A6="","",SUMIFS(X$21:X$175,$A$21:$A$175,$A6)),"") -> 12.42878254 | Y6: =IFERROR(IF($A6="","",SUMIFS(Y$21:Y$175,$A$21:$A$175,$A6)),"") -> 14.29634506 | Z6: 16.40818429 | AA6: 18.76808236 | AB6: 21.37622612 | AC6: 24.22932406 | AD6: 27.32078399 | AE6: 30.64091088 | AF6: 34.17708174 | AG6: 37.91385695 | AH6: 41.83299616 | AI6: 45.9133617 | AJ6: 50.13071281 | AK6: 54.45741706 | AL6: 58.862129 | AM6: 63.3095056 | AN6: 67.76004071 | AO6: =IFERROR(IF($A6="","",SUMIFS(AO$21:AO$175,$A$21:$A$175,$A6)),"") -> 72.17010285 | AP6: 76.49225079 | AQ6: 80.67587998
A7: 2 | B7: POLES | D7: =IFERROR(IF($A7="","",SUMIFS(D$21:D$175,$A$21:$A$175,$A7)),"") -> 4578.46669 | E7: 4796.500241 | F7: 5108.801264 | G7: 5493.423925 | H7: 5937.997257 | I7: 6427.949696 | J7: 6951.085594 | K7: 7496.802869 | L7: 8056.650455 | M7: 8624.781813 | N7: 9198.224469 | O7: 9776.914953 | P7: 10363.48802 | Q7: 10962.84443 | R7: 11581.54068 | S7: 12227.04103 | T7: 12906.85248 | U7: 13627.54003 | V7: 14393.61365 | W7: 15206.3023 | X7: 956.237667 | Y7: 979.107781 | Z7: 1016.640012 | AA7: 1065.787233 | AB7: 1124.063904 | AC7: 1188.879931 | AD7: 1257.870997 | AE7: 1328.890073 | AF7: 1400.07271 | AG7: 1469.887845 | AH7: 1537.169619 | AI7: 1601.127489 | AJ7: 1661.334253 | AK7: 1717.693852 | AL7: 1770.392029 | AM7: 1819.832954 | AN7: 1866.563884 | AO7: 1911.188804 | AP7: 1954.271829 | AQ7: 1996.232919
A8: 3 | B8: SERVICE LINES | D8: 3250.992064 | E8: 3374.841987 | F8: 3470.628003 | G8: 3535.43534 | H8: 3568.054354 | I8: 3568.856043 | J8: 3539.619943 | K8: 3483.320183 | L8: 3403.880075 | M8: 3305.908399 | N8: 3194.431551 | O8: 3074.635389 | P8: 2951.629082 | Q8: 2830.24113 | R8: 2714.855103 | S8: 2609.289876 | T8: 2516.726314 | U8: 2439.679489 | V8: 2380.012851 | W8: 2338.988222 | X8: 3619.36396 | Y8: 3757.05269 | Z8: 3863.547731 | AA8: 3935.607205 | AB8: 3971.888853 | AC8: 3972.810516 | AD8: 3940.357903 | AE8: 3877.846054 | AF8: 3789.645995 | AG8: 3680.891164 | AH8: 3557.17938 | AI8: 3424.285646 | AJ8: 3287.899474 | AK8: 3153.397981 | AL8: 3025.663136 | AM8: 2908.948464 | AN8: 2806.797322 | AO8: 2722.011793 | AP8: 2656.668157 | AQ8: 2612.172182
A9: 4 | B9: SWITCHGEAR | D9: 2573.087959 | E9: 2645.343682 | F9: 2715.661953 | G9: 2782.361329 | H9: 2845.025259 | I9: 2904.300251 | J9: 2961.657955 | K9: 3019.13617 | L9: 3079.076288 | M9: 3143.87508 | N9: 3215.766912 | O9: 3296.648946 | P9: 3387.957298 | Q9: 3490.597225 | R9: 3604.925815 | S9: 3730.781943 | T9: 3867.555564 | U9: 4014.286909 | V9: 4169.785545 | W9: 4332.759449 | X9: 164.1982658 | Y9: 173.6530424 | Z9: 184.0540357 | AA9: 195.2246755 | AB9: 207.0495005 | AC9: 219.4659479 | AD9: 232.4557336 | AE9: 246.0357569 | AF9: 260.2486357 | AG9: 275.1531185 | AH9: 290.8147227 | AI9: 307.2969842 | AJ9: 324.6536937 | AK9: 342.9224422 | AL9: 362.1197282 | AM9: 382.2378052 | AN9: 403.2433763 | AO9: 425.0781837 | AP9: 447.6614816 | AQ9: 470.8943218
A10: 5 | B10: TRANSFORMERS | D10: 6522.211801 | E10: 7039.479471 | F10: 7575.525525 | G10: 8105.493592 | H10: 8608.679559 | I10: 9068.640034 | J10: 9473.318558 | K10: 9815.10815 | L10: 10090.78139 | M10: 10301.24159 | N10: 10451.07636 | O10: 10547.92391 | P10: 10601.68861 | Q10: 10623.66227 | R10: 10625.61984 | S10: 10618.9609 | T10: 10613.96246 | U10: 10619.19523 | V10: 10641.1368 | W10: 10683.99446 | X10: 44.38843485 | Y10: 46.47985682 | Z10: 49.01280995 | AA10: 51.90682092 | AB10: 55.09565958 | AC10: 58.52619065 | AD10: 62.15678887 | AE10: 65.95519439 | AF10: 69.89586276 | AG10: 73.95700874 | AH10: 78.11764154 | AI10: 82.35493398 | AJ10: 86.64226045 | AK10: 90.94818356 | AL10: 95.23657151 | AM10: 99.46789599 | AN10: 103.6016028 | AO10: 107.5992812 | AP10: 111.428209 | AQ10: 115.0647406
A11: 6 | B11: UNDERGROUND CABLES | D11: 1880.840971 | E11: 1964.917256 | F11: 2049.780429 | G11: 2135.257775 | H11: 2221.598455 | I11: 2309.59251 | J11: 2400.672241 | K11: 2496.989174 | L11: 2601.461159 | M11: 2717.785669 | N11: 2850.417097 | O11: 3004.507714 | P11: 3185.814048 | Q11: 3400.572614 | R11: 3655.351337 | S11: 3956.885388 | T11: 4311.908557 | U11: 4726.993285 | V11: 5208.414006 | W11: 5762.04892 | X11: 0.7479200625 | Y11: 0.7720182157 | Z11: 0.7943950435 | AA11: 0.8150145622 | AB11: 0.8340617482 | AC11: 0.8519848008 | AD11: 0.8695273096 | AE11: 0.8877480994 | AF11: 0.9080272898 | AG11: 0.9320579154 | AH11: 0.9618232584 | AI11: 0.999560829 | AJ11: 1.047714668 | AK11: 1.108878351 | AL11: 1.185731738 | AM11: 1.280975141 | AN11: 1.397265157 | AO11: 1.537156845 | AP11: 1.703057205 | AQ11: 1.897194921
C18: Total | D18: =IFERROR(SUM(D$6:D$17),"") -> 20205.11452 | E18: =IFERROR(SUM(E$6:E$17),"") -> 21479.71835 | F18: 22878.07063 | G18: 24351.0297 | H18: 25866.10298 | I18: 27395.4798 | J18: 28920.33622 | K18: 30429.63666 | L18: 31920.08751 | M18: 33395.78323 | N18: 34867.47795 | O18: 36351.47206 | P18: 37868.16519 | Q18: 39440.37721 | R18: 41091.56483 | S18: 42844.05572 | T18: 44717.39186 | U18: 46726.83279 | V18: 48882.03976 | W18: 51185.96104
A20: ID | B20: Asset group | C20: Asset category
A21: =IFERROR('Historical scenario - input'!A6,"") -> 1 | B21: =IFERROR('Historical scenario - input'!B6,"") -> OVERHEAD CONDUCTORS | C21: =IFERROR('Historical scenario - input'!C6,"") -> ˂ = 1 kv | D21: =IFERROR(repcalc('Historical scenario - input'!$CV6:$GH6,'Historical scenario - input'!$G6,'Historical scenario - input'!$E6,'Historical scenario - input'!$F6,20,TRUE,TRUE),"") -> 751.555958 | E21: 928.1990804 | F21: 1135.807726 | G21: 1377.224985 | H21: 1654.991632 | I21: 1971.214774 | J21: 2327.436105 | K21: 2724.506935 | L21: 3162.477806 | M21: 3640.51065 | N21: 4156.821029 | O21: 4708.65694 | P21: 5292.31901 | Q21: 5903.224588 | R21: 6536.015494 | S21: 7184.706043 | T21: 7842.864762 | U21: 8503.820097 | V21: 9160.877835 | W21: 9807.536049 | X21: =IFERROR(IF(OR(D21="",'Historical scenario - input'!$D6=""),"",D21/'Historical scenario - input'!$D6),"") -> 2.649924864 | Y21: =IFERROR(IF(OR(E21="",'Historical scenario - input'!$D6=""),"",E21/'Historical scenario - input'!$D6),"") -> 3.272754072 | Z21: =IFERROR(IF(OR(F21="",'Historical scenario - input'!$D6=""),"",F21/'Historical scenario - input'!$D6),"") -> 4.004765183 | AA21: =IFERROR(IF(OR(G21="",'Historical scenario - input'!$D6=""),"",G21/'Historical scenario - input'!$D6),"") -> 4.855982702 | AB21: =IFERROR(IF(OR(H21="",'Historical scenario - input'!$D6=""),"",H21/'Historical scenario - input'!$D6),"") -> 5.835365189 | AC21: =IFERROR(IF(OR(I21="",'Historical scenario - input'!$D6=""),"",I21/'Historical scenario - input'!$D6),"") -> 6.950342134 | AD21: =IFERROR(IF(OR(J21="",'Historical scenario - input'!$D6=""),"",J21/'Historical scenario - input'!$D6),"") -> 8.206349423 | AE21: =IFERROR(IF(OR(K21="",'Historical scenario - input'!$D6=""),"",K21/'Historical scenario - input'!$D6),"") -> 9.606388706 | AF21: =IFERROR(IF(OR(L21="",'Historical scenario - input'!$D6=""),"",L21/'Historical scenario - input'!$D6),"") -> 11.15063819 | AG21: =IFERROR(IF(OR(M21="",'Historical scenario - input'!$D6=""),"",M21/'Historical scenario - input'!$D6),"") -> 12.83614292 | AH21: =IFERROR(IF(OR(N21="",'Historical scenario - input'!$D6=""),"",N21/'Historical scenario - input'!$D6),"") -> 14.6566111 | AI21: =IFERROR(IF(OR(O21="",'Historical scenario - input'!$D6=""),"",O21/'Historical scenario - input'!$D6),"") -> 16.60233941 | AJ21: =IFERROR(IF(OR(P21="",'Historical scenario - input'!$D6=""),"",P21/'Historical scenario - input'!$D6),"") -> 18.66028415 | AK21: =IFERROR(IF(OR(Q21="",'Historical scenario - input'!$D6=""),"",Q21/'Historical scenario - input'!$D6),"") -> 20.81428727 | AL21: =IFERROR(IF(OR(R21="",'Historical scenario - input'!$D6=""),"",R21/'Historical scenario - input'!$D6),"") -> 23.04545627 | AM21: =IFERROR(IF(OR(S21="",'Historical scenario - input'!$D6=""),"",S21/'Historical scenario - input'!$D6),"") -> 25.33268611 | AN21: =IFERROR(IF(OR(T21="",'Historical scenario - input'!$D6=""),"",T21/'Historical scenario - input'!$D6),"") -> 27.65329995 | AO21: =IFERROR(IF(OR(U21="",'Historical scenario - input'!$D6=""),"",U21/'Historical scenario - input'!$D6),"") -> 29.98377442 | AP21: =IFERROR(IF(OR(V21="",'Historical scenario - input'!$D6=""),"",V21/'Historical scenario - input'!$D6),"") -> 32.30050629 | AQ21: =IFERROR(IF(OR(W21="",'Historical scenario - input'!$D6=""),"",W21/'Historical scenario - input'!$D6),"") -> 34.58057028
A22: =IFERROR('Historical scenario - input'!A7,"") -> 1 | B22: =IFERROR('Historical scenario - input'!B7,"") -> OVERHEAD CONDUCTORS | C22: =IFERROR('Historical scenario - input'!C7,"") -> ˃ 11 kv & < = 22 kv ; multiple-phase | D22: =IFERROR(repcalc('Historical scenario - input'!$CV7:$GH7,'Historical scenario - input'!$G7,'Historical scenario - input'!$E7,'Historical scenario - input'!$F7,20,TRUE,TRUE),"") -> 374.9069248 | E22: 408.7995566 | F22: 446.891227 | G22: 489.1988065 | H22: 535.7374929 | I22: 586.5386017 | J22: 641.6605065 | K22: 701.1906687 | L22: 765.2375474 | M22: 833.9121578 | N22: 907.3000801 | O22: 985.42572 | P22: 1068.211521 | Q22: 1155.43553 | R22: 1246.691185 | S22: 1341.35333 | T22: 1438.554283 | U22: 1537.173248 | V22: 1635.841497 | W22: 1732.964663 | X22: =IFERROR(IF(OR(D22="",'Historical scenario - input'!$D7=""),"",D22/'Historical scenario - input'!$D7),"") -> 5.658013888 | Y22: =IFERROR(IF(OR(E22="",'Historical scenario - input'!$D7=""),"",E22/'Historical scenario - input'!$D7),"") -> 6.169514127 | Z22: =IFERROR(IF(OR(F22="",'Historical scenario - input'!$D7=""),"",F22/'Historical scenario - input'!$D7),"") -> 6.744385343 | AA22: =IFERROR(IF(OR(G22="",'Historical scenario - input'!$D7=""),"",G22/'Historical scenario - input'!$D7),"") -> 7.382882145 | AB22: =IFERROR(IF(OR(H22="",'Historical scenario - input'!$D7=""),"",H22/'Historical scenario - input'!$D7),"") -> 8.085233893 | AC22: =IFERROR(IF(OR(I22="",'Historical scenario - input'!$D7=""),"",I22/'Historical scenario - input'!$D7),"") -> 8.851913195 | AD22: =IFERROR(IF(OR(J22="",'Historical scenario - input'!$D7=""),"",J22/'Historical scenario - input'!$D7),"") -> 9.68380101 | AE22: =IFERROR(IF(OR(K22="",'Historical scenario - input'!$D7=""),"",K22/'Historical scenario - input'!$D7),"") -> 10.58221729 | AF22: =IFERROR(IF(OR(L22="",'Historical scenario - input'!$D7=""),"",L22/'Historical scenario - input'!$D7),"") -> 11.54879887 | AG22: =IFERROR(IF(OR(M22="",'Historical scenario - input'!$D7=""),"",M22/'Historical scenario - input'!$D7),"") -> 12.58522118 | AH22: =IFERROR(IF(OR(N22="",'Historical scenario - input'!$D7=""),"",N22/'Historical scenario - input'!$D7),"") -> 13.69277576 | AI22: =IFERROR(IF(OR(O22="",'Historical scenario - input'!$D7=""),"",O22/'Historical scenario - input'!$D7),"") -> 14.87183096 | AJ22: =IFERROR(IF(OR(P22="",'Historical scenario - input'!$D7=""),"",P22/'Historical scenario - input'!$D7),"") -> 16.12121628 | AK22: =IFERROR(IF(OR(Q22="",'Historical scenario - input'!$D7=""),"",Q22/'Historical scenario - input'!$D7),"") -> 17.43758209 | AL22: =IFERROR(IF(OR(R22="",'Historical scenario - input'!$D7=""),"",R22/'Historical scenario - input'!$D7),"") -> 18.81479261 | AM22: =IFERROR(IF(OR(S22="",'Historical scenario - input'!$D7=""),"",S22/'Historical scenario - input'!$D7),"") -> 20.24341315 | AN22: =IFERROR(IF(OR(T22="",'Historical scenario - input'!$D7=""),"",T22/'Historical scenario - input'!$D7),"") -> 21.71034883 | AO22: =IFERROR(IF(OR(U22="",'Historical scenario - input'!$D7=""),"",U22/'Historical scenario - input'!$D7),"") -> 23.19868483 | AP22: =IFERROR(IF(OR(V22="",'Historical scenario - input'!$D7=""),"",V22/'Historical scenario - input'!$D7),"") -> 24.68776461 | AQ22: =IFERROR(IF(OR(W22="",'Historical scenario - input'!$D7=""),"",W22/'Historical scenario - input'!$D7),"") -> 26.15352633
A23: =IFERROR('Historical scenario - input'!A8,"") -> 1 | B23: =IFERROR('Historical scenario - input'!B8,"") -> OVERHEAD CONDUCTORS | C23: =IFERROR('Historical scenario - input'!C8,"") -> ˃ 11 kv & < = 22 kv ; single-phase | D23: =IFERROR(repcalc('Historical scenario - input'!$CV8:$GH8,'Historical scenario - input'!$G8,'Historical scenario - input'!$E8,'Historical scenario - input'!$F8,20,TRUE,TRUE),"") -> 53.81215489 | E23: 62.78490421 | F23: 72.65354419 | G23: 83.42863811 | H23: 95.11773359 | I23: 107.7265494 | J23: 121.2593832 | K23: 135.7183511 | L23: 151.101155 | M23: 167.3972143 | N23: 184.5821828 | O23: 202.6110887 | P23: 221.4105477 | Q23: 240.870704 | R23: 260.837704 | S23: 281.1075982 | T23: 301.4225795 | U23: 321.470387 | V23: 340.8875437 | W23: 359.2668512 | X23: =IFERROR(IF(OR(D23="",'Historical scenario - input'!$D8=""),"",D23/'Historical scenario - input'!$D8),"") -> 0.8121213549 | Y23: =IFERROR(IF(OR(E23="",'Historical scenario - input'!$D8=""),"",E23/'Historical scenario - input'!$D8),"") -> 0.9475361389 | Z23: =IFERROR(IF(OR(F23="",'Historical scenario - input'!$D8=""),"",F23/'Historical scenario - input'!$D8),"") -> 1.09647151 | AA23: =IFERROR(IF(OR(G23="",'Historical scenario - input'!$D8=""),"",G23/'Historical scenario - input'!$D8),"") -> 1.259086888 | AB23: =IFERROR(IF(OR(H23="",'Historical scenario - input'!$D8=""),"",H23/'Historical scenario - input'!$D8),"") -> 1.435496178 | AC23: =IFERROR(IF(OR(I23="",'Historical scenario - input'!$D8=""),"",I23/'Historical scenario - input'!$D8),"") -> 1.625785688 | AD23: =IFERROR(IF(OR(J23="",'Historical scenario - input'!$D8=""),"",J23/'Historical scenario - input'!$D8),"") -> 1.830020277 | AE23: =IFERROR(IF(OR(K23="",'Historical scenario - input'!$D8=""),"",K23/'Historical scenario - input'!$D8),"") -> 2.04823188 | AF23: =IFERROR(IF(OR(L23="",'Historical scenario - input'!$D8=""),"",L23/'Historical scenario - input'!$D8),"") -> 2.280385816 | AG23: =IFERROR(IF(OR(M23="",'Historical scenario - input'!$D8=""),"",M23/'Historical scenario - input'!$D8),"") -> 2.526322403 | AH23: =IFERROR(IF(OR(N23="",'Historical scenario - input'!$D8=""),"",N23/'Historical scenario - input'!$D8),"") -> 2.785674216 | AI23: =IFERROR(IF(OR(O23="",'Historical scenario - input'!$D8=""),"",O23/'Historical scenario - input'!$D8),"") -> 3.057762548 | AJ23: =IFERROR(IF(OR(P23="",'Historical scenario - input'!$D8=""),"",P23/'Historical scenario - input'!$D8),"") -> 3.3414799 | AK23: =IFERROR(IF(OR(Q23="",'Historical scenario - input'!$D8=""),"",Q23/'Historical scenario - input'!$D8),"") -> 3.635168353 | AL23: =IFERROR(IF(OR(R23="",'Historical scenario - input'!$D8=""),"",R23/'Historical scenario - input'!$D8),"") -> 3.936505981 | AM23: =IFERROR(IF(OR(S23="",'Historical scenario - input'!$D8=""),"",S23/'Historical scenario - input'!$D8),"") -> 4.242414823 | AN23: =IFERROR(IF(OR(T23="",'Historical scenario - input'!$D8=""),"",T23/'Historical scenario - input'!$D8),"") -> 4.549004108 | AO23: =IFERROR(IF(OR(U23="",'Historical scenario - input'!$D8=""),"",U23/'Historical scenario - input'!$D8),"") -> 4.851561264 | AP23: =IFERROR(IF(OR(V23="",'Historical scenario - input'!$D8=""),"",V23/'Historical scenario - input'!$D8),"") -> 5.144600776 | AQ23: =IFERROR(IF(OR(W23="",'Historical scenario - input'!$D8=""),"",W23/'Historical scenario - input'!$D8),"") -> 5.421977293
A24: =IFERROR('Historical scenario - input'!A9,"") -> 1 | B24: =IFERROR('Historical scenario - input'!B9,"") -> OVERHEAD CONDUCTORS | C24: =IFERROR('Historical scenario - input'!C9,"") -> > 1 kv & < = 11 kv | D24: =IFERROR(repcalc('Historical scenario - input'!$CV9:$GH9,'Historical scenario - input'!$G9,'Historical scenario - input'!$E9,'Historical scenario - input'!$F9,20,TRUE,TRUE),"") -> 107.0405266 | E24: 124.6810553 | F24: 143.987604 | G24: 164.7796121 | H24: 186.8163315 | I24: 209.8061018 | J24: 233.4194506 | K24: 257.3050473 | L24: 281.1071662 | M24: 304.4830775 | N24: 327.1187232 | O24: 348.7411859 | P24: 369.1267952 | Q24: 388.104215 | R24: 405.5524485 | S24: 421.3942918 | T24: 435.5862965 | U24: 448.1066752 | V24: 458.9427621 | W24: 468.0796044 | X24: =IFERROR(IF(OR(D24="",'Historical scenario - input'!$D9=""),"",D24/'Historical scenario - input'!$D9),"") -> 1.615432381 | Y24: =IFERROR(IF(OR(E24="",'Historical scenario - input'!$D9=""),"",E24/'Historical scenario - input'!$D9),"") -> 1.881659408 | Z24: =IFERROR(IF(OR(F24="",'Historical scenario - input'!$D9=""),"",F24/'Historical scenario - input'!$D9),"") -> 2.173029649 | AA24: =IFERROR(IF(OR(G24="",'Historical scenario - input'!$D9=""),"",G24/'Historical scenario - input'!$D9),"") -> 2.48681812 | AB24: =IFERROR(IF(OR(H24="",'Historical scenario - input'!$D9=""),"",H24/'Historical scenario - input'!$D9),"") -> 2.819391503 | AC24: =IFERROR(IF(OR(I24="",'Historical scenario - input'!$D9=""),"",I24/'Historical scenario - input'!$D9),"") -> 3.166348124 | AD24: =IFERROR(IF(OR(J24="",'Historical scenario - input'!$D9=""),"",J24/'Historical scenario - input'!$D9),"") -> 3.522715656 | AE24: =IFERROR(IF(OR(K24="",'Historical scenario - input'!$D9=""),"",K24/'Historical scenario - input'!$D9),"") -> 3.883191893 | AF24: =IFERROR(IF(OR(L24="",'Historical scenario - input'!$D9=""),"",L24/'Historical scenario - input'!$D9),"") -> 4.242408303 | AG24: =IFERROR(IF(OR(M24="",'Historical scenario - input'!$D9=""),"",M24/'Historical scenario - input'!$D9),"") -> 4.595192479 | AH24: =IFERROR(IF(OR(N24="",'Historical scenario - input'!$D9=""),"",N24/'Historical scenario - input'!$D9),"") -> 4.936804727 | AI24: =IFERROR(IF(OR(O24="",'Historical scenario - input'!$D9=""),"",O24/'Historical scenario - input'!$D9),"") -> 5.263126239 | AJ24: =IFERROR(IF(OR(P24="",'Historical scenario - input'!$D9=""),"",P24/'Historical scenario - input'!$D9),"") -> 5.570781427 | AK24: =IFERROR(IF(OR(Q24="",'Historical scenario - input'!$D9=""),"",Q24/'Historical scenario - input'!$D9),"") -> 5.857184525 | AL24: =IFERROR(IF(OR(R24="",'Historical scenario - input'!$D9=""),"",R24/'Historical scenario - input'!$D9),"") -> 6.120509476 | AM24: =IFERROR(IF(OR(S24="",'Historical scenario - input'!$D9=""),"",S24/'Historical scenario - input'!$D9),"") -> 6.359591134 | AN24: =IFERROR(IF(OR(T24="",'Historical scenario - input'!$D9=""),"",T24/'Historical scenario - input'!$D9),"") -> 6.573773788 | AO24: =IFERROR(IF(OR(U24="",'Historical scenario - input'!$D9=""),"",U24/'Historical scenario - input'!$D9),"") -> 6.762728624 | AP24: =IFERROR(IF(OR(V24="",'Historical scenario - input'!$D9=""),"",V24/'Historical scenario - input'!$D9),"") -> 6.926264494 | AQ24: =IFERROR(IF(OR(W24="",'Historical scenario - input'!$D9=""),"",W24/'Historical scenario - input'!$D9),"") -> 7.064155734
A25: =IFERROR('Historical scenario - input'!A10,"") -> 1 | B25: =IFERROR('Historical scenario - input'!B10,"") -> OVERHEAD CONDUCTORS | C25: =IFERROR('Historical scenario - input'!C10,"") -> > 22 kv & < = 66 kv | D25: =IFERROR(repcalc('Historical scenario - input'!$CV10:$GH10,'Historical scenario - input'!$G10,'Historical scenario - input'!$E10,'Historical scenario - input'!$F10,20,TRUE,TRUE),"") -> 112.1994714 | E25: 134.1711142 | F25: 158.3333549 | G25: 184.4256931 | H25: 212.0849068 | I25: 240.8552361 | J25: 270.2064873 | K25: 299.5591153 | L25: 328.3144618 | M25: 355.8875736 | N25: 381.7395477 | O25: 405.4062149 | P25: 426.5202544 | Q25: 444.8245047 | R25: 460.1752314 | S25: 472.5353171 | T25: 481.9585686 | U25: 488.5674406 | V25: 492.5272721 | W25: 494.0205164 | X25: =IFERROR(IF(OR(D25="",'Historical scenario - input'!$D10=""),"",D25/'Historical scenario - input'!$D10),"") -> 1.693290055 | Y25: =IFERROR(IF(OR(E25="",'Historical scenario - input'!$D10=""),"",E25/'Historical scenario - input'!$D10),"") -> 2.024881317 | Z25: =IFERROR(IF(OR(F25="",'Historical scenario - input'!$D10=""),"",F25/'Historical scenario - input'!$D10),"") -> 2.389532606 | AA25: =IFERROR(IF(OR(G25="",'Historical scenario - input'!$D10=""),"",G25/'Historical scenario - input'!$D10),"") -> 2.783312507 | AB25: =IFERROR(IF(OR(H25="",'Historical scenario - input'!$D10=""),"",H25/'Historical scenario - input'!$D10),"") -> 3.200739353 | AC25: =IFERROR(IF(OR(I25="",'Historical scenario - input'!$D10=""),"",I25/'Historical scenario - input'!$D10),"") -> 3.634934916 | AD25: =IFERROR(IF(OR(J25="",'Historical scenario - input'!$D10=""),"",J25/'Historical scenario - input'!$D10),"") -> 4.077897623 | AE25: =IFERROR(IF(OR(K25="",'Historical scenario - input'!$D10=""),"",K25/'Historical scenario - input'!$D10),"") -> 4.520881111 | AF25: =IFERROR(IF(OR(L25="",'Historical scenario - input'!$D10=""),"",L25/'Historical scenario - input'!$D10),"") -> 4.954850555 | AG25: =IFERROR(IF(OR(M25="",'Historical scenario - input'!$D10=""),"",M25/'Historical scenario - input'!$D10),"") -> 5.370977971 | AH25: =IFERROR(IF(OR(N25="",'Historical scenario - input'!$D10=""),"",N25/'Historical scenario - input'!$D10),"") -> 5.761130349 | AI25: =IFERROR(IF(OR(O25="",'Historical scenario - input'!$D10=""),"",O25/'Historical scenario - input'!$D10),"") -> 6.11830255 | AJ25: =IFERROR(IF(OR(P25="",'Historical scenario - input'!$D10=""),"",P25/'Historical scenario - input'!$D10),"") -> 6.436951049 | AK25: =IFERROR(IF(OR(Q25="",'Historical scenario - input'!$D10=""),"",Q25/'Historical scenario - input'!$D10),"") -> 6.713194819 | AL25: =IFERROR(IF(OR(R25="",'Historical scenario - input'!$D10=""),"",R25/'Historical scenario - input'!$D10),"") -> 6.944864653 | AM25: =IFERROR(IF(OR(S25="",'Historical scenario - input'!$D10=""),"",S25/'Historical scenario - input'!$D10),"") -> 7.131400381 | AN25: =IFERROR(IF(OR(T25="",'Historical scenario - input'!$D10=""),"",T25/'Historical scenario - input'!$D10),"") -> 7.273614046 | AO25: =IFERROR(IF(OR(U25="",'Historical scenario - input'!$D10=""),"",U25/'Historical scenario - input'!$D10),"") -> 7.373353708 | AP25: =IFERROR(IF(OR(V25="",'Historical scenario - input'!$D10=""),"",V25/'Historical scenario - input'!$D10),"") -> 7.433114625 | AQ25: =IFERROR(IF(OR(W25="",'Historical scenario - input'!$D10=""),"",W25/'Historical scenario - input'!$D10),"") -> 7.455650344
A26: =IFERROR('Historical scenario - input'!A11,"") -> 2 | B26: =IFERROR('Historical scenario - input'!B11,"") -> POLES | C26: =IFERROR('Historical scenario - input'!C11,"") -> ˂ = 1 kv ; concrete | D26: =IFERROR(repcalc('Historical scenario - input'!$CV11:$GH11,'Historical scenario - input'!$G11,'Historical scenario - input'!$E11,'Historical scenario - input'!$F11,20,TRUE,TRUE),"") -> 45.86856154 | E26: 50.54144781 | F26: 57.3454802 | G26: 66.73808301 | H26: 79.28085787 | I26: 95.6554022 | J26: 116.6769095 | K26: 143.3042022 | L26: 176.6447048 | M26: 217.9527912 | N26: 268.6199623 | O26: 330.1554657 | P26: 404.1562699 | Q26: 492.2657673 | R26: 596.1211741 | S26: 717.2903111 | T26: 857.1992111 | U26: 1017.052762 | V26: 1197.751285 | W26: 1399.806491 | X26: =IFERROR(IF(OR(D26="",'Historical scenario - input'!$D11=""),"",D26/'Historical scenario - input'!$D11),"") -> 3.109889736 | Y26: =IFERROR(IF(OR(E26="",'Historical scenario - input'!$D11=""),"",E26/'Historical scenario - input'!$D11),"") -> 3.426711554 | Z26: =IFERROR(IF(OR(F26="",'Historical scenario - input'!$D11=""),"",F26/'Historical scenario - input'!$D11),"") -> 3.888025137 | AA26: =IFERROR(IF(OR(G26="",'Historical scenario - input'!$D11=""),"",G26/'Historical scenario - input'!$D11),"") -> 4.524843867 | AB26: =IFERROR(IF(OR(H26="",'Historical scenario - input'!$D11=""),"",H26/'Historical scenario - input'!$D11),"") -> 5.375244347 | AC26: =IFERROR(IF(OR(I26="",'Historical scenario - input'!$D11=""),"",I26/'Historical scenario - input'!$D11),"") -> 6.485438904 | AD26: =IFERROR(IF(OR(J26="",'Historical scenario - input'!$D11=""),"",J26/'Historical scenario - input'!$D11),"") -> 7.91069768 | AE26: =IFERROR(IF(OR(K26="",'Historical scenario - input'!$D11=""),"",K26/'Historical scenario - input'!$D11),"") -> 9.716028856 | AF26: =IFERROR(IF(OR(L26="",'Historical scenario - input'!$D11=""),"",L26/'Historical scenario - input'!$D11),"") -> 11.97651585 | AG26: =IFERROR(IF(OR(M26="",'Historical scenario - input'!$D11=""),"",M26/'Historical scenario - input'!$D11),"") -> 14.77720525 | AH26: =IFERROR(IF(OR(N26="",'Historical scenario - input'!$D11=""),"",N26/'Historical scenario - input'!$D11),"") -> 18.21244085 | AI26: =IFERROR(IF(OR(O26="",'Historical scenario - input'!$D11=""),"",O26/'Historical scenario - input'!$D11),"") -> 22.38454967 | AJ26: =IFERROR(IF(OR(P26="",'Historical scenario - input'!$D11=""),"",P26/'Historical scenario - input'!$D11),"") -> 27.40180623 | AK26: =IFERROR(IF(OR(Q26="",'Historical scenario - input'!$D11=""),"",Q26/'Historical scenario - input'!$D11),"") -> 33.37563258 | AL26: =IFERROR(IF(OR(R26="",'Historical scenario - input'!$D11=""),"",R26/'Historical scenario - input'!$D11),"") -> 40.41703202 | AM26: =IFERROR(IF(OR(S26="",'Historical scenario - input'!$D11=""),"",S26/'Historical scenario - input'!$D11),"") -> 48.63230285 | AN26: =IFERROR(IF(OR(T26="",'Historical scenario - input'!$D11=""),"",T26/'Historical scenario - input'!$D11),"") -> 58.11813013 | AO26: =IFERROR(IF(OR(U26="",'Historical scenario - input'!$D11=""),"",U26/'Historical scenario - input'!$D11),"") -> 68.95620529 | AP26: =IFERROR(IF(OR(V26="",'Historical scenario - input'!$D11=""),"",V26/'Historical scenario - input'!$D11),"") -> 81.20757011 | AQ26: =IFERROR(IF(OR(W26="",'Historical scenario - input'!$D11=""),"",W26/'Historical scenario - input'!$D11),"") -> 94.90691867
A27: =IFERROR('Historical scenario - input'!A12,"") -> 2 | B27: =IFERROR('Historical scenario - input'!B12,"") -> POLES | C27: =IFERROR('Historical scenario - input'!C12,"") -> ˂ = 1 kv ; steel | D27: =IFERROR(repcalc('Historical scenario - input'!$CV12:$GH12,'Historical scenario - input'!$G12,'Historical scenario - input'!$E12,'Historical scenario - input'!$F12,20,TRUE,TRUE),"") -> 13.423692 | E27: 14.82688609 | F27: 16.56204663 | G27: 18.63072177 | H27: 21.02597643 | I27: 23.73271393 | J27: 26.72834178 | K27: 29.98381176 | L27: 33.46505044 | M27: 37.13477159 | N27: 40.95462603 | O27: 44.88760321 | P27: 48.90055594 | Q27: 52.96668265 | R27: 57.06777517 | S27: 61.19603099 | T27: 65.3552388 | U27: 69.56117721 | V27: 73.84111634 | W27: 78.23237713 | X27: =IFERROR(IF(OR(D27="",'Historical scenario - input'!$D12=""),"",D27/'Historical scenario - input'!$D12),"") -> 0.9101266872 | Y27: =IFERROR(IF(OR(E27="",'Historical scenario - input'!$D12=""),"",E27/'Historical scenario - input'!$D12),"") -> 1.005263286 | Z27: =IFERROR(IF(OR(F27="",'Historical scenario - input'!$D12=""),"",F27/'Historical scenario - input'!$D12),"") -> 1.122907218 | AA27: =IFERROR(IF(OR(G27="",'Historical scenario - input'!$D12=""),"",G27/'Historical scenario - input'!$D12),"") -> 1.263163449 | AB27: =IFERROR(IF(OR(H27="",'Historical scenario - input'!$D12=""),"",H27/'Historical scenario - input'!$D12),"") -> 1.425561781 | AC27: =IFERROR(IF(OR(I27="",'Historical scenario - input'!$D12=""),"",I27/'Historical scenario - input'!$D12),"") -> 1.609078658 | AD27: =IFERROR(IF(OR(J27="",'Historical scenario - input'!$D12=""),"",J27/'Historical scenario - input'!$D12),"") -> 1.812182309 | AE27: =IFERROR(IF(OR(K27="",'Historical scenario - input'!$D12=""),"",K27/'Historical scenario - input'!$D12),"") -> 2.032903263 | AF27: =IFERROR(IF(OR(L27="",'Historical scenario - input'!$D12=""),"",L27/'Historical scenario - input'!$D12),"") -> 2.268931341 | AG27: =IFERROR(IF(OR(M27="",'Historical scenario - input'!$D12=""),"",M27/'Historical scenario - input'!$D12),"") -> 2.517738537 | AH27: =IFERROR(IF(OR(N27="",'Historical scenario - input'!$D12=""),"",N27/'Historical scenario - input'!$D12),"") -> 2.776724773 | AI27: =IFERROR(IF(OR(O27="",'Historical scenario - input'!$D12=""),"",O27/'Historical scenario - input'!$D12),"") -> 3.043380734 | AJ27: =IFERROR(IF(OR(P27="",'Historical scenario - input'!$D12=""),"",P27/'Historical scenario - input'!$D12),"") -> 3.31545904 | AK27: =IFERROR(IF(OR(Q27="",'Historical scenario - input'!$D12=""),"",Q27/'Historical scenario - input'!$D12),"") -> 3.591142542 | AL27: =IFERROR(IF(OR(R27="",'Historical scenario - input'!$D12=""),"",R27/'Historical scenario - input'!$D12),"") -> 3.869196728 | AM27: =IFERROR(IF(OR(S27="",'Historical scenario - input'!$D12=""),"",S27/'Historical scenario - input'!$D12),"") -> 4.149092587 | AN27: =IFERROR(IF(OR(T27="",'Historical scenario - input'!$D12=""),"",T27/'Historical scenario - input'!$D12),"") -> 4.431086991 | AO27: =IFERROR(IF(OR(U27="",'Historical scenario - input'!$D12=""),"",U27/'Historical scenario - input'!$D12),"") -> 4.716249731 | AP27: =IFERROR(IF(OR(V27="",'Historical scenario - input'!$D12=""),"",V27/'Historical scenario - input'!$D12),"") -> 5.006429722 | AQ27: =IFERROR(IF(OR(W27="",'Historical scenario - input'!$D12=""),"",W27/'Historical scenario - input'!$D12),"") -> 5.304157325
A28: =IFERROR('Historical scenario - input'!A13,"") -> 2 | B28: =IFERROR('Historical scenario - input'!B13,"") -> POLES | C28: =IFERROR('Historical scenario - input'!C13,"") -> ˂ = 1 kv ; wood | D28: =IFERROR(repcalc('Historical scenario - input'!$CV13:$GH13,'Historical scenario - input'!$G13,'Historical scenario - input'!$E13,'Historical scenario - input'!$F13,20,TRUE,TRUE),"") -> 1749.553733 | E28: 1771.838324 | F28: 1817.734812 | G28: 1883.071145 | H28: 1963.490298 | I28: 2054.60335 | J28: 2152.122168 | K28: 2251.971628 | L28: 2350.382168 | M28: 2443.96386 | N28: 2529.763156 | O28: 2605.303263 | P28: 2668.608747 | Q28: 2718.214715 | R28: 2753.160805 | S28: 2772.970335 | T28: 2777.615248 | U28: 2767.468118 | V28: 2743.24314 | W28: 2705.928842 | X28: =IFERROR(IF(OR(D28="",'Historical scenario - input'!$D13=""),"",D28/'Historical scenario - input'!$D13),"") -> 495.3691407 | Y28: =IFERROR(IF(OR(E28="",'Historical scenario - input'!$D13=""),"",E28/'Historical scenario - input'!$D13),"") -> 501.678806 | Z28: =IFERROR(IF(OR(F28="",'Historical scenario - input'!$D13=""),"",F28/'Historical scenario - input'!$D13),"") -> 514.6739507 | AA28: =IFERROR(IF(OR(G28="",'Historical scenario - input'!$D13=""),"",G28/'Historical scenario - input'!$D13),"") -> 533.1732985 | AB28: =IFERROR(IF(OR(H28="",'Historical scenario - input'!$D13=""),"",H28/'Historical scenario - input'!$D13),"") -> 555.9432005 | AC28: =IFERROR(IF(OR(I28="",'Historical scenario - input'!$D13=""),"",I28/'Historical scenario - input'!$D13),"") -> 581.7409759 | AD28: =IFERROR(IF(OR(J28="",'Historical scenario - input'!$D13=""),"",J28/'Historical scenario - input'!$D13),"") -> 609.3524817 | AE28: =IFERROR(IF(OR(K28="",'Historical scenario - input'!$D13=""),"",K28/'Historical scenario - input'!$D13),"") -> 637.623886 | AF28: =IFERROR(IF(OR(L28="",'Historical scenario - input'!$D13=""),"",L28/'Historical scenario - input'!$D13),"") -> 665.4878745 | AG28: =IFERROR(IF(OR(M28="",'Historical scenario - input'!$D13=""),"",M28/'Historical scenario - input'!$D13),"") -> 691.9846212 | AH28: =IFERROR(IF(OR(N28="",'Historical scenario - input'!$D13=""),"",N28/'Historical scenario - input'!$D13),"") -> 716.2778582 | AI28: =IFERROR(IF(OR(O28="",'Historical scenario - input'!$D13=""),"",O28/'Historical scenario - input'!$D13),"") -> 737.6663056 | AJ28: =IFERROR(IF(OR(P28="",'Historical scenario - input'!$D13=""),"",P28/'Historical scenario - input'!$D13),"") -> 755.5906384 | AK28: =IFERROR(IF(OR(Q28="",'Historical scenario - input'!$D13=""),"",Q28/'Historical scenario - input'!$D13),"") -> 769.6360861 | AL28: =IFERROR(IF(OR(R28="",'Historical scenario - input'!$D13=""),"",R28/'Historical scenario - input'!$D13),"") -> 779.5307321 | AM28: =IFERROR(IF(OR(S28="",'Historical scenario - input'!$D13=""),"",S28/'Historical scenario - input'!$D13),"") -> 785.139608 | AN28: =IFERROR(IF(OR(T28="",'Historical scenario - input'!$D13=""),"",T28/'Historical scenario - input'!$D13),"") -> 786.4547699 | AO28: =IFERROR(IF(OR(U28="",'Historical scenario - input'!$D13=""),"",U28/'Historical scenario - input'!$D13),"") -> 783.5817087 | AP28: =IFERROR(IF(OR(V28="",'Historical scenario - input'!$D13=""),"",V28/'Historical scenario - input'!$D13),"") -> 776.7226414 | AQ28: =IFERROR(IF(OR(W28="",'Historical scenario - input'!$D13=""),"",W28/'Historical scenario - input'!$D13),"") -> 766.1574607
A29: =IFERROR('Historical scenario - input'!A14,"") -> 2 | B29: =IFERROR('Historical scenario - input'!B14,"") -> POLES | C29: =IFERROR('Historical scenario - input'!C14,"") -> ˃ 11 kv & < = 22 kv ; concrete | D29: =IFERROR(repcalc('Historical scenario - input'!$CV14:$GH14,'Historical scenario - input'!$G14,'Historical scenario - input'!$E14,'Historical scenario - input'!$F14,20,TRUE,TRUE),"") -> 43.58855641 | E29: 48.91015433 | F29: 56.80255144 | G29: 67.71407508 | H29: 82.21414568 | I29: 100.9984038 | J29: 124.886517 | K29: 154.8110069 | L29: 191.7956473 | M29: 236.9224469 | N29: 291.2869703 | O29: 355.9427311 | P29: 431.8365512 | Q29: 519.7380021 | R29: 620.1671806 | S29: 733.325963 | T29: 859.0383601 | U29: 996.7055461 | V29: 1145.280474 | W29: 1303.265742 | X29: =IFERROR(IF(OR(D29="",'Historical scenario - input'!$D14=""),"",D29/'Historical scenario - input'!$D14),"") -> 2.256761025 | Y29: =IFERROR(IF(OR(E29="",'Historical scenario - input'!$D14=""),"",E29/'Historical scenario - input'!$D14),"") -> 2.532282303 | Z29: =IFERROR(IF(OR(F29="",'Historical scenario - input'!$D14=""),"",F29/'Historical scenario - input'!$D14),"") -> 2.940904557 | AA29: =IFERROR(IF(OR(G29="",'Historical scenario - input'!$D14=""),"",G29/'Historical scenario - input'!$D14),"") -> 3.505839561 | AB29: =IFERROR(IF(OR(H29="",'Historical scenario - input'!$D14=""),"",H29/'Historical scenario - input'!$D14),"") -> 4.25656858 | AC29: =IFERROR(IF(OR(I29="",'Historical scenario - input'!$D14=""),"",I29/'Historical scenario - input'!$D14),"") -> 5.229107823 | AD29: =IFERROR(IF(OR(J29="",'Historical scenario - input'!$D14=""),"",J29/'Historical scenario - input'!$D14),"") -> 6.465894887 | AE29: =IFERROR(IF(OR(K29="",'Historical scenario - input'!$D14=""),"",K29/'Historical scenario - input'!$D14),"") -> 8.015210307 | AF29: =IFERROR(IF(OR(L29="",'Historical scenario - input'!$D14=""),"",L29/'Historical scenario - input'!$D14),"") -> 9.930059108 | AG29: =IFERROR(IF(OR(M29="",'Historical scenario - input'!$D14=""),"",M29/'Historical scenario - input'!$D14),"") -> 12.26646139 | AH29: =IFERROR(IF(OR(N29="",'Historical scenario - input'!$D14=""),"",N29/'Historical scenario - input'!$D14),"") -> 15.08113908 | AI29: =IFERROR(IF(OR(O29="",'Historical scenario - input'!$D14=""),"",O29/'Historical scenario - input'!$D14),"") -> 18.42863698 | AJ29: =IFERROR(IF(OR(P29="",'Historical scenario - input'!$D14=""),"",P29/'Historical scenario - input'!$D14),"") -> 22.357976 | AK29: =IFERROR(IF(OR(Q29="",'Historical scenario - input'!$D14=""),"",Q29/'Historical scenario - input'!$D14),"") -> 26.90900004 | AL29: =IFERROR(IF(OR(R29="",'Historical scenario - input'!$D14=""),"",R29/'Historical scenario - input'!$D14),"") -> 32.1086367 | AM29: =IFERROR(IF(OR(S29="",'Historical scenario - input'!$D14=""),"",S29/'Historical scenario - input'!$D14),"") -> 37.96733795 | AN29: =IFERROR(IF(OR(T29="",'Historical scenario - input'!$D14=""),"",T29/'Historical scenario - input'!$D14),"") -> 44.47599209 | AO29: =IFERROR(IF(OR(U29="",'Historical scenario - input'!$D14=""),"",U29/'Historical scenario - input'!$D14),"") -> 51.60359541 | AP29: =IFERROR(IF(OR(V29="",'Historical scenario - input'!$D14=""),"",V29/'Historical scenario - input'!$D14),"") -> 59.29593797 | AQ29: =IFERROR(IF(OR(W29="",'Historical scenario - input'!$D14=""),"",W29/'Historical scenario - input'!$D14),"") -> 67.47549296
A30: =IFERROR('Historical scenario - input'!A15,"") -> 2 | B30: =IFERROR('Historical scenario - input'!B15,"") -> POLES | C30: =IFERROR('Historical scenario - input'!C15,"") -> ˃ 11 kv & < = 22 kv ; steel | D30: =IFERROR(repcalc('Historical scenario - input'!$CV15:$GH15,'Historical scenario - input'!$G15,'Historical scenario - input'!$E15,'Historical scenario - input'!$F15,20,TRUE,TRUE),"") -> 2.745471394 | E30: 2.941744899 | F30: 3.110121139 | G30: 3.245200553 | H30: 3.342907328 | I30: 3.400770815 | J30: 3.418110368 | K30: 3.396111761 | L30: 3.337793402 | M30: 3.247869891 | N30: 3.132527973 | O30: 2.999134913 | P30: 2.855901502 | Q30: 2.711521582 | R30: 2.574807771 | S30: 2.454339911 | T30: 2.358139362 | U30: 2.293379407 | V30: 2.266139943 | W30: 2.281213383 | X30: =IFERROR(IF(OR(D30="",'Historical scenario - input'!$D15=""),"",D30/'Historical scenario - input'!$D15),"") -> 0.1421444835 | Y30: =IFERROR(IF(OR(E30="",'Historical scenario - input'!$D15=""),"",E30/'Historical scenario - input'!$D15),"") -> 0.1523063799 | Z30: =IFERROR(IF(OR(F30="",'Historical scenario - input'!$D15=""),"",F30/'Historical scenario - input'!$D15),"") -> 0.1610239188 | AA30: =IFERROR(IF(OR(G30="",'Historical scenario - input'!$D15=""),"",G30/'Historical scenario - input'!$D15),"") -> 0.1680175424 | AB30: =IFERROR(IF(OR(H30="",'Historical scenario - input'!$D15=""),"",H30/'Historical scenario - input'!$D15),"") -> 0.1730762289 | AC30: =IFERROR(IF(OR(I30="",'Historical scenario - input'!$D15=""),"",I30/'Historical scenario - input'!$D15),"") -> 0.1760720625 | AD30: =IFERROR(IF(OR(J30="",'Historical scenario - input'!$D15=""),"",J30/'Historical scenario - input'!$D15),"") -> 0.1769698034 | AE30: =IFERROR(IF(OR(K30="",'Historical scenario - input'!$D15=""),"",K30/'Historical scenario - input'!$D15),"") -> 0.1758308439 | AF30: =IFERROR(IF(OR(L30="",'Historical scenario - input'!$D15=""),"",L30/'Historical scenario - input'!$D15),"") -> 0.1728114597 | AG30: =IFERROR(IF(OR(M30="",'Historical scenario - input'!$D15=""),"",M30/'Historical scenario - input'!$D15),"") -> 0.1681557452 | AH30: =IFERROR(IF(OR(N30="",'Historical scenario - input'!$D15=""),"",N30/'Historical scenario - input'!$D15),"") -> 0.1621840139 | AI30: =IFERROR(IF(OR(O30="",'Historical scenario - input'!$D15=""),"",O30/'Historical scenario - input'!$D15),"") -> 0.1552776999 | AJ30: =IFERROR(IF(OR(P30="",'Historical scenario - input'!$D15=""),"",P30/'Historical scenario - input'!$D15),"") -> 0.1478619099 | AK30: =IFERROR(IF(OR(Q30="",'Historical scenario - input'!$D15=""),"",Q30/'Historical scenario - input'!$D15),"") -> 0.1403867604 | AL30: =IFERROR(IF(OR(R30="",'Historical scenario - input'!$D15=""),"",R30/'Historical scenario - input'!$D15),"") -> 0.1333085173 | AM30: =IFERROR(IF(OR(S30="",'Historical scenario - input'!$D15=""),"",S30/'Historical scenario - input'!$D15),"") -> 0.1270713946 | AN30: =IFERROR(IF(OR(T30="",'Historical scenario - input'!$D15=""),"",T30/'Historical scenario - input'!$D15),"") -> 0.1220906917 | AO30: =IFERROR(IF(OR(U30="",'Historical scenario - input'!$D15=""),"",U30/'Historical scenario - input'!$D15),"") -> 0.1187377993 | AP30: =IFERROR(IF(OR(V30="",'Historical scenario - input'!$D15=""),"",V30/'Historical scenario - input'!$D15),"") -> 0.1173274988 | AQ30: =IFERROR(IF(OR(W30="",'Historical scenario - input'!$D15=""),"",W30/'Historical scenario - input'!$D15),"") -> 0.1181079136
A31: =IFERROR('Historical scenario - input'!A16,"") -> 2 | B31: =IFERROR('Historical scenario - input'!B16,"") -> POLES | C31: =IFERROR('Historical scenario - input'!C16,"") -> ˃ 11 kv & < = 22 kv ; wood | D31: =IFERROR(repcalc('Historical scenario - input'!$CV16:$GH16,'Historical scenario - input'!$G16,'Historical scenario - input'!$E16,'Historical scenario - input'!$F16,20,TRUE,TRUE),"") -> 1233.039557 | E31: 1258.588244 | F31: 1300.735809 | G31: 1355.731256 | H31: 1419.958224 | I31: 1490.039399 | J31: 1562.914506 | K31: 1635.895329 | L31: 1706.700804 | M31: 1773.474594 | N31: 1834.786801 | O31: 1889.620947 | P31: 1937.347069 | Q31: 1977.681901 | R31: 2010.637473 | S31: 2036.46012 | T31: 2055.562694 | U31: 2068.453517 | V31: 2075.666352 | W31: 2077.696033 | X31: =IFERROR(IF(OR(D31="",'Historical scenario - input'!$D16=""),"",D31/'Historical scenario - input'!$D16),"") -> 277.5597294 | Y31: =IFERROR(IF(OR(E31="",'Historical scenario - input'!$D16=""),"",E31/'Historical scenario - input'!$D16),"") -> 283.3107913 | Z31: =IFERROR(IF(OR(F31="",'Historical scenario - input'!$D16=""),"",F31/'Historical scenario - input'!$D16),"") -> 292.7982945 | AA31: =IFERROR(IF(OR(G31="",'Historical scenario - input'!$D16=""),"",G31/'Historical scenario - input'!$D16),"") -> 305.1778821 | AB31: =IFERROR(IF(OR(H31="",'Historical scenario - input'!$D16=""),"",H31/'Historical scenario - input'!$D16),"") -> 319.6355042 | AC31: =IFERROR(IF(OR(I31="",'Historical scenario - input'!$D16=""),"",I31/'Historical scenario - input'!$D16),"") -> 335.4109202 | AD31: =IFERROR(IF(OR(J31="",'Historical scenario - input'!$D16=""),"",J31/'Historical scenario - input'!$D16),"") -> 351.8152561 | AE31: =IFERROR(IF(OR(K31="",'Historical scenario - input'!$D16=""),"",K31/'Historical scenario - input'!$D16),"") -> 368.2433887 | AF31: =IFERROR(IF(OR(L31="",'Historical scenario - input'!$D16=""),"",L31/'Historical scenario - input'!$D16),"") -> 384.1818461 | AG31: =IFERROR(IF(OR(M31="",'Historical scenario - input'!$D16=""),"",M31/'Historical scenario - input'!$D16),"") -> 399.212763 | AH31: =IFERROR(IF(OR(N31="",'Historical scenario - input'!$D16=""),"",N31/'Historical scenario - input'!$D16),"") -> 413.0142665 | AI31: =IFERROR(IF(OR(O31="",'Historical scenario - input'!$D16=""),"",O31/'Historical scenario - input'!$D16),"") -> 425.3575449 | AJ31: =IFERROR(IF(OR(P31="",'Historical scenario - input'!$D16=""),"",P31/'Historical scenario - input'!$D16),"") -> 436.1007927 | AK31: =IFERROR(IF(OR(Q31="",'Historical scenario - input'!$D16=""),"",Q31/'Historical scenario - input'!$D16),"") -> 445.1802461 | AL31: =IFERROR(IF(OR(R31="",'Historical scenario - input'!$D16=""),"",R31/'Historical scenario - input'!$D16),"") -> 452.5986128 | AM31: =IFERROR(IF(OR(S31="",'Historical scenario - input'!$D16=""),"",S31/'Historical scenario - input'!$D16),"") -> 458.4113436 | AN31: =IFERROR(IF(OR(T31="",'Historical scenario - input'!$D16=""),"",T31/'Historical scenario - input'!$D16),"") -> 462.711372 | AO31: =IFERROR(IF(OR(U31="",'Historical scenario - input'!$D16=""),"",U31/'Historical scenario - input'!$D16),"") -> 465.6131228 | AP31: =IFERROR(IF(OR(V31="",'Historical scenario - input'!$D16=""),"",V31/'Historical scenario - input'!$D16),"") -> 467.2367467 | AQ31: =IFERROR(IF(OR(W31="",'Historical scenario - input'!$D16=""),"",W31/'Historical scenario - input'!$D16),"") -> 467.6936321
